Workbook

Sheet FULL DISCLAIMER
D2: Full Disclaimer
D5: This tool is aimed at assisting users in decision-making by providing analysis based on various assumptions and a variety of factors. While an effort has been made to use accurate assumptions and factors in developing this tool, COOPER MAKES NO WARRANTY OR GUARANTEE, EXPRESS OR IMPLIED, (i) THAT THE RESULTS DESCRIBED HEREIN WILL BE OBTAINED UNDER END-USE CONDITIONS, OR (ii) AS TO THE EFFECTIVENESS, SAFETY OR APPROPRIATENESS OF ANY DESIGN INCORPORATING COOPER MATERIALS, PRODUCTS, USES, RECOMMENDATIONS OR ADVICE. IN NO EVENT SHALL EATON BE RESPONSIBLE FOR ANY LOSS RESULTING FROM ANY USE OF THIS TOOL.
D6: Each user bears full responsibility for making its own determination as to the suitability of Cooper's, products, recommendations, analyses, or advice for its own particular use. Each user must identify and perform all tests and analyses necessary to assure that its products and designs incorporating Cooper's material or products will be safe and suitable for use under end-use conditions. Nothing in this or any other document, nor any oral recommendation or advice, shall be deemed to alter, vary, supersede, or waive any provisions of this Disclaimer, unless any such modification is specifically agreed to in writing signed by Cooper. No statement contained herein concerning a possible or suggested use of any material, product or design is intended, or should be construed, to grant any license under any patent or other intellectual property right of Cooper or any of its subsidiaries or affiliates covering such use or design, or as a recommendation for the use of such material, product or design in the infringement of any patent or other intellectual property right.
D7: Questions about models or assumptions used in these calculations may be addressed to:
E9: Cooper Lighting LLC
E10: 1121 Highway 74 South
E11: Peachtree City, GA. 30269
E12: Tel: (770) 486-4800

Sheet USER GUIDE
D2: User Guide
D5: Our world is increasingly recognizing the importance of environmental sustainability and efficiency in new development, construction and building design. Good business is cost-conscious and environmentally responsible while driving more to the bottom line through increased productivity and a smaller carbon footprint. Contributing to this initiative, LED technology is revolutionizing lighting and luminaire design. In comparison to traditional lighting methods, LED luminaires offer significant savings in energy usage, luminaire maintenance and carbon emissions.
D6: USER GUIDE-The following provides a brief explanation of the LED Calculator/Payback Tool functionality and provides the user guidelines for effective and accurate results.
D7: Calculator & Input Sheet
E8: The Calculator Input sheet is used for comparing LED to traditional lighting systems. Only specific input cells are available for use. Typical data required includes cost of energy (varies by location) and specific system information for both LED and the traditional system components; (e.g. the number of luminaires/poles, input watts, hours of operation, etc.). The payback analysis tool will then compute total costs for each system by running calculations considering investment cost (equipment, etc.), cost of energy and cost of maintenance. The results are calculated over the given timeframe. The net savings in energy and maintenance costs are used to calculate payback or return on investment resulting from use of an LED lighting system. Multiple comparisons are possible for different fixtures and applications similar to what may be found in real project scenarios. A summary and graph is provided at the bottom of the sheet showing calculated values for all comparisons.
E9: Notes On Calculating Traditional Lamp Maintenance Costs:
E10: To accurately depict realistic industry scenarios, the following assumptions were made when considering lamp life as function of the mortality curves published by industry lamp manufacturers. The chosen method of lamp replacement varies and may be influenced by lamp type, application and customer preference. The two common practices used across the industry are referred to as spot and group relamping. The assumptions used for this spot relamping model define that spot relamping occurs when 25% of the total number of lamps have reached end of life for the given scenario. Therefore, at this time 25% of the total quantity of lamps are replaced. The assumptions used for this group relamping model define that group relamping occurs when 60% of the rated lamp life is reached for the given scenario. At this time 100% of the lamps are replaced. It is important to note that the lamp life in hours as published by lamp manufacturers, is the input value used as the rated lamp life in the calculator tool.
D11: Summary of Payback, Results, & Graphs
E12: The summary sheet provides a comprehensive breakdown of respective costs and savings for each system type. Payback is plotted over a 10 year period and is represented in years. Maintenance costs and combined maintenance/energy costs are plotted on a yearly basis over the 10 year period for each system. Tables are provided showing a side by side system comparison and a cumulative savings summary. Reduction in greenhouse gases as a result of energy savings is also shown under environmental impact.
D13: Reference Sheet of Traditional Lamp Sources and Informative Websites
E14: The reference sheet lists commonly used traditional lamps for HID, compact fluorescent and induction sources and respective data necessary to run the calculator tool. Important characteristics such as lamp life and input watts, which heavily affect the payback calculations are included. This data has been taken directly from manufacturers specifications and is adequate for most comparisons. Since lamp and ballast circuits may vary, original manufacturer data should be used for comparison of specific systems. Useful industry weblinks are also provided to guide the user to useful information such as cost of energy per kilowatt-hour by region.
D15: LED product specifications, IES files and other information can be found on Cooper Lighting website. For further information, click on the company or product image where shown.
B16: ver. 2.0 ODC - Copyright of Cooper Lighting LLC

Sheet CALCULATOR INPUT SHEET
C1: labelLED | AU1: labelTRAD
C8: Project Name: | AU8: Cooper Lighting LLC
AU9: Energy & Lamp Maintenance Payback Analysis
C10: Contact: | AV10: View Detail: | AW10: Ambient
C13: Cost per kWh: | E13: 0.08
D15: kWh Inflation Rate (%/yr): | E15: 0.01
B16: numedit | C16: 3 | Z16: 3
B17: 1 | C17: COOPER LIGHTING LLC - LED | Z17: TRADITIONAL SYSTEMS | AV17: LED Cell Names | AW17: Traditional Cell Names
C18: LUMINAIRE DEFINITION | E18: 1 | F18: 2 | G18: 3 | H18: 4 | I18: 5 | J18: 6 | K18: 7 | L18: 8 | M18: 9 | N18: 10 | O18: 11 | P18: 12 | Q18: 13 | R18: 14 | S18: 15 | T18: 16 | U18: 17 | V18: 18 | W18: 19 | X18: 20 | Z18: 1 | AA18: 2 | AB18: 3 | AC18: 4 | AD18: 5 | AE18: 6 | AF18: 7 | AG18: 8 | AH18: 9 | AI18: 10 | AJ18: 11 | AK18: 12 | AL18: 13 | AM18: 14 | AN18: 15 | AO18: 16 | AP18: 17 | AQ18: 18 | AR18: 19 | AS18: 20 | AT18: LUMINAIRE DEFINITION
A19: X | C19: Fixture Brand | E19: - | F19: - | G19: - | H19: - | I19: - | J19: - | K19: - | L19: - | M19: - | N19: - | O19: - | P19: - | Q19: - | R19: - | S19: - | T19: - | U19: - | V19: - | W19: - | X19: - | Z19: (type description) | AA19: (type description) | AB19: (type description) | AC19: (type description) | AD19: (type description) | AE19: (type description) | AF19: (type description) | AG19: (type description) | AH19: (type description) | AI19: (type description) | AJ19: (type description) | AK19: (type description) | AL19: (type description) | AM19: (type description) | AN19: (type description) | AO19: (type description) | AP19: (type description) | AQ19: (type description) | AR19: (type description) | AS19: (type description) | AU19: Fixture Brand | AV19: lumBrandLED | AW19: lumBrand
A20: X | C20: Fixture Model | E20: (double-click me) | F20: (double-click me) | G20: (double-click me) | H20: (double-click me) | I20: (double-click me) | J20: (double-click me) | K20: (double-click me) | L20: (double-click me) | M20: (double-click me) | N20: (double-click me) | O20: (double-click me) | P20: (double-click me) | Q20: (double-click me) | R20: (double-click me) | S20: (double-click me) | T20: (double-click me) | U20: (double-click me) | V20: (double-click me) | W20: (double-click me) | X20: (double-click me) | Z20: (type description) | AA20: (type description) | AB20: (type description) | AC20: (type description) | AD20: (type description) | AE20: (type description) | AF20: (type description) | AG20: (type description) | AH20: (type description) | AI20: (type description) | AJ20: (type description) | AK20: (type description) | AL20: (type description) | AM20: (type description) | AN20: (type description) | AO20: (type description) | AP20: (type description) | AQ20: (type description) | AR20: (type description) | AS20: (type description) | AU20: Fixture Model | AV20: lumModelLED | AW20: lumModel
A21: X | C21: Lamp Type | E21: LED | F21: LED | G21: LED | H21: LED | I21: LED | J21: LED | K21: LED | L21: LED | M21: LED | N21: LED | O21: LED | P21: LED | Q21: LED | R21: LED | S21: LED | T21: LED | U21: LED | V21: LED | W21: LED | X21: LED | Z21: LED | AA21: LED | AB21: LED | AC21: LED | AD21: LED | AE21: LED | AF21: LED | AG21: LED | AH21: LED | AI21: LED | AJ21: LED | AK21: LED | AL21: LED | AM21: LED | AN21: LED | AO21: LED | AP21: LED | AQ21: LED | AR21: LED | AS21: LED | AU21: Lamp Type | AW21: lamp Type
A22: X | C22: Input Watts Per Luminaire-Full Power | E22: 0 | F22: 0 | G22: 0 | H22: 0 | I22: 0 | J22: 0 | K22: 0 | L22: 0 | M22: 0 | N22: 0 | O22: 0 | P22: 0 | Q22: 0 | R22: 0 | S22: 0 | T22: 0 | U22: 0 | V22: 0 | W22: 0 | X22: 0 | Z22: 0 | AA22: 0 | AB22: 0 | AC22: -2 | AD22: -1 | AE22: 0 | AF22: 0 | AG22: 0 | AH22: 0 | AI22: 0 | AJ22: 0 | AK22: 0 | AL22: 0 | AM22: 0 | AN22: 0 | AO22: 0 | AP22: 0 | AQ22: 0 | AR22: 0 | AS22: 0 | AU22: Input Watts Per Luminaire | AV22: inputFull | AW22: inputTRAD
A23: O | C23: Input Watts Per Luminaire-Low Power | E23: 0 | F23: 0 | G23: 0 | H23: 0 | I23: 0 | J23: 0 | K23: 0 | L23: 0 | M23: 0 | N23: 0 | O23: 0 | P23: 0 | Q23: 0 | R23: 0 | S23: 0 | T23: 0 | U23: 0 | V23: 0 | W23: 0 | X23: 0 | AV23: inputLow
A24: X
A25: X | C25: APPLICATION | Z25: APPLICATION
A26: X | C26: Fixture Quantity | E26: 0 | F26: 0 | G26: 0 | H26: 0 | I26: 0 | J26: 0 | K26: 0 | L26: 0 | M26: 0 | N26: 0 | O26: 0 | P26: 0 | Q26: 0 | R26: 0 | S26: 0 | T26: 0 | U26: 0 | V26: 0 | W26: 0 | X26: 0 | Z26: 0 | AA26: 0 | AB26: 0 | AC26: 0 | AD26: 0 | AE26: 0 | AF26: 0 | AG26: 0 | AH26: 0 | AI26: 0 | AJ26: 0 | AK26: 0 | AL26: 0 | AM26: 0 | AN26: 0 | AO26: 0 | AP26: 0 | AQ26: 0 | AR26: 0 | AS26: 0 | AU26: Fixture Quantity | AV26: numLumsLED | AW26: numLums
A27: O | C27: Pole Quantity (If Applicable) | E27: 0 | F27: 0 | G27: 0 | H27: 0 | I27: 0 | J27: 0 | K27: 0 | L27: 0 | M27: 0 | N27: 0 | O27: 0 | P27: 0 | Q27: 0 | R27: 0 | S27: 0 | T27: 0 | U27: 0 | V27: 0 | W27: 0 | X27: 0 | Z27: 0 | AA27: 0 | AB27: 0 | AC27: 0 | AD27: 0 | AE27: 0 | AF27: 0 | AG27: 0 | AH27: 0 | AI27: 0 | AJ27: 0 | AK27: 0 | AL27: 0 | AM27: 0 | AN27: 0 | AO27: 0 | AP27: 0 | AQ27: 0 | AR27: 0 | AS27: 0 | AU27: Pole Quantity (If Applicable) | AV27: numPolesLED | AW27: numPoles
A28: X | C28: Operating Hours/Day-Full Power | E28: 0 | F28: 0 | G28: 0 | H28: 0 | I28: 0 | J28: 0 | K28: 0 | L28: 0 | M28: 0 | N28: 0 | O28: 0 | P28: 0 | Q28: 0 | R28: 0 | S28: 0 | T28: 0 | U28: 0 | V28: 0 | W28: 0 | X28: 0 | Z28: 0 | AA28: 0 | AB28: 0 | AC28: 0 | AD28: 0 | AE28: 0 | AF28: 0 | AG28: 0 | AH28: 0 | AI28: 0 | AJ28: 0 | AK28: 0 | AL28: 0 | AM28: 0 | AN28: 0 | AO28: 0 | AP28: 0 | AQ28: 0 | AR28: 0 | AS28: 0 | AU28: Operating Hours/Day-Full Power | AV28: burnHoursLEDH | AW28: burnHours
A29: O | C29: Operating Hours/Day-Low Power | E29: 0 | F29: 0 | G29: 0 | H29: 0 | I29: 0 | J29: 0 | K29: 0 | L29: 0 | M29: 0 | N29: 0 | O29: 0 | P29: 0 | Q29: 0 | R29: 0 | S29: 0 | T29: 0 | U29: 0 | V29: 0 | W29: 0 | X29: 0 | AV29: burnHoursLEDL
A30: O | C30: Operating Hours/Day | E30: =burnHoursLEDH+burnHoursLEDL -> 0 | F30: 0 | G30: 0 | H30: 0 | I30: 0 | J30: 0 | K30: 0 | L30: 0 | M30: 0 | N30: 0 | O30: 0 | P30: 0 | Q30: 0 | R30: 0 | S30: 0 | T30: 0 | U30: 0 | V30: 0 | W30: 0 | X30: 0 | Z30: =burnHours -> 0 | AA30: 0 | AB30: 0 | AC30: 0 | AD30: 0 | AE30: 0 | AF30: 0 | AG30: 0 | AH30: 0 | AI30: 0 | AJ30: 0 | AK30: 0 | AL30: 0 | AM30: 0 | AN30: 0 | AO30: 0 | AP30: 0 | AQ30: 0 | AR30: 0 | AS30: 0 | AU30: Operating Hours/Day | AV30: burnHoursLED
A31: X
A32: X | C32: POWER CALCULATIONS | Z32: POWER CALCULATIONS
A33: X | C33: Total kW | E33: =(E22/1000)*E26 -> 0 | F33: =(F22/1000)*F26 -> 0 | G33: 0 | H33: 0 | I33: 0 | J33: 0 | K33: 0 | L33: 0 | M33: 0 | N33: =(N22/1000)*N26 -> 0 | O33: 0 | P33: 0 | Q33: 0 | R33: 0 | S33: 0 | T33: 0 | U33: 0 | V33: 0 | W33: 0 | X33: 0 | Z33: =(Z22/1000)*Z26 -> 0 | AA33: =(AA22/1000)*AA26 -> 0 | AB33: =(AB22/1000)*AB26 -> 0 | AC33: 0 | AD33: 0 | AE33: 0 | AF33: 0 | AG33: 0 | AH33: 0 | AI33: 0 | AJ33: 0 | AK33: 0 | AL33: 0 | AM33: 0 | AN33: 0 | AO33: 0 | AP33: 0 | AQ33: 0 | AR33: 0 | AS33: 0 | AU33: Total kW
A34: X | C34: Total kW Saved | E34: =IF(Z33-E33<0,0,Z33-E33) -> 0 | F34: 0 | G34: 0 | H34: 0 | I34: 0 | J34: 0 | K34: 0 | L34: 0 | M34: 0 | N34: =IF(AI33-N33<0,0,AI33-N33) -> 0 | O34: 0 | P34: 0 | Q34: 0 | R34: 0 | S34: 0 | T34: 0 | U34: 0 | V34: 0 | W34: 0 | X34: 0
A35: X | C35: Annual Operating Hours (365 days) | E35: =(E28+E29)*365 -> 0 | F35: =(F28+F29)*365 -> 0 | G35: 0 | H35: 0 | I35: 0 | J35: 0 | K35: 0 | L35: 0 | M35: 0 | N35: =(N28+N29)*365 -> 0 | O35: 0 | P35: 0 | Q35: 0 | R35: 0 | S35: 0 | T35: 0 | U35: 0 | V35: 0 | W35: 0 | X35: 0 | Z35: =(Z28+Z29)*365 -> 0 | AA35: =(AA28+AA29)*365 -> 0 | AB35: =(AB28+AB29)*365 -> 0 | AC35: 0 | AD35: 0 | AE35: 0 | AF35: 0 | AG35: 0 | AH35: 0 | AI35: 0 | AJ35: 0 | AK35: 0 | AL35: 0 | AM35: 0 | AN35: 0 | AO35: 0 | AP35: 0 | AQ35: 0 | AR35: 0 | AS35: 0 | AU35: Annual Operating Hours (365 days)
C36: Per Fixture Full Power Watt*Hr/Day | E36: =E22*E28 -> 0 | F36: =F22*F28 -> 0 | G36: 0 | H36: 0 | I36: 0 | J36: 0 | K36: 0 | L36: 0 | M36: 0 | N36: =N22*N28 -> 0 | O36: 0 | P36: 0 | Q36: 0 | R36: 0 | S36: 0 | T36: 0 | U36: 0 | V36: 0 | W36: 0 | X36: 0 | Z36: =Z22*Z28 -> 0 | AA36: =AA22*AA28 -> 0 | AB36: =AB22*AB28 -> 0 | AC36: 0 | AD36: 0 | AE36: 0 | AF36: 0 | AG36: 0 | AH36: 0 | AI36: 0 | AJ36: 0 | AK36: 0 | AL36: 0 | AM36: 0 | AN36: 0 | AO36: 0 | AP36: 0 | AQ36: 0 | AR36: 0 | AS36: 0 | AU36: Per Fixture Full Power Watt*Hr/Day
C37: Per Fixture Low Power Watt*Hr/Day | E37: =E23*E29 -> 0 | F37: =F23*F29 -> 0 | G37: 0 | H37: 0 | I37: 0 | J37: 0 | K37: 0 | L37: 0 | M37: 0 | N37: =N23*N29 -> 0 | O37: 0 | P37: 0 | Q37: 0 | R37: 0 | S37: 0 | T37: 0 | U37: 0 | V37: 0 | W37: 0 | X37: 0
C38: Per Fixture Full Power KWh/Day | E38: =E36/1000 -> 0 | F38: =F36/1000 -> 0 | G38: 0 | H38: 0 | I38: 0 | J38: 0 | K38: 0 | L38: 0 | M38: 0 | N38: =N36/1000 -> 0 | O38: 0 | P38: 0 | Q38: 0 | R38: 0 | S38: 0 | T38: 0 | U38: 0 | V38: 0 | W38: 0 | X38: 0 | Z38: =Z36/1000 -> 0 | AA38: =AA36/1000 -> 0 | AB38: =AB36/1000 -> 0 | AC38: 0 | AD38: 0 | AE38: 0 | AF38: 0 | AG38: 0 | AH38: 0 | AI38: 0 | AJ38: 0 | AK38: 0 | AL38: 0 | AM38: 0 | AN38: 0 | AO38: 0 | AP38: 0 | AQ38: 0 | AR38: 0 | AS38: 0 | AU38: Per Fixture Full Power KW/Day
C39: Per Fixture Low Power KWh/Day | E39: =E37/1000 -> 0 | F39: =F37/1000 -> 0 | G39: 0 | H39: 0 | I39: 0 | J39: 0 | K39: 0 | L39: 0 | M39: 0 | N39: =N37/1000 -> 0 | O39: 0 | P39: 0 | Q39: 0 | R39: 0 | S39: 0 | T39: 0 | U39: 0 | V39: 0 | W39: 0 | X39: 0
C40: Per Fixture Total Watt*Hr/Day | E40: =E36+E37 -> 0 | F40: =F36+F37 -> 0 | G40: 0 | H40: 0 | I40: 0 | J40: 0 | K40: 0 | L40: 0 | M40: 0 | N40: =N36+N37 -> 0 | O40: 0 | P40: 0 | Q40: 0 | R40: 0 | S40: 0 | T40: 0 | U40: 0 | V40: 0 | W40: 0 | X40: 0 | Z40: =Z36+Z37 -> 0 | AA40: =AA36+AA37 -> 0 | AB40: =AB36+AB37 -> 0 | AC40: 0 | AD40: 0 | AE40: 0 | AF40: 0 | AG40: 0 | AH40: 0 | AI40: 0 | AJ40: 0 | AK40: 0 | AL40: 0 | AM40: 0 | AN40: 0 | AO40: 0 | AP40: 0 | AQ40: 0 | AR40: 0 | AS40: 0 | AU40: Per Fixture Total Watt*Hr/Day
C41: Per Fixture Total KW*Hr/Day | E41: =E38+E39 -> 0 | F41: =F38+F39 -> 0 | G41: 0 | H41: 0 | I41: 0 | J41: 0 | K41: 0 | L41: 0 | M41: 0 | N41: =N38+N39 -> 0 | O41: 0 | P41: 0 | Q41: 0 | R41: 0 | S41: 0 | T41: 0 | U41: 0 | V41: 0 | W41: 0 | X41: 0 | Z41: =Z38+Z39 -> 0 | AA41: =AA38+AA39 -> 0 | AB41: =AB38+AB39 -> 0 | AC41: 0 | AD41: 0 | AE41: 0 | AF41: 0 | AG41: 0 | AH41: 0 | AI41: 0 | AJ41: 0 | AK41: 0 | AL41: 0 | AM41: 0 | AN41: 0 | AO41: 0 | AP41: 0 | AQ41: 0 | AR41: 0 | AS41: 0 | AU41: Per Fixture Total KW*Hr/Day
C42: All Fixtures-Watt*Hr/Day | E42: =E40*E26 -> 0 | F42: =F40*F26 -> 0 | G42: 0 | H42: 0 | I42: 0 | J42: 0 | K42: 0 | L42: 0 | M42: 0 | N42: =N40*N26 -> 0 | O42: 0 | P42: 0 | Q42: 0 | R42: 0 | S42: 0 | T42: 0 | U42: 0 | V42: 0 | W42: 0 | X42: 0 | Z42: =Z40*Z26 -> 0 | AA42: =AA40*AA26 -> 0 | AB42: =AB40*AB26 -> 0 | AC42: 0 | AD42: 0 | AE42: 0 | AF42: 0 | AG42: 0 | AH42: 0 | AI42: 0 | AJ42: 0 | AK42: 0 | AL42: 0 | AM42: 0 | AN42: 0 | AO42: 0 | AP42: 0 | AQ42: 0 | AR42: 0 | AS42: 0 | AU42: All Fixtures-Watt*Hr/Day
C43: All Fixtures-KW*Hr/Day | E43: =E41*E26 -> 0 | F43: =F41*F26 -> 0 | G43: 0 | H43: 0 | I43: 0 | J43: 0 | K43: 0 | L43: 0 | M43: 0 | N43: =N41*N26 -> 0 | O43: 0 | P43: 0 | Q43: 0 | R43: 0 | S43: 0 | T43: 0 | U43: 0 | V43: 0 | W43: 0 | X43: 0 | Z43: =Z41*Z26 -> 0 | AA43: =AA41*AA26 -> 0 | AB43: =AB41*AB26 -> 0 | AC43: 0 | AD43: 0 | AE43: 0 | AF43: 0 | AG43: 0 | AH43: 0 | AI43: 0 | AJ43: 0 | AK43: 0 | AL43: 0 | AM43: 0 | AN43: 0 | AO43: 0 | AP43: 0 | AQ43: 0 | AR43: 0 | AS43: 0 | AU43: All Fixtures-KW*Hr/Day
C44: Annual W*Hr | E44: =E42*365 -> 0 | F44: =F42*365 -> 0 | G44: 0 | H44: 0 | I44: 0 | J44: 0 | K44: 0 | L44: 0 | M44: 0 | N44: =N42*365 -> 0 | O44: 0 | P44: 0 | Q44: 0 | R44: 0 | S44: 0 | T44: 0 | U44: 0 | V44: 0 | W44: 0 | X44: 0 | Z44: =Z42*365 -> 0 | AA44: =AA42*365 -> 0 | AB44: =AB42*365 -> 0 | AC44: 0 | AD44: 0 | AE44: 0 | AF44: 0 | AG44: 0 | AH44: 0 | AI44: 0 | AJ44: 0 | AK44: 0 | AL44: 0 | AM44: 0 | AN44: 0 | AO44: 0 | AP44: 0 | AQ44: 0 | AR44: 0 | AS44: 0 | AU44: Annual W*Hr
A45: X | C45: Annual kWh | E45: =E43*365 -> 0 | F45: =F43*365 -> 0 | G45: 0 | H45: 0 | I45: 0 | J45: 0 | K45: 0 | L45: 0 | M45: 0 | N45: =N43*365 -> 0 | O45: 0 | P45: 0 | Q45: 0 | R45: 0 | S45: 0 | T45: 0 | U45: 0 | V45: 0 | W45: 0 | X45: 0 | Z45: =Z43*365 -> 0 | AA45: =AA43*365 -> 0 | AB45: =AB43*365 -> 0 | AC45: 0 | AD45: 0 | AE45: 0 | AF45: 0 | AG45: 0 | AH45: 0 | AI45: 0 | AJ45: 0 | AK45: 0 | AL45: 0 | AM45: 0 | AN45: 0 | AO45: 0 | AP45: 0 | AQ45: 0 | AR45: 0 | AS45: 0 | AU45: Annual kWh
A46: X | C46: Annual kWh Saved | E46: =IF(Z45-E45<0,0,Z45-E45) -> 0 | F46: 0 | G46: 0 | H46: 0 | I46: 0 | J46: 0 | K46: 0 | L46: 0 | M46: 0 | N46: =IF(AI45-N45<0,0,AI45-N45) -> 0 | O46: 0 | P46: 0 | Q46: 0 | R46: 0 | S46: 0 | T46: 0 | U46: 0 | V46: 0 | W46: 0 | X46: 0
C47: Annual Energy Cost | E47: =E45*$E$13 -> 0 | F47: =F45*$E$13 -> 0 | G47: 0 | H47: 0 | I47: 0 | J47: 0 | K47: 0 | L47: 0 | M47: 0 | N47: =N45*$E$13 -> 0 | O47: 0 | P47: 0 | Q47: 0 | R47: 0 | S47: 0 | T47: 0 | U47: 0 | V47: 0 | W47: 0 | X47: 0 | Z47: =Z45*$E$13 -> 0 | AA47: =AA45*$E$13 -> 0 | AB47: =AB45*$E$13 -> 0 | AC47: 0 | AD47: 0 | AE47: 0 | AF47: 0 | AG47: 0 | AH47: 0 | AI47: 0 | AJ47: 0 | AK47: 0 | AL47: 0 | AM47: 0 | AN47: 0 | AO47: 0 | AP47: 0 | AQ47: 0 | AR47: 0 | AS47: 0 | AU47: Annual Energy Cost
C48: Energy Cost/Month | E48: =E47/12 -> 0 | F48: =F47/12 -> 0 | G48: 0 | H48: 0 | I48: 0 | J48: 0 | K48: 0 | L48: 0 | M48: 0 | N48: =N47/12 -> 0 | O48: 0 | P48: 0 | Q48: 0 | R48: 0 | S48: 0 | T48: 0 | U48: 0 | V48: 0 | W48: 0 | X48: 0 | Z48: =Z47/12 -> 0 | AA48: =AA47/12 -> 0 | AB48: =AB47/12 -> 0 | AC48: 0 | AD48: 0 | AE48: 0 | AF48: 0 | AG48: 0 | AH48: 0 | AI48: 0 | AJ48: 0 | AK48: 0 | AL48: 0 | AM48: 0 | AN48: 0 | AO48: 0 | AP48: 0 | AQ48: 0 | AR48: 0 | AS48: 0 | AU48: Energy Cost/Month
C49: Energy Cost/Day | E49: =E47/365 -> 0 | F49: =F47/365 -> 0 | G49: 0 | H49: 0 | I49: 0 | J49: 0 | K49: 0 | L49: 0 | M49: 0 | N49: =N47/365 -> 0 | O49: 0 | P49: 0 | Q49: 0 | R49: 0 | S49: 0 | T49: 0 | U49: 0 | V49: 0 | W49: 0 | X49: 0 | Z49: =Z47/365 -> 0 | AA49: =AA47/365 -> 0 | AB49: =AB47/365 -> 0 | AC49: 0 | AD49: 0 | AE49: 0 | AF49: 0 | AG49: 0 | AH49: 0 | AI49: 0 | AJ49: 0 | AK49: 0 | AL49: 0 | AM49: 0 | AN49: 0 | AO49: 0 | AP49: 0 | AQ49: 0 | AR49: 0 | AS49: 0 | AU49: Energy Cost/Day
A50: X
A51: X | C51: LUMINAIRE COSTS | Z51: LUMINAIRE COSTS
A52: X | C52: Per Luminaire Cost | E52: 0 | F52: 0 | G52: 0 | H52: 0 | I52: 0 | J52: 0 | K52: 0 | L52: 0 | M52: 0 | N52: 0 | O52: 0 | P52: 0 | Q52: 0 | R52: 0 | S52: 0 | T52: 0 | U52: 0 | V52: 0 | W52: 0 | X52: 0 | Z52: 0 | AA52: 0 | AB52: 0 | AC52: 0 | AD52: 0 | AE52: 0 | AF52: 0 | AG52: 0 | AH52: 0 | AI52: 0 | AJ52: 0 | AK52: 0 | AL52: 0 | AM52: 0 | AN52: 0 | AO52: 0 | AP52: 0 | AQ52: 0 | AR52: 0 | AS52: 0 | AU52: Per Luminaire Cost (w/lamp) | AV52: costLED | AW52: cost
A53: O | C53: Per Pole Cost (If Applicable) | E53: 0 | F53: 0 | G53: 0 | H53: 0 | I53: 0 | J53: 0 | K53: 0 | L53: 0 | M53: 0 | N53: 0 | O53: 0 | P53: 0 | Q53: 0 | R53: 0 | S53: 0 | T53: 0 | U53: 0 | V53: 0 | W53: 0 | X53: 0 | Z53: 0 | AA53: 0 | AB53: 0 | AC53: 0 | AD53: 0 | AE53: 0 | AF53: 0 | AG53: 0 | AH53: 0 | AI53: 0 | AJ53: 0 | AK53: 0 | AL53: 0 | AM53: 0 | AN53: 0 | AO53: 0 | AP53: 0 | AQ53: 0 | AR53: 0 | AS53: 0 | AU53: Per Pole Cost (If Applicable) | AV53: costPoleLED | AW53: costPole
A54: X | C54: Installation Cost (Per Luminaire) | E54: 0 | F54: 0 | G54: 0 | H54: 0 | I54: 0 | J54: 0 | K54: 0 | L54: 0 | M54: 0 | N54: 0 | O54: 0 | P54: 0 | Q54: 0 | R54: 0 | S54: 0 | T54: 0 | U54: 0 | V54: 0 | W54: 0 | X54: 0 | Z54: 0 | AA54: 0 | AB54: 0 | AC54: 0 | AD54: 0 | AE54: 0 | AF54: 0 | AG54: 0 | AH54: 0 | AI54: 0 | AJ54: 0 | AK54: 0 | AL54: 0 | AM54: 0 | AN54: 0 | AO54: 0 | AP54: 0 | AQ54: 0 | AR54: 0 | AS54: 0 | AU54: Installation Cost (Per Luminaire) | AV54: costInstallLED | AW54: costInstall
A56: X | C56: Rebate Per Fixture (If Applicable) | E56: 0 | F56: 0 | G56: 0 | H56: 0 | I56: 0 | J56: 0 | K56: 0 | L56: 0 | M56: 0 | N56: 0 | O56: 0 | P56: 0 | Q56: 0 | R56: 0 | S56: 0 | T56: 0 | U56: 0 | V56: 0 | W56: 0 | X56: 0 | AV56: rebateLED
A57: X | C57: Rebate Per kWh Saved 1st Year (If Applicable) | E57: 0 | F57: 0 | G57: 0 | H57: 0 | I57: 0 | J57: 0 | K57: 0 | L57: 0 | M57: 0 | N57: 0 | O57: 0 | P57: 0 | Q57: 0 | R57: 0 | S57: 0 | T57: 0 | U57: 0 | V57: 0 | W57: 0 | X57: 0
A58: X | C58: Rebate Per kW Saved (If Applicable) | E58: 0 | F58: 0 | G58: 0 | H58: 0 | I58: 0 | J58: 0 | K58: 0 | L58: 0 | M58: 0 | N58: 0 | O58: 0 | P58: 0 | Q58: 0 | R58: 0 | S58: 0 | T58: 0 | U58: 0 | V58: 0 | W58: 0 | X58: 0
A59: X | C59: Accelerated Tax Depreciation (%) | E59: 0 | F59: 0 | G59: 0 | H59: 0 | I59: 0 | J59: 0 | K59: 0 | L59: 0 | M59: 0 | N59: 0 | O59: 0 | P59: 0 | Q59: 0 | R59: 0 | S59: 0 | T59: 0 | U59: 0 | V59: 0 | W59: 0 | X59: 0 | AV59: AccTax
A60: X | C60: Accelerated Tax Depreciation Savings | E60: =E26*(E52+E54)*0.5*E59 -> 0 | F60: =F26*(F52+F54)*0.5*F59 -> 0 | G60: 0 | H60: 0 | I60: 0 | J60: 0 | K60: 0 | L60: 0 | M60: 0 | N60: =N26*(N52+N54)*0.5*N59 -> 0 | O60: 0 | P60: 0 | Q60: 0 | R60: 0 | S60: 0 | T60: 0 | U60: 0 | V60: 0 | W60: 0 | X60: 0
A61: X | C61: EPAct Tax Deduction | E61: 0 | F61: 0 | G61: 0 | H61: 0 | I61: 0 | J61: 0 | K61: 0 | L61: 0 | M61: 0 | N61: 0 | O61: 0 | P61: 0 | Q61: 0 | R61: 0 | S61: 0 | T61: 0 | U61: 0 | V61: 0 | W61: 0 | X61: 0 | AV61: EPAct
A62: X | C62: Combined 1st Year Cost Offset (Rebate + Tax Benefit) | E62: =(E56*E26) + (E57*E46) + (E58*E34) + (E60) + (E61) -> 0 | F62: =(F56*F26) + (F57*F46) + (F58*F34) + (F60) + (F61) -> 0 | G62: =(G56*G26) + (G57*G46) + (G58*G34) + (G60) + (G61) -> 0 | H62: 0 | I62: 0 | J62: 0 | K62: 0 | L62: 0 | M62: 0 | N62: =(N56*N26) + (N57*N46) + (N58*N34) + (N60) + (N61) -> 0 | O62: 0 | P62: 0 | Q62: 0 | R62: 0 | S62: 0 | T62: 0 | U62: 0 | V62: 0 | W62: 0 | X62: 0
C63: Total System Cost (including rebates) | E63: =(numLumsLED*E52)+(numLumsLED*E54)+(E$27*E$53)-E62 -> 0 | F63: =(numLumsLED*F52)+(numLumsLED*F54)+(F$27*F$53)-F62 -> 0 | G63: 0 | H63: 0 | I63: 0 | J63: 0 | K63: 0 | L63: 0 | M63: 0 | N63: =(numLumsLED*N52)+(numLumsLED*N54)+(N$27*N$53)-N62 -> 0 | O63: 0 | P63: 0 | Q63: 0 | R63: 0 | S63: 0 | T63: 0 | U63: 0 | V63: 0 | W63: 0 | X63: 0 | Z63: =(Z$52+Z$54)*Z$26 + (Z$27*Z$53) -> 0 | AA63: =(AA$52+AA$54)*AA$26 + (AA$27*AA$53) -> 0 | AB63: =(AB$52+AB$54)*AB$26 + (AB$27*AB$53) -> 0 | AC63: 0 | AD63: 0 | AE63: 0 | AF63: 0 | AG63: 0 | AH63: 0 | AI63: 0 | AJ63: 0 | AK63: 0 | AL63: 0 | AM63: 0 | AN63: 0 | AO63: 0 | AP63: 0 | AQ63: 0 | AR63: 0 | AS63: 0 | AU63: Total System Cost
C64: Max System Watts | E64: =E26*E22 -> 0 | F64: 0 | G64: 0 | H64: 0 | I64: 0 | J64: 0 | K64: 0 | L64: 0 | M64: 0 | N64: =N26*N22 -> 0 | O64: 0 | P64: 0 | Q64: 0 | R64: 0 | S64: 0 | T64: 0 | U64: 0 | V64: 0 | W64: 0 | X64: 0 | Z64: =Z22*Z26 -> 0 | AA64: =AA22*AA26 -> 0 | AB64: =AB22*AB26 -> 0 | AC64: 0 | AD64: 0 | AE64: 0 | AF64: 0 | AG64: 0 | AH64: 0 | AI64: 0 | AJ64: 0 | AK64: 0 | AL64: 0 | AM64: 0 | AN64: 0 | AO64: 0 | AP64: 0 | AQ64: 0 | AR64: 0 | AS64: 0 | AU64: Max System Watts
C65: Max System kW | E65: =E64/1000 -> 0 | F65: 0 | G65: 0 | H65: 0 | I65: 0 | J65: 0 | K65: 0 | L65: 0 | M65: 0 | N65: =N64/1000 -> 0 | O65: 0 | P65: 0 | Q65: 0 | R65: 0 | S65: 0 | T65: 0 | U65: 0 | V65: 0 | W65: 0 | X65: 0 | Z65: =Z64/1000 -> 0 | AA65: =AA64/1000 -> 0 | AB65: =AB64/1000 -> 0 | AC65: 0 | AD65: 0 | AE65: 0 | AF65: 0 | AG65: 0 | AH65: 0 | AI65: 0 | AJ65: 0 | AK65: 0 | AL65: 0 | AM65: 0 | AN65: 0 | AO65: 0 | AP65: 0 | AQ65: 0 | AR65: 0 | AS65: 0 | AU65: Max System kW
C66: Min System Watts | E66: =E23*E26 -> 0 | F66: 0 | G66: 0 | H66: 0 | I66: 0 | J66: 0 | K66: 0 | L66: 0 | M66: 0 | N66: =N23*N26 -> 0 | O66: 0 | P66: 0 | Q66: 0 | R66: 0 | S66: 0 | T66: 0 | U66: 0 | V66: 0 | W66: 0 | X66: 0
C67: Min System kW | E67: =E66/1000 -> 0 | F67: 0 | G67: 0 | H67: 0 | I67: 0 | J67: 0 | K67: 0 | L67: 0 | M67: 0 | N67: =N66/1000 -> 0 | O67: 0 | P67: 0 | Q67: 0 | R67: 0 | S67: 0 | T67: 0 | U67: 0 | V67: 0 | W67: 0 | X67: 0
A68: X
A69: X | C69: LED MAINTENANCE COSTS | Z69: TRADITIONAL MAINTENANCE COSTS
A70: X | C70: LED MODULE DESCRIPTION | E70: (type description) | F70: (type description) | G70: (type description) | H70: (type description) | I70: (type description) | J70: (type description) | K70: (type description) | L70: (type description) | M70: (type description) | N70: (type description) | O70: (type description) | P70: (type description) | Q70: (type description) | R70: (type description) | S70: (type description) | T70: (type description) | U70: (type description) | V70: (type description) | W70: (type description) | X70: (type description) | Z70: (type description) | AA70: (type description) | AB70: (type description) | AC70: (type description) | AD70: (type description) | AE70: (type description) | AF70: (type description) | AG70: (type description) | AH70: (type description) | AI70: (type description) | AJ70: (type description) | AK70: (type description) | AL70: (type description) | AM70: (type description) | AN70: (type description) | AO70: (type description) | AP70: (type description) | AQ70: (type description) | AR70: (type description) | AS70: (type description) | AU70: LAMP DESCRIPTION | AV70: moduleLED | AW70: module
A71: X | C71: Choose Method of Relamp | E71: GROUP | F71: GROUP | G71: GROUP | H71: GROUP | I71: GROUP | J71: GROUP | K71: GROUP | L71: GROUP | M71: GROUP | N71: GROUP | O71: GROUP | P71: GROUP | Q71: GROUP | R71: GROUP | S71: GROUP | T71: GROUP | U71: GROUP | V71: GROUP | W71: GROUP | X71: GROUP | Z71: GROUP | AA71: GROUP | AB71: GROUP | AC71: GROUP | AD71: GROUP | AE71: GROUP | AF71: GROUP | AG71: GROUP | AH71: GROUP | AI71: GROUP | AJ71: GROUP | AK71: GROUP | AL71: GROUP | AM71: GROUP | AN71: GROUP | AO71: GROUP | AP71: GROUP | AQ71: GROUP | AR71: GROUP | AS71: GROUP | AU71: Choose Method of Relamp | AV71: relampMethodLED | AW71: relampMethod
A72: X | C72: Site Fee (If applicable; flat charge per site relamping) | E72: 0 | F72: 0 | G72: 0 | H72: 0 | I72: 0 | J72: 0 | K72: 0 | L72: 0 | M72: 0 | N72: 0 | O72: 0 | P72: 0 | Q72: 0 | R72: 0 | S72: 0 | T72: 0 | U72: 0 | V72: 0 | W72: 0 | X72: 0 | Z72: 0 | AA72: 0 | AB72: 0 | AC72: 0 | AD72: 0 | AE72: 0 | AF72: 0 | AG72: 0 | AH72: 0 | AI72: 0 | AJ72: 0 | AK72: 0 | AL72: 0 | AM72: 0 | AN72: 0 | AO72: 0 | AP72: 0 | AQ72: 0 | AR72: 0 | AS72: 0 | AU72: Site Fee (If applicable; flat charge per site relamping) | AV72: siteFeeLED | AW72: siteFee
A73: X | C73: LED Lamp Module Cost Per Fixture (mtrl) | E73: 0 | F73: 0 | G73: 0 | H73: 0 | I73: 0 | J73: 0 | K73: 0 | L73: 0 | M73: 0 | N73: 0 | O73: 0 | P73: 0 | Q73: 0 | R73: 0 | S73: 0 | T73: 0 | U73: 0 | V73: 0 | W73: 0 | X73: 0 | Z73: 0 | AA73: 0 | AB73: 0 | AC73: 0 | AD73: 0 | AE73: 0 | AF73: 0 | AG73: 0 | AH73: 0 | AI73: 0 | AJ73: 0 | AK73: 0 | AL73: 0 | AM73: 0 | AN73: 0 | AO73: 0 | AP73: 0 | AQ73: 0 | AR73: 0 | AS73: 0 | AU73: Lamp Cost Per Fixture (mtrl) | AV73: costLampLED | AW73: costLamp
A74: X | C74: Labor Cost Per Fixture (labor, rental) | E74: 0 | F74: 0 | G74: 0 | H74: 0 | I74: 0 | J74: 0 | K74: 0 | L74: 0 | M74: 0 | N74: 0 | O74: 0 | P74: 0 | Q74: 0 | R74: 0 | S74: 0 | T74: 0 | U74: 0 | V74: 0 | W74: 0 | X74: 0 | Z74: 0 | AA74: 0 | AB74: 0 | AC74: 0 | AD74: 0 | AE74: 0 | AF74: 0 | AG74: 0 | AH74: 0 | AI74: 0 | AJ74: 0 | AK74: 0 | AL74: 0 | AM74: 0 | AN74: 0 | AO74: 0 | AP74: 0 | AQ74: 0 | AR74: 0 | AS74: 0 | AU74: Labor Cost Per Fixture (labor, rental) | AV74: costLaborLED | AW74: costLabor
A75: X | C75: Recycle Fee Per Lamp (If Applicable) | E75: 0 | F75: 0 | G75: 0 | H75: 0 | I75: 0 | J75: 0 | K75: 0 | L75: 0 | M75: 0 | N75: 0 | O75: 0 | P75: 0 | Q75: 0 | R75: 0 | S75: 0 | T75: 0 | U75: 0 | V75: 0 | W75: 0 | X75: 0 | Z75: 0 | AA75: 0 | AB75: 0 | AC75: 0 | AD75: 0 | AE75: 0 | AF75: 0 | AG75: 0 | AH75: 0 | AI75: 0 | AJ75: 0 | AK75: 0 | AL75: 0 | AM75: 0 | AN75: 0 | AO75: 0 | AP75: 0 | AQ75: 0 | AR75: 0 | AS75: 0 | AU75: Recycle Fee Per Lamp | AV75: costRecycleLED | AW75: costRecycle
A76: X | C76: Total Lamp Module Replacement Cost (Per Fixture) | E76: =SUM(E73:E75) -> 0 | F76: 0 | G76: 0 | H76: 0 | I76: 0 | J76: 0 | K76: 0 | L76: 0 | M76: 0 | N76: =SUM(N73:N75) -> 0 | O76: 0 | P76: 0 | Q76: 0 | R76: 0 | S76: 0 | T76: 0 | U76: 0 | V76: 0 | W76: 0 | X76: 0 | Z76: =SUM(Z73:Z75) -> 0 | AA76: =SUM(AA73:AA75) -> 0 | AB76: =SUM(AB73:AB75) -> 0 | AC76: 0 | AD76: 0 | AE76: 0 | AF76: 0 | AG76: 0 | AH76: 0 | AI76: 0 | AJ76: 0 | AK76: 0 | AL76: 0 | AM76: 0 | AN76: 0 | AO76: 0 | AP76: 0 | AQ76: 0 | AR76: 0 | AS76: 0 | AU76: Total Lamp Replacement Cost (Per Fixture) | AV76: replaceCostLED | AW76: replaceCost
A77: X | C77: Rated Life (hours) | E77: 60000 | F77: 60000 | G77: 60000 | H77: 60000 | I77: 60000 | J77: 60000 | K77: 60000 | L77: 60000 | M77: 60000 | N77: 60000 | O77: 60000 | P77: 60000 | Q77: 60000 | R77: 60000 | S77: 60000 | T77: 60000 | U77: 60000 | V77: 60000 | W77: 60000 | X77: 60000 | Z77: 60000 | AA77: 60000 | AB77: 60000 | AC77: 60000 | AD77: 60000 | AE77: 60000 | AF77: 60000 | AG77: 60000 | AH77: 60000 | AI77: 60000 | AJ77: 60000 | AK77: 60000 | AL77: 60000 | AM77: 60000 | AN77: 60000 | AO77: 60000 | AP77: 60000 | AQ77: 60000 | AR77: 60000 | AS77: 60000 | AU77: Rated Lamp Life (hours) | AV77: lifeCustomLED | AW77: lifeCustom
C78: Number of Years/Lamp | E78: =IFERROR(E77/E35,"-") -> - | F78: - | G78: - | H78: - | I78: - | J78: - | K78: - | L78: - | M78: - | N78: =IFERROR(N77/N35,"-") -> - | O78: - | P78: - | Q78: - | R78: - | S78: - | T78: - | U78: - | V78: - | W78: - | X78: - | Z78: =IF(Z35=0,0,Z77/Z35) -> 0 | AA78: =IF(AA35=0,0,AA77/AA35) -> 0 | AB78: =IF(AB35=0,0,AB77/AB35) -> 0 | AC78: 0 | AD78: 0 | AE78: 0 | AF78: 0 | AG78: 0 | AH78: 0 | AI78: 0 | AJ78: 0 | AK78: 0 | AL78: 0 | AM78: 0 | AN78: 0 | AO78: 0 | AP78: 0 | AQ78: 0 | AR78: 0 | AS78: 0 | AU78: Number of Years/Lamp
A79: X | C79: Useful Life LED Systems (Years) | E79: =IF(E35=0,"-",'Life LED'!AD12/E35) -> - | F79: =IF(F35=0,"-",'Life LED'!AE12/F35) -> - | G79: =IF(G35=0,"-",'Life LED'!AF12/G35) -> - | H79: =IF(H35=0,"-",'Life LED'!AG12/H35) -> - | I79: =IF(I35=0,"-",'Life LED'!AH12/I35) -> - | J79: =IF(J35=0,"-",'Life LED'!AI12/J35) -> - | K79: =IF(K35=0,"-",'Life LED'!AJ12/K35) -> - | L79: =IF(L35=0,"-",'Life LED'!AK12/L35) -> - | M79: =IF(M35=0,"-",'Life LED'!AL12/M35) -> - | N79: =IF(N35=0,"-",'Life LED'!AW12/N35) -> - | O79: =IF(O35=0,"-",'Life LED'!AX12/O35) -> - | P79: =IF(P35=0,"-",'Life LED'!AY12/P35) -> - | Q79: =IF(Q35=0,"-",'Life LED'!AZ12/Q35) -> - | R79: =IF(R35=0,"-",'Life LED'!BA12/R35) -> - | S79: =IF(S35=0,"-",'Life LED'!BB12/S35) -> - | T79: =IF(T35=0,"-",'Life LED'!BC12/T35) -> - | U79: =IF(U35=0,"-",'Life LED'!BD12/U35) -> - | V79: =IF(V35=0,"-",'Life LED'!BE12/V35) -> - | W79: =IF(W35=0,"-",'Life LED'!BF12/W35) -> - | X79: =IF(X35=0,"-",'Life LED'!BG12/X35) -> -
A80: X
A81: X | C81: DRIVER | E81: (type description) | F81: (type description) | G81: (type description) | H81: (type description) | I81: (type description) | J81: (type description) | K81: (type description) | L81: (type description) | M81: (type description) | N81: (type description) | O81: (type description) | P81: (type description) | Q81: (type description) | R81: (type description) | S81: (type description) | T81: (type description) | U81: (type description) | V81: (type description) | W81: (type description) | X81: (type description) | Z81: (type description) | AA81: (type description) | AB81: (type description) | AC81: (type description) | AD81: (type description) | AE81: (type description) | AF81: (type description) | AG81: (type description) | AH81: (type description) | AI81: (type description) | AJ81: (type description) | AK81: (type description) | AL81: (type description) | AM81: (type description) | AN81: (type description) | AO81: (type description) | AP81: (type description) | AQ81: (type description) | AR81: (type description) | AS81: (type description) | AU81: BALLAST | AV81: driverLED | AW81: ballast
A82: X | C82: Driver Cost Per Fixture (mtrl) | E82: 0 | F82: 0 | G82: 0 | H82: 0 | I82: 0 | J82: 0 | K82: 0 | L82: 0 | M82: 0 | N82: 0 | O82: 0 | P82: 0 | Q82: 0 | R82: 0 | S82: 0 | T82: 0 | U82: 0 | V82: 0 | W82: 0 | X82: 0 | Z82: 0 | AA82: 0 | AB82: 0 | AC82: 0 | AD82: 0 | AE82: 0 | AF82: 0 | AG82: 0 | AH82: 0 | AI82: 0 | AJ82: 0 | AK82: 0 | AL82: 0 | AM82: 0 | AN82: 0 | AO82: 0 | AP82: 0 | AQ82: 0 | AR82: 0 | AS82: 0 | AU82: Ballast Cost Per Fixture (mtrl) | AV82: costDriver | AW82: costBallast
A83: X | C83: Labor Cost Per Fixture (labor, rental) | E83: 0 | F83: 0 | G83: 0 | H83: 0 | I83: 0 | J83: 0 | K83: 0 | L83: 0 | M83: 0 | N83: 0 | O83: 0 | P83: 0 | Q83: 0 | R83: 0 | S83: 0 | T83: 0 | U83: 0 | V83: 0 | W83: 0 | X83: 0 | Z83: 0 | AA83: 0 | AB83: 0 | AC83: 0 | AD83: 0 | AE83: 0 | AF83: 0 | AG83: 0 | AH83: 0 | AI83: 0 | AJ83: 0 | AK83: 0 | AL83: 0 | AM83: 0 | AN83: 0 | AO83: 0 | AP83: 0 | AQ83: 0 | AR83: 0 | AS83: 0 | AU83: Labor Cost Per Fixture (labor, rental) | AV83: costLaborDriver | AW83: costLaborBallast
A84: X | C84: Total Driver Replacement Cost (Per Fixture) | E84: =E83+E82 -> 0 | F84: 0 | G84: 0 | H84: 0 | I84: 0 | J84: 0 | K84: 0 | L84: 0 | M84: 0 | N84: =N83+N82 -> 0 | O84: 0 | P84: 0 | Q84: 0 | R84: 0 | S84: 0 | T84: 0 | U84: 0 | V84: 0 | W84: 0 | X84: 0 | Z84: =SUM(Z82:Z83) -> 0 | AA84: =SUM(AA82:AA83) -> 0 | AB84: =SUM(AB82:AB83) -> 0 | AC84: 0 | AD84: 0 | AE84: 0 | AF84: 0 | AG84: 0 | AH84: 0 | AI84: 0 | AJ84: 0 | AK84: 0 | AL84: 0 | AM84: 0 | AN84: 0 | AO84: 0 | AP84: 0 | AQ84: 0 | AR84: 0 | AS84: 0 | AU84: Total Ballast Replacement Cost (Per Fixture) | AV84: replaceCostDriver | AW84: replaceCostBallast
A85: X | C85: Ballast / Driver Type | E85: ELECTRONIC | F85: ELECTRONIC | G85: ELECTRONIC | H85: ELECTRONIC | I85: ELECTRONIC | J85: ELECTRONIC | K85: ELECTRONIC | L85: ELECTRONIC | M85: ELECTRONIC | N85: ELECTRONIC | O85: ELECTRONIC | P85: ELECTRONIC | Q85: ELECTRONIC | R85: ELECTRONIC | S85: ELECTRONIC | T85: ELECTRONIC | U85: ELECTRONIC | V85: ELECTRONIC | W85: ELECTRONIC | X85: ELECTRONIC | Z85: ELECTRONIC | AA85: ELECTRONIC | AB85: ELECTRONIC | AC85: ELECTRONIC | AD85: ELECTRONIC | AE85: ELECTRONIC | AF85: ELECTRONIC | AG85: ELECTRONIC | AH85: ELECTRONIC | AI85: ELECTRONIC | AJ85: ELECTRONIC | AK85: ELECTRONIC | AL85: ELECTRONIC | AM85: ELECTRONIC | AN85: ELECTRONIC | AO85: ELECTRONIC | AP85: ELECTRONIC | AQ85: ELECTRONIC | AR85: ELECTRONIC | AS85: ELECTRONIC | AU85: Ballast Type | AW85: ballastType
A86: X | C86: Rated Driver Life (hours) | E86: 60000 | F86: 0 | G86: 0 | H86: 0 | I86: 0 | J86: 0 | K86: 0 | L86: 0 | M86: 0 | N86: 0 | O86: 0 | P86: 0 | Q86: 0 | R86: 0 | S86: 0 | T86: 0 | U86: 0 | V86: 0 | W86: 0 | X86: 0 | Z86: 60000 | AA86: 0 | AB86: 0 | AC86: 0 | AD86: 0 | AE86: 0 | AF86: 0 | AG86: 0 | AH86: 0 | AI86: 0 | AJ86: 0 | AK86: 0 | AL86: 0 | AM86: 0 | AN86: 0 | AO86: 0 | AP86: 0 | AQ86: 0 | AR86: 0 | AS86: 0 | AU86: Rated Ballast Life (hours) | AV86: lifeCustomDriver | AW86: lifeCustomBallast
C87: Number of Years/Driver | E87: =IF(E35=0,0,E86/E35) -> 0 | F87: 0 | G87: 0 | H87: 0 | I87: 0 | J87: 0 | K87: 0 | L87: 0 | M87: 0 | N87: =IF(N35=0,0,N86/N35) -> 0 | O87: 0 | P87: 0 | Q87: 0 | R87: 0 | S87: 0 | T87: 0 | U87: 0 | V87: 0 | W87: 0 | X87: 0 | Z87: =IF(Z35=0,0,Z86/Z35) -> 0 | AA87: =IF(AA35=0,0,AA86/AA35) -> 0 | AB87: =IF(AB35=0,0,AB86/AB35) -> 0 | AC87: 0 | AD87: 0 | AE87: 0 | AF87: 0 | AG87: 0 | AH87: 0 | AI87: 0 | AJ87: 0 | AK87: 0 | AL87: 0 | AM87: 0 | AN87: 0 | AO87: 0 | AP87: 0 | AQ87: 0 | AR87: 0 | AS87: 0 | AU87: Number of Years/Ballast
A88: X
A89: X | C89: ANNUALIZED LED COST SUMMARY | Z89: ANNUALIZED TRADITIONAL COST SUMMARY
A90: X | C90: Total LED System Cost | E90: =E63 -> 0 | F90: =F63 -> 0 | G90: 0 | H90: 0 | I90: 0 | J90: 0 | K90: 0 | L90: 0 | M90: 0 | N90: =N63 -> 0 | O90: 0 | P90: 0 | Q90: 0 | R90: 0 | S90: 0 | T90: 0 | U90: 0 | V90: 0 | W90: 0 | X90: 0 | Z90: =Z63 -> 0 | AA90: =AA63 -> 0 | AB90: =AB63 -> 0 | AC90: 0 | AD90: 0 | AE90: 0 | AF90: 0 | AG90: 0 | AH90: 0 | AI90: 0 | AJ90: 0 | AK90: 0 | AL90: 0 | AM90: 0 | AN90: 0 | AO90: 0 | AP90: 0 | AQ90: 0 | AR90: 0 | AS90: 0 | AU90: Total Traditional System Cost
A91: X | C91: Annual LED Energy Cost | E91: =Calcs!E128 -> 0 | F91: =Calcs!F128 -> 0 | G91: =Calcs!G128 -> 0 | H91: =Calcs!H128 -> 0 | I91: =Calcs!I128 -> 0 | J91: =Calcs!J128 -> 0 | K91: =Calcs!K128 -> 0 | L91: =Calcs!L128 -> 0 | M91: =Calcs!M128 -> 0 | N91: =Calcs!N128 -> 0 | O91: =Calcs!O128 -> 0 | P91: =Calcs!P128 -> 0 | Q91: =Calcs!Q128 -> 0 | R91: =Calcs!R128 -> 0 | S91: =Calcs!S128 -> 0 | T91: =Calcs!T128 -> 0 | U91: =Calcs!U128 -> 0 | V91: =Calcs!V128 -> 0 | W91: =Calcs!W128 -> 0 | X91: =Calcs!X128 -> 0 | Z91: =Calcs!E129 -> 0 | AA91: =Calcs!F129 -> 0 | AB91: =Calcs!G129 -> 0 | AC91: =Calcs!H129 -> 0 | AD91: =Calcs!I129 -> 0 | AE91: =Calcs!J129 -> 0 | AF91: =Calcs!K129 -> 0 | AG91: =Calcs!L129 -> 0 | AH91: =Calcs!M129 -> 0 | AI91: =Calcs!N129 -> 0 | AJ91: =Calcs!O129 -> 0 | AK91: =Calcs!P129 -> 0 | AL91: =Calcs!Q129 -> 0 | AM91: =Calcs!R129 -> 0 | AN91: =Calcs!S129 -> 0 | AO91: =Calcs!T129 -> 0 | AP91: =Calcs!U129 -> 0 | AQ91: =Calcs!V129 -> 0 | AR91: =Calcs!W129 -> 0 | AS91: =Calcs!X129 -> 0 | AU91: Annual Traditional Energy Cost
A92: X | C92: Annual LED Maintenance Cost | E92: =Calcs!E107 -> 0 | F92: =Calcs!F107 -> 0 | G92: =Calcs!G107 -> 0 | H92: =Calcs!H107 -> 0 | I92: =Calcs!I107 -> 0 | J92: =Calcs!J107 -> 0 | K92: =Calcs!K107 -> 0 | L92: =Calcs!L107 -> 0 | M92: =Calcs!M107 -> 0 | N92: =Calcs!N107 -> 0 | O92: =Calcs!O107 -> 0 | P92: =Calcs!P107 -> 0 | Q92: =Calcs!Q107 -> 0 | R92: =Calcs!R107 -> 0 | S92: =Calcs!S107 -> 0 | T92: =Calcs!T107 -> 0 | U92: =Calcs!U107 -> 0 | V92: =Calcs!V107 -> 0 | W92: =Calcs!W107 -> 0 | X92: =Calcs!X107 -> 0 | Z92: =Calcs!BD107 -> 0 | AA92: =Calcs!BE107 -> 0 | AB92: =Calcs!BF107 -> 0 | AC92: =Calcs!BG107 -> 0 | AD92: =Calcs!BH107 -> 0 | AE92: =Calcs!BI107 -> 0 | AF92: =Calcs!BJ107 -> 0 | AG92: =Calcs!BK107 -> 0 | AH92: =Calcs!BL107 -> 0 | AI92: =Calcs!BM107 -> 0 | AJ92: =Calcs!BN107 -> 0 | AK92: =Calcs!BO107 -> 0 | AL92: =Calcs!BP107 -> 0 | AM92: =Calcs!BQ107 -> 0 | AN92: =Calcs!BR107 -> 0 | AO92: =Calcs!BS107 -> 0 | AP92: =Calcs!BT107 -> 0 | AQ92: =Calcs!BU107 -> 0 | AR92: =Calcs!BV107 -> 0 | AS92: =Calcs!BW107 -> 0 | AU92: Annual Traditional Maintenance Cost
A93: end | E93: EMPTY | F93: EMPTY | G93: EMPTY | H93: EMPTY | I93: EMPTY | J93: EMPTY | K93: EMPTY | L93: EMPTY | M93: EMPTY | N93: EMPTY | O93: EMPTY | P93: EMPTY | Q93: EMPTY | R93: EMPTY | S93: EMPTY | T93: EMPTY | U93: EMPTY | V93: EMPTY | W93: EMPTY | X93: EMPTY | Z93: EMPTY | AA93: EMPTY | AB93: EMPTY | AC93: EMPTY | AD93: EMPTY | AE93: EMPTY | AF93: EMPTY | AG93: EMPTY | AH93: EMPTY | AI93: EMPTY | AJ93: EMPTY | AK93: EMPTY | AL93: EMPTY | AM93: EMPTY | AN93: EMPTY | AO93: EMPTY | AP93: EMPTY | AQ93: EMPTY | AR93: EMPTY | AS93: EMPTY | AV93: updateLED | AW93: update
AV94: whole comparison's name = matrix
C95: PAYBACK ANALYSIS
C96: AVERAGE ANNUALIZED SAVINGS PER YEAR
C98: Annual Energy Savings | E98: =IFERROR(SUM(Z91:AS91)-SUM(E91:X91),"-") -> 0
C99: Annual Lamp Maintenance Savings | E99: =IFERROR(SUM(Z92:AS92) - SUM(E92:X92), "-") -> 0
C100: Annual Combined Savings | E100: =IFERROR(E98+E99, "-") -> 0
C102: Cost of Waiting (Monthly) | E102: =IFERROR(E100/12, "-") -> 0
C104: Simple Payback (years) | E104: =IFERROR(IF(E100<0,"Infinite",(SUM($E$90:$X$90)-SUM($Z$90:$AS$90))/E100),"-") -> -
C105: IRR (%) | E105: =IFERROR(IF(E106>0,IF(Calcs!L110<0,IRR(Calcs!L110:L120,0.2),"N/A "),"N/A "), "-") -> N/A
C106: 10 Year Cash Flow (Energy & Lamp Main.) | E106: =Calcs!M120 -> 0
C108: Note: These are estimated savings only. Annual and monthly savings are based on a number of variables and assumptions that could change over time. The actual savings derived by your firm may be higher or lower. Cooper Lighting LLC does not imply a warranty of performance or savings as calculated and shown within this program and document.
C110: Build Date: 9/19/2016
A143: X labels for graph in payback analysis:
A144: LED | B144: Traditional
A146: GREENHOUSE GAS CALCULATIONS:
E148: Power (kWh) | F148: Carbon Dioxide (CO2) | G148: Methane (CH4) | H148: Nitrous Oxide (N2O)
E149: kWh | F149: lbs CO2 | G149: lbs CH4 | H149: lbs N2O
C150: *Constant (lbs/kWh) --> | E150: - | F150: 1.363 | G150: 0.05 | H150: 0.09
C151: Value of reduction per year --> | E151: =SUM($Z$45:$AS$45)-SUM($E$45:$X$45) -> 0 | F151: =F150*E151 -> 0 | G151: =G150*E151 -> 0 | H151: =H150*E151 -> 0
C152: 1 | E152: =$E$151*$C152 -> 0 | F152: =$F$151*$C152 -> 0 | G152: =$G$151*$C152 -> 0 | H152: =$H$151*$C152 -> 0
C153: 2 | E153: =$E$151*$C153 -> 0 | F153: =$F$151*$C153 -> 0 | G153: =$G$151*$C153 -> 0 | H153: 0
C154: 3 | E154: 0 | F154: 0 | G154: 0 | H154: 0
C155: 4 | E155: 0 | F155: 0 | G155: 0 | H155: 0
C156: 5 | E156: 0 | F156: 0 | G156: 0 | H156: 0
C157: 6 | E157: 0 | F157: 0 | G157: 0 | H157: 0
C158: 7 | E158: 0 | F158: 0 | G158: 0 | H158: 0
C159: 8 | E159: 0 | F159: 0 | G159: 0 | H159: 0
C160: 9 | E160: 0 | F160: 0 | G160: 0 | H160: 0
C161: 10 | E161: 0 | F161: 0 | G161: 0 | H161: 0
E163: *Carbon Dioxide constant based on national average
E164: *Methane constant based on national average
E165: *Nitrous Oxide constant based on national average

Sheet SUMMARY-PAYBACK RESULTS-GRAPHS
B2: Cooper Lighting LLC Energy & Maintenance Summary
B9: Project Name: | H9: Information:
B10: ='CALCULATOR INPUT SHEET'!C9 -> 0
B12: Contact:
B13: ='CALCULATOR INPUT SHEET'!C11 -> 0
C15: LED Payback (Years)
K17: System Energy & Maintenance Cost Summary
H19: LED | I19: Traditional
G20: =IF(SUM('CALCULATOR INPUT SHEET'!E62:X62)>0, "Total Initial Fixture/Installation Cost After Rebate", "Total Initial Fixture/Installation Cost") -> Total Initial Fixture/Installation Cost | H20: =SUM('CALCULATOR INPUT SHEET'!E90:X90) -> 0 | I20: =SUM('CALCULATOR INPUT SHEET'!Z90:AS90) -> 0 | K20: Savings | M20: Cost/Year
G21: Total System kW | H21: =SUM('CALCULATOR INPUT SHEET'!E33:X33) -> 0 | I21: =SUM('CALCULATOR INPUT SHEET'!Z33:AS33) -> 0 | K21: Annual | L21: Cumulative | M21: LED | N21: Traditional
G22: Annual kWh | H22: =SUM('CALCULATOR INPUT SHEET'!E45:X45) -> 0 | I22: =SUM('CALCULATOR INPUT SHEET'!Z45:AS45) -> 0 | J22: 1st Year | K22: =IFERROR(N22-M22,"-") -> 0 | L22: =IFERROR(N22-M22, "-") -> 0 | M22: =Calcs!I111 -> 0 | N22: =Calcs!J111 -> 0
G23: Cost of Energy per kWh | H23: ='CALCULATOR INPUT SHEET'!E13 -> 0.08 | I23: ='CALCULATOR INPUT SHEET'!E13 -> 0.08 | J23: 5th Year | K23: =IFERROR(N23-M23, "-") -> 0 | L23: =IFERROR(K23*5, "-") -> 0 | M23: =AVERAGE(Calcs!I111:I115) -> 0 | N23: =AVERAGE(Calcs!J111:J115) -> 0
G24: kWh Inflation Rate (%/yr) | H24: ='CALCULATOR INPUT SHEET'!E15 -> 0.01 | I24: ='CALCULATOR INPUT SHEET'!E15 -> 0.01 | J24: 10th Year | K24: =IFERROR(N24-M24, "-") -> 0 | L24: =IFERROR(10*K24, "-") -> 0 | M24: =Calcs!I122 -> 0 | N24: =Calcs!J122 -> 0
G25: Average Annual Energy Cost | H25: =SUM('CALCULATOR INPUT SHEET'!E91:X91) -> 0 | I25: =SUM('CALCULATOR INPUT SHEET'!Z91:AS91) -> 0
G26: Average Annual Maintenance Cost | H26: =SUM('CALCULATOR INPUT SHEET'!E92:X92) -> 0 | I26: =SUM('CALCULATOR INPUT SHEET'!Z92:AS92) -> 0 | L26: 10 Year Total Cost | M26: =Calcs!I121 -> 0 | N26: =Calcs!J121 -> 0
G27: Average Annual Energy & Maintenance Costs | H27: =IFERROR(H26+H25, "-") -> 0 | I27: =IFERROR(I26+I25,"-") -> 0
G28: Average Annual Energy & Maintenance Savings | H28: =IFERROR(I27-H27,"-") -> 0
G29: 10 Year Savings (Initial Cost, Energy & Maintenance) | H29: =IFERROR(L24-H20, "-") -> 0
C31: =IFERROR(CONCATENATE("Payback = ", ROUND('CALCULATOR INPUT SHEET'!E104,2), " Years"), "Paypack = __ Years") -> Paypack = __ Years
B84: Environmental Impact
B85: Greenhouse Gas Reduction | J85: Equivalent Number of Vehicles (CO2 Emissions)
B86: Reduction in greenhouse gases as a result of investing in LED lighting over traditional technology. | J86: Savings equivalency in fewer number of vehicles resulting from investing in LED lighting over traditional technology.
D88: Cumulative Savings (lbs)
C89: Carbon Dioxide (CO2) | D89: Nitrous Oxide (N2O) | E89: Methane (CH4) | K89: Number of Vehicles
B90: Year 1 | C90: ='CALCULATOR INPUT SHEET'!F152 -> 0 | D90: ='CALCULATOR INPUT SHEET'!H152 -> 0 | E90: ='CALCULATOR INPUT SHEET'!G152 -> 0 | J90: Year 1 | K90: =(1/12081) * C90 -> 0
B91: Year 5 | C91: ='CALCULATOR INPUT SHEET'!E156 -> 0 | D91: ='CALCULATOR INPUT SHEET'!H156 -> 0 | E91: ='CALCULATOR INPUT SHEET'!G156 -> 0 | J91: Year 5 | K91: =(1/12081) * C91 -> 0
B92: Year 10 | C92: ='CALCULATOR INPUT SHEET'!E161 -> 0 | D92: ='CALCULATOR INPUT SHEET'!H161 -> 0 | E92: ='CALCULATOR INPUT SHEET'!G161 -> 0 | J92: Year 10 | K92: =(1/12081) * C92 -> 0
B96: Note: These are estimated savings only. Annual and monthly savings are based on a number of variables and assumptions that could change over time. The actual savings derived by your firm may be higher or lower. Cooper Lighting LLC does not imply a warranty of performance or savings as calculated and shown within this program and document.

Sheet REFERENCE-LAMPS-WATTS-WEBLINKS
J2: Reference Sheet
B4: Reference Table for Lamp/Ballast Systems | M4: Energy & Industry Links/Websites
B5: HID | C5: Wattage | D5: Rated Life (Hrs) | E5: % Failure @ Rated Life | F5: Envelope | G5: Base | H5: Input Watts (W) | I5: Operating Position | J5: Ballast Circuit Type | K5: Mean Lumens (Bare Lamp) | M5: Government/State
B6: Pulse Start CMH | C6: 39 | D6: 12000 | E6: 50 | F6: T6 | G6: G12 | H6: 56 | I6: UNV | J6: HX | K6: 2800 | M6: (USDOE) US Department of Energy
C7: 70 | D7: 12000 | E7: 50 | F7: T6 | G7: G12 | H7: 94 | I7: UNV | J7: HX | K7: 4620 | M7: (USDOE) Building Energy Codes Program
C8: 150 | D8: 12000 | E8: 50 | F8: T6 | G8: G12 | H8: 185 | I8: UNV | J8: HX | K8: 8900 | M8: (DSIRE) Database of State Incentives for Renewable & Efficiency
M9: U.S. Department of Energy's Building Energy Codes Program
C10: 210 | D10: 20000 | E10: 50 | F10: T9 | G10: PGZ18 | H10: 227 | I10: UNV | J10: Electronic | K10: 20790 | M10: California Energy Commission A-Z
C11: 315 | D11: 20000 | E11: 50 | F11: T9 | G11: PGZ18 | H11: 341 | I11: UNV | J11: Electronic | K11: 32900 | M11: California Energy Commission
M12: US Department of Energy Solid State Lighting
C13: 50 | D13: 20000 | E13: 50 | F13: ED17P | G13: MED | H13: 72 | I13: UNV | J13: HX | K13: 2450 | M13: Latest Energy Costs by State (USDOE)
C14: 70 | D14: 20000 | E14: 50 | F14: ED17P | G14: MED | H14: 90 | I14: UNV | J14: HX | K14: 4060
C15: 100 | D15: 20000 | E15: 50 | F15: ED17P | G15: MED | H15: 129 | I15: UNV | J15: HX | K15: 6150 | M15: Organizations/Associations
C16: 150 | D16: 20000 | E16: 50 | F16: ED17P | G16: MED | H16: 185 | I16: UNV | J16: HX | K16: 9000 | M16: Cooper Lighting Homepage
M17: (IESNA) The Illuminating Engineering Society of North America
C18: 50 | D18: 20000 | E18: 50 | F18: ED17 | G18: MED | H18: 72 | I18: UNV | J18: HX | K18: 2550 | M18: (USGBC) US Green Building Council
C19: 70 | D19: 20000 | E19: 50 | F19: ED17 | G19: MED | H19: 90 | I19: UNV | J19: HX | K19: 4130 | M19: (NALMCO) International Association of Lighting Management Companies
C20: 100 | D20: 20000 | E20: 50 | F20: ED17 | G20: MED | H20: 129 | I20: UNV | J20: HX | K20: 6750 | M20: (NECA) National Electrical Contractors Association
C21: 150 | D21: 20000 | E21: 50 | F21: ED17 | G21: MED | H21: 185 | I21: UNV | J21: HX | K21: 9750 | M21: (NAILD) National Association Independent Lighting Distributors
M22: (NGLIA) Next Generation Lighting Industry Alliance
C23: 250 | D23: 24000 | E23: 50 | F23: ED28 | G23: EX39-MOG | H23: 291 | I23: VERT +/-15 | J23: CWA | K23: 18000 | M23: (IALD) International Association of Lighting Designers
C24: 320 | D24: 24000 | E24: 50 | F24: ED28 | G24: EX39-MOG | H24: 368 | I24: VERT +/-15 | J24: CWA | K24: 23000
C25: 350 | D25: 24000 | E25: 50 | F25: ED37 | G25: EX39-MOG | H25: 400 | I25: VERT +/-15 | J25: CWA | K25: 25200
C26: 400 | D26: 20000 | E26: 50 | F26: ED28 | G26: EX39-MOG | H26: 452 | I26: VERT +/-15 | J26: CWA | K26: 28800
C27: 400 | D27: 24000 | E27: 50 | F27: ED37 | G27: EX39-MOG | H27: 452 | I27: VERT +/-15 | J27: CWA | K27: 28800
B30: Pulse Start Metal Halide | C30: 175 | D30: 11500 | E30: 50 | F30: ED28 | G30: MOG | H30: 208 | I30: HORZ | J30: CWA | K30: 8960
C31: 200 | D31: 15000 | E31: 50 | F31: T15 | G31: MOG | H31: 232 | I31: HORZ +/-75 | J31: CWA | K31: 16000
C32: 250 | D32: 12000 | E32: 50 | F32: ED28 | G32: MOG | H32: 291 | I32: HORZ | J32: CWA | K32: 14000
C33: 320 | D33: 20000 | E33: 50 | F33: ED28 | G33: MOG | H33: 368 | I33: UNV | J33: CWA | K33: 21000
C34: 350 | D34: 15000 | E34: 50 | F34: ED37 | G34: MOG | H34: 400 | I34: HORZ | J34: CWA | K34: 23100
C35: 400 | D35: 15000 | E35: 50 | F35: ED37 | G35: MOG | H35: 452 | I35: HORZ | J35: CWA | K35: 25760
C36: 450 | D36: 20000 | E36: 50 | F36: ED37 | G36: MOG | H36: 508 | I36: VERT +/-15 | J36: CWA | K36: 40000
C37: 750 | D37: 12000 | E37: 50 | F37: BT37 | G37: MOG | H37: 820 | I37: HORZ | J37: CWA | K37: 47600
C38: 875 | D38: 12000 | E38: 50 | F38: BT37 | G38: MOG | H38: 940 | I38: HORZ +/-45 | J38: CWA | K38: 76000
C39: 1000 | D39: 5000 | E39: 50 | F39: T25 | G39: MOG | H39: 1080 | I39: HORZ +/-45 | J39: CWA | K39: 77000
C40: 1000 | D40: 15000 | E40: 50 | F40: BT37 | G40: MOG | H40: 1080 | I40: BU +/-15 | J40: CWA | K40: 96000
B43: Metal Halide (Probe Start) | C43: 175 | D43: 10000 | E43: 50 | F43: BD17 | G43: MED | H43: 210 | I43: UNV | J43: CWA | K43: 9100
C44: 175 | D44: 10000 | E44: 50 | F44: ED28 | G44: MOG | H44: 210 | I44: UNV | J44: CWA | K44: 8775
C45: 250 | D45: 10000 | E45: 50 | F45: ED28 | G45: MOG | H45: 295 | I45: UNV | J45: CWA | K45: 13500
C46: 400 | D46: 20000 | E46: 50 | F46: ED28 | G46: MOG | H46: 462 | I46: UNV | J46: CWA | K46: 24000
C47: 1000 | D47: 10000 | E47: 50 | F47: BT37 | G47: MOG | H47: 1080 | I47: UNV | J47: CWA | K47: 71500
B50: High Pressure Sodium | C50: 35 | D50: 24000 | E50: 50 | F50: BF55 | G50: MED | H50: 46 | I50: UNV | J50: R | K50: 2025
C51: 50 | D51: 24000 | E51: 50 | F51: BF55 | G51: MED | H51: 66 | I51: UNV | J51: HX | K51: 3600
C52: 70 | D52: 24000 | E52: 50 | F52: ED17 | G52: MED | H52: 93 | I52: UNV | J52: HX | K52: 5850
C53: 100 | D53: 24000 | E53: 50 | F53: ED17 | G53: MED | H53: 130 | I53: UNV | J53: HX | K53: 8550
C54: 150 | D54: 24000 | E54: 50 | F54: ED17 | G54: MED | H54: 190 | I54: UNV | J54: CWA | K54: 14400
C55: 250 | D55: 24000 | E55: 50 | F55: ED18 | G55: MOG | H55: 295 | I55: UNV | J55: CWA | K55: 24300
C56: 400 | D56: 24000 | E56: 50 | F56: ED18 | G56: MOG | H56: 464 | I56: UNV | J56: CWA | K56: 45000
C57: 1000 | D57: 24000 | E57: 50 | F57: ED18 | G57: MOG | H57: 1100 | I57: UNV | J57: CWA | K57: 126000
B60: Compact Fluorescent | C60: Wattage | D60: Rated Life (Hrs) | E60: % Failure @ Rated Life | F60: Envelope | G60: Base | H60: Input Watts (W) | I60: Operating Position | J60: Ballast Circuit Type | K60: Mean Lumens
C61: 18 | D61: 16000 | E61: 50 | F61: T4 | G61: GX24q-2 | H61: 20 | I61: UNV | J61: Electronic | K61: 1020
C62: 26 | D62: 16000 | E62: 50 | F62: T4 | G62: GX24q-3 | H62: 29 | I62: UNV | J62: Electronic | K62: 1530
C63: 32 | D63: 16000 | E63: 50 | F63: T4 | G63: GX24q-3 | H63: 36 | I63: UNV | J63: Electronic | K63: 2040
C64: 42 | D64: 16000 | E64: 50 | F64: T4 | G64: GX24q-4 | H64: 46 | I64: UNV | J64: Electronic | K64: 2720
C65: 57 | D65: 16000 | E65: 50 | F65: T4 | G65: GX24q-5 | H65: 59 | I65: UNV | J65: Electronic | K65: 3741
C66: 70 | D66: 12000 | E66: 50 | F66: T4 | G66: GX24q-6 | H66: 75 | I66: UNV | J66: Electronic | K66: 4470
C67: 84 (Qty 2-42w) | D67: 16000 | E67: 50 | F67: T4 | G67: GX24q-4 | H67: 93 | I67: UNV | J67: Electronic | K67: ---
C68: 114 (Qty 2-57w) | D68: 16000 | E68: 50 | F68: T4 | G68: GX24q-5 | H68: 127 | I68: UNV | J68: Electronic | K68: ---
C69: 140 (Qty 2-70w) | D69: 16000 | E69: 50 | F69: T4 | G69: GX24q-6 | H69: 154 | I69: UNV | J69: Electronic | K69: ---
B71: Induction
C72: 55 | D72: 100000 | E72: 50 | F72: --- | G72: P26 | H72: 57 (MAX) | I72: UNV | J72: Electronic | K72: 2800
C73: 85 | D73: 100000 | E73: 50 | F73: --- | G73: P35 | H73: 89 (MAX) | I73: UNV | J73: Electronic | K73: 4800
C74: 165 | D74: 100000 | E74: 50 | F74: --- | G74: P41 | H74: 190 (MAX) | I74: UNV | J74: Electronic | K74: 9600
B77: Typical Ballast/Driver Life | D77: Rated Life (Hrs) | E77: % Failure @ Rated Life
B79: Magnetic HID Ballast | D79: 80000 | E79: 10
B80: Electronic HID/CF Ballast | D80: 50000 | E80: 5
B81: Electronic LED Driver | D81: 50000 | E81: 5

Sheet Calcs (hidden)
C2: LED Inputs (reference input sheet) | BB2: TRADITIONAL Inputs (reference input sheet)
E4: 1 | F4: 2 | G4: 3 | H4: 4 | I4: 5 | J4: 6 | K4: 7 | L4: 8 | M4: 9 | N4: 10 | O4: 11 | P4: 12 | Q4: 13 | R4: 14 | S4: 15 | T4: 16 | U4: 17 | V4: 18 | W4: 19 | X4: 20 | AC4: 1 | AD4: 2 | AE4: 3 | AF4: 4 | AG4: 5 | AH4: 6 | AI4: 7 | AJ4: 8 | AK4: 9 | AL4: 10 | AM4: 11 | AN4: 12 | AO4: 13 | AP4: 14 | AQ4: 15 | AR4: 16 | AS4: 17 | AT4: 18 | AU4: 19 | AV4: 20 | BD4: 1 | BE4: 2 | BF4: 3 | BG4: 4 | BH4: 5 | BI4: 6 | BJ4: 7 | BK4: 8 | BL4: 9 | BM4: 10 | BN4: 11 | BO4: 12 | BP4: 13 | BQ4: 14 | BR4: 15 | BS4: 16 | BT4: 17 | BU4: 18 | BV4: 19 | BW4: 20 | CB4: 1 | CC4: 2 | CD4: 3 | CE4: 4 | CF4: 5 | CG4: 6 | CH4: 7 | CI4: 8 | CJ4: 9 | CK4: 10 | CL4: 11 | CM4: 12 | CN4: 13 | CO4: 14 | CP4: 15 | CQ4: 16 | CR4: 17 | CS4: 18 | CT4: 19 | CU4: 20
D5: Fixture Quantity | E5: ='CALCULATOR INPUT SHEET'!E26 -> 0 | F5: ='CALCULATOR INPUT SHEET'!F26 -> 0 | G5: ='CALCULATOR INPUT SHEET'!G26 -> 0 | H5: ='CALCULATOR INPUT SHEET'!H26 -> 0 | I5: ='CALCULATOR INPUT SHEET'!I26 -> 0 | J5: ='CALCULATOR INPUT SHEET'!J26 -> 0 | K5: ='CALCULATOR INPUT SHEET'!K26 -> 0 | L5: ='CALCULATOR INPUT SHEET'!L26 -> 0 | M5: ='CALCULATOR INPUT SHEET'!M26 -> 0 | N5: ='CALCULATOR INPUT SHEET'!N26 -> 0 | O5: ='CALCULATOR INPUT SHEET'!O26 -> 0 | P5: ='CALCULATOR INPUT SHEET'!P26 -> 0 | Q5: ='CALCULATOR INPUT SHEET'!Q26 -> 0 | R5: ='CALCULATOR INPUT SHEET'!R26 -> 0 | S5: ='CALCULATOR INPUT SHEET'!S26 -> 0 | T5: ='CALCULATOR INPUT SHEET'!T26 -> 0 | U5: ='CALCULATOR INPUT SHEET'!U26 -> 0 | V5: ='CALCULATOR INPUT SHEET'!V26 -> 0 | W5: ='CALCULATOR INPUT SHEET'!W26 -> 0 | X5: ='CALCULATOR INPUT SHEET'!X26 -> 0 | AB5: Spot Relamping Mortality (LED) | AC5: 0.4 | AD5: 0.4 | AE5: 0.4 | AF5: 0.4 | AG5: 0.4 | AH5: 0.4 | AI5: 0.4 | AJ5: 0.4 | AK5: 0.4 | AL5: 0.4 | AM5: 0.4 | AN5: 0.4 | AO5: 0.4 | AP5: 0.4 | AQ5: 0.4 | AR5: 0.4 | AS5: 0.4 | AT5: 0.4 | AU5: 0.4 | AV5: 0.4 | AW5: spotLEDlimit | BC5: Fixture Quantity | BD5: ='CALCULATOR INPUT SHEET'!Z26 -> 0 | BE5: ='CALCULATOR INPUT SHEET'!AA26 -> 0 | BF5: ='CALCULATOR INPUT SHEET'!AB26 -> 0 | BG5: ='CALCULATOR INPUT SHEET'!AC26 -> 0 | BH5: ='CALCULATOR INPUT SHEET'!AD26 -> 0 | BI5: ='CALCULATOR INPUT SHEET'!AE26 -> 0 | BJ5: ='CALCULATOR INPUT SHEET'!AF26 -> 0 | BK5: ='CALCULATOR INPUT SHEET'!AG26 -> 0 | BL5: ='CALCULATOR INPUT SHEET'!AH26 -> 0 | BM5: ='CALCULATOR INPUT SHEET'!AI26 -> 0 | BN5: ='CALCULATOR INPUT SHEET'!AJ26 -> 0 | BO5: ='CALCULATOR INPUT SHEET'!AK26 -> 0 | BP5: ='CALCULATOR INPUT SHEET'!AL26 -> 0 | BQ5: ='CALCULATOR INPUT SHEET'!AM26 -> 0 | BR5: ='CALCULATOR INPUT SHEET'!AN26 -> 0 | BS5: ='CALCULATOR INPUT SHEET'!AO26 -> 0 | BT5: ='CALCULATOR INPUT SHEET'!AP26 -> 0 | BU5: ='CALCULATOR INPUT SHEET'!AQ26 -> 0 | BV5: ='CALCULATOR INPUT SHEET'!AR26 -> 0 | BW5: ='CALCULATOR INPUT SHEET'!AS26 -> 0 | CA5: Spot Relamping Mortality (LED) | CB5: 0.25 | CC5: 0.25 | CD5: 0.25 | CE5: 0.25 | CF5: 0.25 | CG5: 0.25 | CH5: 0.25 | CI5: 0.25 | CJ5: 0.25 | CK5: 0.25 | CL5: 0.25 | CM5: 0.25 | CN5: 0.25 | CO5: 0.25 | CP5: 0.25 | CQ5: 0.25 | CR5: 0.25 | CS5: 0.25 | CT5: 0.25 | CU5: 0.25 | CV5: spotLAMPlimit
D6: Burn Hours | E6: ='CALCULATOR INPUT SHEET'!E30 -> 0 | F6: ='CALCULATOR INPUT SHEET'!F30 -> 0 | G6: ='CALCULATOR INPUT SHEET'!G30 -> 0 | H6: ='CALCULATOR INPUT SHEET'!H30 -> 0 | I6: ='CALCULATOR INPUT SHEET'!I30 -> 0 | J6: ='CALCULATOR INPUT SHEET'!J30 -> 0 | K6: ='CALCULATOR INPUT SHEET'!K30 -> 0 | L6: ='CALCULATOR INPUT SHEET'!L30 -> 0 | M6: ='CALCULATOR INPUT SHEET'!M30 -> 0 | N6: ='CALCULATOR INPUT SHEET'!N30 -> 0 | O6: ='CALCULATOR INPUT SHEET'!O30 -> 0 | P6: ='CALCULATOR INPUT SHEET'!P30 -> 0 | Q6: ='CALCULATOR INPUT SHEET'!Q30 -> 0 | R6: ='CALCULATOR INPUT SHEET'!R30 -> 0 | S6: ='CALCULATOR INPUT SHEET'!S30 -> 0 | T6: ='CALCULATOR INPUT SHEET'!T30 -> 0 | U6: ='CALCULATOR INPUT SHEET'!U30 -> 0 | V6: ='CALCULATOR INPUT SHEET'!V30 -> 0 | W6: ='CALCULATOR INPUT SHEET'!W30 -> 0 | X6: ='CALCULATOR INPUT SHEET'!X30 -> 0 | AB6: Number fixtures Relamped for Spot (LED) | AC6: =E5*AC5 -> 0 | AD6: 0 | AE6: 0 | AF6: 0 | AG6: 0 | AH6: 0 | AI6: 0 | AJ6: 0 | AK6: 0 | AL6: =N5*AL5 -> 0 | AM6: 0 | AN6: 0 | AO6: 0 | AP6: 0 | AQ6: 0 | AR6: 0 | AS6: 0 | AT6: 0 | AU6: 0 | AV6: 0 | BC6: Burn Hours | BD6: ='CALCULATOR INPUT SHEET'!Z30 -> 0 | BE6: ='CALCULATOR INPUT SHEET'!AA30 -> 0 | BF6: ='CALCULATOR INPUT SHEET'!AB30 -> 0 | BG6: ='CALCULATOR INPUT SHEET'!AC30 -> 0 | BH6: ='CALCULATOR INPUT SHEET'!AD30 -> 0 | BI6: ='CALCULATOR INPUT SHEET'!AE30 -> 0 | BJ6: ='CALCULATOR INPUT SHEET'!AF30 -> 0 | BK6: ='CALCULATOR INPUT SHEET'!AG30 -> 0 | BL6: ='CALCULATOR INPUT SHEET'!AH30 -> 0 | BM6: ='CALCULATOR INPUT SHEET'!AI30 -> 0 | BN6: ='CALCULATOR INPUT SHEET'!AJ30 -> 0 | BO6: ='CALCULATOR INPUT SHEET'!AK30 -> 0 | BP6: ='CALCULATOR INPUT SHEET'!AL30 -> 0 | BQ6: ='CALCULATOR INPUT SHEET'!AM30 -> 0 | BR6: ='CALCULATOR INPUT SHEET'!AN30 -> 0 | BS6: ='CALCULATOR INPUT SHEET'!AO30 -> 0 | BT6: ='CALCULATOR INPUT SHEET'!AP30 -> 0 | BU6: ='CALCULATOR INPUT SHEET'!AQ30 -> 0 | BV6: ='CALCULATOR INPUT SHEET'!AR30 -> 0 | BW6: ='CALCULATOR INPUT SHEET'!AS30 -> 0 | CA6: Number fixtures Relamped for Spot (LED) | CB6: =BD5*CB5 -> 0 | CC6: =BE5*CC5 -> 0 | CD6: =BF5*CD5 -> 0 | CE6: =BG5*CE5 -> 0 | CF6: =BH5*CF5 -> 0 | CG6: 0 | CH6: 0 | CI6: 0 | CJ6: 0 | CK6: 0 | CL6: 0 | CM6: 0 | CN6: 0 | CO6: 0 | CP6: 0 | CQ6: 0 | CR6: 0 | CS6: 0 | CT6: 0 | CU6: 0
D7: Input Watts (full) | E7: ='CALCULATOR INPUT SHEET'!E22 -> 0 | F7: ='CALCULATOR INPUT SHEET'!F22 -> 0 | G7: ='CALCULATOR INPUT SHEET'!G22 -> 0 | H7: ='CALCULATOR INPUT SHEET'!H22 -> 0 | I7: ='CALCULATOR INPUT SHEET'!I22 -> 0 | J7: ='CALCULATOR INPUT SHEET'!J22 -> 0 | K7: ='CALCULATOR INPUT SHEET'!K22 -> 0 | L7: ='CALCULATOR INPUT SHEET'!L22 -> 0 | M7: ='CALCULATOR INPUT SHEET'!M22 -> 0 | N7: ='CALCULATOR INPUT SHEET'!N22 -> 0 | O7: ='CALCULATOR INPUT SHEET'!O22 -> 0 | P7: ='CALCULATOR INPUT SHEET'!P22 -> 0 | Q7: ='CALCULATOR INPUT SHEET'!Q22 -> 0 | R7: ='CALCULATOR INPUT SHEET'!R22 -> 0 | S7: ='CALCULATOR INPUT SHEET'!S22 -> 0 | T7: ='CALCULATOR INPUT SHEET'!T22 -> 0 | U7: ='CALCULATOR INPUT SHEET'!U22 -> 0 | V7: ='CALCULATOR INPUT SHEET'!V22 -> 0 | W7: ='CALCULATOR INPUT SHEET'!W22 -> 0 | X7: ='CALCULATOR INPUT SHEET'!X22 -> 0 | BC7: Input Watts (full) | BD7: ='CALCULATOR INPUT SHEET'!Z22 -> 0 | BE7: ='CALCULATOR INPUT SHEET'!AA22 -> 0 | BF7: ='CALCULATOR INPUT SHEET'!AB22 -> 0 | BG7: ='CALCULATOR INPUT SHEET'!AC22 -> -2 | BH7: ='CALCULATOR INPUT SHEET'!AD22 -> -1 | BI7: ='CALCULATOR INPUT SHEET'!AE22 -> 0 | BJ7: ='CALCULATOR INPUT SHEET'!AF22 -> 0 | BK7: ='CALCULATOR INPUT SHEET'!AG22 -> 0 | BL7: ='CALCULATOR INPUT SHEET'!AH22 -> 0 | BM7: ='CALCULATOR INPUT SHEET'!AI22 -> 0 | BN7: ='CALCULATOR INPUT SHEET'!AJ22 -> 0 | BO7: ='CALCULATOR INPUT SHEET'!AK22 -> 0 | BP7: ='CALCULATOR INPUT SHEET'!AL22 -> 0 | BQ7: ='CALCULATOR INPUT SHEET'!AM22 -> 0 | BR7: ='CALCULATOR INPUT SHEET'!AN22 -> 0 | BS7: ='CALCULATOR INPUT SHEET'!AO22 -> 0 | BT7: ='CALCULATOR INPUT SHEET'!AP22 -> 0 | BU7: ='CALCULATOR INPUT SHEET'!AQ22 -> 0 | BV7: ='CALCULATOR INPUT SHEET'!AR22 -> 0 | BW7: ='CALCULATOR INPUT SHEET'!AS22 -> 0
D8: Input Watts (low) | E8: ='CALCULATOR INPUT SHEET'!E23 -> 0 | F8: ='CALCULATOR INPUT SHEET'!F23 -> 0 | G8: ='CALCULATOR INPUT SHEET'!G23 -> 0 | H8: ='CALCULATOR INPUT SHEET'!H23 -> 0 | I8: ='CALCULATOR INPUT SHEET'!I23 -> 0 | J8: ='CALCULATOR INPUT SHEET'!J23 -> 0 | K8: ='CALCULATOR INPUT SHEET'!K23 -> 0 | L8: ='CALCULATOR INPUT SHEET'!L23 -> 0 | M8: ='CALCULATOR INPUT SHEET'!M23 -> 0 | N8: ='CALCULATOR INPUT SHEET'!N23 -> 0 | O8: ='CALCULATOR INPUT SHEET'!O23 -> 0 | P8: ='CALCULATOR INPUT SHEET'!P23 -> 0 | Q8: ='CALCULATOR INPUT SHEET'!Q23 -> 0 | R8: ='CALCULATOR INPUT SHEET'!R23 -> 0 | S8: ='CALCULATOR INPUT SHEET'!S23 -> 0 | T8: ='CALCULATOR INPUT SHEET'!T23 -> 0 | U8: ='CALCULATOR INPUT SHEET'!U23 -> 0 | V8: ='CALCULATOR INPUT SHEET'!V23 -> 0 | W8: ='CALCULATOR INPUT SHEET'!W23 -> 0 | X8: ='CALCULATOR INPUT SHEET'!X23 -> 0 | AB8: Spot Relamping Mortality (DRIVER) | AC8: 0.4 | AD8: 0.4 | AE8: 0.4 | AF8: 0.4 | AG8: 0.4 | AH8: 0.4 | AI8: 0.4 | AJ8: 0.4 | AK8: 0.4 | AL8: 0.4 | AM8: 0.4 | AN8: 0.4 | AO8: 0.4 | AP8: 0.4 | AQ8: 0.4 | AR8: 0.4 | AS8: 0.4 | AT8: 0.4 | AU8: 0.4 | AV8: 0.4 | AW8: spotDRIVERlimit | CA8: Spot Relamping Mortality (DRIVER) | CB8: 0.25 | CC8: 0.25 | CD8: 0.25 | CE8: 0.25 | CF8: 0.25 | CG8: 0.25 | CH8: 0.25 | CI8: 0.25 | CJ8: 0.25 | CK8: 0.25 | CL8: 0.25 | CM8: 0.25 | CN8: 0.25 | CO8: 0.25 | CP8: 0.25 | CQ8: 0.25 | CR8: 0.25 | CS8: 0.25 | CT8: 0.25 | CU8: 0.25 | CV8: spotBALLASTlimit
D9: Site Fee | E9: ='CALCULATOR INPUT SHEET'!E72 -> 0 | F9: ='CALCULATOR INPUT SHEET'!F72 -> 0 | G9: ='CALCULATOR INPUT SHEET'!G72 -> 0 | H9: ='CALCULATOR INPUT SHEET'!H72 -> 0 | I9: ='CALCULATOR INPUT SHEET'!I72 -> 0 | J9: ='CALCULATOR INPUT SHEET'!J72 -> 0 | K9: ='CALCULATOR INPUT SHEET'!K72 -> 0 | L9: ='CALCULATOR INPUT SHEET'!L72 -> 0 | M9: ='CALCULATOR INPUT SHEET'!M72 -> 0 | N9: ='CALCULATOR INPUT SHEET'!N72 -> 0 | O9: ='CALCULATOR INPUT SHEET'!O72 -> 0 | P9: ='CALCULATOR INPUT SHEET'!P72 -> 0 | Q9: ='CALCULATOR INPUT SHEET'!Q72 -> 0 | R9: ='CALCULATOR INPUT SHEET'!R72 -> 0 | S9: ='CALCULATOR INPUT SHEET'!S72 -> 0 | T9: ='CALCULATOR INPUT SHEET'!T72 -> 0 | U9: ='CALCULATOR INPUT SHEET'!U72 -> 0 | V9: ='CALCULATOR INPUT SHEET'!V72 -> 0 | W9: ='CALCULATOR INPUT SHEET'!W72 -> 0 | X9: ='CALCULATOR INPUT SHEET'!X72 -> 0 | AB9: Number fixtures Relamped for Spot (DRIVER) | AC9: =AC8*E5 -> 0 | AD9: 0 | AE9: 0 | AF9: 0 | AG9: 0 | AH9: 0 | AI9: 0 | AJ9: 0 | AK9: 0 | AL9: =AL8*N5 -> 0 | AM9: 0 | AN9: 0 | AO9: 0 | AP9: 0 | AQ9: 0 | AR9: 0 | AS9: 0 | AT9: 0 | AU9: 0 | AV9: 0 | BC9: Site Fee | BD9: ='CALCULATOR INPUT SHEET'!Z72 -> 0 | BE9: ='CALCULATOR INPUT SHEET'!AA72 -> 0 | BF9: ='CALCULATOR INPUT SHEET'!AB72 -> 0 | BG9: ='CALCULATOR INPUT SHEET'!AC72 -> 0 | BH9: ='CALCULATOR INPUT SHEET'!AD72 -> 0 | BI9: ='CALCULATOR INPUT SHEET'!AE72 -> 0 | BJ9: ='CALCULATOR INPUT SHEET'!AF72 -> 0 | BK9: ='CALCULATOR INPUT SHEET'!AG72 -> 0 | BL9: ='CALCULATOR INPUT SHEET'!AH72 -> 0 | BM9: ='CALCULATOR INPUT SHEET'!AI72 -> 0 | BN9: ='CALCULATOR INPUT SHEET'!AJ72 -> 0 | BO9: ='CALCULATOR INPUT SHEET'!AK72 -> 0 | BP9: ='CALCULATOR INPUT SHEET'!AL72 -> 0 | BQ9: ='CALCULATOR INPUT SHEET'!AM72 -> 0 | BR9: ='CALCULATOR INPUT SHEET'!AN72 -> 0 | BS9: ='CALCULATOR INPUT SHEET'!AO72 -> 0 | BT9: ='CALCULATOR INPUT SHEET'!AP72 -> 0 | BU9: ='CALCULATOR INPUT SHEET'!AQ72 -> 0 | BV9: ='CALCULATOR INPUT SHEET'!AR72 -> 0 | BW9: ='CALCULATOR INPUT SHEET'!AS72 -> 0 | CA9: Number fixtures Relamped for Spot (DRIVER) | CB9: =CB8*BD5 -> 0 | CC9: =CC8*BE5 -> 0 | CD9: =CD8*BF5 -> 0 | CE9: =CE8*BG5 -> 0 | CF9: =CF8*BH5 -> 0 | CG9: 0 | CH9: 0 | CI9: 0 | CJ9: 0 | CK9: 0 | CL9: 0 | CM9: 0 | CN9: 0 | CO9: 0 | CP9: 0 | CQ9: 0 | CR9: 0 | CS9: 0 | CT9: 0 | CU9: 0
D10: Total Lamp Module Replacement Cost (per fixture) | E10: ='CALCULATOR INPUT SHEET'!E76 -> 0 | F10: ='CALCULATOR INPUT SHEET'!F76 -> 0 | G10: ='CALCULATOR INPUT SHEET'!G76 -> 0 | H10: ='CALCULATOR INPUT SHEET'!H76 -> 0 | I10: ='CALCULATOR INPUT SHEET'!I76 -> 0 | J10: ='CALCULATOR INPUT SHEET'!J76 -> 0 | K10: ='CALCULATOR INPUT SHEET'!K76 -> 0 | L10: ='CALCULATOR INPUT SHEET'!L76 -> 0 | M10: ='CALCULATOR INPUT SHEET'!M76 -> 0 | N10: ='CALCULATOR INPUT SHEET'!N76 -> 0 | O10: ='CALCULATOR INPUT SHEET'!O76 -> 0 | P10: ='CALCULATOR INPUT SHEET'!P76 -> 0 | Q10: ='CALCULATOR INPUT SHEET'!Q76 -> 0 | R10: ='CALCULATOR INPUT SHEET'!R76 -> 0 | S10: ='CALCULATOR INPUT SHEET'!S76 -> 0 | T10: ='CALCULATOR INPUT SHEET'!T76 -> 0 | U10: ='CALCULATOR INPUT SHEET'!U76 -> 0 | V10: ='CALCULATOR INPUT SHEET'!V76 -> 0 | W10: ='CALCULATOR INPUT SHEET'!W76 -> 0 | X10: ='CALCULATOR INPUT SHEET'!X76 -> 0 | BC10: Total Lamp Module Replacement Cost (per fixture) | BD10: ='CALCULATOR INPUT SHEET'!Z76 -> 0 | BE10: ='CALCULATOR INPUT SHEET'!AA76 -> 0 | BF10: ='CALCULATOR INPUT SHEET'!AB76 -> 0 | BG10: ='CALCULATOR INPUT SHEET'!AC76 -> 0 | BH10: ='CALCULATOR INPUT SHEET'!AD76 -> 0 | BI10: ='CALCULATOR INPUT SHEET'!AE76 -> 0 | BJ10: ='CALCULATOR INPUT SHEET'!AF76 -> 0 | BK10: ='CALCULATOR INPUT SHEET'!AG76 -> 0 | BL10: ='CALCULATOR INPUT SHEET'!AH76 -> 0 | BM10: ='CALCULATOR INPUT SHEET'!AI76 -> 0 | BN10: ='CALCULATOR INPUT SHEET'!AJ76 -> 0 | BO10: ='CALCULATOR INPUT SHEET'!AK76 -> 0 | BP10: ='CALCULATOR INPUT SHEET'!AL76 -> 0 | BQ10: ='CALCULATOR INPUT SHEET'!AM76 -> 0 | BR10: ='CALCULATOR INPUT SHEET'!AN76 -> 0 | BS10: ='CALCULATOR INPUT SHEET'!AO76 -> 0 | BT10: ='CALCULATOR INPUT SHEET'!AP76 -> 0 | BU10: ='CALCULATOR INPUT SHEET'!AQ76 -> 0 | BV10: ='CALCULATOR INPUT SHEET'!AR76 -> 0 | BW10: ='CALCULATOR INPUT SHEET'!AS76 -> 0
D11: Total Driver Replacement Cost (per fixture) | E11: ='CALCULATOR INPUT SHEET'!E84 -> 0 | F11: ='CALCULATOR INPUT SHEET'!F84 -> 0 | G11: ='CALCULATOR INPUT SHEET'!G84 -> 0 | H11: ='CALCULATOR INPUT SHEET'!H84 -> 0 | I11: ='CALCULATOR INPUT SHEET'!I84 -> 0 | J11: ='CALCULATOR INPUT SHEET'!J84 -> 0 | K11: ='CALCULATOR INPUT SHEET'!K84 -> 0 | L11: ='CALCULATOR INPUT SHEET'!L84 -> 0 | M11: ='CALCULATOR INPUT SHEET'!M84 -> 0 | N11: ='CALCULATOR INPUT SHEET'!N84 -> 0 | O11: ='CALCULATOR INPUT SHEET'!O84 -> 0 | P11: ='CALCULATOR INPUT SHEET'!P84 -> 0 | Q11: ='CALCULATOR INPUT SHEET'!Q84 -> 0 | R11: ='CALCULATOR INPUT SHEET'!R84 -> 0 | S11: ='CALCULATOR INPUT SHEET'!S84 -> 0 | T11: ='CALCULATOR INPUT SHEET'!T84 -> 0 | U11: ='CALCULATOR INPUT SHEET'!U84 -> 0 | V11: ='CALCULATOR INPUT SHEET'!V84 -> 0 | W11: ='CALCULATOR INPUT SHEET'!W84 -> 0 | X11: ='CALCULATOR INPUT SHEET'!X84 -> 0 | BC11: Total Ballast Replacement Cost (per fixture) | BD11: ='CALCULATOR INPUT SHEET'!Z84 -> 0 | BE11: ='CALCULATOR INPUT SHEET'!AA84 -> 0 | BF11: ='CALCULATOR INPUT SHEET'!AB84 -> 0 | BG11: ='CALCULATOR INPUT SHEET'!AC84 -> 0 | BH11: ='CALCULATOR INPUT SHEET'!AD84 -> 0 | BI11: ='CALCULATOR INPUT SHEET'!AE84 -> 0 | BJ11: ='CALCULATOR INPUT SHEET'!AF84 -> 0 | BK11: ='CALCULATOR INPUT SHEET'!AG84 -> 0 | BL11: ='CALCULATOR INPUT SHEET'!AH84 -> 0 | BM11: ='CALCULATOR INPUT SHEET'!AI84 -> 0 | BN11: ='CALCULATOR INPUT SHEET'!AJ84 -> 0 | BO11: ='CALCULATOR INPUT SHEET'!AK84 -> 0 | BP11: ='CALCULATOR INPUT SHEET'!AL84 -> 0 | BQ11: ='CALCULATOR INPUT SHEET'!AM84 -> 0 | BR11: ='CALCULATOR INPUT SHEET'!AN84 -> 0 | BS11: ='CALCULATOR INPUT SHEET'!AO84 -> 0 | BT11: ='CALCULATOR INPUT SHEET'!AP84 -> 0 | BU11: ='CALCULATOR INPUT SHEET'!AQ84 -> 0 | BV11: ='CALCULATOR INPUT SHEET'!AR84 -> 0 | BW11: ='CALCULATOR INPUT SHEET'!AS84 -> 0
D13: % Rated LED Life for GROUP | E13: 1 | F13: 1 | G13: 1 | H13: 1 | I13: 1 | J13: 1 | K13: 1 | L13: 1 | M13: 1 | N13: 1 | O13: 1 | P13: 1 | Q13: 1 | R13: 1 | S13: 1 | T13: 1 | U13: 1 | V13: 1 | W13: 1 | X13: 1 | Y13: <- rated lamp lifr is 50% mortality | BC13: % Rated LAMP Life for GROUP | BD13: 0.6 | BE13: 0.6 | BF13: 0.6 | BG13: 0.6 | BH13: 0.6 | BI13: 0.6 | BJ13: 0.6 | BK13: 0.6 | BL13: 0.6 | BM13: 0.6 | BN13: 0.6 | BO13: 0.6 | BP13: 0.6 | BQ13: 0.6 | BR13: 0.6 | BS13: 0.6 | BT13: 0.6 | BU13: 0.6 | BV13: 0.6 | BW13: 0.6
D14: Relamping Hours GROUP | E14: ='CALCULATOR INPUT SHEET'!E77*E13 -> 60000 | F14: ='CALCULATOR INPUT SHEET'!F77*F13 -> 60000 | G14: ='CALCULATOR INPUT SHEET'!G77*G13 -> 60000 | H14: ='CALCULATOR INPUT SHEET'!H77*H13 -> 60000 | I14: ='CALCULATOR INPUT SHEET'!I77*I13 -> 60000 | J14: ='CALCULATOR INPUT SHEET'!J77*J13 -> 60000 | K14: ='CALCULATOR INPUT SHEET'!K77*K13 -> 60000 | L14: ='CALCULATOR INPUT SHEET'!L77*L13 -> 60000 | M14: ='CALCULATOR INPUT SHEET'!M77*M13 -> 60000 | N14: ='CALCULATOR INPUT SHEET'!N77*N13 -> 60000 | O14: ='CALCULATOR INPUT SHEET'!O77*O13 -> 60000 | P14: ='CALCULATOR INPUT SHEET'!P77*P13 -> 60000 | Q14: ='CALCULATOR INPUT SHEET'!Q77*Q13 -> 60000 | R14: ='CALCULATOR INPUT SHEET'!R77*R13 -> 60000 | S14: ='CALCULATOR INPUT SHEET'!S77*S13 -> 60000 | T14: ='CALCULATOR INPUT SHEET'!T77*T13 -> 60000 | U14: ='CALCULATOR INPUT SHEET'!U77*U13 -> 60000 | V14: ='CALCULATOR INPUT SHEET'!V77*V13 -> 60000 | W14: ='CALCULATOR INPUT SHEET'!W77*W13 -> 60000 | X14: ='CALCULATOR INPUT SHEET'!X77*X13 -> 60000 | BC14: Relamping Hours GROUP | BD14: ='CALCULATOR INPUT SHEET'!Z77*BD13 -> 36000 | BE14: ='CALCULATOR INPUT SHEET'!AA77*BE13 -> 36000 | BF14: ='CALCULATOR INPUT SHEET'!AB77*BF13 -> 36000 | BG14: ='CALCULATOR INPUT SHEET'!AC77*BG13 -> 36000 | BH14: ='CALCULATOR INPUT SHEET'!AD77*BH13 -> 36000 | BI14: ='CALCULATOR INPUT SHEET'!AE77*BI13 -> 36000 | BJ14: ='CALCULATOR INPUT SHEET'!AF77*BJ13 -> 36000 | BK14: ='CALCULATOR INPUT SHEET'!AG77*BK13 -> 36000 | BL14: ='CALCULATOR INPUT SHEET'!AH77*BL13 -> 36000 | BM14: ='CALCULATOR INPUT SHEET'!AI77*BM13 -> 36000 | BN14: ='CALCULATOR INPUT SHEET'!AJ77*BN13 -> 36000 | BO14: ='CALCULATOR INPUT SHEET'!AK77*BO13 -> 36000 | BP14: ='CALCULATOR INPUT SHEET'!AL77*BP13 -> 36000 | BQ14: ='CALCULATOR INPUT SHEET'!AM77*BQ13 -> 36000 | BR14: ='CALCULATOR INPUT SHEET'!AN77*BR13 -> 36000 | BS14: ='CALCULATOR INPUT SHEET'!AO77*BS13 -> 36000 | BT14: ='CALCULATOR INPUT SHEET'!AP77*BT13 -> 36000 | BU14: ='CALCULATOR INPUT SHEET'!AQ77*BU13 -> 36000 | BV14: ='CALCULATOR INPUT SHEET'!AR77*BV13 -> 36000 | BW14: ='CALCULATOR INPUT SHEET'!AS77*BW13 -> 36000
D15: Relamping Years GROUP | E15: =E14/8760 -> 6.849315068 | F15: =F14/8760 -> 6.849315068 | G15: 6.849315068 | H15: 6.849315068 | I15: 6.849315068 | J15: 6.849315068 | K15: 6.849315068 | L15: 6.849315068 | M15: 6.849315068 | N15: =N14/8760 -> 6.849315068 | O15: 6.849315068 | P15: 6.849315068 | Q15: 6.849315068 | R15: 6.849315068 | S15: 6.849315068 | T15: 6.849315068 | U15: 6.849315068 | V15: 6.849315068 | W15: 6.849315068 | X15: 6.849315068 | BC15: Relamping Years GROUP | BD15: =BD14/8760 -> 4.109589041 | BE15: =BE14/8760 -> 4.109589041 | BF15: =BF14/8760 -> 4.109589041 | BG15: 4.109589041 | BH15: 4.109589041 | BI15: 4.109589041 | BJ15: 4.109589041 | BK15: 4.109589041 | BL15: 4.109589041 | BM15: =BM14/8760 -> 4.109589041 | BN15: 4.109589041 | BO15: 4.109589041 | BP15: 4.109589041 | BQ15: 4.109589041 | BR15: 4.109589041 | BS15: 4.109589041 | BT15: 4.109589041 | BU15: 4.109589041 | BV15: 4.109589041 | BW15: 4.109589041
D17: % Rated DRIVER Life for GROUP | E17: 0.6 | F17: 0.6 | G17: 0.6 | H17: 0.6 | I17: 0.6 | J17: 0.6 | K17: 0.6 | L17: 0.6 | M17: 0.6 | N17: 0.6 | O17: 0.6 | P17: 0.6 | Q17: 0.6 | R17: 0.6 | S17: 0.6 | T17: 0.6 | U17: 0.6 | V17: 0.6 | W17: 0.6 | X17: 0.6 | BC17: % Rated BALLAST Life for GROUP | BD17: 0.6 | BE17: 0.6 | BF17: 0.6 | BG17: 0.6 | BH17: 0.6 | BI17: 0.6 | BJ17: 0.6 | BK17: 0.6 | BL17: 0.6 | BM17: 0.6 | BN17: 0.6 | BO17: 0.6 | BP17: 0.6 | BQ17: 0.6 | BR17: 0.6 | BS17: 0.6 | BT17: 0.6 | BU17: 0.6 | BV17: 0.6 | BW17: 0.6
D18: Redrivering Hours GROUP | E18: ='CALCULATOR INPUT SHEET'!E86*E17 -> 36000 | F18: ='CALCULATOR INPUT SHEET'!F86*F17 -> 0 | G18: ='CALCULATOR INPUT SHEET'!G86*G17 -> 0 | H18: ='CALCULATOR INPUT SHEET'!H86*H17 -> 0 | I18: ='CALCULATOR INPUT SHEET'!I86*I17 -> 0 | J18: ='CALCULATOR INPUT SHEET'!J86*J17 -> 0 | K18: ='CALCULATOR INPUT SHEET'!K86*K17 -> 0 | L18: ='CALCULATOR INPUT SHEET'!L86*L17 -> 0 | M18: ='CALCULATOR INPUT SHEET'!M86*M17 -> 0 | N18: ='CALCULATOR INPUT SHEET'!N86*N17 -> 0 | O18: ='CALCULATOR INPUT SHEET'!O86*O17 -> 0 | P18: ='CALCULATOR INPUT SHEET'!P86*P17 -> 0 | Q18: ='CALCULATOR INPUT SHEET'!Q86*Q17 -> 0 | R18: ='CALCULATOR INPUT SHEET'!R86*R17 -> 0 | S18: ='CALCULATOR INPUT SHEET'!S86*S17 -> 0 | T18: ='CALCULATOR INPUT SHEET'!T86*T17 -> 0 | U18: ='CALCULATOR INPUT SHEET'!U86*U17 -> 0 | V18: ='CALCULATOR INPUT SHEET'!V86*V17 -> 0 | W18: ='CALCULATOR INPUT SHEET'!W86*W17 -> 0 | X18: ='CALCULATOR INPUT SHEET'!X86*X17 -> 0 | BC18: Redrivering Hours GROUP | BD18: ='CALCULATOR INPUT SHEET'!Z86*BD17 -> 36000 | BE18: ='CALCULATOR INPUT SHEET'!AA86*BE17 -> 0 | BF18: ='CALCULATOR INPUT SHEET'!AB86*BF17 -> 0 | BG18: ='CALCULATOR INPUT SHEET'!AC86*BG17 -> 0 | BH18: ='CALCULATOR INPUT SHEET'!AD86*BH17 -> 0 | BI18: ='CALCULATOR INPUT SHEET'!AE86*BI17 -> 0 | BJ18: ='CALCULATOR INPUT SHEET'!AF86*BJ17 -> 0 | BK18: ='CALCULATOR INPUT SHEET'!AG86*BK17 -> 0 | BL18: ='CALCULATOR INPUT SHEET'!AH86*BL17 -> 0 | BM18: ='CALCULATOR INPUT SHEET'!AI86*BM17 -> 0 | BN18: ='CALCULATOR INPUT SHEET'!AJ86*BN17 -> 0 | BO18: ='CALCULATOR INPUT SHEET'!AK86*BO17 -> 0 | BP18: ='CALCULATOR INPUT SHEET'!AL86*BP17 -> 0 | BQ18: ='CALCULATOR INPUT SHEET'!AM86*BQ17 -> 0 | BR18: ='CALCULATOR INPUT SHEET'!AN86*BR17 -> 0 | BS18: ='CALCULATOR INPUT SHEET'!AO86*BS17 -> 0 | BT18: ='CALCULATOR INPUT SHEET'!AP86*BT17 -> 0 | BU18: ='CALCULATOR INPUT SHEET'!AQ86*BU17 -> 0 | BV18: ='CALCULATOR INPUT SHEET'!AR86*BV17 -> 0 | BW18: ='CALCULATOR INPUT SHEET'!AS86*BW17 -> 0
D19: Redrivering Years GROUP | E19: =E18/8760 -> 4.109589041 | F19: =F18/8760 -> 0 | G19: 0 | H19: 0 | I19: 0 | J19: 0 | K19: 0 | L19: 0 | M19: 0 | N19: =N18/8760 -> 0 | O19: 0 | P19: 0 | Q19: 0 | R19: 0 | S19: 0 | T19: 0 | U19: 0 | V19: 0 | W19: 0 | X19: 0 | BC19: Redrivering Years GROUP | BD19: =BD18/8760 -> 4.109589041 | BE19: =BE18/8760 -> 0 | BF19: =BF18/8760 -> 0 | BG19: 0 | BH19: 0 | BI19: 0 | BJ19: 0 | BK19: 0 | BL19: 0 | BM19: =BM18/8760 -> 0 | BN19: 0 | BO19: 0 | BP19: 0 | BQ19: 0 | BR19: 0 | BS19: 0 | BT19: 0 | BU19: 0 | BV19: 0 | BW19: 0
C24: GROUP Relamping | AA24: SPOT Relamping | BB24: GROUP Relamping | BZ24: SPOT Relamping
C26: LED Relamping | D26: NUMBER OF RELAMPINGS PER YEAR | AA26: LED Relamping | AB26: NUMBER OF RELAMPINGS PER YEAR (spotLEDcount) | BB26: LAMP Relamping | BC26: NUMBER OF RELAMPINGS PER YEAR | BZ26: LAMP Relamping | CA26: NUMBER OF RELAMPINGS PER YEAR (spotLAMPcount)
D27: ↓Year | E27: 1 | F27: 2 | G27: 3 | H27: 4 | I27: 5 | J27: 6 | K27: 7 | L27: 8 | M27: 9 | N27: 10 | O27: 11 | P27: 12 | Q27: 13 | R27: 14 | S27: 15 | T27: 16 | U27: 17 | V27: 18 | W27: 19 | X27: 20 | Y27: Total | AB27: ↓Year | AC27: 1 | AD27: 2 | AE27: 3 | AF27: 4 | AG27: 5 | AH27: 6 | AI27: 7 | AJ27: 8 | AK27: 9 | AL27: 10 | AM27: 11 | AN27: 12 | AO27: 13 | AP27: 14 | AQ27: 15 | AR27: 16 | AS27: 17 | AT27: 18 | AU27: 19 | AV27: 20 | AW27: Total | BC27: ↓Year | BD27: 1 | BE27: 2 | BF27: 3 | BG27: 4 | BH27: 5 | BI27: 6 | BJ27: 7 | BK27: 8 | BL27: 9 | BM27: 10 | BN27: 11 | BO27: 12 | BP27: 13 | BQ27: 14 | BR27: 15 | BS27: 16 | BT27: 17 | BU27: 18 | BV27: 19 | BW27: 20 | BX27: Total | CA27: ↓Year | CB27: 1 | CC27: 2 | CD27: 3 | CE27: 4 | CF27: 5 | CG27: 6 | CH27: 7 | CI27: 8 | CJ27: 9 | CK27: 10 | CL27: 11 | CM27: 12 | CN27: 13 | CO27: 14 | CP27: 15 | CQ27: 16 | CR27: 17 | CS27: 18 | CT27: 19 | CU27: 20 | CV27: Total
D28: 0 | AB28: 0 | BC28: 0 | CA28: 0
D29: 1 | E29: =IF(E$15<>0,IF(E$6<>0,TRUNC($D29/(E$15*(24/E$6)))-TRUNC($D28/(E$15*(24/E$6))),0),0) -> 0 | F29: =IF(F$15<>0,IF(F$6<>0,TRUNC($D29/(F$15*(24/F$6)))-TRUNC($D28/(F$15*(24/F$6))),0),0) -> 0 | G29: 0 | H29: 0 | I29: 0 | J29: 0 | K29: 0 | L29: 0 | M29: 0 | N29: =IF(N$15<>0,IF(N$6<>0,TRUNC($D29/(N$15*(24/N$6)))-TRUNC($D28/(N$15*(24/N$6))),0),0) -> 0 | O29: 0 | P29: 0 | Q29: 0 | R29: 0 | S29: 0 | T29: 0 | U29: 0 | V29: 0 | W29: 0 | X29: 0 | Y29: =SUM(E29:X29) -> 0 | AB29: 1 | AC29: 0 | AD29: 0 | AE29: 0 | AF29: 0 | AG29: 0 | AH29: 0 | AI29: 0 | AJ29: 0 | AK29: 0 | AL29: 0 | AM29: 0 | AN29: 0 | AO29: 0 | AP29: 0 | AQ29: 0 | AR29: 0 | AS29: 0 | AT29: 0 | AU29: 0 | AV29: 0 | AW29: =SUM(AC29:AV29) -> 0 | BC29: 1 | BD29: =IF(BD$15<>0,IF(BD$6<>0,TRUNC($BC29/(BD$15*(24/BD$6)))-TRUNC($BC28/(BD$15*(24/BD$6))),0),0) -> 0 | BE29: 0 | BF29: 0 | BG29: 0 | BH29: 0 | BI29: 0 | BJ29: 0 | BK29: 0 | BL29: 0 | BM29: =IF(BM$15<>0,IF(BM$6<>0,TRUNC($BC29/(BM$15*(24/BM$6)))-TRUNC($BC28/(BM$15*(24/BM$6))),0),0) -> 0 | BN29: 0 | BO29: 0 | BP29: 0 | BQ29: 0 | BR29: 0 | BS29: 0 | BT29: 0 | BU29: 0 | BV29: 0 | BW29: 0 | BX29: =SUM(BD29:BW29) -> 0 | CA29: 1 | CB29: 0 | CC29: 0 | CD29: 0 | CE29: 0 | CF29: 0 | CG29: 0 | CH29: 0 | CI29: 0 | CJ29: 0 | CK29: 0 | CL29: 0 | CM29: 0 | CN29: 0 | CO29: 0 | CP29: 0 | CQ29: 0 | CR29: 0 | CS29: 0 | CT29: 0 | CU29: 0 | CV29: =SUM(CB29:CU29) -> 0
D30: 2 | E30: =IF(E$15<>0,IF(E$6<>0,TRUNC($D30/(E$15*(24/E$6)))-TRUNC($D29/(E$15*(24/E$6))),0),0) -> 0 | F30: 0 | G30: 0 | H30: 0 | I30: 0 | J30: 0 | K30: 0 | L30: 0 | M30: 0 | N30: =IF(N$15<>0,IF(N$6<>0,TRUNC($D30/(N$15*(24/N$6)))-TRUNC($D29/(N$15*(24/N$6))),0),0) -> 0 | O30: 0 | P30: 0 | Q30: 0 | R30: 0 | S30: 0 | T30: 0 | U30: 0 | V30: 0 | W30: 0 | X30: 0 | Y30: =SUM(E30:X30) -> 0 | AB30: 2 | AC30: 0 | AD30: 0 | AE30: 0 | AF30: 0 | AG30: 0 | AH30: 0 | AI30: 0 | AJ30: 0 | AK30: 0 | AL30: 0 | AM30: 0 | AN30: 0 | AO30: 0 | AP30: 0 | AQ30: 0 | AR30: 0 | AS30: 0 | AT30: 0 | AU30: 0 | AV30: 0 | AW30: 0 | BC30: 2 | BD30: =IF(BD$15<>0,IF(BD$6<>0,TRUNC($BC30/(BD$15*(24/BD$6)))-TRUNC($BC29/(BD$15*(24/BD$6))),0),0) -> 0 | BE30: =IF(BE$15<>0,IF(BE$6<>0,TRUNC($BC30/(BE$15*(24/BE$6)))-TRUNC($BC29/(BE$15*(24/BE$6))),0),0) -> 0 | BF30: 0 | BG30: =IF(BG$15<>0,IF(BG$6<>0,TRUNC($BC30/(BG$15*(24/BG$6)))-TRUNC($BC29/(BG$15*(24/BG$6))),0),0) -> 0 | BH30: 0 | BI30: =IF(BI$15<>0,IF(BI$6<>0,TRUNC($BC30/(BI$15*(24/BI$6)))-TRUNC($BC29/(BI$15*(24/BI$6))),0),0) -> 0 | BJ30: 0 | BK30: =IF(BK$15<>0,IF(BK$6<>0,TRUNC($BC30/(BK$15*(24/BK$6)))-TRUNC($BC29/(BK$15*(24/BK$6))),0),0) -> 0 | BL30: 0 | BM30: =IF(BM$15<>0,IF(BM$6<>0,TRUNC($BC30/(BM$15*(24/BM$6)))-TRUNC($BC29/(BM$15*(24/BM$6))),0),0) -> 0 | BN30: 0 | BO30: 0 | BP30: 0 | BQ30: 0 | BR30: 0 | BS30: 0 | BT30: 0 | BU30: 0 | BV30: 0 | BW30: 0 | BX30: =SUM(BD30:BW30) -> 0 | CA30: 2 | CB30: 0 | CC30: 0 | CD30: 0 | CE30: 0 | CF30: 0 | CG30: 0 | CH30: 0 | CI30: 0 | CJ30: 0 | CK30: 0 | CL30: 0 | CM30: 0 | CN30: 0 | CO30: 0 | CP30: 0 | CQ30: 0 | CR30: 0 | CS30: 0 | CT30: 0 | CU30: 0 | CV30: =SUM(CB30:CU30) -> 0
D31: 3 | E31: 0 | F31: 0 | G31: 0 | H31: 0 | I31: 0 | J31: 0 | K31: 0 | L31: 0 | M31: 0 | N31: =IF(N$15<>0,IF(N$6<>0,TRUNC($D31/(N$15*(24/N$6)))-TRUNC($D30/(N$15*(24/N$6))),0),0) -> 0 | O31: 0 | P31: 0 | Q31: 0 | R31: 0 | S31: 0 | T31: 0 | U31: 0 | V31: 0 | W31: 0 | X31: 0 | Y31: 0 | AB31: 3 | AC31: 0 | AD31: 0 | AE31: 0 | AF31: 0 | AG31: 0 | AH31: 0 | AI31: 0 | AJ31: 0 | AK31: 0 | AL31: 0 | AM31: 0 | AN31: 0 | AO31: 0 | AP31: 0 | AQ31: 0 | AR31: 0 | AS31: 0 | AT31: 0 | AU31: 0 | AV31: 0 | AW31: 0 | BC31: 3 | BD31: 0 | BE31: 0 | BF31: 0 | BG31: 0 | BH31: 0 | BI31: 0 | BJ31: 0 | BK31: 0 | BL31: 0 | BM31: =IF(BM$15<>0,IF(BM$6<>0,TRUNC($BC31/(BM$15*(24/BM$6)))-TRUNC($BC30/(BM$15*(24/BM$6))),0),0) -> 0 | BN31: 0 | BO31: 0 | BP31: 0 | BQ31: 0 | BR31: 0 | BS31: 0 | BT31: 0 | BU31: 0 | BV31: 0 | BW31: 0 | BX31: 0 | CA31: 3 | CB31: 0 | CC31: 0 | CD31: 0 | CE31: 0 | CF31: 0 | CG31: 0 | CH31: 0 | CI31: 0 | CJ31: 0 | CK31: 0 | CL31: 0 | CM31: 0 | CN31: 0 | CO31: 0 | CP31: 0 | CQ31: 0 | CR31: 0 | CS31: 0 | CT31: 0 | CU31: 0 | CV31: 0
D32: 4 | E32: =IF(E$15<>0,IF(E$6<>0,TRUNC($D32/(E$15*(24/E$6)))-TRUNC($D31/(E$15*(24/E$6))),0),0) -> 0 | F32: 0 | G32: 0 | H32: 0 | I32: 0 | J32: 0 | K32: 0 | L32: 0 | M32: 0 | N32: =IF(N$15<>0,IF(N$6<>0,TRUNC($D32/(N$15*(24/N$6)))-TRUNC($D31/(N$15*(24/N$6))),0),0) -> 0 | O32: 0 | P32: 0 | Q32: 0 | R32: 0 | S32: 0 | T32: 0 | U32: 0 | V32: 0 | W32: 0 | X32: 0 | Y32: 0 | AB32: 4 | AC32: 0 | AD32: 0 | AE32: 0 | AF32: 0 | AG32: 0 | AH32: 0 | AI32: 0 | AJ32: 0 | AK32: 0 | AL32: 0 | AM32: 0 | AN32: 0 | AO32: 0 | AP32: 0 | AQ32: 0 | AR32: 0 | AS32: 0 | AT32: 0 | AU32: 0 | AV32: 0 | AW32: 0 | BC32: 4 | BD32: 0 | BE32: 0 | BF32: 0 | BG32: 0 | BH32: 0 | BI32: 0 | BJ32: 0 | BK32: 0 | BL32: 0 | BM32: =IF(BM$15<>0,IF(BM$6<>0,TRUNC($BC32/(BM$15*(24/BM$6)))-TRUNC($BC31/(BM$15*(24/BM$6))),0),0) -> 0 | BN32: 0 | BO32: 0 | BP32: 0 | BQ32: 0 | BR32: 0 | BS32: 0 | BT32: 0 | BU32: 0 | BV32: 0 | BW32: 0 | BX32: 0 | CA32: 4 | CB32: 0 | CC32: 0 | CD32: 0 | CE32: 0 | CF32: 0 | CG32: 0 | CH32: 0 | CI32: 0 | CJ32: 0 | CK32: 0 | CL32: 0 | CM32: 0 | CN32: 0 | CO32: 0 | CP32: 0 | CQ32: 0 | CR32: 0 | CS32: 0 | CT32: 0 | CU32: 0 | CV32: 0
D33: 5 | E33: 0 | F33: 0 | G33: 0 | H33: 0 | I33: 0 | J33: 0 | K33: 0 | L33: 0 | M33: 0 | N33: =IF(N$15<>0,IF(N$6<>0,TRUNC($D33/(N$15*(24/N$6)))-TRUNC($D32/(N$15*(24/N$6))),0),0) -> 0 | O33: 0 | P33: 0 | Q33: 0 | R33: 0 | S33: 0 | T33: 0 | U33: 0 | V33: 0 | W33: 0 | X33: 0 | Y33: 0 | AB33: 5 | AC33: 0 | AD33: 0 | AE33: 0 | AF33: 0 | AG33: 0 | AH33: 0 | AI33: 0 | AJ33: 0 | AK33: 0 | AL33: 0 | AM33: 0 | AN33: 0 | AO33: 0 | AP33: 0 | AQ33: 0 | AR33: 0 | AS33: 0 | AT33: 0 | AU33: 0 | AV33: 0 | AW33: 0 | BC33: 5 | BD33: 0 | BE33: 0 | BF33: 0 | BG33: 0 | BH33: 0 | BI33: 0 | BJ33: 0 | BK33: 0 | BL33: 0 | BM33: =IF(BM$15<>0,IF(BM$6<>0,TRUNC($BC33/(BM$15*(24/BM$6)))-TRUNC($BC32/(BM$15*(24/BM$6))),0),0) -> 0 | BN33: 0 | BO33: 0 | BP33: 0 | BQ33: 0 | BR33: 0 | BS33: 0 | BT33: 0 | BU33: 0 | BV33: 0 | BW33: 0 | BX33: 0 | CA33: 5 | CB33: 0 | CC33: 0 | CD33: 0 | CE33: 0 | CF33: 0 | CG33: 0 | CH33: 0 | CI33: 0 | CJ33: 0 | CK33: 0 | CL33: 0 | CM33: 0 | CN33: 0 | CO33: 0 | CP33: 0 | CQ33: 0 | CR33: 0 | CS33: 0 | CT33: 0 | CU33: 0 | CV33: 0
D34: 6 | E34: 0 | F34: 0 | G34: 0 | H34: 0 | I34: 0 | J34: 0 | K34: 0 | L34: 0 | M34: 0 | N34: =IF(N$15<>0,IF(N$6<>0,TRUNC($D34/(N$15*(24/N$6)))-TRUNC($D33/(N$15*(24/N$6))),0),0) -> 0 | O34: 0 | P34: 0 | Q34: 0 | R34: 0 | S34: 0 | T34: 0 | U34: 0 | V34: 0 | W34: 0 | X34: 0 | Y34: 0 | AB34: 6 | AC34: 0 | AD34: 0 | AE34: 0 | AF34: 0 | AG34: 0 | AH34: 0 | AI34: 0 | AJ34: 0 | AK34: 0 | AL34: 0 | AM34: 0 | AN34: 0 | AO34: 0 | AP34: 0 | AQ34: 0 | AR34: 0 | AS34: 0 | AT34: 0 | AU34: 0 | AV34: 0 | AW34: 0 | BC34: 6 | BD34: 0 | BE34: 0 | BF34: 0 | BG34: 0 | BH34: 0 | BI34: 0 | BJ34: 0 | BK34: 0 | BL34: 0 | BM34: =IF(BM$15<>0,IF(BM$6<>0,TRUNC($BC34/(BM$15*(24/BM$6)))-TRUNC($BC33/(BM$15*(24/BM$6))),0),0) -> 0 | BN34: 0 | BO34: 0 | BP34: 0 | BQ34: 0 | BR34: 0 | BS34: 0 | BT34: 0 | BU34: 0 | BV34: 0 | BW34: 0 | BX34: 0 | CA34: 6 | CB34: 0 | CC34: 0 | CD34: 0 | CE34: 0 | CF34: 0 | CG34: 0 | CH34: 0 | CI34: 0 | CJ34: 0 | CK34: 0 | CL34: 0 | CM34: 0 | CN34: 0 | CO34: 0 | CP34: 0 | CQ34: 0 | CR34: 0 | CS34: 0 | CT34: 0 | CU34: 0 | CV34: 0
D35: 7 | E35: 0 | F35: 0 | G35: 0 | H35: 0 | I35: 0 | J35: 0 | K35: 0 | L35: 0 | M35: 0 | N35: =IF(N$15<>0,IF(N$6<>0,TRUNC($D35/(N$15*(24/N$6)))-TRUNC($D34/(N$15*(24/N$6))),0),0) -> 0 | O35: 0 | P35: 0 | Q35: 0 | R35: 0 | S35: 0 | T35: 0 | U35: 0 | V35: 0 | W35: 0 | X35: 0 | Y35: 0 | AB35: 7 | AC35: 1 | AD35: 0 | AE35: 0 | AF35: 0 | AG35: 0 | AH35: 0 | AI35: 0 | AJ35: 0 | AK35: 0 | AL35: 0 | AM35: 0 | AN35: 0 | AO35: 0 | AP35: 0 | AQ35: 0 | AR35: 0 | AS35: 0 | AT35: 0 | AU35: 0 | AV35: 0 | AW35: 1 | BC35: 7 | BD35: 0 | BE35: 0 | BF35: 0 | BG35: 0 | BH35: 0 | BI35: 0 | BJ35: 0 | BK35: 0 | BL35: 0 | BM35: =IF(BM$15<>0,IF(BM$6<>0,TRUNC($BC35/(BM$15*(24/BM$6)))-TRUNC($BC34/(BM$15*(24/BM$6))),0),0) -> 0 | BN35: 0 | BO35: 0 | BP35: 0 | BQ35: 0 | BR35: 0 | BS35: 0 | BT35: 0 | BU35: 0 | BV35: 0 | BW35: 0 | BX35: 0 | CA35: 7 | CB35: 0 | CC35: 0 | CD35: 0 | CE35: 0 | CF35: 0 | CG35: 0 | CH35: 0 | CI35: 0 | CJ35: 0 | CK35: 0 | CL35: 0 | CM35: 0 | CN35: 0 | CO35: 0 | CP35: 0 | CQ35: 0 | CR35: 0 | CS35: 0 | CT35: 0 | CU35: 0 | CV35: 0
D36: 8 | E36: 0 | F36: 0 | G36: 0 | H36: 0 | I36: 0 | J36: 0 | K36: 0 | L36: 0 | M36: 0 | N36: =IF(N$15<>0,IF(N$6<>0,TRUNC($D36/(N$15*(24/N$6)))-TRUNC($D35/(N$15*(24/N$6))),0),0) -> 0 | O36: 0 | P36: 0 | Q36: 0 | R36: 0 | S36: 0 | T36: 0 | U36: 0 | V36: 0 | W36: 0 | X36: 0 | Y36: 0 | AB36: 8 | AC36: 0 | AD36: 0 | AE36: 0 | AF36: 0 | AG36: 0 | AH36: 0 | AI36: 0 | AJ36: 0 | AK36: 0 | AL36: 0 | AM36: 0 | AN36: 0 | AO36: 0 | AP36: 0 | AQ36: 0 | AR36: 0 | AS36: 0 | AT36: 0 | AU36: 0 | AV36: 0 | AW36: 0 | BC36: 8 | BD36: 0 | BE36: 0 | BF36: 0 | BG36: 0 | BH36: 0 | BI36: 0 | BJ36: 0 | BK36: 0 | BL36: 0 | BM36: =IF(BM$15<>0,IF(BM$6<>0,TRUNC($BC36/(BM$15*(24/BM$6)))-TRUNC($BC35/(BM$15*(24/BM$6))),0),0) -> 0 | BN36: 0 | BO36: 0 | BP36: 0 | BQ36: 0 | BR36: 0 | BS36: 0 | BT36: 0 | BU36: 0 | BV36: 0 | BW36: 0 | BX36: 0 | CA36: 8 | CB36: 0 | CC36: 0 | CD36: 0 | CE36: 0 | CF36: 0 | CG36: 0 | CH36: 0 | CI36: 0 | CJ36: 0 | CK36: 0 | CL36: 0 | CM36: 0 | CN36: 0 | CO36: 0 | CP36: 0 | CQ36: 0 | CR36: 0 | CS36: 0 | CT36: 0 | CU36: 0 | CV36: 0
D37: 9 | E37: 0 | F37: 0 | G37: 0 | H37: 0 | I37: 0 | J37: 0 | K37: 0 | L37: 0 | M37: 0 | N37: =IF(N$15<>0,IF(N$6<>0,TRUNC($D37/(N$15*(24/N$6)))-TRUNC($D36/(N$15*(24/N$6))),0),0) -> 0 | O37: 0 | P37: 0 | Q37: 0 | R37: 0 | S37: 0 | T37: 0 | U37: 0 | V37: 0 | W37: 0 | X37: 0 | Y37: 0 | AB37: 9 | AC37: 0 | AD37: 0 | AE37: 0 | AF37: 0 | AG37: 0 | AH37: 0 | AI37: 0 | AJ37: 0 | AK37: 0 | AL37: 0 | AM37: 0 | AN37: 0 | AO37: 0 | AP37: 0 | AQ37: 0 | AR37: 0 | AS37: 0 | AT37: 0 | AU37: 0 | AV37: 0 | AW37: 0 | BC37: 9 | BD37: 0 | BE37: 0 | BF37: 0 | BG37: 0 | BH37: 0 | BI37: 0 | BJ37: 0 | BK37: 0 | BL37: 0 | BM37: =IF(BM$15<>0,IF(BM$6<>0,TRUNC($BC37/(BM$15*(24/BM$6)))-TRUNC($BC36/(BM$15*(24/BM$6))),0),0) -> 0 | BN37: 0 | BO37: 0 | BP37: 0 | BQ37: 0 | BR37: 0 | BS37: 0 | BT37: 0 | BU37: 0 | BV37: 0 | BW37: 0 | BX37: 0 | CA37: 9 | CB37: 0 | CC37: 0 | CD37: 0 | CE37: 0 | CF37: 0 | CG37: 0 | CH37: 0 | CI37: 0 | CJ37: 0 | CK37: 0 | CL37: 0 | CM37: 0 | CN37: 0 | CO37: 0 | CP37: 0 | CQ37: 0 | CR37: 0 | CS37: 0 | CT37: 0 | CU37: 0 | CV37: 0
D38: 10 | E38: 0 | F38: 0 | G38: 0 | H38: 0 | I38: 0 | J38: 0 | K38: 0 | L38: 0 | M38: 0 | N38: =IF(N$15<>0,IF(N$6<>0,TRUNC($D38/(N$15*(24/N$6)))-TRUNC($D37/(N$15*(24/N$6))),0),0) -> 0 | O38: 0 | P38: 0 | Q38: 0 | R38: 0 | S38: 0 | T38: 0 | U38: 0 | V38: 0 | W38: 0 | X38: 0 | Y38: 0 | AB38: 10 | AC38: 1 | AD38: 0 | AE38: 0 | AF38: 0 | AG38: 0 | AH38: 0 | AI38: 0 | AJ38: 0 | AK38: 0 | AL38: 0 | AM38: 0 | AN38: 0 | AO38: 0 | AP38: 0 | AQ38: 0 | AR38: 0 | AS38: 0 | AT38: 0 | AU38: 0 | AV38: 0 | AW38: 1 | BC38: 10 | BD38: 0 | BE38: 0 | BF38: 0 | BG38: 0 | BH38: 0 | BI38: 0 | BJ38: 0 | BK38: 0 | BL38: 0 | BM38: =IF(BM$15<>0,IF(BM$6<>0,TRUNC($BC38/(BM$15*(24/BM$6)))-TRUNC($BC37/(BM$15*(24/BM$6))),0),0) -> 0 | BN38: 0 | BO38: 0 | BP38: 0 | BQ38: 0 | BR38: 0 | BS38: 0 | BT38: 0 | BU38: 0 | BV38: 0 | BW38: 0 | BX38: 0 | CA38: 10 | CB38: 0 | CC38: 0 | CD38: 0 | CE38: 0 | CF38: 0 | CG38: 0 | CH38: 0 | CI38: 0 | CJ38: 0 | CK38: 0 | CL38: 0 | CM38: 0 | CN38: 0 | CO38: 0 | CP38: 0 | CQ38: 0 | CR38: 0 | CS38: 0 | CT38: 0 | CU38: 0 | CV38: 0
D40: COST OF RELAMPING PER YEAR | AB40: COST OF RELAMPING PER YEAR (spotLEDcost) | BC40: COST OF RELAMPING PER YEAR | CA40: COST OF RELAMPING PER YEAR
D41: ↓Year | E41: 1 | F41: 2 | G41: 3 | H41: 4 | I41: 5 | J41: 6 | K41: 7 | L41: 8 | M41: 9 | N41: 10 | O41: 11 | P41: 12 | Q41: 13 | R41: 14 | S41: 15 | T41: 16 | U41: 17 | V41: 18 | W41: 19 | X41: 20 | Y41: Total | AB41: ↓Year | AC41: 1 | AD41: 2 | AE41: 3 | AF41: 4 | AG41: 5 | AH41: 6 | AI41: 7 | AJ41: 8 | AK41: 9 | AL41: 10 | AM41: 11 | AN41: 12 | AO41: 13 | AP41: 14 | AQ41: 15 | AR41: 16 | AS41: 17 | AT41: 18 | AU41: 19 | AV41: 20 | AW41: Total | BC41: ↓Year | BD41: 1 | BE41: 2 | BF41: 3 | BG41: 4 | BH41: 5 | BI41: 6 | BJ41: 7 | BK41: 8 | BL41: 9 | BM41: 10 | BN41: 11 | BO41: 12 | BP41: 13 | BQ41: 14 | BR41: 15 | BS41: 16 | BT41: 17 | BU41: 18 | BV41: 19 | BW41: 20 | BX41: Total | CA41: ↓Year | CB41: 1 | CC41: 2 | CD41: 3 | CE41: 4 | CF41: 5 | CG41: 6 | CH41: 7 | CI41: 8 | CJ41: 9 | CK41: 10 | CL41: 11 | CM41: 12 | CN41: 13 | CO41: 14 | CP41: 15 | CQ41: 16 | CR41: 17 | CS41: 18 | CT41: 19 | CU41: 20 | CV41: Total
D42: 1 | E42: =E29 * ( (E$10*E$5) + E$9) -> 0 | F42: =F29 * ( (F$10*F$5) + F$9) -> 0 | G42: 0 | H42: 0 | I42: 0 | J42: 0 | K42: 0 | L42: 0 | M42: 0 | N42: =N29 * ( (N$10*N$5) + N$9) -> 0 | O42: 0 | P42: 0 | Q42: 0 | R42: 0 | S42: 0 | T42: 0 | U42: 0 | V42: 0 | W42: 0 | X42: 0 | Y42: =SUM(E42:X42) -> 0 | AB42: 1 | AC42: =AC29 * ( (E$10*AC$6) + E$9) -> 0 | AD42: =AD29 * ( (F$10*AD$6) + F$9) -> 0 | AE42: =AE29 * ( (G$10*AE$6) + G$9) -> 0 | AF42: =AF29 * ( (H$10*AF$6) + H$9) -> 0 | AG42: =AG29 * ( (I$10*AG$6) + I$9) -> 0 | AH42: =AH29 * ( (J$10*AH$6) + J$9) -> 0 | AI42: =AI29 * ( (K$10*AI$6) + K$9) -> 0 | AJ42: =AJ29 * ( (L$10*AJ$6) + L$9) -> 0 | AK42: =AK29 * ( (M$10*AK$6) + M$9) -> 0 | AL42: =AL29 * ( (N$10*AL$6) + N$9) -> 0 | AM42: =AM29 * ( (O$10*AM$6) + O$9) -> 0 | AN42: =AN29 * ( (P$10*AN$6) + P$9) -> 0 | AO42: =AO29 * ( (Q$10*AO$6) + Q$9) -> 0 | AP42: =AP29 * ( (R$10*AP$6) + R$9) -> 0 | AQ42: =AQ29 * ( (S$10*AQ$6) + S$9) -> 0 | AR42: =AR29 * ( (T$10*AR$6) + T$9) -> 0 | AS42: =AS29 * ( (U$10*AS$6) + U$9) -> 0 | AT42: =AT29 * ( (V$10*AT$6) + V$9) -> 0 | AU42: =AU29 * ( (W$10*AU$6) + W$9) -> 0 | AV42: =AV29 * ( (X$10*AV$6) + X$9) -> 0 | AW42: =SUM(AC42:AV42) -> 0 | BC42: 1 | BD42: =BD29 * ( (BD$10*BD$5) + BD$9) -> 0 | BE42: 0 | BF42: =BF29 * ( (BF$10*BF$5) + BF$9) -> 0 | BG42: 0 | BH42: 0 | BI42: 0 | BJ42: 0 | BK42: 0 | BL42: 0 | BM42: =BM29 * ( (BM$10*BM$5) + BM$9) -> 0 | BN42: 0 | BO42: 0 | BP42: 0 | BQ42: 0 | BR42: 0 | BS42: 0 | BT42: 0 | BU42: 0 | BV42: 0 | BW42: 0 | BX42: =SUM(BD42:BW42) -> 0 | CA42: 1 | CB42: =CB29 * ( (BD$10*CB$6) + BD$9) -> 0 | CC42: =CC29 * ( (BE$10*CC$6) + BE$9) -> 0 | CD42: =CD29 * ( (BF$10*CD$6) + BF$9) -> 0 | CE42: =CE29 * ( (BG$10*CE$6) + BG$9) -> 0 | CF42: =CF29 * ( (BH$10*CF$6) + BH$9) -> 0 | CG42: =CG29 * ( (BI$10*CG$6) + BI$9) -> 0 | CH42: =CH29 * ( (BJ$10*CH$6) + BJ$9) -> 0 | CI42: =CI29 * ( (BK$10*CI$6) + BK$9) -> 0 | CJ42: =CJ29 * ( (BL$10*CJ$6) + BL$9) -> 0 | CK42: =CK29 * ( (BM$10*CK$6) + BM$9) -> 0 | CL42: =CL29 * ( (BN$10*CL$6) + BN$9) -> 0 | CM42: =CM29 * ( (BO$10*CM$6) + BO$9) -> 0 | CN42: =CN29 * ( (BP$10*CN$6) + BP$9) -> 0 | CO42: =CO29 * ( (BQ$10*CO$6) + BQ$9) -> 0 | CP42: =CP29 * ( (BR$10*CP$6) + BR$9) -> 0 | CQ42: =CQ29 * ( (BS$10*CQ$6) + BS$9) -> 0 | CR42: =CR29 * ( (BT$10*CR$6) + BT$9) -> 0 | CS42: =CS29 * ( (BU$10*CS$6) + BU$9) -> 0 | CT42: =CT29 * ( (BV$10*CT$6) + BV$9) -> 0 | CU42: =CU29 * ( (BW$10*CU$6) + BW$9) -> 0 | CV42: =SUM(CB42:CU42) -> 0
D43: 2 | E43: 0 | F43: =F30 * ( (F$10*F$5) + F$9) -> 0 | G43: 0 | H43: 0 | I43: 0 | J43: 0 | K43: 0 | L43: 0 | M43: 0 | N43: =N30 * ( (N$10*N$5) + N$9) -> 0 | O43: 0 | P43: 0 | Q43: 0 | R43: 0 | S43: 0 | T43: 0 | U43: 0 | V43: 0 | W43: 0 | X43: 0 | Y43: =SUM(E43:X43) -> 0 | AB43: 2 | AC43: 0 | AD43: 0 | AE43: 0 | AF43: 0 | AG43: 0 | AH43: 0 | AI43: 0 | AJ43: 0 | AK43: 0 | AL43: 0 | AM43: 0 | AN43: 0 | AO43: 0 | AP43: 0 | AQ43: 0 | AR43: 0 | AS43: 0 | AT43: 0 | AU43: 0 | AV43: 0 | AW43: 0 | BC43: 2 | BD43: 0 | BE43: 0 | BF43: =BF30 * ( (BF$10*BF$5) + BF$9) -> 0 | BG43: 0 | BH43: 0 | BI43: 0 | BJ43: 0 | BK43: 0 | BL43: 0 | BM43: =BM30 * ( (BM$10*BM$5) + BM$9) -> 0 | BN43: 0 | BO43: 0 | BP43: 0 | BQ43: 0 | BR43: 0 | BS43: 0 | BT43: 0 | BU43: 0 | BV43: 0 | BW43: 0 | BX43: =SUM(BD43:BW43) -> 0 | CA43: 2 | CB43: 0 | CC43: 0 | CD43: 0 | CE43: 0 | CF43: 0 | CG43: 0 | CH43: 0 | CI43: 0 | CJ43: 0 | CK43: 0 | CL43: 0 | CM43: 0 | CN43: 0 | CO43: 0 | CP43: 0 | CQ43: 0 | CR43: 0 | CS43: 0 | CT43: 0 | CU43: 0 | CV43: =SUM(CB43:CU43) -> 0
D44: 3 | E44: 0 | F44: =F31 * ( (F$10*F$5) + F$9) -> 0 | G44: 0 | H44: 0 | I44: 0 | J44: 0 | K44: 0 | L44: 0 | M44: 0 | N44: =N31 * ( (N$10*N$5) + N$9) -> 0 | O44: 0 | P44: 0 | Q44: 0 | R44: 0 | S44: 0 | T44: 0 | U44: 0 | V44: 0 | W44: 0 | X44: 0 | Y44: 0 | AB44: 3 | AC44: 0 | AD44: 0 | AE44: 0 | AF44: 0 | AG44: 0 | AH44: 0 | AI44: 0 | AJ44: 0 | AK44: 0 | AL44: 0 | AM44: 0 | AN44: 0 | AO44: 0 | AP44: 0 | AQ44: 0 | AR44: 0 | AS44: 0 | AT44: 0 | AU44: 0 | AV44: 0 | AW44: 0 | BC44: 3 | BD44: 0 | BE44: 0 | BF44: =BF31 * ( (BF$10*BF$5) + BF$9) -> 0 | BG44: 0 | BH44: 0 | BI44: 0 | BJ44: 0 | BK44: 0 | BL44: 0 | BM44: =BM31 * ( (BM$10*BM$5) + BM$9) -> 0 | BN44: 0 | BO44: 0 | BP44: 0 | BQ44: 0 | BR44: 0 | BS44: 0 | BT44: 0 | BU44: 0 | BV44: 0 | BW44: 0 | BX44: 0 | CA44: 3 | CB44: 0 | CC44: 0 | CD44: 0 | CE44: 0 | CF44: 0 | CG44: 0 | CH44: 0 | CI44: 0 | CJ44: 0 | CK44: 0 | CL44: 0 | CM44: 0 | CN44: 0 | CO44: 0 | CP44: 0 | CQ44: 0 | CR44: 0 | CS44: 0 | CT44: 0 | CU44: 0 | CV44: 0
D45: 4 | E45: 0 | F45: =F32 * ( (F$10*F$5) + F$9) -> 0 | G45: 0 | H45: 0 | I45: 0 | J45: 0 | K45: 0 | L45: 0 | M45: 0 | N45: =N32 * ( (N$10*N$5) + N$9) -> 0 | O45: 0 | P45: 0 | Q45: 0 | R45: 0 | S45: 0 | T45: 0 | U45: 0 | V45: 0 | W45: 0 | X45: 0 | Y45: 0 | AB45: 4 | AC45: 0 | AD45: 0 | AE45: 0 | AF45: 0 | AG45: 0 | AH45: 0 | AI45: 0 | AJ45: 0 | AK45: 0 | AL45: 0 | AM45: 0 | AN45: 0 | AO45: 0 | AP45: 0 | AQ45: 0 | AR45: 0 | AS45: 0 | AT45: 0 | AU45: 0 | AV45: 0 | AW45: 0 | BC45: 4 | BD45: 0 | BE45: 0 | BF45: =BF32 * ( (BF$10*BF$5) + BF$9) -> 0 | BG45: 0 | BH45: 0 | BI45: 0 | BJ45: 0 | BK45: 0 | BL45: 0 | BM45: =BM32 * ( (BM$10*BM$5) + BM$9) -> 0 | BN45: 0 | BO45: 0 | BP45: 0 | BQ45: 0 | BR45: 0 | BS45: 0 | BT45: 0 | BU45: 0 | BV45: 0 | BW45: 0 | BX45: 0 | CA45: 4 | CB45: 0 | CC45: 0 | CD45: 0 | CE45: 0 | CF45: 0 | CG45: 0 | CH45: 0 | CI45: 0 | CJ45: 0 | CK45: 0 | CL45: 0 | CM45: 0 | CN45: 0 | CO45: 0 | CP45: 0 | CQ45: 0 | CR45: 0 | CS45: 0 | CT45: 0 | CU45: 0 | CV45: 0
D46: 5 | E46: 0 | F46: =F33 * ( (F$10*F$5) + F$9) -> 0 | G46: 0 | H46: 0 | I46: 0 | J46: 0 | K46: 0 | L46: 0 | M46: 0 | N46: =N33 * ( (N$10*N$5) + N$9) -> 0 | O46: 0 | P46: 0 | Q46: 0 | R46: 0 | S46: 0 | T46: 0 | U46: 0 | V46: 0 | W46: 0 | X46: 0 | Y46: 0 | AB46: 5 | AC46: 0 | AD46: 0 | AE46: 0 | AF46: 0 | AG46: 0 | AH46: 0 | AI46: 0 | AJ46: 0 | AK46: 0 | AL46: 0 | AM46: 0 | AN46: 0 | AO46: 0 | AP46: 0 | AQ46: 0 | AR46: 0 | AS46: 0 | AT46: 0 | AU46: 0 | AV46: 0 | AW46: 0 | BC46: 5 | BD46: 0 | BE46: 0 | BF46: =BF33 * ( (BF$10*BF$5) + BF$9) -> 0 | BG46: 0 | BH46: 0 | BI46: 0 | BJ46: 0 | BK46: 0 | BL46: 0 | BM46: =BM33 * ( (BM$10*BM$5) + BM$9) -> 0 | BN46: 0 | BO46: 0 | BP46: 0 | BQ46: 0 | BR46: 0 | BS46: 0 | BT46: 0 | BU46: 0 | BV46: 0 | BW46: 0 | BX46: 0 | CA46: 5 | CB46: 0 | CC46: 0 | CD46: 0 | CE46: 0 | CF46: 0 | CG46: 0 | CH46: 0 | CI46: 0 | CJ46: 0 | CK46: 0 | CL46: 0 | CM46: 0 | CN46: 0 | CO46: 0 | CP46: 0 | CQ46: 0 | CR46: 0 | CS46: 0 | CT46: 0 | CU46: 0 | CV46: 0
D47: 6 | E47: 0 | F47: =F34 * ( (F$10*F$5) + F$9) -> 0 | G47: 0 | H47: 0 | I47: 0 | J47: 0 | K47: 0 | L47: 0 | M47: 0 | N47: =N34 * ( (N$10*N$5) + N$9) -> 0 | O47: 0 | P47: 0 | Q47: 0 | R47: 0 | S47: 0 | T47: 0 | U47: 0 | V47: 0 | W47: 0 | X47: 0 | Y47: 0 | AB47: 6 | AC47: 0 | AD47: 0 | AE47: 0 | AF47: 0 | AG47: 0 | AH47: 0 | AI47: 0 | AJ47: 0 | AK47: 0 | AL47: 0 | AM47: 0 | AN47: 0 | AO47: 0 | AP47: 0 | AQ47: 0 | AR47: 0 | AS47: 0 | AT47: 0 | AU47: 0 | AV47: 0 | AW47: 0 | BC47: 6 | BD47: 0 | BE47: 0 | BF47: =BF34 * ( (BF$10*BF$5) + BF$9) -> 0 | BG47: 0 | BH47: 0 | BI47: 0 | BJ47: 0 | BK47: 0 | BL47: 0 | BM47: =BM34 * ( (BM$10*BM$5) + BM$9) -> 0 | BN47: 0 | BO47: 0 | BP47: 0 | BQ47: 0 | BR47: 0 | BS47: 0 | BT47: 0 | BU47: 0 | BV47: 0 | BW47: 0 | BX47: 0 | CA47: 6 | CB47: 0 | CC47: 0 | CD47: 0 | CE47: 0 | CF47: 0 | CG47: 0 | CH47: 0 | CI47: 0 | CJ47: 0 | CK47: 0 | CL47: 0 | CM47: 0 | CN47: 0 | CO47: 0 | CP47: 0 | CQ47: 0 | CR47: 0 | CS47: 0 | CT47: 0 | CU47: 0 | CV47: 0
D48: 7 | E48: 0 | F48: =F35 * ( (F$10*F$5) + F$9) -> 0 | G48: 0 | H48: 0 | I48: 0 | J48: 0 | K48: 0 | L48: 0 | M48: 0 | N48: =N35 * ( (N$10*N$5) + N$9) -> 0 | O48: 0 | P48: 0 | Q48: 0 | R48: 0 | S48: 0 | T48: 0 | U48: 0 | V48: 0 | W48: 0 | X48: 0 | Y48: 0 | AB48: 7 | AC48: 0 | AD48: 0 | AE48: 0 | AF48: 0 | AG48: 0 | AH48: 0 | AI48: 0 | AJ48: 0 | AK48: 0 | AL48: 0 | AM48: 0 | AN48: 0 | AO48: 0 | AP48: 0 | AQ48: 0 | AR48: 0 | AS48: 0 | AT48: 0 | AU48: 0 | AV48: 0 | AW48: 0 | BC48: 7 | BD48: 0 | BE48: 0 | BF48: =BF35 * ( (BF$10*BF$5) + BF$9) -> 0 | BG48: 0 | BH48: 0 | BI48: 0 | BJ48: 0 | BK48: 0 | BL48: 0 | BM48: =BM35 * ( (BM$10*BM$5) + BM$9) -> 0 | BN48: 0 | BO48: 0 | BP48: 0 | BQ48: 0 | BR48: 0 | BS48: 0 | BT48: 0 | BU48: 0 | BV48: 0 | BW48: 0 | BX48: 0 | CA48: 7 | CB48: 0 | CC48: 0 | CD48: 0 | CE48: 0 | CF48: 0 | CG48: 0 | CH48: 0 | CI48: 0 | CJ48: 0 | CK48: 0 | CL48: 0 | CM48: 0 | CN48: 0 | CO48: 0 | CP48: 0 | CQ48: 0 | CR48: 0 | CS48: 0 | CT48: 0 | CU48: 0 | CV48: 0
D49: 8 | E49: 0 | F49: =F36 * ( (F$10*F$5) + F$9) -> 0 | G49: 0 | H49: 0 | I49: 0 | J49: 0 | K49: 0 | L49: 0 | M49: 0 | N49: =N36 * ( (N$10*N$5) + N$9) -> 0 | O49: 0 | P49: 0 | Q49: 0 | R49: 0 | S49: 0 | T49: 0 | U49: 0 | V49: 0 | W49: 0 | X49: 0 | Y49: 0 | AB49: 8 | AC49: 0 | AD49: 0 | AE49: 0 | AF49: 0 | AG49: 0 | AH49: 0 | AI49: 0 | AJ49: 0 | AK49: 0 | AL49: 0 | AM49: 0 | AN49: 0 | AO49: 0 | AP49: 0 | AQ49: 0 | AR49: 0 | AS49: 0 | AT49: 0 | AU49: 0 | AV49: 0 | AW49: 0 | BC49: 8 | BD49: 0 | BE49: 0 | BF49: =BF36 * ( (BF$10*BF$5) + BF$9) -> 0 | BG49: 0 | BH49: 0 | BI49: 0 | BJ49: 0 | BK49: 0 | BL49: 0 | BM49: =BM36 * ( (BM$10*BM$5) + BM$9) -> 0 | BN49: 0 | BO49: 0 | BP49: 0 | BQ49: 0 | BR49: 0 | BS49: 0 | BT49: 0 | BU49: 0 | BV49: 0 | BW49: 0 | BX49: 0 | CA49: 8 | CB49: 0 | CC49: 0 | CD49: 0 | CE49: 0 | CF49: 0 | CG49: 0 | CH49: 0 | CI49: 0 | CJ49: 0 | CK49: 0 | CL49: 0 | CM49: 0 | CN49: 0 | CO49: 0 | CP49: 0 | CQ49: 0 | CR49: 0 | CS49: 0 | CT49: 0 | CU49: 0 | CV49: 0
D50: 9 | E50: 0 | F50: =F37 * ( (F$10*F$5) + F$9) -> 0 | G50: 0 | H50: 0 | I50: 0 | J50: 0 | K50: 0 | L50: 0 | M50: 0 | N50: =N37 * ( (N$10*N$5) + N$9) -> 0 | O50: 0 | P50: 0 | Q50: 0 | R50: 0 | S50: 0 | T50: 0 | U50: 0 | V50: 0 | W50: 0 | X50: 0 | Y50: 0 | AB50: 9 | AC50: 0 | AD50: 0 | AE50: 0 | AF50: 0 | AG50: 0 | AH50: 0 | AI50: 0 | AJ50: 0 | AK50: 0 | AL50: 0 | AM50: 0 | AN50: 0 | AO50: 0 | AP50: 0 | AQ50: 0 | AR50: 0 | AS50: 0 | AT50: 0 | AU50: 0 | AV50: 0 | AW50: 0 | BC50: 9 | BD50: 0 | BE50: 0 | BF50: =BF37 * ( (BF$10*BF$5) + BF$9) -> 0 | BG50: 0 | BH50: 0 | BI50: 0 | BJ50: 0 | BK50: 0 | BL50: 0 | BM50: =BM37 * ( (BM$10*BM$5) + BM$9) -> 0 | BN50: 0 | BO50: 0 | BP50: 0 | BQ50: 0 | BR50: 0 | BS50: 0 | BT50: 0 | BU50: 0 | BV50: 0 | BW50: 0 | BX50: 0 | CA50: 9 | CB50: 0 | CC50: 0 | CD50: 0 | CE50: 0 | CF50: 0 | CG50: 0 | CH50: 0 | CI50: 0 | CJ50: 0 | CK50: 0 | CL50: 0 | CM50: 0 | CN50: 0 | CO50: 0 | CP50: 0 | CQ50: 0 | CR50: 0 | CS50: 0 | CT50: 0 | CU50: 0 | CV50: 0
D51: 10 | E51: 0 | F51: =F38 * ( (F$10*F$5) + F$9) -> 0 | G51: 0 | H51: 0 | I51: 0 | J51: 0 | K51: 0 | L51: 0 | M51: 0 | N51: =N38 * ( (N$10*N$5) + N$9) -> 0 | O51: 0 | P51: 0 | Q51: 0 | R51: 0 | S51: 0 | T51: 0 | U51: 0 | V51: 0 | W51: 0 | X51: 0 | Y51: 0 | AB51: 10 | AC51: 0 | AD51: 0 | AE51: 0 | AF51: 0 | AG51: 0 | AH51: 0 | AI51: 0 | AJ51: 0 | AK51: 0 | AL51: 0 | AM51: 0 | AN51: 0 | AO51: 0 | AP51: 0 | AQ51: 0 | AR51: 0 | AS51: 0 | AT51: 0 | AU51: 0 | AV51: 0 | AW51: 0 | BC51: 10 | BD51: 0 | BE51: 0 | BF51: =BF38 * ( (BF$10*BF$5) + BF$9) -> 0 | BG51: 0 | BH51: 0 | BI51: 0 | BJ51: 0 | BK51: 0 | BL51: 0 | BM51: =BM38 * ( (BM$10*BM$5) + BM$9) -> 0 | BN51: 0 | BO51: 0 | BP51: 0 | BQ51: 0 | BR51: 0 | BS51: 0 | BT51: 0 | BU51: 0 | BV51: 0 | BW51: 0 | BX51: 0 | CA51: 10 | CB51: 0 | CC51: 0 | CD51: 0 | CE51: 0 | CF51: 0 | CG51: 0 | CH51: 0 | CI51: 0 | CJ51: 0 | CK51: 0 | CL51: 0 | CM51: 0 | CN51: 0 | CO51: 0 | CP51: 0 | CQ51: 0 | CR51: 0 | CS51: 0 | CT51: 0 | CU51: 0 | CV51: 0
C53: Driver Maintenance | D53: NUMBER OF RELAMPINGS PER YEAR | AA53: Driver Maintenance | AB53: NUMBER OF RELAMPINGS PER YEAR (spotDRIVERcount) | BB53: BALLAST Maintenance | BC53: NUMBER OF RELAMPINGS PER YEAR | BZ53: BALLAST Maintenance | CA53: NUMBER OF RELAMPINGS PER YEAR (spotBALLASTcount)
D54: ↓Year | E54: 1 | F54: 2 | G54: 3 | H54: 4 | I54: 5 | J54: 6 | K54: 7 | L54: 8 | M54: 9 | N54: 10 | O54: 11 | P54: 12 | Q54: 13 | R54: 14 | S54: 15 | T54: 16 | U54: 17 | V54: 18 | W54: 19 | X54: 20 | Y54: Total | AB54: ↓Year | AC54: 1 | AD54: 2 | AE54: 3 | AF54: 4 | AG54: 5 | AH54: 6 | AI54: 7 | AJ54: 8 | AK54: 9 | AL54: 10 | AM54: 11 | AN54: 12 | AO54: 13 | AP54: 14 | AQ54: 15 | AR54: 16 | AS54: 17 | AT54: 18 | AU54: 19 | AV54: 20 | AW54: Total | BC54: ↓Year | BD54: 1 | BE54: 2 | BF54: 3 | BG54: 4 | BH54: 5 | BI54: 6 | BJ54: 7 | BK54: 8 | BL54: 9 | BM54: 10 | BN54: 11 | BO54: 12 | BP54: 13 | BQ54: 14 | BR54: 15 | BS54: 16 | BT54: 17 | BU54: 18 | BV54: 19 | BW54: 20 | BX54: Total | CA54: ↓Year | CB54: 1 | CC54: 2 | CD54: 3 | CE54: 4 | CF54: 5 | CG54: 6 | CH54: 7 | CI54: 8 | CJ54: 9 | CK54: 10 | CL54: 11 | CM54: 12 | CN54: 13 | CO54: 14 | CP54: 15 | CQ54: 16 | CR54: 17 | CS54: 18 | CT54: 19 | CU54: 20 | CV54: Total
D55: 0 | AB55: 0 | BC55: 0 | CA55: 0
D56: 1 | E56: =IF(E$19<>0,IF(E$6<>0,TRUNC($D56/(E$19*(24/E$6)))-TRUNC($D55/(E$19*(24/E$6))),0),0) -> 0 | F56: =IF(F$19<>0,IF(F$6<>0,TRUNC($D56/(F$19*(24/F$6)))-TRUNC($D55/(F$19*(24/F$6))),0),0) -> 0 | G56: 0 | H56: 0 | I56: 0 | J56: 0 | K56: 0 | L56: 0 | M56: 0 | N56: =IF(N$19<>0,IF(N$6<>0,TRUNC($D56/(N$19*(24/N$6)))-TRUNC($D55/(N$19*(24/N$6))),0),0) -> 0 | O56: 0 | P56: 0 | Q56: 0 | R56: 0 | S56: 0 | T56: 0 | U56: 0 | V56: 0 | W56: 0 | X56: 0 | Y56: =SUM(E56:X56) -> 0 | AB56: 1 | AC56: 0 | AD56: 0 | AE56: 0 | AF56: 0 | AG56: 0 | AH56: 0 | AI56: 0 | AJ56: 0 | AK56: 0 | AL56: 0 | AM56: 0 | AN56: 0 | AO56: 0 | AP56: 0 | AQ56: 0 | AR56: 0 | AS56: 0 | AT56: 0 | AU56: 0 | AV56: 0 | AW56: =SUM(AC56:AV56) -> 0 | BC56: 1 | BD56: =IF(BD$19<>0,IF(BD$6<>0,TRUNC($BC56/(BD$19*(24/BD$6)))-TRUNC($BC55/(BD$19*(24/BD$6))),0),0) -> 0 | BE56: 0 | BF56: 0 | BG56: 0 | BH56: 0 | BI56: 0 | BJ56: 0 | BK56: 0 | BL56: 0 | BM56: =IF(BM$19<>0,IF(BM$6<>0,TRUNC($BC56/(BM$19*(24/BM$6)))-TRUNC($BC55/(BM$19*(24/BM$6))),0),0) -> 0 | BN56: 0 | BO56: 0 | BP56: 0 | BQ56: 0 | BR56: 0 | BS56: 0 | BT56: 0 | BU56: 0 | BV56: 0 | BW56: 0 | BX56: =SUM(BD56:BW56) -> 0 | CA56: 1 | CB56: 0 | CC56: 0 | CD56: 0 | CE56: 0 | CF56: 0 | CG56: 0 | CH56: 0 | CI56: 0 | CJ56: 0 | CK56: 0 | CL56: 0 | CM56: 0 | CN56: 0 | CO56: 0 | CP56: 0 | CQ56: 0 | CR56: 0 | CS56: 0 | CT56: 0 | CU56: 0 | CV56: =SUM(CB56:CU56) -> 0
D57: 2 | E57: =IF(E$19<>0,IF(E$6<>0,TRUNC($D57/(E$19*(24/E$6)))-TRUNC($D56/(E$19*(24/E$6))),0),0) -> 0 | F57: 0 | G57: 0 | H57: 0 | I57: 0 | J57: 0 | K57: 0 | L57: 0 | M57: 0 | N57: =IF(N$19<>0,IF(N$6<>0,TRUNC($D57/(N$19*(24/N$6)))-TRUNC($D56/(N$19*(24/N$6))),0),0) -> 0 | O57: 0 | P57: 0 | Q57: 0 | R57: 0 | S57: 0 | T57: 0 | U57: 0 | V57: 0 | W57: 0 | X57: 0 | Y57: =SUM(E57:X57) -> 0 | AB57: 2 | AC57: 0 | AD57: 0 | AE57: 0 | AF57: 0 | AG57: 0 | AH57: 0 | AI57: 0 | AJ57: 0 | AK57: 0 | AL57: 0 | AM57: 0 | AN57: 0 | AO57: 0 | AP57: 0 | AQ57: 0 | AR57: 0 | AS57: 0 | AT57: 0 | AU57: 0 | AV57: 0 | AW57: 0 | BC57: 2 | BD57: =IF(BD$19<>0,IF(BD$6<>0,TRUNC($BC57/(BD$19*(24/BD$6)))-TRUNC($BC56/(BD$19*(24/BD$6))),0),0) -> 0 | BE57: =IF(BE$19<>0,IF(BE$6<>0,TRUNC($BC57/(BE$19*(24/BE$6)))-TRUNC($BC56/(BE$19*(24/BE$6))),0),0) -> 0 | BF57: 0 | BG57: =IF(BG$19<>0,IF(BG$6<>0,TRUNC($BC57/(BG$19*(24/BG$6)))-TRUNC($BC56/(BG$19*(24/BG$6))),0),0) -> 0 | BH57: 0 | BI57: =IF(BI$19<>0,IF(BI$6<>0,TRUNC($BC57/(BI$19*(24/BI$6)))-TRUNC($BC56/(BI$19*(24/BI$6))),0),0) -> 0 | BJ57: 0 | BK57: =IF(BK$19<>0,IF(BK$6<>0,TRUNC($BC57/(BK$19*(24/BK$6)))-TRUNC($BC56/(BK$19*(24/BK$6))),0),0) -> 0 | BL57: 0 | BM57: =IF(BM$19<>0,IF(BM$6<>0,TRUNC($BC57/(BM$19*(24/BM$6)))-TRUNC($BC56/(BM$19*(24/BM$6))),0),0) -> 0 | BN57: 0 | BO57: 0 | BP57: 0 | BQ57: 0 | BR57: 0 | BS57: 0 | BT57: 0 | BU57: 0 | BV57: 0 | BW57: 0 | BX57: =SUM(BD57:BW57) -> 0 | CA57: 2 | CB57: 0 | CC57: 0 | CD57: 0 | CE57: 0 | CF57: 0 | CG57: 0 | CH57: 0 | CI57: 0 | CJ57: 0 | CK57: 0 | CL57: 0 | CM57: 0 | CN57: 0 | CO57: 0 | CP57: 0 | CQ57: 0 | CR57: 0 | CS57: 0 | CT57: 0 | CU57: 0 | CV57: =SUM(CB57:CU57) -> 0
D58: 3 | E58: 0 | F58: 0 | G58: 0 | H58: 0 | I58: 0 | J58: 0 | K58: 0 | L58: 0 | M58: 0 | N58: =IF(N$19<>0,IF(N$6<>0,TRUNC($D58/(N$19*(24/N$6)))-TRUNC($D57/(N$19*(24/N$6))),0),0) -> 0 | O58: 0 | P58: 0 | Q58: 0 | R58: 0 | S58: 0 | T58: 0 | U58: 0 | V58: 0 | W58: 0 | X58: 0 | Y58: 0 | AB58: 3 | AC58: 0 | AD58: 0 | AE58: 0 | AF58: 0 | AG58: 0 | AH58: 0 | AI58: 0 | AJ58: 0 | AK58: 0 | AL58: 0 | AM58: 0 | AN58: 0 | AO58: 0 | AP58: 0 | AQ58: 0 | AR58: 0 | AS58: 0 | AT58: 0 | AU58: 0 | AV58: 0 | AW58: 0 | BC58: 3 | BD58: 0 | BE58: 0 | BF58: 0 | BG58: 0 | BH58: 0 | BI58: 0 | BJ58: 0 | BK58: 0 | BL58: 0 | BM58: =IF(BM$19<>0,IF(BM$6<>0,TRUNC($BC58/(BM$19*(24/BM$6)))-TRUNC($BC57/(BM$19*(24/BM$6))),0),0) -> 0 | BN58: 0 | BO58: 0 | BP58: 0 | BQ58: 0 | BR58: 0 | BS58: 0 | BT58: 0 | BU58: 0 | BV58: 0 | BW58: 0 | BX58: 0 | CA58: 3 | CB58: 0 | CC58: 0 | CD58: 0 | CE58: 0 | CF58: 0 | CG58: 0 | CH58: 0 | CI58: 0 | CJ58: 0 | CK58: 0 | CL58: 0 | CM58: 0 | CN58: 0 | CO58: 0 | CP58: 0 | CQ58: 0 | CR58: 0 | CS58: 0 | CT58: 0 | CU58: 0 | CV58: 0
D59: 4 | E59: 0 | F59: 0 | G59: 0 | H59: 0 | I59: 0 | J59: 0 | K59: 0 | L59: 0 | M59: 0 | N59: =IF(N$19<>0,IF(N$6<>0,TRUNC($D59/(N$19*(24/N$6)))-TRUNC($D58/(N$19*(24/N$6))),0),0) -> 0 | O59: 0 | P59: 0 | Q59: 0 | R59: 0 | S59: 0 | T59: 0 | U59: 0 | V59: 0 | W59: 0 | X59: 0 | Y59: 0 | AB59: 4 | AC59: 0 | AD59: 0 | AE59: 0 | AF59: 0 | AG59: 0 | AH59: 0 | AI59: 0 | AJ59: 0 | AK59: 0 | AL59: 0 | AM59: 0 | AN59: 0 | AO59: 0 | AP59: 0 | AQ59: 0 | AR59: 0 | AS59: 0 | AT59: 0 | AU59: 0 | AV59: 0 | AW59: 0 | BC59: 4 | BD59: 0 | BE59: 0 | BF59: 0 | BG59: 0 | BH59: 0 | BI59: 0 | BJ59: 0 | BK59: 0 | BL59: 0 | BM59: =IF(BM$19<>0,IF(BM$6<>0,TRUNC($BC59/(BM$19*(24/BM$6)))-TRUNC($BC58/(BM$19*(24/BM$6))),0),0) -> 0 | BN59: 0 | BO59: 0 | BP59: 0 | BQ59: 0 | BR59: 0 | BS59: 0 | BT59: 0 | BU59: 0 | BV59: 0 | BW59: 0 | BX59: 0 | CA59: 4 | CB59: 0 | CC59: 0 | CD59: 0 | CE59: 0 | CF59: 0 | CG59: 0 | CH59: 0 | CI59: 0 | CJ59: 0 | CK59: 0 | CL59: 0 | CM59: 0 | CN59: 0 | CO59: 0 | CP59: 0 | CQ59: 0 | CR59: 0 | CS59: 0 | CT59: 0 | CU59: 0 | CV59: 0
D60: 5 | E60: 0 | F60: 0 | G60: 0 | H60: 0 | I60: 0 | J60: 0 | K60: 0 | L60: 0 | M60: 0 | N60: =IF(N$19<>0,IF(N$6<>0,TRUNC($D60/(N$19*(24/N$6)))-TRUNC($D59/(N$19*(24/N$6))),0),0) -> 0 | O60: 0 | P60: 0 | Q60: 0 | R60: 0 | S60: 0 | T60: 0 | U60: 0 | V60: 0 | W60: 0 | X60: 0 | Y60: 0 | AB60: 5 | AC60: 0 | AD60: 0 | AE60: 0 | AF60: 0 | AG60: 0 | AH60: 0 | AI60: 0 | AJ60: 0 | AK60: 0 | AL60: 0 | AM60: 0 | AN60: 0 | AO60: 0 | AP60: 0 | AQ60: 0 | AR60: 0 | AS60: 0 | AT60: 0 | AU60: 0 | AV60: 0 | AW60: 0 | BC60: 5 | BD60: 0 | BE60: 0 | BF60: 0 | BG60: 0 | BH60: 0 | BI60: 0 | BJ60: 0 | BK60: 0 | BL60: 0 | BM60: =IF(BM$19<>0,IF(BM$6<>0,TRUNC($BC60/(BM$19*(24/BM$6)))-TRUNC($BC59/(BM$19*(24/BM$6))),0),0) -> 0 | BN60: 0 | BO60: 0 | BP60: 0 | BQ60: 0 | BR60: 0 | BS60: 0 | BT60: 0 | BU60: 0 | BV60: 0 | BW60: 0 | BX60: 0 | CA60: 5 | CB60: 0 | CC60: 0 | CD60: 0 | CE60: 0 | CF60: 0 | CG60: 0 | CH60: 0 | CI60: 0 | CJ60: 0 | CK60: 0 | CL60: 0 | CM60: 0 | CN60: 0 | CO60: 0 | CP60: 0 | CQ60: 0 | CR60: 0 | CS60: 0 | CT60: 0 | CU60: 0 | CV60: 0
D61: 6 | E61: 0 | F61: 0 | G61: 0 | H61: 0 | I61: 0 | J61: 0 | K61: 0 | L61: 0 | M61: 0 | N61: =IF(N$19<>0,IF(N$6<>0,TRUNC($D61/(N$19*(24/N$6)))-TRUNC($D60/(N$19*(24/N$6))),0),0) -> 0 | O61: 0 | P61: 0 | Q61: 0 | R61: 0 | S61: 0 | T61: 0 | U61: 0 | V61: 0 | W61: 0 | X61: 0 | Y61: 0 | AB61: 6 | AC61: 0 | AD61: 0 | AE61: 0 | AF61: 0 | AG61: 0 | AH61: 0 | AI61: 0 | AJ61: 0 | AK61: 0 | AL61: 0 | AM61: 0 | AN61: 0 | AO61: 0 | AP61: 0 | AQ61: 0 | AR61: 0 | AS61: 0 | AT61: 0 | AU61: 0 | AV61: 0 | AW61: 0 | BC61: 6 | BD61: 0 | BE61: 0 | BF61: 0 | BG61: 0 | BH61: 0 | BI61: 0 | BJ61: 0 | BK61: 0 | BL61: 0 | BM61: =IF(BM$19<>0,IF(BM$6<>0,TRUNC($BC61/(BM$19*(24/BM$6)))-TRUNC($BC60/(BM$19*(24/BM$6))),0),0) -> 0 | BN61: 0 | BO61: 0 | BP61: 0 | BQ61: 0 | BR61: 0 | BS61: 0 | BT61: 0 | BU61: 0 | BV61: 0 | BW61: 0 | BX61: 0 | CA61: 6 | CB61: 0 | CC61: 0 | CD61: 0 | CE61: 0 | CF61: 0 | CG61: 0 | CH61: 0 | CI61: 0 | CJ61: 0 | CK61: 0 | CL61: 0 | CM61: 0 | CN61: 0 | CO61: 0 | CP61: 0 | CQ61: 0 | CR61: 0 | CS61: 0 | CT61: 0 | CU61: 0 | CV61: 0
D62: 7 | E62: 0 | F62: 0 | G62: 0 | H62: 0 | I62: 0 | J62: 0 | K62: 0 | L62: 0 | M62: 0 | N62: =IF(N$19<>0,IF(N$6<>0,TRUNC($D62/(N$19*(24/N$6)))-TRUNC($D61/(N$19*(24/N$6))),0),0) -> 0 | O62: 0 | P62: 0 | Q62: 0 | R62: 0 | S62: 0 | T62: 0 | U62: 0 | V62: 0 | W62: 0 | X62: 0 | Y62: 0 | AB62: 7 | AC62: 0 | AD62: 0 | AE62: 0 | AF62: 0 | AG62: 0 | AH62: 0 | AI62: 0 | AJ62: 0 | AK62: 0 | AL62: 0 | AM62: 0 | AN62: 0 | AO62: 0 | AP62: 0 | AQ62: 0 | AR62: 0 | AS62: 0 | AT62: 0 | AU62: 0 | AV62: 0 | AW62: 0 | BC62: 7 | BD62: 0 | BE62: 0 | BF62: 0 | BG62: 0 | BH62: 0 | BI62: 0 | BJ62: 0 | BK62: 0 | BL62: 0 | BM62: =IF(BM$19<>0,IF(BM$6<>0,TRUNC($BC62/(BM$19*(24/BM$6)))-TRUNC($BC61/(BM$19*(24/BM$6))),0),0) -> 0 | BN62: 0 | BO62: 0 | BP62: 0 | BQ62: 0 | BR62: 0 | BS62: 0 | BT62: 0 | BU62: 0 | BV62: 0 | BW62: 0 | BX62: 0 | CA62: 7 | CB62: 0 | CC62: 0 | CD62: 0 | CE62: 0 | CF62: 0 | CG62: 0 | CH62: 0 | CI62: 0 | CJ62: 0 | CK62: 0 | CL62: 0 | CM62: 0 | CN62: 0 | CO62: 0 | CP62: 0 | CQ62: 0 | CR62: 0 | CS62: 0 | CT62: 0 | CU62: 0 | CV62: 0
D63: 8 | E63: 0 | F63: 0 | G63: 0 | H63: 0 | I63: 0 | J63: 0 | K63: 0 | L63: 0 | M63: 0 | N63: =IF(N$19<>0,IF(N$6<>0,TRUNC($D63/(N$19*(24/N$6)))-TRUNC($D62/(N$19*(24/N$6))),0),0) -> 0 | O63: 0 | P63: 0 | Q63: 0 | R63: 0 | S63: 0 | T63: 0 | U63: 0 | V63: 0 | W63: 0 | X63: 0 | Y63: 0 | AB63: 8 | AC63: 0 | AD63: 0 | AE63: 0 | AF63: 0 | AG63: 0 | AH63: 0 | AI63: 0 | AJ63: 0 | AK63: 0 | AL63: 0 | AM63: 0 | AN63: 0 | AO63: 0 | AP63: 0 | AQ63: 0 | AR63: 0 | AS63: 0 | AT63: 0 | AU63: 0 | AV63: 0 | AW63: 0 | BC63: 8 | BD63: 0 | BE63: 0 | BF63: 0 | BG63: 0 | BH63: 0 | BI63: 0 | BJ63: 0 | BK63: 0 | BL63: 0 | BM63: =IF(BM$19<>0,IF(BM$6<>0,TRUNC($BC63/(BM$19*(24/BM$6)))-TRUNC($BC62/(BM$19*(24/BM$6))),0),0) -> 0 | BN63: 0 | BO63: 0 | BP63: 0 | BQ63: 0 | BR63: 0 | BS63: 0 | BT63: 0 | BU63: 0 | BV63: 0 | BW63: 0 | BX63: 0 | CA63: 8 | CB63: 0 | CC63: 0 | CD63: 0 | CE63: 0 | CF63: 0 | CG63: 0 | CH63: 0 | CI63: 0 | CJ63: 0 | CK63: 0 | CL63: 0 | CM63: 0 | CN63: 0 | CO63: 0 | CP63: 0 | CQ63: 0 | CR63: 0 | CS63: 0 | CT63: 0 | CU63: 0 | CV63: 0
D64: 9 | E64: 0 | F64: 0 | G64: 0 | H64: 0 | I64: 0 | J64: 0 | K64: 0 | L64: 0 | M64: 0 | N64: =IF(N$19<>0,IF(N$6<>0,TRUNC($D64/(N$19*(24/N$6)))-TRUNC($D63/(N$19*(24/N$6))),0),0) -> 0 | O64: 0 | P64: 0 | Q64: 0 | R64: 0 | S64: 0 | T64: 0 | U64: 0 | V64: 0 | W64: 0 | X64: 0 | Y64: 0 | AB64: 9 | AC64: 1 | AD64: 0 | AE64: 0 | AF64: 0 | AG64: 0 | AH64: 0 | AI64: 0 | AJ64: 0 | AK64: 0 | AL64: 0 | AM64: 0 | AN64: 0 | AO64: 0 | AP64: 0 | AQ64: 0 | AR64: 0 | AS64: 0 | AT64: 0 | AU64: 0 | AV64: 0 | AW64: 1 | BC64: 9 | BD64: 0 | BE64: 0 | BF64: 0 | BG64: 0 | BH64: 0 | BI64: 0 | BJ64: 0 | BK64: 0 | BL64: 0 | BM64: =IF(BM$19<>0,IF(BM$6<>0,TRUNC($BC64/(BM$19*(24/BM$6)))-TRUNC($BC63/(BM$19*(24/BM$6))),0),0) -> 0 | BN64: 0 | BO64: 0 | BP64: 0 | BQ64: 0 | BR64: 0 | BS64: 0 | BT64: 0 | BU64: 0 | BV64: 0 | BW64: 0 | BX64: 0 | CA64: 9 | CB64: 0 | CC64: 0 | CD64: 0 | CE64: 0 | CF64: 0 | CG64: 0 | CH64: 0 | CI64: 0 | CJ64: 0 | CK64: 0 | CL64: 0 | CM64: 0 | CN64: 0 | CO64: 0 | CP64: 0 | CQ64: 0 | CR64: 0 | CS64: 0 | CT64: 0 | CU64: 0 | CV64: 0
D65: 10 | E65: 0 | F65: 0 | G65: 0 | H65: 0 | I65: 0 | J65: 0 | K65: 0 | L65: 0 | M65: 0 | N65: =IF(N$19<>0,IF(N$6<>0,TRUNC($D65/(N$19*(24/N$6)))-TRUNC($D64/(N$19*(24/N$6))),0),0) -> 0 | O65: 0 | P65: 0 | Q65: 0 | R65: 0 | S65: 0 | T65: 0 | U65: 0 | V65: 0 | W65: 0 | X65: 0 | Y65: 0 | AB65: 10 | AC65: 0 | AD65: 0 | AE65: 0 | AF65: 0 | AG65: 0 | AH65: 0 | AI65: 0 | AJ65: 0 | AK65: 0 | AL65: 0 | AM65: 0 | AN65: 0 | AO65: 0 | AP65: 0 | AQ65: 0 | AR65: 0 | AS65: 0 | AT65: 0 | AU65: 0 | AV65: 0 | AW65: 0 | BC65: 10 | BD65: 0 | BE65: 0 | BF65: 0 | BG65: 0 | BH65: 0 | BI65: 0 | BJ65: 0 | BK65: 0 | BL65: 0 | BM65: =IF(BM$19<>0,IF(BM$6<>0,TRUNC($BC65/(BM$19*(24/BM$6)))-TRUNC($BC64/(BM$19*(24/BM$6))),0),0) -> 0 | BN65: 0 | BO65: 0 | BP65: 0 | BQ65: 0 | BR65: 0 | BS65: 0 | BT65: 0 | BU65: 0 | BV65: 0 | BW65: 0 | BX65: 0 | CA65: 10 | CB65: 0 | CC65: 0 | CD65: 0 | CE65: 0 | CF65: 0 | CG65: 0 | CH65: 0 | CI65: 0 | CJ65: 0 | CK65: 0 | CL65: 0 | CM65: 0 | CN65: 0 | CO65: 0 | CP65: 0 | CQ65: 0 | CR65: 0 | CS65: 0 | CT65: 0 | CU65: 0 | CV65: 0
D67: COST OF RELAMPING PER YEAR | AB67: COST OF RELAMPING PER YEAR | BC67: COST OF RELAMPING PER YEAR | CA67: COST OF RELAMPING PER YEAR
D68: ↓Year | E68: 1 | F68: 2 | G68: 3 | H68: 4 | I68: 5 | J68: 6 | K68: 7 | L68: 8 | M68: 9 | N68: 10 | O68: 11 | P68: 12 | Q68: 13 | R68: 14 | S68: 15 | T68: 16 | U68: 17 | V68: 18 | W68: 19 | X68: 20 | Y68: Total | AB68: ↓Year | AC68: 1 | AD68: 2 | AE68: 3 | AF68: 4 | AG68: 5 | AH68: 6 | AI68: 7 | AJ68: 8 | AK68: 9 | AL68: 10 | AM68: 11 | AN68: 12 | AO68: 13 | AP68: 14 | AQ68: 15 | AR68: 16 | AS68: 17 | AT68: 18 | AU68: 19 | AV68: 20 | AW68: Total | BC68: ↓Year | BD68: 1 | BE68: 2 | BF68: 3 | BG68: 4 | BH68: 5 | BI68: 6 | BJ68: 7 | BK68: 8 | BL68: 9 | BM68: 10 | BN68: 11 | BO68: 12 | BP68: 13 | BQ68: 14 | BR68: 15 | BS68: 16 | BT68: 17 | BU68: 18 | BV68: 19 | BW68: 20 | BX68: Total | CA68: ↓Year | CB68: 1 | CC68: 2 | CD68: 3 | CE68: 4 | CF68: 5 | CG68: 6 | CH68: 7 | CI68: 8 | CJ68: 9 | CK68: 10 | CL68: 11 | CM68: 12 | CN68: 13 | CO68: 14 | CP68: 15 | CQ68: 16 | CR68: 17 | CS68: 18 | CT68: 19 | CU68: 20 | CV68: Total
D69: 1 | E69: =E56 * ( (E$11*E$5) + E$9) -> 0 | F69: =F56 * ( (F$11*F$5) + F$9) -> 0 | G69: 0 | H69: 0 | I69: 0 | J69: 0 | K69: 0 | L69: 0 | M69: 0 | N69: =N56 * ( (N$11*N$5) + N$9) -> 0 | O69: 0 | P69: 0 | Q69: 0 | R69: 0 | S69: 0 | T69: 0 | U69: 0 | V69: 0 | W69: 0 | X69: 0 | Y69: =SUM(E69:X69) -> 0 | AB69: 1 | AC69: =AC56 * ( (E$11*AC$9) + E$9) -> 0 | AD69: =AD56 * ( (F$11*AD$9) + F$9) -> 0 | AE69: =AE56 * ( (G$11*AE$9) + G$9) -> 0 | AF69: =AF56 * ( (H$11*AF$9) + H$9) -> 0 | AG69: =AG56 * ( (I$11*AG$9) + I$9) -> 0 | AH69: =AH56 * ( (J$11*AH$9) + J$9) -> 0 | AI69: =AI56 * ( (K$11*AI$9) + K$9) -> 0 | AJ69: =AJ56 * ( (L$11*AJ$9) + L$9) -> 0 | AK69: =AK56 * ( (M$11*AK$9) + M$9) -> 0 | AL69: =AL56 * ( (N$11*AL$9) + N$9) -> 0 | AM69: =AM56 * ( (O$11*AM$9) + O$9) -> 0 | AN69: =AN56 * ( (P$11*AN$9) + P$9) -> 0 | AO69: =AO56 * ( (Q$11*AO$9) + Q$9) -> 0 | AP69: =AP56 * ( (R$11*AP$9) + R$9) -> 0 | AQ69: =AQ56 * ( (S$11*AQ$9) + S$9) -> 0 | AR69: =AR56 * ( (T$11*AR$9) + T$9) -> 0 | AS69: =AS56 * ( (U$11*AS$9) + U$9) -> 0 | AT69: =AT56 * ( (V$11*AT$9) + V$9) -> 0 | AU69: =AU56 * ( (W$11*AU$9) + W$9) -> 0 | AV69: =AV56 * ( (X$11*AV$9) + X$9) -> 0 | AW69: =SUM(AC69:AV69) -> 0 | BC69: 1 | BD69: =BD56 * ( (BD$11*BD$5) + BD$9) -> 0 | BE69: 0 | BF69: =BF56 * ( (BF$11*BF$5) + BF$9) -> 0 | BG69: 0 | BH69: 0 | BI69: 0 | BJ69: 0 | BK69: 0 | BL69: 0 | BM69: =BM56 * ( (BM$11*BM$5) + BM$9) -> 0 | BN69: 0 | BO69: 0 | BP69: 0 | BQ69: 0 | BR69: 0 | BS69: 0 | BT69: 0 | BU69: 0 | BV69: 0 | BW69: 0 | BX69: =SUM(BD69:BW69) -> 0 | CA69: 1 | CB69: =CB56 * ( (BD$11*CB$9) + BD$9) -> 0 | CC69: =CC56 * ( (BE$11*CC$9) + BE$9) -> 0 | CD69: =CD56 * ( (BF$11*CD$9) + BF$9) -> 0 | CE69: =CE56 * ( (BG$11*CE$9) + BG$9) -> 0 | CF69: =CF56 * ( (BH$11*CF$9) + BH$9) -> 0 | CG69: =CG56 * ( (BI$11*CG$9) + BI$9) -> 0 | CH69: =CH56 * ( (BJ$11*CH$9) + BJ$9) -> 0 | CI69: =CI56 * ( (BK$11*CI$9) + BK$9) -> 0 | CJ69: =CJ56 * ( (BL$11*CJ$9) + BL$9) -> 0 | CK69: =CK56 * ( (BM$11*CK$9) + BM$9) -> 0 | CL69: =CL56 * ( (BN$11*CL$9) + BN$9) -> 0 | CM69: =CM56 * ( (BO$11*CM$9) + BO$9) -> 0 | CN69: =CN56 * ( (BP$11*CN$9) + BP$9) -> 0 | CO69: =CO56 * ( (BQ$11*CO$9) + BQ$9) -> 0 | CP69: =CP56 * ( (BR$11*CP$9) + BR$9) -> 0 | CQ69: =CQ56 * ( (BS$11*CQ$9) + BS$9) -> 0 | CR69: =CR56 * ( (BT$11*CR$9) + BT$9) -> 0 | CS69: =CS56 * ( (BU$11*CS$9) + BU$9) -> 0 | CT69: =CT56 * ( (BV$11*CT$9) + BV$9) -> 0 | CU69: =CU56 * ( (BW$11*CU$9) + BW$9) -> 0 | CV69: =SUM(CB69:CU69) -> 0
D70: 2 | E70: 0 | F70: =F57 * ( (F$11*F$5) + F$9) -> 0 | G70: 0 | H70: 0 | I70: 0 | J70: 0 | K70: 0 | L70: 0 | M70: 0 | N70: =N57 * ( (N$11*N$5) + N$9) -> 0 | O70: 0 | P70: 0 | Q70: 0 | R70: 0 | S70: 0 | T70: 0 | U70: 0 | V70: 0 | W70: 0 | X70: 0 | Y70: =SUM(E70:X70) -> 0 | AB70: 2 | AC70: 0 | AD70: 0 | AE70: 0 | AF70: 0 | AG70: 0 | AH70: 0 | AI70: 0 | AJ70: 0 | AK70: 0 | AL70: 0 | AM70: 0 | AN70: 0 | AO70: 0 | AP70: 0 | AQ70: 0 | AR70: 0 | AS70: 0 | AT70: 0 | AU70: 0 | AV70: 0 | AW70: 0 | BC70: 2 | BD70: 0 | BE70: 0 | BF70: =BF57 * ( (BF$11*BF$5) + BF$9) -> 0 | BG70: 0 | BH70: 0 | BI70: 0 | BJ70: 0 | BK70: 0 | BL70: 0 | BM70: =BM57 * ( (BM$11*BM$5) + BM$9) -> 0 | BN70: 0 | BO70: 0 | BP70: 0 | BQ70: 0 | BR70: 0 | BS70: 0 | BT70: 0 | BU70: 0 | BV70: 0 | BW70: 0 | BX70: =SUM(BD70:BW70) -> 0 | CA70: 2 | CB70: 0 | CC70: 0 | CD70: 0 | CE70: 0 | CF70: 0 | CG70: 0 | CH70: 0 | CI70: 0 | CJ70: 0 | CK70: 0 | CL70: 0 | CM70: 0 | CN70: 0 | CO70: 0 | CP70: 0 | CQ70: 0 | CR70: 0 | CS70: 0 | CT70: 0 | CU70: 0 | CV70: =SUM(CB70:CU70) -> 0
D71: 3 | E71: 0 | F71: =F58 * ( (F$11*F$5) + F$9) -> 0 | G71: 0 | H71: 0 | I71: 0 | J71: 0 | K71: 0 | L71: 0 | M71: 0 | N71: =N58 * ( (N$11*N$5) + N$9) -> 0 | O71: 0 | P71: 0 | Q71: 0 | R71: 0 | S71: 0 | T71: 0 | U71: 0 | V71: 0 | W71: 0 | X71: 0 | Y71: 0 | AB71: 3 | AC71: 0 | AD71: 0 | AE71: 0 | AF71: 0 | AG71: 0 | AH71: 0 | AI71: 0 | AJ71: 0 | AK71: 0 | AL71: 0 | AM71: 0 | AN71: 0 | AO71: 0 | AP71: 0 | AQ71: 0 | AR71: 0 | AS71: 0 | AT71: 0 | AU71: 0 | AV71: 0 | AW71: 0 | BC71: 3 | BD71: 0 | BE71: 0 | BF71: =BF58 * ( (BF$11*BF$5) + BF$9) -> 0 | BG71: 0 | BH71: 0 | BI71: 0 | BJ71: 0 | BK71: 0 | BL71: 0 | BM71: =BM58 * ( (BM$11*BM$5) + BM$9) -> 0 | BN71: 0 | BO71: 0 | BP71: 0 | BQ71: 0 | BR71: 0 | BS71: 0 | BT71: 0 | BU71: 0 | BV71: 0 | BW71: 0 | BX71: 0 | CA71: 3 | CB71: 0 | CC71: 0 | CD71: 0 | CE71: 0 | CF71: 0 | CG71: 0 | CH71: 0 | CI71: 0 | CJ71: 0 | CK71: 0 | CL71: 0 | CM71: 0 | CN71: 0 | CO71: 0 | CP71: 0 | CQ71: 0 | CR71: 0 | CS71: 0 | CT71: 0 | CU71: 0 | CV71: 0
D72: 4 | E72: 0 | F72: =F59 * ( (F$11*F$5) + F$9) -> 0 | G72: 0 | H72: 0 | I72: 0 | J72: 0 | K72: 0 | L72: 0 | M72: 0 | N72: =N59 * ( (N$11*N$5) + N$9) -> 0 | O72: 0 | P72: 0 | Q72: 0 | R72: 0 | S72: 0 | T72: 0 | U72: 0 | V72: 0 | W72: 0 | X72: 0 | Y72: 0 | AB72: 4 | AC72: 0 | AD72: 0 | AE72: 0 | AF72: 0 | AG72: 0 | AH72: 0 | AI72: 0 | AJ72: 0 | AK72: 0 | AL72: 0 | AM72: 0 | AN72: 0 | AO72: 0 | AP72: 0 | AQ72: 0 | AR72: 0 | AS72: 0 | AT72: 0 | AU72: 0 | AV72: 0 | AW72: 0 | BC72: 4 | BD72: 0 | BE72: 0 | BF72: =BF59 * ( (BF$11*BF$5) + BF$9) -> 0 | BG72: 0 | BH72: 0 | BI72: 0 | BJ72: 0 | BK72: 0 | BL72: 0 | BM72: =BM59 * ( (BM$11*BM$5) + BM$9) -> 0 | BN72: 0 | BO72: 0 | BP72: 0 | BQ72: 0 | BR72: 0 | BS72: 0 | BT72: 0 | BU72: 0 | BV72: 0 | BW72: 0 | BX72: 0 | CA72: 4 | CB72: 0 | CC72: 0 | CD72: 0 | CE72: 0 | CF72: 0 | CG72: 0 | CH72: 0 | CI72: 0 | CJ72: 0 | CK72: 0 | CL72: 0 | CM72: 0 | CN72: 0 | CO72: 0 | CP72: 0 | CQ72: 0 | CR72: 0 | CS72: 0 | CT72: 0 | CU72: 0 | CV72: 0
D73: 5 | E73: 0 | F73: =F60 * ( (F$11*F$5) + F$9) -> 0 | G73: 0 | H73: 0 | I73: 0 | J73: 0 | K73: 0 | L73: 0 | M73: 0 | N73: =N60 * ( (N$11*N$5) + N$9) -> 0 | O73: 0 | P73: 0 | Q73: 0 | R73: 0 | S73: 0 | T73: 0 | U73: 0 | V73: 0 | W73: 0 | X73: 0 | Y73: 0 | AB73: 5 | AC73: 0 | AD73: 0 | AE73: 0 | AF73: 0 | AG73: 0 | AH73: 0 | AI73: 0 | AJ73: 0 | AK73: 0 | AL73: 0 | AM73: 0 | AN73: 0 | AO73: 0 | AP73: 0 | AQ73: 0 | AR73: 0 | AS73: 0 | AT73: 0 | AU73: 0 | AV73: 0 | AW73: 0 | BC73: 5 | BD73: 0 | BE73: 0 | BF73: =BF60 * ( (BF$11*BF$5) + BF$9) -> 0 | BG73: 0 | BH73: 0 | BI73: 0 | BJ73: 0 | BK73: 0 | BL73: 0 | BM73: =BM60 * ( (BM$11*BM$5) + BM$9) -> 0 | BN73: 0 | BO73: 0 | BP73: 0 | BQ73: 0 | BR73: 0 | BS73: 0 | BT73: 0 | BU73: 0 | BV73: 0 | BW73: 0 | BX73: 0 | CA73: 5 | CB73: 0 | CC73: 0 | CD73: 0 | CE73: 0 | CF73: 0 | CG73: 0 | CH73: 0 | CI73: 0 | CJ73: 0 | CK73: 0 | CL73: 0 | CM73: 0 | CN73: 0 | CO73: 0 | CP73: 0 | CQ73: 0 | CR73: 0 | CS73: 0 | CT73: 0 | CU73: 0 | CV73: 0
D74: 6 | E74: 0 | F74: =F61 * ( (F$11*F$5) + F$9) -> 0 | G74: 0 | H74: 0 | I74: 0 | J74: 0 | K74: 0 | L74: 0 | M74: 0 | N74: =N61 * ( (N$11*N$5) + N$9) -> 0 | O74: 0 | P74: 0 | Q74: 0 | R74: 0 | S74: 0 | T74: 0 | U74: 0 | V74: 0 | W74: 0 | X74: 0 | Y74: 0 | AB74: 6 | AC74: 0 | AD74: 0 | AE74: 0 | AF74: 0 | AG74: 0 | AH74: 0 | AI74: 0 | AJ74: 0 | AK74: 0 | AL74: 0 | AM74: 0 | AN74: 0 | AO74: 0 | AP74: 0 | AQ74: 0 | AR74: 0 | AS74: 0 | AT74: 0 | AU74: 0 | AV74: 0 | AW74: 0 | BC74: 6 | BD74: 0 | BE74: 0 | BF74: =BF61 * ( (BF$11*BF$5) + BF$9) -> 0 | BG74: 0 | BH74: 0 | BI74: 0 | BJ74: 0 | BK74: 0 | BL74: 0 | BM74: =BM61 * ( (BM$11*BM$5) + BM$9) -> 0 | BN74: 0 | BO74: 0 | BP74: 0 | BQ74: 0 | BR74: 0 | BS74: 0 | BT74: 0 | BU74: 0 | BV74: 0 | BW74: 0 | BX74: 0 | CA74: 6 | CB74: 0 | CC74: 0 | CD74: 0 | CE74: 0 | CF74: 0 | CG74: 0 | CH74: 0 | CI74: 0 | CJ74: 0 | CK74: 0 | CL74: 0 | CM74: 0 | CN74: 0 | CO74: 0 | CP74: 0 | CQ74: 0 | CR74: 0 | CS74: 0 | CT74: 0 | CU74: 0 | CV74: 0
D75: 7 | E75: 0 | F75: =F62 * ( (F$11*F$5) + F$9) -> 0 | G75: 0 | H75: 0 | I75: 0 | J75: 0 | K75: 0 | L75: 0 | M75: 0 | N75: =N62 * ( (N$11*N$5) + N$9) -> 0 | O75: 0 | P75: 0 | Q75: 0 | R75: 0 | S75: 0 | T75: 0 | U75: 0 | V75: 0 | W75: 0 | X75: 0 | Y75: 0 | AB75: 7 | AC75: 0 | AD75: 0 | AE75: 0 | AF75: 0 | AG75: 0 | AH75: 0 | AI75: 0 | AJ75: 0 | AK75: 0 | AL75: 0 | AM75: 0 | AN75: 0 | AO75: 0 | AP75: 0 | AQ75: 0 | AR75: 0 | AS75: 0 | AT75: 0 | AU75: 0 | AV75: 0 | AW75: 0 | BC75: 7 | BD75: 0 | BE75: 0 | BF75: =BF62 * ( (BF$11*BF$5) + BF$9) -> 0 | BG75: 0 | BH75: 0 | BI75: 0 | BJ75: 0 | BK75: 0 | BL75: 0 | BM75: =BM62 * ( (BM$11*BM$5) + BM$9) -> 0 | BN75: 0 | BO75: 0 | BP75: 0 | BQ75: 0 | BR75: 0 | BS75: 0 | BT75: 0 | BU75: 0 | BV75: 0 | BW75: 0 | BX75: 0 | CA75: 7 | CB75: 0 | CC75: 0 | CD75: 0 | CE75: 0 | CF75: 0 | CG75: 0 | CH75: 0 | CI75: 0 | CJ75: 0 | CK75: 0 | CL75: 0 | CM75: 0 | CN75: 0 | CO75: 0 | CP75: 0 | CQ75: 0 | CR75: 0 | CS75: 0 | CT75: 0 | CU75: 0 | CV75: 0
D76: 8 | E76: 0 | F76: =F63 * ( (F$11*F$5) + F$9) -> 0 | G76: 0 | H76: 0 | I76: 0 | J76: 0 | K76: 0 | L76: 0 | M76: 0 | N76: =N63 * ( (N$11*N$5) + N$9) -> 0 | O76: 0 | P76: 0 | Q76: 0 | R76: 0 | S76: 0 | T76: 0 | U76: 0 | V76: 0 | W76: 0 | X76: 0 | Y76: 0 | AB76: 8 | AC76: 0 | AD76: 0 | AE76: 0 | AF76: 0 | AG76: 0 | AH76: 0 | AI76: 0 | AJ76: 0 | AK76: 0 | AL76: 0 | AM76: 0 | AN76: 0 | AO76: 0 | AP76: 0 | AQ76: 0 | AR76: 0 | AS76: 0 | AT76: 0 | AU76: 0 | AV76: 0 | AW76: 0 | BC76: 8 | BD76: 0 | BE76: 0 | BF76: =BF63 * ( (BF$11*BF$5) + BF$9) -> 0 | BG76: 0 | BH76: 0 | BI76: 0 | BJ76: 0 | BK76: 0 | BL76: 0 | BM76: =BM63 * ( (BM$11*BM$5) + BM$9) -> 0 | BN76: 0 | BO76: 0 | BP76: 0 | BQ76: 0 | BR76: 0 | BS76: 0 | BT76: 0 | BU76: 0 | BV76: 0 | BW76: 0 | BX76: 0 | CA76: 8 | CB76: 0 | CC76: 0 | CD76: 0 | CE76: 0 | CF76: 0 | CG76: 0 | CH76: 0 | CI76: 0 | CJ76: 0 | CK76: 0 | CL76: 0 | CM76: 0 | CN76: 0 | CO76: 0 | CP76: 0 | CQ76: 0 | CR76: 0 | CS76: 0 | CT76: 0 | CU76: 0 | CV76: 0
D77: 9 | E77: 0 | F77: =F64 * ( (F$11*F$5) + F$9) -> 0 | G77: 0 | H77: 0 | I77: 0 | J77: 0 | K77: 0 | L77: 0 | M77: 0 | N77: =N64 * ( (N$11*N$5) + N$9) -> 0 | O77: 0 | P77: 0 | Q77: 0 | R77: 0 | S77: 0 | T77: 0 | U77: 0 | V77: 0 | W77: 0 | X77: 0 | Y77: 0 | AB77: 9 | AC77: 0 | AD77: 0 | AE77: 0 | AF77: 0 | AG77: 0 | AH77: 0 | AI77: 0 | AJ77: 0 | AK77: 0 | AL77: 0 | AM77: 0 | AN77: 0 | AO77: 0 | AP77: 0 | AQ77: 0 | AR77: 0 | AS77: 0 | AT77: 0 | AU77: 0 | AV77: 0 | AW77: 0 | BC77: 9 | BD77: 0 | BE77: 0 | BF77: =BF64 * ( (BF$11*BF$5) + BF$9) -> 0 | BG77: 0 | BH77: 0 | BI77: 0 | BJ77: 0 | BK77: 0 | BL77: 0 | BM77: =BM64 * ( (BM$11*BM$5) + BM$9) -> 0 | BN77: 0 | BO77: 0 | BP77: 0 | BQ77: 0 | BR77: 0 | BS77: 0 | BT77: 0 | BU77: 0 | BV77: 0 | BW77: 0 | BX77: 0 | CA77: 9 | CB77: 0 | CC77: 0 | CD77: 0 | CE77: 0 | CF77: 0 | CG77: 0 | CH77: 0 | CI77: 0 | CJ77: 0 | CK77: 0 | CL77: 0 | CM77: 0 | CN77: 0 | CO77: 0 | CP77: 0 | CQ77: 0 | CR77: 0 | CS77: 0 | CT77: 0 | CU77: 0 | CV77: 0
D78: 10 | E78: 0 | F78: =F65 * ( (F$11*F$5) + F$9) -> 0 | G78: 0 | H78: 0 | I78: 0 | J78: 0 | K78: 0 | L78: 0 | M78: 0 | N78: =N65 * ( (N$11*N$5) + N$9) -> 0 | O78: 0 | P78: 0 | Q78: 0 | R78: 0 | S78: 0 | T78: 0 | U78: 0 | V78: 0 | W78: 0 | X78: 0 | Y78: 0 | AB78: 10 | AC78: 0 | AD78: 0 | AE78: 0 | AF78: 0 | AG78: 0 | AH78: 0 | AI78: 0 | AJ78: 0 | AK78: 0 | AL78: 0 | AM78: 0 | AN78: 0 | AO78: 0 | AP78: 0 | AQ78: 0 | AR78: 0 | AS78: 0 | AT78: 0 | AU78: 0 | AV78: 0 | AW78: 0 | BC78: 10 | BD78: 0 | BE78: 0 | BF78: =BF65 * ( (BF$11*BF$5) + BF$9) -> 0 | BG78: 0 | BH78: 0 | BI78: 0 | BJ78: 0 | BK78: 0 | BL78: 0 | BM78: =BM65 * ( (BM$11*BM$5) + BM$9) -> 0 | BN78: 0 | BO78: 0 | BP78: 0 | BQ78: 0 | BR78: 0 | BS78: 0 | BT78: 0 | BU78: 0 | BV78: 0 | BW78: 0 | BX78: 0 | CA78: 10 | CB78: 0 | CC78: 0 | CD78: 0 | CE78: 0 | CF78: 0 | CG78: 0 | CH78: 0 | CI78: 0 | CJ78: 0 | CK78: 0 | CL78: 0 | CM78: 0 | CN78: 0 | CO78: 0 | CP78: 0 | CQ78: 0 | CR78: 0 | CS78: 0 | CT78: 0 | CU78: 0 | CV78: 0
C80: LED + Driver Maintenance | D80: COST OF RELAMPING PER YEAR | AA80: LED + Driver Maintenance | AB80: COST OF RELAMPING PER YEAR | BB80: Lamp + Ballast Maintenance | BC80: COST OF RELAMPING PER YEAR | BZ80: Lamp + Ballast Maintenance | CA80: COST OF RELAMPING PER YEAR
D81: ↓Year | E81: 1 | F81: 2 | G81: 3 | H81: 4 | I81: 5 | J81: 6 | K81: 7 | L81: 8 | M81: 9 | N81: 10 | O81: 11 | P81: 12 | Q81: 13 | R81: 14 | S81: 15 | T81: 16 | U81: 17 | V81: 18 | W81: 19 | X81: 20 | Y81: Total | AB81: ↓Year | AC81: 1 | AD81: 2 | AE81: 3 | AF81: 4 | AG81: 5 | AH81: 6 | AI81: 7 | AJ81: 8 | AK81: 9 | AL81: 10 | AM81: 11 | AN81: 12 | AO81: 13 | AP81: 14 | AQ81: 15 | AR81: 16 | AS81: 17 | AT81: 18 | AU81: 19 | AV81: 20 | AW81: Total | BC81: ↓Year | BD81: 1 | BE81: 2 | BF81: 3 | BG81: 4 | BH81: 5 | BI81: 6 | BJ81: 7 | BK81: 8 | BL81: 9 | BM81: 10 | BN81: 11 | BO81: 12 | BP81: 13 | BQ81: 14 | BR81: 15 | BS81: 16 | BT81: 17 | BU81: 18 | BV81: 19 | BW81: 20 | BX81: Total | CA81: ↓Year | CB81: 1 | CC81: 2 | CD81: 3 | CE81: 4 | CF81: 5 | CG81: 6 | CH81: 7 | CI81: 8 | CJ81: 9 | CK81: 10 | CL81: 11 | CM81: 12 | CN81: 13 | CO81: 14 | CP81: 15 | CQ81: 16 | CR81: 17 | CS81: 18 | CT81: 19 | CU81: 20 | CV81: Total
D82: 1 | E82: =E69+E42 -> 0 | F82: =F69+F42 -> 0 | G82: 0 | H82: 0 | I82: 0 | J82: 0 | K82: 0 | L82: 0 | M82: 0 | N82: =N69+N42 -> 0 | O82: 0 | P82: 0 | Q82: 0 | R82: 0 | S82: 0 | T82: 0 | U82: 0 | V82: 0 | W82: 0 | X82: 0 | Y82: =Y69+Y42 -> 0 | AB82: 1 | AC82: =AC69+AC42 -> 0 | AD82: =AD69+AD42 -> 0 | AE82: 0 | AF82: 0 | AG82: 0 | AH82: 0 | AI82: 0 | AJ82: 0 | AK82: 0 | AL82: =AL69+AL42 -> 0 | AM82: 0 | AN82: 0 | AO82: 0 | AP82: 0 | AQ82: 0 | AR82: 0 | AS82: 0 | AT82: 0 | AU82: 0 | AV82: 0 | AW82: =AW69+AW42 -> 0 | BC82: 1 | BD82: =BD69+BD42 -> 0 | BE82: 0 | BF82: =BF69+BF42 -> 0 | BG82: 0 | BH82: 0 | BI82: 0 | BJ82: 0 | BK82: 0 | BL82: 0 | BM82: =BM69+BM42 -> 0 | BN82: 0 | BO82: 0 | BP82: 0 | BQ82: 0 | BR82: 0 | BS82: 0 | BT82: 0 | BU82: 0 | BV82: 0 | BW82: 0 | BX82: =BX69+BX42 -> 0 | CA82: 1 | CB82: =CB69+CB42 -> 0 | CC82: 0 | CD82: =CD69+CD42 -> 0 | CE82: 0 | CF82: 0 | CG82: 0 | CH82: 0 | CI82: 0 | CJ82: 0 | CK82: =CK69+CK42 -> 0 | CL82: 0 | CM82: 0 | CN82: 0 | CO82: 0 | CP82: 0 | CQ82: 0 | CR82: 0 | CS82: 0 | CT82: 0 | CU82: 0 | CV82: =CV69+CV42 -> 0
D83: 2 | E83: 0 | F83: =F70+F43 -> 0 | G83: 0 | H83: 0 | I83: 0 | J83: 0 | K83: 0 | L83: 0 | M83: 0 | N83: =N70+N43 -> 0 | O83: 0 | P83: 0 | Q83: 0 | R83: 0 | S83: 0 | T83: 0 | U83: 0 | V83: 0 | W83: 0 | X83: 0 | Y83: 0 | AB83: 2 | AC83: 0 | AD83: =AD70+AD43 -> 0 | AE83: 0 | AF83: 0 | AG83: 0 | AH83: 0 | AI83: 0 | AJ83: 0 | AK83: 0 | AL83: =AL70+AL43 -> 0 | AM83: 0 | AN83: 0 | AO83: 0 | AP83: 0 | AQ83: 0 | AR83: 0 | AS83: 0 | AT83: 0 | AU83: 0 | AV83: 0 | AW83: 0 | BC83: 2 | BD83: 0 | BE83: 0 | BF83: =BF70+BF43 -> 0 | BG83: 0 | BH83: 0 | BI83: 0 | BJ83: 0 | BK83: 0 | BL83: 0 | BM83: =BM70+BM43 -> 0 | BN83: 0 | BO83: 0 | BP83: 0 | BQ83: 0 | BR83: 0 | BS83: 0 | BT83: 0 | BU83: 0 | BV83: 0 | BW83: 0 | BX83: 0 | CA83: 2 | CB83: 0 | CC83: 0 | CD83: =CD70+CD43 -> 0 | CE83: 0 | CF83: 0 | CG83: 0 | CH83: 0 | CI83: 0 | CJ83: 0 | CK83: =CK70+CK43 -> 0 | CL83: 0 | CM83: 0 | CN83: 0 | CO83: 0 | CP83: 0 | CQ83: 0 | CR83: 0 | CS83: 0 | CT83: 0 | CU83: 0 | CV83: 0
D84: 3 | E84: 0 | F84: =F71+F44 -> 0 | G84: 0 | H84: 0 | I84: 0 | J84: 0 | K84: 0 | L84: 0 | M84: 0 | N84: =N71+N44 -> 0 | O84: 0 | P84: 0 | Q84: 0 | R84: 0 | S84: 0 | T84: 0 | U84: 0 | V84: 0 | W84: 0 | X84: 0 | Y84: 0 | AB84: 3 | AC84: 0 | AD84: =AD71+AD44 -> 0 | AE84: 0 | AF84: 0 | AG84: 0 | AH84: 0 | AI84: 0 | AJ84: 0 | AK84: 0 | AL84: =AL71+AL44 -> 0 | AM84: 0 | AN84: 0 | AO84: 0 | AP84: 0 | AQ84: 0 | AR84: 0 | AS84: 0 | AT84: 0 | AU84: 0 | AV84: 0 | AW84: 0 | BC84: 3 | BD84: 0 | BE84: 0 | BF84: =BF71+BF44 -> 0 | BG84: 0 | BH84: 0 | BI84: 0 | BJ84: 0 | BK84: 0 | BL84: 0 | BM84: =BM71+BM44 -> 0 | BN84: 0 | BO84: 0 | BP84: 0 | BQ84: 0 | BR84: 0 | BS84: 0 | BT84: 0 | BU84: 0 | BV84: 0 | BW84: 0 | BX84: 0 | CA84: 3 | CB84: 0 | CC84: 0 | CD84: =CD71+CD44 -> 0 | CE84: 0 | CF84: 0 | CG84: 0 | CH84: 0 | CI84: 0 | CJ84: 0 | CK84: =CK71+CK44 -> 0 | CL84: 0 | CM84: 0 | CN84: 0 | CO84: 0 | CP84: 0 | CQ84: 0 | CR84: 0 | CS84: 0 | CT84: 0 | CU84: 0 | CV84: 0
D85: 4 | E85: 0 | F85: =F72+F45 -> 0 | G85: 0 | H85: 0 | I85: 0 | J85: 0 | K85: 0 | L85: 0 | M85: 0 | N85: =N72+N45 -> 0 | O85: 0 | P85: 0 | Q85: 0 | R85: 0 | S85: 0 | T85: 0 | U85: 0 | V85: 0 | W85: 0 | X85: 0 | Y85: 0 | AB85: 4 | AC85: 0 | AD85: =AD72+AD45 -> 0 | AE85: 0 | AF85: 0 | AG85: 0 | AH85: 0 | AI85: 0 | AJ85: 0 | AK85: 0 | AL85: =AL72+AL45 -> 0 | AM85: 0 | AN85: 0 | AO85: 0 | AP85: 0 | AQ85: 0 | AR85: 0 | AS85: 0 | AT85: 0 | AU85: 0 | AV85: 0 | AW85: 0 | BC85: 4 | BD85: 0 | BE85: 0 | BF85: =BF72+BF45 -> 0 | BG85: 0 | BH85: 0 | BI85: 0 | BJ85: 0 | BK85: 0 | BL85: 0 | BM85: =BM72+BM45 -> 0 | BN85: 0 | BO85: 0 | BP85: 0 | BQ85: 0 | BR85: 0 | BS85: 0 | BT85: 0 | BU85: 0 | BV85: 0 | BW85: 0 | BX85: 0 | CA85: 4 | CB85: 0 | CC85: 0 | CD85: =CD72+CD45 -> 0 | CE85: 0 | CF85: 0 | CG85: 0 | CH85: 0 | CI85: 0 | CJ85: 0 | CK85: =CK72+CK45 -> 0 | CL85: 0 | CM85: 0 | CN85: 0 | CO85: 0 | CP85: 0 | CQ85: 0 | CR85: 0 | CS85: 0 | CT85: 0 | CU85: 0 | CV85: 0
D86: 5 | E86: 0 | F86: =F73+F46 -> 0 | G86: 0 | H86: 0 | I86: 0 | J86: 0 | K86: 0 | L86: 0 | M86: 0 | N86: =N73+N46 -> 0 | O86: 0 | P86: 0 | Q86: 0 | R86: 0 | S86: 0 | T86: 0 | U86: 0 | V86: 0 | W86: 0 | X86: 0 | Y86: 0 | AB86: 5 | AC86: 0 | AD86: =AD73+AD46 -> 0 | AE86: 0 | AF86: 0 | AG86: 0 | AH86: 0 | AI86: 0 | AJ86: 0 | AK86: 0 | AL86: =AL73+AL46 -> 0 | AM86: 0 | AN86: 0 | AO86: 0 | AP86: 0 | AQ86: 0 | AR86: 0 | AS86: 0 | AT86: 0 | AU86: 0 | AV86: 0 | AW86: 0 | BC86: 5 | BD86: 0 | BE86: 0 | BF86: =BF73+BF46 -> 0 | BG86: 0 | BH86: 0 | BI86: 0 | BJ86: 0 | BK86: 0 | BL86: 0 | BM86: =BM73+BM46 -> 0 | BN86: 0 | BO86: 0 | BP86: 0 | BQ86: 0 | BR86: 0 | BS86: 0 | BT86: 0 | BU86: 0 | BV86: 0 | BW86: 0 | BX86: 0 | CA86: 5 | CB86: 0 | CC86: 0 | CD86: =CD73+CD46 -> 0 | CE86: 0 | CF86: 0 | CG86: 0 | CH86: 0 | CI86: 0 | CJ86: 0 | CK86: =CK73+CK46 -> 0 | CL86: 0 | CM86: 0 | CN86: 0 | CO86: 0 | CP86: 0 | CQ86: 0 | CR86: 0 | CS86: 0 | CT86: 0 | CU86: 0 | CV86: 0
D87: 6 | E87: 0 | F87: =F74+F47 -> 0 | G87: 0 | H87: 0 | I87: 0 | J87: 0 | K87: 0 | L87: 0 | M87: 0 | N87: =N74+N47 -> 0 | O87: 0 | P87: 0 | Q87: 0 | R87: 0 | S87: 0 | T87: 0 | U87: 0 | V87: 0 | W87: 0 | X87: 0 | Y87: 0 | AB87: 6 | AC87: 0 | AD87: =AD74+AD47 -> 0 | AE87: 0 | AF87: 0 | AG87: 0 | AH87: 0 | AI87: 0 | AJ87: 0 | AK87: 0 | AL87: =AL74+AL47 -> 0 | AM87: 0 | AN87: 0 | AO87: 0 | AP87: 0 | AQ87: 0 | AR87: 0 | AS87: 0 | AT87: 0 | AU87: 0 | AV87: 0 | AW87: 0 | BC87: 6 | BD87: 0 | BE87: 0 | BF87: =BF74+BF47 -> 0 | BG87: 0 | BH87: 0 | BI87: 0 | BJ87: 0 | BK87: 0 | BL87: 0 | BM87: =BM74+BM47 -> 0 | BN87: 0 | BO87: 0 | BP87: 0 | BQ87: 0 | BR87: 0 | BS87: 0 | BT87: 0 | BU87: 0 | BV87: 0 | BW87: 0 | BX87: 0 | CA87: 6 | CB87: 0 | CC87: 0 | CD87: =CD74+CD47 -> 0 | CE87: 0 | CF87: 0 | CG87: 0 | CH87: 0 | CI87: 0 | CJ87: 0 | CK87: =CK74+CK47 -> 0 | CL87: 0 | CM87: 0 | CN87: 0 | CO87: 0 | CP87: 0 | CQ87: 0 | CR87: 0 | CS87: 0 | CT87: 0 | CU87: 0 | CV87: 0
D88: 7 | E88: 0 | F88: =F75+F48 -> 0 | G88: 0 | H88: 0 | I88: 0 | J88: 0 | K88: 0 | L88: 0 | M88: 0 | N88: =N75+N48 -> 0 | O88: 0 | P88: 0 | Q88: 0 | R88: 0 | S88: 0 | T88: 0 | U88: 0 | V88: 0 | W88: 0 | X88: 0 | Y88: 0 | AB88: 7 | AC88: 0 | AD88: =AD75+AD48 -> 0 | AE88: 0 | AF88: 0 | AG88: 0 | AH88: 0 | AI88: 0 | AJ88: 0 | AK88: 0 | AL88: =AL75+AL48 -> 0 | AM88: 0 | AN88: 0 | AO88: 0 | AP88: 0 | AQ88: 0 | AR88: 0 | AS88: 0 | AT88: 0 | AU88: 0 | AV88: 0 | AW88: 0 | BC88: 7 | BD88: 0 | BE88: 0 | BF88: =BF75+BF48 -> 0 | BG88: 0 | BH88: 0 | BI88: 0 | BJ88: 0 | BK88: 0 | BL88: 0 | BM88: =BM75+BM48 -> 0 | BN88: 0 | BO88: 0 | BP88: 0 | BQ88: 0 | BR88: 0 | BS88: 0 | BT88: 0 | BU88: 0 | BV88: 0 | BW88: 0 | BX88: 0 | CA88: 7 | CB88: 0 | CC88: 0 | CD88: =CD75+CD48 -> 0 | CE88: 0 | CF88: 0 | CG88: 0 | CH88: 0 | CI88: 0 | CJ88: 0 | CK88: =CK75+CK48 -> 0 | CL88: 0 | CM88: 0 | CN88: 0 | CO88: 0 | CP88: 0 | CQ88: 0 | CR88: 0 | CS88: 0 | CT88: 0 | CU88: 0 | CV88: 0
D89: 8 | E89: 0 | F89: =F76+F49 -> 0 | G89: 0 | H89: 0 | I89: 0 | J89: 0 | K89: 0 | L89: 0 | M89: 0 | N89: =N76+N49 -> 0 | O89: 0 | P89: 0 | Q89: 0 | R89: 0 | S89: 0 | T89: 0 | U89: 0 | V89: 0 | W89: 0 | X89: 0 | Y89: 0 | AB89: 8 | AC89: 0 | AD89: =AD76+AD49 -> 0 | AE89: 0 | AF89: 0 | AG89: 0 | AH89: 0 | AI89: 0 | AJ89: 0 | AK89: 0 | AL89: =AL76+AL49 -> 0 | AM89: 0 | AN89: 0 | AO89: 0 | AP89: 0 | AQ89: 0 | AR89: 0 | AS89: 0 | AT89: 0 | AU89: 0 | AV89: 0 | AW89: 0 | BC89: 8 | BD89: 0 | BE89: 0 | BF89: =BF76+BF49 -> 0 | BG89: 0 | BH89: 0 | BI89: 0 | BJ89: 0 | BK89: 0 | BL89: 0 | BM89: =BM76+BM49 -> 0 | BN89: 0 | BO89: 0 | BP89: 0 | BQ89: 0 | BR89: 0 | BS89: 0 | BT89: 0 | BU89: 0 | BV89: 0 | BW89: 0 | BX89: 0 | CA89: 8 | CB89: 0 | CC89: 0 | CD89: =CD76+CD49 -> 0 | CE89: 0 | CF89: 0 | CG89: 0 | CH89: 0 | CI89: 0 | CJ89: 0 | CK89: =CK76+CK49 -> 0 | CL89: 0 | CM89: 0 | CN89: 0 | CO89: 0 | CP89: 0 | CQ89: 0 | CR89: 0 | CS89: 0 | CT89: 0 | CU89: 0 | CV89: 0
D90: 9 | E90: 0 | F90: =F77+F50 -> 0 | G90: 0 | H90: 0 | I90: 0 | J90: 0 | K90: 0 | L90: 0 | M90: 0 | N90: =N77+N50 -> 0 | O90: 0 | P90: 0 | Q90: 0 | R90: 0 | S90: 0 | T90: 0 | U90: 0 | V90: 0 | W90: 0 | X90: 0 | Y90: 0 | AB90: 9 | AC90: 0 | AD90: =AD77+AD50 -> 0 | AE90: 0 | AF90: 0 | AG90: 0 | AH90: 0 | AI90: 0 | AJ90: 0 | AK90: 0 | AL90: =AL77+AL50 -> 0 | AM90: 0 | AN90: 0 | AO90: 0 | AP90: 0 | AQ90: 0 | AR90: 0 | AS90: 0 | AT90: 0 | AU90: 0 | AV90: 0 | AW90: 0 | BC90: 9 | BD90: 0 | BE90: 0 | BF90: =BF77+BF50 -> 0 | BG90: 0 | BH90: 0 | BI90: 0 | BJ90: 0 | BK90: 0 | BL90: 0 | BM90: =BM77+BM50 -> 0 | BN90: 0 | BO90: 0 | BP90: 0 | BQ90: 0 | BR90: 0 | BS90: 0 | BT90: 0 | BU90: 0 | BV90: 0 | BW90: 0 | BX90: 0 | CA90: 9 | CB90: 0 | CC90: 0 | CD90: =CD77+CD50 -> 0 | CE90: 0 | CF90: 0 | CG90: 0 | CH90: 0 | CI90: 0 | CJ90: 0 | CK90: =CK77+CK50 -> 0 | CL90: 0 | CM90: 0 | CN90: 0 | CO90: 0 | CP90: 0 | CQ90: 0 | CR90: 0 | CS90: 0 | CT90: 0 | CU90: 0 | CV90: 0
D91: 10 | E91: 0 | F91: =F78+F51 -> 0 | G91: 0 | H91: 0 | I91: 0 | J91: 0 | K91: 0 | L91: 0 | M91: 0 | N91: =N78+N51 -> 0 | O91: 0 | P91: 0 | Q91: 0 | R91: 0 | S91: 0 | T91: 0 | U91: 0 | V91: 0 | W91: 0 | X91: 0 | Y91: 0 | AB91: 10 | AC91: 0 | AD91: =AD78+AD51 -> 0 | AE91: 0 | AF91: 0 | AG91: 0 | AH91: 0 | AI91: 0 | AJ91: 0 | AK91: 0 | AL91: =AL78+AL51 -> 0 | AM91: 0 | AN91: 0 | AO91: 0 | AP91: 0 | AQ91: 0 | AR91: 0 | AS91: 0 | AT91: 0 | AU91: 0 | AV91: 0 | AW91: 0 | BC91: 10 | BD91: 0 | BE91: 0 | BF91: =BF78+BF51 -> 0 | BG91: 0 | BH91: 0 | BI91: 0 | BJ91: 0 | BK91: 0 | BL91: 0 | BM91: =BM78+BM51 -> 0 | BN91: 0 | BO91: 0 | BP91: 0 | BQ91: 0 | BR91: 0 | BS91: 0 | BT91: 0 | BU91: 0 | BV91: 0 | BW91: 0 | BX91: 0 | CA91: 10 | CB91: 0 | CC91: 0 | CD91: =CD78+CD51 -> 0 | CE91: 0 | CF91: 0 | CG91: 0 | CH91: 0 | CI91: 0 | CJ91: 0 | CK91: =CK78+CK51 -> 0 | CL91: 0 | CM91: 0 | CN91: 0 | CO91: 0 | CP91: 0 | CQ91: 0 | CR91: 0 | CS91: 0 | CT91: 0 | CU91: 0 | CV91: 0
D92: Total | E92: =SUM(E82:E91) -> 0 | F92: =SUM(F82:F91) -> 0 | G92: 0 | H92: 0 | I92: 0 | J92: 0 | K92: 0 | L92: 0 | M92: 0 | N92: =SUM(N82:N91) -> 0 | O92: 0 | P92: 0 | Q92: 0 | R92: 0 | S92: 0 | T92: 0 | U92: 0 | V92: 0 | W92: 0 | X92: 0 | Y92: =SUM(Y82:Y91) -> 0 | AB92: Total | AC92: =SUM(AC82:AC91) -> 0 | AD92: =SUM(AD82:AD91) -> 0 | AE92: 0 | AF92: 0 | AG92: 0 | AH92: 0 | AI92: 0 | AJ92: 0 | AK92: 0 | AL92: =SUM(AL82:AL91) -> 0 | AM92: 0 | AN92: 0 | AO92: 0 | AP92: 0 | AQ92: 0 | AR92: 0 | AS92: 0 | AT92: 0 | AU92: 0 | AV92: 0 | AW92: =SUM(AW82:AW91) -> 0 | BC92: Total | BD92: =SUM(BD82:BD91) -> 0 | BE92: =SUM(BE82:BE91) -> 0 | BF92: =SUM(BF82:BF91) -> 0 | BG92: 0 | BH92: 0 | BI92: 0 | BJ92: 0 | BK92: 0 | BL92: 0 | BM92: =SUM(BM82:BM91) -> 0 | BN92: 0 | BO92: 0 | BP92: 0 | BQ92: 0 | BR92: 0 | BS92: 0 | BT92: 0 | BU92: 0 | BV92: 0 | BW92: 0 | BX92: =SUM(BX82:BX91) -> 0 | CA92: Total | CB92: =SUM(CB82:CB91) -> 0 | CC92: =SUM(CC82:CC91) -> 0 | CD92: =SUM(CD82:CD91) -> 0 | CE92: 0 | CF92: 0 | CG92: 0 | CH92: 0 | CI92: 0 | CJ92: 0 | CK92: =SUM(CK82:CK91) -> 0 | CL92: 0 | CM92: 0 | CN92: 0 | CO92: 0 | CP92: 0 | CQ92: 0 | CR92: 0 | CS92: 0 | CT92: 0 | CU92: 0 | CV92: =SUM(CV82:CV91) -> 0
C94: LED + Driver Maintenance | D94: LED+Driver Maintenance (FINAL) | BB94: Lamp + Ballast Maintenance | BC94: Lamp+Ballast Maintenance (FINAL)
D95: ↓Year | E95: ='CALCULATOR INPUT SHEET'!E71 -> GROUP | F95: ='CALCULATOR INPUT SHEET'!F71 -> GROUP | G95: ='CALCULATOR INPUT SHEET'!G71 -> GROUP | H95: ='CALCULATOR INPUT SHEET'!H71 -> GROUP | I95: ='CALCULATOR INPUT SHEET'!I71 -> GROUP | J95: ='CALCULATOR INPUT SHEET'!J71 -> GROUP | K95: ='CALCULATOR INPUT SHEET'!K71 -> GROUP | L95: ='CALCULATOR INPUT SHEET'!L71 -> GROUP | M95: ='CALCULATOR INPUT SHEET'!M71 -> GROUP | N95: ='CALCULATOR INPUT SHEET'!N71 -> GROUP | O95: ='CALCULATOR INPUT SHEET'!O71 -> GROUP | P95: ='CALCULATOR INPUT SHEET'!P71 -> GROUP | Q95: ='CALCULATOR INPUT SHEET'!Q71 -> GROUP | R95: ='CALCULATOR INPUT SHEET'!R71 -> GROUP | S95: ='CALCULATOR INPUT SHEET'!S71 -> GROUP | T95: ='CALCULATOR INPUT SHEET'!T71 -> GROUP | U95: ='CALCULATOR INPUT SHEET'!U71 -> GROUP | V95: ='CALCULATOR INPUT SHEET'!V71 -> GROUP | W95: ='CALCULATOR INPUT SHEET'!W71 -> GROUP | X95: ='CALCULATOR INPUT SHEET'!X71 -> GROUP | Y95: Total | BC95: ↓Year | BD95: ='CALCULATOR INPUT SHEET'!Z71 -> GROUP | BE95: ='CALCULATOR INPUT SHEET'!AA71 -> GROUP | BF95: ='CALCULATOR INPUT SHEET'!AB71 -> GROUP | BG95: ='CALCULATOR INPUT SHEET'!AC71 -> GROUP | BH95: ='CALCULATOR INPUT SHEET'!AD71 -> GROUP | BI95: ='CALCULATOR INPUT SHEET'!AE71 -> GROUP | BJ95: ='CALCULATOR INPUT SHEET'!AF71 -> GROUP | BK95: ='CALCULATOR INPUT SHEET'!AG71 -> GROUP | BL95: ='CALCULATOR INPUT SHEET'!AH71 -> GROUP | BM95: ='CALCULATOR INPUT SHEET'!AI71 -> GROUP | BN95: ='CALCULATOR INPUT SHEET'!AJ71 -> GROUP | BO95: ='CALCULATOR INPUT SHEET'!AK71 -> GROUP | BP95: ='CALCULATOR INPUT SHEET'!AL71 -> GROUP | BQ95: ='CALCULATOR INPUT SHEET'!AM71 -> GROUP | BR95: ='CALCULATOR INPUT SHEET'!AN71 -> GROUP | BS95: ='CALCULATOR INPUT SHEET'!AO71 -> GROUP | BT95: ='CALCULATOR INPUT SHEET'!AP71 -> GROUP | BU95: ='CALCULATOR INPUT SHEET'!AQ71 -> GROUP | BV95: ='CALCULATOR INPUT SHEET'!AR71 -> GROUP | BW95: ='CALCULATOR INPUT SHEET'!AS71 -> GROUP | BX95: Total
D96: 1 | E96: =IF(E$95="GROUP",E82,AC82) -> 0 | F96: 0 | G96: 0 | H96: 0 | I96: 0 | J96: 0 | K96: 0 | L96: 0 | M96: 0 | N96: =IF(N$95="GROUP",N82,AL82) -> 0 | O96: 0 | P96: 0 | Q96: 0 | R96: 0 | S96: 0 | T96: 0 | U96: 0 | V96: 0 | W96: 0 | X96: 0 | Y96: =SUM(E96:X96) -> 0 | BC96: 1 | BD96: =IF(BD$95="GROUP",BD82,CB82) -> 0 | BE96: 0 | BF96: 0 | BG96: 0 | BH96: 0 | BI96: 0 | BJ96: 0 | BK96: 0 | BL96: 0 | BM96: =IF(BM$95="GROUP",BM82,CK82) -> 0 | BN96: 0 | BO96: 0 | BP96: 0 | BQ96: 0 | BR96: 0 | BS96: 0 | BT96: 0 | BU96: 0 | BV96: 0 | BW96: 0 | BX96: =SUM(BD96:BW96) -> 0
D97: 2 | E97: =IF(E$95="GROUP",E83,AC83) -> 0 | F97: =IF(F$95="GROUP",F83,AD83) -> 0 | G97: =IF(G$95="GROUP",G83,AE83) -> 0 | H97: =IF(H$95="GROUP",H83,AF83) -> 0 | I97: =IF(I$95="GROUP",I83,AG83) -> 0 | J97: =IF(J$95="GROUP",J83,AH83) -> 0 | K97: =IF(K$95="GROUP",K83,AI83) -> 0 | L97: =IF(L$95="GROUP",L83,AJ83) -> 0 | M97: =IF(M$95="GROUP",M83,AK83) -> 0 | N97: =IF(N$95="GROUP",N83,AL83) -> 0 | O97: 0 | P97: 0 | Q97: 0 | R97: 0 | S97: 0 | T97: 0 | U97: 0 | V97: 0 | W97: 0 | X97: 0 | Y97: =SUM(E97:X97) -> 0 | BC97: 2 | BD97: =IF(BD$95="GROUP",BD83,CB83) -> 0 | BE97: =IF(BE$95="GROUP",BE83,CC83) -> 0 | BF97: =IF(BF$95="GROUP",BF83,CD83) -> 0 | BG97: =IF(BG$95="GROUP",BG83,CE83) -> 0 | BH97: =IF(BH$95="GROUP",BH83,CF83) -> 0 | BI97: =IF(BI$95="GROUP",BI83,CG83) -> 0 | BJ97: =IF(BJ$95="GROUP",BJ83,CH83) -> 0 | BK97: =IF(BK$95="GROUP",BK83,CI83) -> 0 | BL97: =IF(BL$95="GROUP",BL83,CJ83) -> 0 | BM97: =IF(BM$95="GROUP",BM83,CK83) -> 0 | BN97: 0 | BO97: 0 | BP97: 0 | BQ97: 0 | BR97: 0 | BS97: 0 | BT97: 0 | BU97: 0 | BV97: 0 | BW97: 0 | BX97: =SUM(BD97:BW97) -> 0
D98: 3 | E98: 0 | F98: 0 | G98: 0 | H98: 0 | I98: 0 | J98: 0 | K98: 0 | L98: 0 | M98: 0 | N98: =IF(N$95="GROUP",N84,AL84) -> 0 | O98: 0 | P98: 0 | Q98: 0 | R98: 0 | S98: 0 | T98: 0 | U98: 0 | V98: 0 | W98: =IF(W$95="GROUP",W84,AU84) -> 0 | X98: 0 | Y98: 0 | BC98: 3 | BD98: 0 | BE98: 0 | BF98: 0 | BG98: 0 | BH98: 0 | BI98: 0 | BJ98: 0 | BK98: 0 | BL98: 0 | BM98: =IF(BM$95="GROUP",BM84,CK84) -> 0 | BN98: 0 | BO98: 0 | BP98: 0 | BQ98: 0 | BR98: 0 | BS98: 0 | BT98: 0 | BU98: 0 | BV98: 0 | BW98: 0 | BX98: 0
D99: 4 | E99: 0 | F99: 0 | G99: 0 | H99: 0 | I99: 0 | J99: 0 | K99: 0 | L99: 0 | M99: 0 | N99: =IF(N$95="GROUP",N85,AL85) -> 0 | O99: 0 | P99: 0 | Q99: 0 | R99: 0 | S99: 0 | T99: 0 | U99: 0 | V99: 0 | W99: 0 | X99: 0 | Y99: 0 | BC99: 4 | BD99: 0 | BE99: 0 | BF99: 0 | BG99: 0 | BH99: 0 | BI99: 0 | BJ99: 0 | BK99: 0 | BL99: 0 | BM99: =IF(BM$95="GROUP",BM85,CK85) -> 0 | BN99: 0 | BO99: 0 | BP99: 0 | BQ99: 0 | BR99: 0 | BS99: 0 | BT99: 0 | BU99: 0 | BV99: 0 | BW99: 0 | BX99: 0
D100: 5 | E100: 0 | F100: 0 | G100: 0 | H100: 0 | I100: 0 | J100: 0 | K100: 0 | L100: 0 | M100: 0 | N100: =IF(N$95="GROUP",N86,AL86) -> 0 | O100: 0 | P100: 0 | Q100: 0 | R100: 0 | S100: 0 | T100: 0 | U100: 0 | V100: 0 | W100: 0 | X100: 0 | Y100: 0 | BC100: 5 | BD100: 0 | BE100: 0 | BF100: 0 | BG100: 0 | BH100: 0 | BI100: 0 | BJ100: 0 | BK100: 0 | BL100: 0 | BM100: =IF(BM$95="GROUP",BM86,CK86) -> 0 | BN100: 0 | BO100: 0 | BP100: 0 | BQ100: 0 | BR100: 0 | BS100: 0 | BT100: 0 | BU100: 0 | BV100: 0 | BW100: =IF(BW$95="GROUP",BW86,CU86) -> 0 | BX100: 0
D101: 6 | E101: 0 | F101: 0 | G101: 0 | H101: 0 | I101: 0 | J101: 0 | K101: 0 | L101: 0 | M101: 0 | N101: =IF(N$95="GROUP",N87,AL87) -> 0 | O101: 0 | P101: 0 | Q101: 0 | R101: 0 | S101: 0 | T101: 0 | U101: 0 | V101: 0 | W101: 0 | X101: 0 | Y101: 0 | BC101: 6 | BD101: 0 | BE101: 0 | BF101: 0 | BG101: 0 | BH101: 0 | BI101: 0 | BJ101: 0 | BK101: 0 | BL101: 0 | BM101: =IF(BM$95="GROUP",BM87,CK87) -> 0 | BN101: 0 | BO101: 0 | BP101: 0 | BQ101: 0 | BR101: 0 | BS101: 0 | BT101: 0 | BU101: 0 | BV101: 0 | BW101: 0 | BX101: 0
D102: 7 | E102: 0 | F102: 0 | G102: 0 | H102: 0 | I102: 0 | J102: 0 | K102: 0 | L102: 0 | M102: 0 | N102: =IF(N$95="GROUP",N88,AL88) -> 0 | O102: 0 | P102: 0 | Q102: 0 | R102: 0 | S102: 0 | T102: 0 | U102: 0 | V102: 0 | W102: 0 | X102: 0 | Y102: 0 | BC102: 7 | BD102: 0 | BE102: 0 | BF102: 0 | BG102: 0 | BH102: 0 | BI102: 0 | BJ102: 0 | BK102: 0 | BL102: 0 | BM102: =IF(BM$95="GROUP",BM88,CK88) -> 0 | BN102: 0 | BO102: 0 | BP102: 0 | BQ102: 0 | BR102: 0 | BS102: 0 | BT102: 0 | BU102: 0 | BV102: 0 | BW102: 0 | BX102: 0
D103: 8 | E103: 0 | F103: 0 | G103: 0 | H103: 0 | I103: 0 | J103: 0 | K103: 0 | L103: 0 | M103: 0 | N103: =IF(N$95="GROUP",N89,AL89) -> 0 | O103: 0 | P103: 0 | Q103: 0 | R103: 0 | S103: 0 | T103: 0 | U103: 0 | V103: 0 | W103: 0 | X103: 0 | Y103: 0 | BC103: 8 | BD103: 0 | BE103: 0 | BF103: 0 | BG103: 0 | BH103: 0 | BI103: 0 | BJ103: 0 | BK103: 0 | BL103: 0 | BM103: =IF(BM$95="GROUP",BM89,CK89) -> 0 | BN103: 0 | BO103: 0 | BP103: 0 | BQ103: 0 | BR103: 0 | BS103: 0 | BT103: 0 | BU103: 0 | BV103: 0 | BW103: 0 | BX103: 0
D104: 9 | E104: 0 | F104: 0 | G104: 0 | H104: 0 | I104: 0 | J104: 0 | K104: 0 | L104: 0 | M104: 0 | N104: =IF(N$95="GROUP",N90,AL90) -> 0 | O104: 0 | P104: 0 | Q104: 0 | R104: 0 | S104: 0 | T104: 0 | U104: 0 | V104: 0 | W104: 0 | X104: 0 | Y104: 0 | BC104: 9 | BD104: 0 | BE104: 0 | BF104: 0 | BG104: 0 | BH104: 0 | BI104: 0 | BJ104: 0 | BK104: 0 | BL104: 0 | BM104: =IF(BM$95="GROUP",BM90,CK90) -> 0 | BN104: 0 | BO104: 0 | BP104: 0 | BQ104: 0 | BR104: 0 | BS104: 0 | BT104: 0 | BU104: 0 | BV104: 0 | BW104: 0 | BX104: 0
D105: 10 | E105: 0 | F105: 0 | G105: 0 | H105: 0 | I105: 0 | J105: 0 | K105: 0 | L105: 0 | M105: 0 | N105: =IF(N$95="GROUP",N91,AL91) -> 0 | O105: 0 | P105: 0 | Q105: 0 | R105: 0 | S105: 0 | T105: 0 | U105: 0 | V105: 0 | W105: 0 | X105: 0 | Y105: 0 | BC105: 10 | BD105: 0 | BE105: 0 | BF105: 0 | BG105: 0 | BH105: 0 | BI105: 0 | BJ105: 0 | BK105: 0 | BL105: 0 | BM105: =IF(BM$95="GROUP",BM91,CK91) -> 0 | BN105: 0 | BO105: 0 | BP105: 0 | BQ105: 0 | BR105: 0 | BS105: 0 | BT105: 0 | BU105: 0 | BV105: 0 | BW105: 0 | BX105: 0
D106: Total | E106: =SUM(E96:E105) -> 0 | F106: =SUM(F96:F105) -> 0 | G106: 0 | H106: 0 | I106: 0 | J106: 0 | K106: 0 | L106: 0 | M106: 0 | N106: =SUM(N96:N105) -> 0 | O106: 0 | P106: 0 | Q106: 0 | R106: 0 | S106: 0 | T106: 0 | U106: 0 | V106: 0 | W106: 0 | X106: 0 | Y106: =SUM(Y96:Y105) -> 0 | AA106: <-- This table is neede b/c you can pick a combination of SPOT and GROUP relamping for each comparison | BC106: Total | BD106: =SUM(BD96:BD105) -> 0 | BE106: =SUM(BE96:BE105) -> 0 | BF106: 0 | BG106: 0 | BH106: 0 | BI106: 0 | BJ106: 0 | BK106: 0 | BL106: 0 | BM106: =SUM(BM96:BM105) -> 0 | BN106: 0 | BO106: 0 | BP106: 0 | BQ106: 0 | BR106: 0 | BS106: 0 | BT106: 0 | BU106: 0 | BV106: 0 | BW106: 0 | BX106: =SUM(BX96:BX105) -> 0 | BZ106: <-- This table is neede b/c you can pick a combination of SPOT and GROUP relamping for each comparison
D107: Average | E107: =AVERAGE(E96:E105) -> 0 | F107: =AVERAGE(F96:F105) -> 0 | G107: 0 | H107: 0 | I107: 0 | J107: 0 | K107: 0 | L107: 0 | M107: 0 | N107: =AVERAGE(N96:N105) -> 0 | O107: 0 | P107: 0 | Q107: 0 | R107: 0 | S107: 0 | T107: 0 | U107: 0 | V107: 0 | W107: 0 | X107: 0 | Y107: =AVERAGE(Y96:Y105) -> 0 | Z107: ← Annual operating cost LED maintenance | BC107: Average | BD107: =AVERAGE(BD96:BD105) -> 0 | BE107: =AVERAGE(BE96:BE105) -> 0 | BF107: 0 | BG107: 0 | BH107: 0 | BI107: 0 | BJ107: 0 | BK107: 0 | BL107: 0 | BM107: =AVERAGE(BM96:BM105) -> 0 | BN107: 0 | BO107: 0 | BP107: 0 | BQ107: 0 | BR107: 0 | BS107: 0 | BT107: 0 | BU107: 0 | BV107: 0 | BW107: 0 | BX107: =AVERAGE(BX96:BX105) -> 0 | BY107: ← Annual Operating cost lamp maintenance
AA109: Conparative Initial Investment:
D110: ↓Year | E110: kWh rate ($/kWh) | F110: LED System Energy Cost | G110: Traditional System Energy Cost | H110: Annual Energy Cost Savings | I110: LED Maintenance + Energy Costs | J110: Traditional Maintenance + Energy Costs | K110: 0 | L110: =SUM('CALCULATOR INPUT SHEET'!Z90:AS90) - SUM('CALCULATOR INPUT SHEET'!E90:X90) -> 0 | M110: =L110 -> 0
D111: 1 | E111: ='CALCULATOR INPUT SHEET'!E13 -> 0.08 | F111: =SUM('CALCULATOR INPUT SHEET'!$E$45:$X$45) * $E111 -> 0 | G111: =SUM('CALCULATOR INPUT SHEET'!$Z$45:$AS$45) * $E111 -> 0 | H111: =G111-F111 -> 0 | I111: =Y96+F111 -> 0 | J111: =BX96+G111 -> 0 | K111: 1 | L111: =$J$123 -> 0 | M111: =M110+L111 -> 0
D112: 2 | E112: =E111+(E111*'CALCULATOR INPUT SHEET'!$E$15) -> 0.0808 | F112: =SUM('CALCULATOR INPUT SHEET'!$E$45:$X$45) * $E112 -> 0 | G112: =SUM('CALCULATOR INPUT SHEET'!$Z$45:$AS$45) * $E112 -> 0 | H112: =G112-F112 -> 0 | I112: 0 | J112: 0 | K112: 2 | L112: =$J$123 -> 0 | M112: =M111+L112 -> 0
D113: 3 | E113: =E112+(E112*'CALCULATOR INPUT SHEET'!$E$15) -> 0.081608 | F113: =SUM('CALCULATOR INPUT SHEET'!$E$45:$X$45) * $E113 -> 0 | G113: =SUM('CALCULATOR INPUT SHEET'!$Z$45:$AS$45) * $E113 -> 0 | H113: 0 | I113: 0 | J113: 0 | K113: 3 | L113: 0 | M113: 0
D114: 4 | E114: =E113+(E113*'CALCULATOR INPUT SHEET'!$E$15) -> 0.08242408 | F114: =SUM('CALCULATOR INPUT SHEET'!$E$45:$X$45) * $E114 -> 0 | G114: =SUM('CALCULATOR INPUT SHEET'!$Z$45:$AS$45) * $E114 -> 0 | H114: 0 | I114: 0 | J114: 0 | K114: 4 | L114: 0 | M114: 0
D115: 5 | E115: =E114+(E114*'CALCULATOR INPUT SHEET'!$E$15) -> 0.0832483208 | F115: =SUM('CALCULATOR INPUT SHEET'!$E$45:$X$45) * $E115 -> 0 | G115: =SUM('CALCULATOR INPUT SHEET'!$Z$45:$AS$45) * $E115 -> 0 | H115: 0 | I115: 0 | J115: 0 | K115: 5 | L115: 0 | M115: 0
D116: 6 | E116: =E115+(E115*'CALCULATOR INPUT SHEET'!$E$15) -> 0.08408080401 | F116: =SUM('CALCULATOR INPUT SHEET'!$E$45:$X$45) * $E116 -> 0 | G116: =SUM('CALCULATOR INPUT SHEET'!$Z$45:$AS$45) * $E116 -> 0 | H116: 0 | I116: 0 | J116: 0 | K116: 6 | L116: 0 | M116: 0
D117: 7 | E117: =E116+(E116*'CALCULATOR INPUT SHEET'!$E$15) -> 0.08492161205 | F117: =SUM('CALCULATOR INPUT SHEET'!$E$45:$X$45) * $E117 -> 0 | G117: =SUM('CALCULATOR INPUT SHEET'!$Z$45:$AS$45) * $E117 -> 0 | H117: 0 | I117: 0 | J117: 0 | K117: 7 | L117: 0 | M117: 0
D118: 8 | E118: =E117+(E117*'CALCULATOR INPUT SHEET'!$E$15) -> 0.08577082817 | F118: =SUM('CALCULATOR INPUT SHEET'!$E$45:$X$45) * $E118 -> 0 | G118: =SUM('CALCULATOR INPUT SHEET'!$Z$45:$AS$45) * $E118 -> 0 | H118: 0 | I118: 0 | J118: 0 | K118: 8 | L118: 0 | M118: 0
D119: 9 | E119: =E118+(E118*'CALCULATOR INPUT SHEET'!$E$15) -> 0.08662853645 | F119: =SUM('CALCULATOR INPUT SHEET'!$E$45:$X$45) * $E119 -> 0 | G119: =SUM('CALCULATOR INPUT SHEET'!$Z$45:$AS$45) * $E119 -> 0 | H119: 0 | I119: 0 | J119: 0 | K119: 9 | L119: 0 | M119: 0
D120: 10 | E120: =E119+(E119*'CALCULATOR INPUT SHEET'!$E$15) -> 0.08749482181 | F120: =SUM('CALCULATOR INPUT SHEET'!$E$45:$X$45) * $E120 -> 0 | G120: =SUM('CALCULATOR INPUT SHEET'!$Z$45:$AS$45) * $E120 -> 0 | H120: 0 | I120: 0 | J120: 0 | K120: 10 | L120: 0 | M120: 0 | N120: ← 10 Year Cash Flow (Energy + Maintenance)
D121: Total | F121: =SUM(F111:F120) -> 0 | G121: =SUM(G111:G120) -> 0 | H121: =SUM(H111:H120) -> 0 | I121: =SUM(I111:I120) -> 0 | J121: =SUM(J111:J120) -> 0
D122: Average | E122: =AVERAGE(E111:E120) -> 0.08369770033 | F122: 0 | G122: 0 | H122: 0 | I122: =AVERAGE(I111:I120) -> 0 | J122: 0
I123: Annual Combined Savings = | J123: =J122-I122 -> 0
D126: Annual Energy Costs
E127: 1 | F127: 2 | G127: 3 | H127: 4 | I127: 5 | J127: 6 | K127: 7 | L127: 8 | M127: 9 | N127: 10 | O127: 11 | P127: 12 | Q127: 13 | R127: 14 | S127: 15 | T127: 16 | U127: 17 | V127: 18 | W127: 19 | X127: 20 | Y127: Total
D128: LED | E128: ='CALCULATOR INPUT SHEET'!E45*$E$122 -> 0 | F128: ='CALCULATOR INPUT SHEET'!F45*$E$122 -> 0 | G128: ='CALCULATOR INPUT SHEET'!G45*$E$122 -> 0 | H128: ='CALCULATOR INPUT SHEET'!H45*$E$122 -> 0 | I128: ='CALCULATOR INPUT SHEET'!I45*$E$122 -> 0 | J128: ='CALCULATOR INPUT SHEET'!J45*$E$122 -> 0 | K128: ='CALCULATOR INPUT SHEET'!K45*$E$122 -> 0 | L128: ='CALCULATOR INPUT SHEET'!L45*$E$122 -> 0 | M128: ='CALCULATOR INPUT SHEET'!M45*$E$122 -> 0 | N128: ='CALCULATOR INPUT SHEET'!N45*$E$122 -> 0 | O128: ='CALCULATOR INPUT SHEET'!O45*$E$122 -> 0 | P128: ='CALCULATOR INPUT SHEET'!P45*$E$122 -> 0 | Q128: ='CALCULATOR INPUT SHEET'!Q45*$E$122 -> 0 | R128: ='CALCULATOR INPUT SHEET'!R45*$E$122 -> 0 | S128: ='CALCULATOR INPUT SHEET'!S45*$E$122 -> 0 | T128: ='CALCULATOR INPUT SHEET'!T45*$E$122 -> 0 | U128: ='CALCULATOR INPUT SHEET'!U45*$E$122 -> 0 | V128: ='CALCULATOR INPUT SHEET'!V45*$E$122 -> 0 | W128: ='CALCULATOR INPUT SHEET'!W45*$E$122 -> 0 | X128: ='CALCULATOR INPUT SHEET'!X45*$E$122 -> 0 | Y128: =SUM(E128:X128) -> 0
D129: Traditional | E129: ='CALCULATOR INPUT SHEET'!Z45*$E$122 -> 0 | F129: ='CALCULATOR INPUT SHEET'!AA45*$E$122 -> 0 | G129: ='CALCULATOR INPUT SHEET'!AB45*$E$122 -> 0 | H129: ='CALCULATOR INPUT SHEET'!AC45*$E$122 -> 0 | I129: ='CALCULATOR INPUT SHEET'!AD45*$E$122 -> 0 | J129: ='CALCULATOR INPUT SHEET'!AE45*$E$122 -> 0 | K129: ='CALCULATOR INPUT SHEET'!AF45*$E$122 -> 0 | L129: ='CALCULATOR INPUT SHEET'!AG45*$E$122 -> 0 | M129: ='CALCULATOR INPUT SHEET'!AH45*$E$122 -> 0 | N129: ='CALCULATOR INPUT SHEET'!AI45*$E$122 -> 0 | O129: ='CALCULATOR INPUT SHEET'!AJ45*$E$122 -> 0 | P129: ='CALCULATOR INPUT SHEET'!AK45*$E$122 -> 0 | Q129: ='CALCULATOR INPUT SHEET'!AL45*$E$122 -> 0 | R129: ='CALCULATOR INPUT SHEET'!AM45*$E$122 -> 0 | S129: ='CALCULATOR INPUT SHEET'!AN45*$E$122 -> 0 | T129: ='CALCULATOR INPUT SHEET'!AO45*$E$122 -> 0 | U129: ='CALCULATOR INPUT SHEET'!AP45*$E$122 -> 0 | V129: ='CALCULATOR INPUT SHEET'!AQ45*$E$122 -> 0 | W129: ='CALCULATOR INPUT SHEET'!AR45*$E$122 -> 0 | X129: ='CALCULATOR INPUT SHEET'!AS45*$E$122 -> 0 | Y129: =SUM(E129:X129) -> 0

Sheet SPOT vs. Group (hidden)
B2: Traditional Lamps - Spot | J2: Traditional Lamps - Group
B3: Spot relamping takes place at 25% mortality of the application. | J3: Group relamping takes place at 60% of the rated life of the lamps. | R3: Spot benefits = minimizes the number of fixtures you have to relamp over 10 year period.
R4: Spot cons = more trips to the site (more incurred site fees)
B5: From Input Sheet:
B6: Fixture Quantity | C6: ='CALCULATOR INPUT SHEET'!Z26 -> 0 | R6: Group benefits = minimizes trips to the site (less incurred site fees)
B7: Relamp Quantity | C7: =0.25*C6 -> 0 | R7: Group cons = more fixtures relamped over 10 year period.
B8: Site Fee | C8: ='CALCULATOR INPUT SHEET'!Z72 -> 0
B9: Lamp Cost | C9: ='CALCULATOR INPUT SHEET'!Z73 -> 0
B10: Labor Cost | C10: ='CALCULATOR INPUT SHEET'!Z74 -> 0
B11: Recycle Cost | C11: ='CALCULATOR INPUT SHEET'!Z75 -> 0
B13: Output: | J13: Output:
C14: Number of Relampings | K14: Number of Relampings
B15: Year | C15: 1 | D15: 2 | E15: 3 | F15: 4 | G15: 5 | H15: Total | J15: Year | K15: 1 | L15: 2 | M15: 3 | N15: 4 | O15: 5 | P15: Total
B16: 1 | C16: ='Spot LAMPS'!M5 -> 0 | H16: =SUM(C16:G16) -> 0 | J16: 1 | K16: ='CALCULATOR INPUT SHEET'!#REF! ->  | P16: =SUM(K16:O16) -> 
B17: 2 | C17: ='Spot LAMPS'!M6 -> 0 | H17: =SUM(C17:G17) -> 0 | J17: 2 | K17: ='CALCULATOR INPUT SHEET'!#REF! ->  | P17: =SUM(K17:O17) -> 
B18: 3 | C18: ='Spot LAMPS'!M7 -> 0 | H18: 0 | J18: 3 | K18: ='CALCULATOR INPUT SHEET'!#REF! -> 
B19: 4 | C19: ='Spot LAMPS'!M8 -> 0 | H19: 0 | J19: 4 | K19: ='CALCULATOR INPUT SHEET'!#REF! -> 
B20: 5 | C20: ='Spot LAMPS'!M9 -> 0 | H20: 0 | J20: 5 | K20: ='CALCULATOR INPUT SHEET'!#REF! -> 
B21: 6 | C21: ='Spot LAMPS'!M10 -> 0 | H21: 0 | J21: 6 | K21: ='CALCULATOR INPUT SHEET'!#REF! -> 
B22: 7 | C22: ='Spot LAMPS'!M11 -> 0 | H22: 0 | J22: 7 | K22: ='CALCULATOR INPUT SHEET'!#REF! -> 
B23: 8 | C23: ='Spot LAMPS'!M12 -> 0 | H23: 0 | J23: 8 | K23: ='CALCULATOR INPUT SHEET'!#REF! -> 
B24: 9 | C24: ='Spot LAMPS'!M13 -> 0 | H24: 0 | J24: 9 | K24: ='CALCULATOR INPUT SHEET'!#REF! -> 
B25: 10 | C25: ='Spot LAMPS'!M14 -> 0 | H25: 0 | J25: 10 | K25: ='CALCULATOR INPUT SHEET'!#REF! -> 
G26: Number of Trips to Site = | H26: =SUM(H16:H25) -> 0 | O26: Number of Trips to Site = | P26: =SUM(P16:P25) -> 
G27: Number of Lamps/Luminaires Serviced = | H27: =H26*C7 -> 0 | O27: Number of Lamps/Luminaires Serviced = | P27: =P26*C6 -> 
C29: Number of Lamps Serviced | K29: Number of Relampings
B30: Year | C30: 1 | D30: 2 | E30: 3 | F30: 4 | G30: 5 | H30: Total | J30: Year | K30: 1 | L30: 2 | M30: 3 | N30: 4 | O30: 5 | P30: Total
B31: 1 | C31: =C16*C$7 -> 0 | H31: =SUM(C31:G31) -> 0 | J31: 1 | K31: =K16*C$6 ->  | P31: =SUM(K31:O31) -> 
B32: 2 | C32: 0 | H32: =SUM(C32:G32) -> 0 | J32: 2 | K32: =K17*C$6 ->  | P32: =SUM(K32:O32) -> 
B33: 3 | C33: 0 | H33: 0 | J33: 3
B34: 4 | C34: 0 | H34: 0 | J34: 4
B35: 5 | C35: 0 | H35: 0 | J35: 5
B36: 6 | C36: 0 | H36: 0 | J36: 6
B37: 7 | C37: 0 | H37: 0 | J37: 7
B38: 8 | C38: 0 | H38: 0 | J38: 8
B39: 9 | C39: 0 | H39: 0 | J39: 9
B40: 10 | C40: 0 | H40: 0 | J40: 10
H41: =SUM(H31:H40) -> 0 | P41: =SUM(P31:P40) -> 
C43: Lamp + Labor + Recycle + Site | K43: Lamp + Labor + Recycle + Site
B44: Year | C44: 1 | D44: 2 | E44: 3 | F44: 4 | G44: 5 | H44: Total | J44: Year | K44: 1 | L44: 2 | M44: 3 | N44: 4 | O44: 5 | P44: Total
B45: 1 | C45: =C16 * (C$7*(C$9+C$10+C$11) + C$8) -> 0 | H45: =SUM(C45:G45) -> 0 | J45: 1 | K45: =SUM(K59,K73,K87,K101) ->  | P45: =SUM(K45:O45) -> 
B46: 2 | C46: 0 | H46: =SUM(C46:G46) -> 0 | J46: 2 | P46: =SUM(K46:O46) -> 
B47: 3 | C47: 0 | H47: 0 | J47: 3
B48: 4 | C48: 0 | H48: 0 | J48: 4
B49: 5 | C49: 0 | H49: 0 | J49: 5
B50: 6 | C50: 0 | H50: 0 | J50: 6
B51: 7 | C51: 0 | H51: 0 | J51: 7
B52: 8 | C52: 0 | H52: 0 | J52: 8
B53: 9 | C53: 0 | H53: 0 | J53: 9
B54: 10 | C54: 0 | H54: 0 | J54: 10
H55: =SUM(H45:H54) -> 0 | P55: =SUM(P45:P54) -> 
C57: Lamp | K57: Lamp
B58: Year | C58: 1 | D58: 2 | E58: 3 | F58: 4 | G58: 5 | H58: Total | J58: Year | K58: 1 | L58: 2 | M58: 3 | N58: 4 | O58: 5 | P58: Total
B59: 1 | C59: =C16 * (C$7*(C$9)) -> 0 | H59: =SUM(C59:G59) -> 0 | J59: 1 | K59: =K16 * (C$6*(C$9)) ->  | P59: =SUM(K59:O59) -> 
B60: 2 | C60: 0 | H60: =SUM(C60:G60) -> 0 | J60: 2 | K60: =K17 * (C$6*(C$9)) ->  | P60: =SUM(K60:O60) -> 
B61: 3 | C61: 0 | H61: 0 | J61: 3
B62: 4 | C62: 0 | H62: 0 | J62: 4
B63: 5 | C63: 0 | H63: 0 | J63: 5
B64: 6 | C64: 0 | H64: 0 | J64: 6
B65: 7 | C65: 0 | H65: 0 | J65: 7
B66: 8 | C66: 0 | H66: 0 | J66: 8
B67: 9 | C67: 0 | H67: 0 | J67: 9
B68: 10 | C68: 0 | H68: 0 | J68: 10
H69: =SUM(H59:H68) -> 0 | P69: =SUM(P59:P68) -> 
C71: Labor | K71: Labor
B72: Year | C72: 1 | D72: 2 | E72: 3 | F72: 4 | G72: 5 | H72: Total | J72: Year | K72: 1 | L72: 2 | M72: 3 | N72: 4 | O72: 5 | P72: Total
B73: 1 | C73: =C16 * (C$7*(C$10)) -> 0 | H73: =SUM(C73:G73) -> 0 | J73: 1 | K73: =K16 * (C$6*(C$10)) ->  | P73: =SUM(K73:O73) -> 
B74: 2 | C74: 0 | H74: =SUM(C74:G74) -> 0 | J74: 2 | P74: =SUM(K74:O74) -> 
B75: 3 | C75: 0 | H75: 0 | J75: 3
B76: 4 | C76: 0 | H76: 0 | J76: 4
B77: 5 | C77: 0 | H77: 0 | J77: 5
B78: 6 | C78: 0 | H78: 0 | J78: 6
B79: 7 | C79: 0 | H79: 0 | J79: 7
B80: 8 | C80: 0 | H80: 0 | J80: 8
B81: 9 | C81: 0 | H81: 0 | J81: 9
B82: 10 | C82: 0 | H82: 0 | J82: 10
H83: =SUM(H73:H82) -> 0 | P83: =SUM(P73:P82) -> 
C85: Site Fee | K85: Site Fee
B86: Year | C86: 1 | D86: 2 | E86: 3 | F86: 4 | G86: 5 | H86: Total | J86: Year | K86: 1 | L86: 2 | M86: 3 | N86: 4 | O86: 5 | P86: Total
B87: 1 | C87: =C16*(C$8) -> 0 | H87: =SUM(C87:G87) -> 0 | J87: 1 | K87: =K16*C$8 ->  | P87: =SUM(K87:O87) -> 
B88: 2 | C88: 0 | H88: =SUM(C88:G88) -> 0 | J88: 2 | K88: =K17*C$8 ->  | P88: =SUM(K88:O88) -> 
B89: 3 | C89: 0 | H89: 0 | J89: 3
B90: 4 | C90: 0 | H90: 0 | J90: 4
B91: 5 | C91: 0 | H91: 0 | J91: 5
B92: 6 | C92: 0 | H92: 0 | J92: 6
B93: 7 | C93: 0 | H93: 0 | J93: 7
B94: 8 | C94: 0 | H94: 0 | J94: 8
B95: 9 | C95: 0 | H95: 0 | J95: 9
B96: 10 | C96: 0 | H96: 0 | J96: 10
H97: =SUM(H87:H96) -> 0 | P97: =SUM(P87:P96) -> 
C99: Recycle | K99: Recycle
B100: Year | C100: 1 | D100: 2 | E100: 3 | F100: 4 | G100: 5 | H100: Total | J100: Year | K100: 1 | L100: 2 | M100: 3 | N100: 4 | O100: 5 | P100: Total
B101: 1 | C101: =C16 * (C$7*(C$11)) -> 0 | H101: =SUM(C101:G101) -> 0 | J101: 1 | K101: =K16 * (C$6*(C$11)) ->  | P101: =SUM(K101:O101) -> 
B102: 2 | C102: 0 | H102: =SUM(C102:G102) -> 0 | J102: 2 | K102: =K17 * (C$6*(C$11)) ->  | P102: =SUM(K102:O102) -> 
B103: 3 | C103: 0 | H103: 0 | J103: 3
B104: 4 | C104: 0 | H104: 0 | J104: 4
B105: 5 | C105: 0 | H105: 0 | J105: 5
B106: 6 | C106: 0 | H106: 0 | J106: 6
B107: 7 | C107: 0 | H107: 0 | J107: 7
B108: 8 | C108: 0 | H108: 0 | J108: 8
B109: 9 | C109: 0 | H109: 0 | J109: 9
B110: 10 | C110: 0 | H110: 0 | J110: 10
H111: =SUM(H101:H110) -> 0 | P111: =SUM(P101:P110) -> 

Sheet Spot BALLAST (hidden)
A1: Traditional - Spot Relamping Calculator (BALLASTS)
F3: Time of Relamping
D4: tableStartBallast --> | E4: Number | F4: 1 | G4: 2 | H4: 3 | I4: 4 | J4: 5 | K4: 6 | L4: 7 | M4: 8 | N4: 9 | O4: 10
E5: 1
E6: 2
E7: 3
E8: 4
E9: 5
E10: 6
E11: 7
E12: 8
E13: 9
E14: 10
E15: 11
E16: 12
E17: 13
E18: 14
E19: 15
E20: 16
E21: 17
E22: 18
E23: 19
E24: 20
E25: 21
E26: 22
E27: 23
E28: 24
E29: 25
E30: 26
E31: 27
E32: 28
E33: 29
E34: 30
E35: 31
E36: 32
E37: 33
E38: 34
E39: 35
E40: 36
E41: 37
E42: 38
E43: 39
E44: 40
E45: 41
E46: 42
E47: 43
E48: 44
E49: 45
E50: 46
E51: 47
E52: 48
E53: 49
E54: 50
E55: 51
E56: 52
E57: 53
E58: 54
E59: 55
E60: 56
E61: 57
E62: 58
E63: 59
E64: 60
E65: 61
E66: 62
E67: 63
E68: 64
E69: 65
E70: 66
E71: 67
E72: 68
E73: 69
E74: 70
E75: 71
E76: 72
E77: 73
E78: 74
E79: 75
E80: 76
E81: 77
E82: 78
E83: 79
E84: 80
E85: 81
E86: 82
E87: 83
E88: 84
E89: 85
E90: 86
E91: 87
E92: 88
E93: 89
E94: 90
E95: 91
E96: 92
E97: 93
E98: 94
E99: 95
E100: 96
E101: 97
E102: 98
E103: 99
E104: 100
E105: 101
E106: 102
E107: 103
E108: 104
E109: 105
E110: 106
E111: 107
E112: 108
E113: 109
E114: 110
E115: 111
E116: 112
E117: 113
E118: 114
E119: 115
E120: 116
E121: 117
E122: 118
E123: 119
E124: 120
E125: 121
E126: 122
E127: 123
E128: 124
E129: 125
E130: 126
E131: 127
E132: 128
E133: 129
E134: 130
E135: 131
E136: 132
E137: 133
E138: 134
E139: 135
E140: 136
E141: 137
E142: 138
E143: 139
E144: 140
E145: 141
E146: 142
E147: 143
E148: 144
E149: 145
E150: 146
E151: 147
E152: 148
E153: 149
E154: 150
E155: 151
E156: 152
E157: 153
E158: 154
E159: 155
E160: 156
E161: 157
E162: 158
E163: 159
E164: 160
E165: 161
E166: 162
E167: 163
E168: 164
E169: 165
E170: 166
E171: 167
E172: 168
E173: 169
E174: 170
E175: 171
E176: 172
E177: 173
E178: 174
E179: 175
E180: 176
E181: 177
E182: 178
E183: 179
E184: 180
E185: 181
E186: 182
E187: 183
E188: 184
E189: 185
E190: 186
E191: 187
E192: 188
E193: 189
E194: 190
E195: 191
E196: 192
E197: 193
E198: 194
E199: 195
E200: 196
E201: 197
... 804 more rows

Sheet Spot LAMPS (hidden)
A1: Traditional - Spot Relamping Calculator (LAMPS)
F3: Time of Relamping
D4: tableStart --> | E4: Number | F4: 1 | G4: 2 | H4: 3 | I4: 4 | J4: 5 | K4: 6 | L4: 7 | M4: 8 | N4: 9 | O4: 10
E5: 1
E6: 2
E7: 3
E8: 4
E9: 5
E10: 6
E11: 7
E12: 8
E13: 9
E14: 10
E15: 11
E16: 12
E17: 13
E18: 14
E19: 15
E20: 16
E21: 17
E22: 18
E23: 19
E24: 20
E25: 21
E26: 22
E27: 23
E28: 24
E29: 25
E30: 26
E31: 27
E32: 28
E33: 29
E34: 30
E35: 31
E36: 32
E37: 33
E38: 34
E39: 35
E40: 36
E41: 37
E42: 38
E43: 39
E44: 40
E45: 41
E46: 42
E47: 43
E48: 44
E49: 45
E50: 46
E51: 47
E52: 48
E53: 49
E54: 50
E55: 51
E56: 52
E57: 53
E58: 54
E59: 55
E60: 56
E61: 57
E62: 58
E63: 59
E64: 60
E65: 61
E66: 62
E67: 63
E68: 64
E69: 65
E70: 66
E71: 67
E72: 68
E73: 69
E74: 70
E75: 71
E76: 72
E77: 73
E78: 74
E79: 75
E80: 76
E81: 77
E82: 78
E83: 79
E84: 80
E85: 81
E86: 82
E87: 83
E88: 84
E89: 85
E90: 86
E91: 87
E92: 88
E93: 89
E94: 90
E95: 91
E96: 92
E97: 93
E98: 94
E99: 95
E100: 96
E101: 97
E102: 98
E103: 99
E104: 100
E105: 101
E106: 102
E107: 103
E108: 104
E109: 105
E110: 106
E111: 107
E112: 108
E113: 109
E114: 110
E115: 111
E116: 112
E117: 113
E118: 114
E119: 115
E120: 116
E121: 117
E122: 118
E123: 119
E124: 120
E125: 121
E126: 122
E127: 123
E128: 124
E129: 125
E130: 126
E131: 127
E132: 128
E133: 129
E134: 130
E135: 131
E136: 132
E137: 133
E138: 134
E139: 135
E140: 136
E141: 137
E142: 138
E143: 139
E144: 140
E145: 141
E146: 142
E147: 143
E148: 144
E149: 145
E150: 146
E151: 147
E152: 148
E153: 149
E154: 150
E155: 151
E156: 152
E157: 153
E158: 154
E159: 155
E160: 156
E161: 157
E162: 158
E163: 159
E164: 160
E165: 161
E166: 162
E167: 163
E168: 164
E169: 165
E170: 166
E171: 167
E172: 168
E173: 169
E174: 170
E175: 171
E176: 172
E177: 173
E178: 174
E179: 175
E180: 176
E181: 177
E182: 178
E183: 179
E184: 180
E185: 181
E186: 182
E187: 183
E188: 184
E189: 185
E190: 186
E191: 187
E192: 188
E193: 189
E194: 190
E195: 191
E196: 192
E197: 193
E198: 194
E199: 195
E200: 196
E201: 197
... 804 more rows

Sheet Life LAMPS (hidden)
A2: MORTALITY DATA (TRADITIONAL LAMPS) | AP2: Inputted -> | AQ2: ='CALCULATOR INPUT SHEET'!Z21 -> LED | AR2: ='CALCULATOR INPUT SHEET'!AA21 -> LED | AS2: ='CALCULATOR INPUT SHEET'!AB21 -> LED | AT2: ='CALCULATOR INPUT SHEET'!AC21 -> LED | AU2: ='CALCULATOR INPUT SHEET'!AD21 -> LED | AV2: ='CALCULATOR INPUT SHEET'!AE21 -> LED | AW2: ='CALCULATOR INPUT SHEET'!AF21 -> LED | AX2: ='CALCULATOR INPUT SHEET'!AG21 -> LED | AY2: ='CALCULATOR INPUT SHEET'!AH21 -> LED | AZ2: ='CALCULATOR INPUT SHEET'!AI21 -> LED | BA2: ='CALCULATOR INPUT SHEET'!AJ21 -> LED | BB2: ='CALCULATOR INPUT SHEET'!AK21 -> LED | BC2: ='CALCULATOR INPUT SHEET'!AL21 -> LED | BD2: ='CALCULATOR INPUT SHEET'!AM21 -> LED | BE2: ='CALCULATOR INPUT SHEET'!AN21 -> LED | BF2: ='CALCULATOR INPUT SHEET'!AO21 -> LED | BG2: ='CALCULATOR INPUT SHEET'!AP21 -> LED | BH2: ='CALCULATOR INPUT SHEET'!AQ21 -> LED | BI2: ='CALCULATOR INPUT SHEET'!AR21 -> LED | BJ2: ='CALCULATOR INPUT SHEET'!AS21 -> LED
AP3: equivelant used for calculations -> | AQ3: =VLOOKUP(AQ2,$BN$5:$BO$16,2) -> LED | AR3: LED | AS3: LED | AT3: LED | AU3: LED | AV3: LED | AW3: LED | AX3: LED | AY3: LED | AZ3: =VLOOKUP(AZ2,$BN$5:$BO$16,2) -> LED | BA3: LED | BB3: LED | BC3: LED | BD3: LED | BE3: LED | BF3: LED | BG3: LED | BH3: LED | BI3: LED | BJ3: LED
B4: YEARS | AG4: HOURS | AI4: MHLife | AK4: HPSLife | AL4: CFLLife | AM4: InductionLife | AN4: CMHLife | AO4: LFLLife | AQ4: AltLife | BN4: INPUTTED | BO4: ACUAL USED FOR CALC
B5: Life | C5: X | D5: MH | E5: HPS | F5: CFL | G5: Induction | H5: CMH | I5: Fluorescent | J5: LED | K5: 1 | L5: 2 | M5: 3 | N5: 4 | O5: 5 | P5: 6 | Q5: 7 | R5: 8 | S5: 9 | T5: 10 | U5: 11 | V5: 12 | W5: 13 | X5: 14 | Y5: 15 | Z5: 16 | AA5: 17 | AB5: 18 | AC5: 19 | AD5: 20 | AG5: Life | AH5: X | AI5: MH | AJ5: <-- MP also | AK5: HPS | AL5: CFL | AM5: Induction | AN5: CMH | AO5: Fluorescent | AP5: LED | AQ5: 1 | AR5: 2 | AS5: 3 | AT5: 4 | AU5: 5 | AV5: 6 | AW5: 7 | AX5: 8 | AY5: 9 | AZ5: 10 | BA5: 11 | BB5: 12 | BC5: 13 | BD5: 14 | BE5: 15 | BF5: 16 | BG5: 17 | BH5: 18 | BI5: 19 | BJ5: 20 | BN5: BIAX | BO5: FLUORESCENT
B6: 0 | C6: 0 | D6: 0 | E6: =AK6/(24*365) -> 0 | F6: 0 | G6: 0 | H6: 0 | I6: 0 | J6: 0 | K6: 0 | L6: 0 | M6: 0 | N6: 0 | O6: 0 | P6: 0 | Q6: 0 | R6: 0 | S6: 0 | T6: 0 | U6: 0 | V6: 0 | W6: 0 | X6: 0 | Y6: 0 | Z6: 0 | AA6: 0 | AB6: 0 | AC6: 0 | AD6: 0 | AG6: 0 | AH6: 0 | AI6: 0 | AK6: 0 | AL6: 0 | AM6: 0 | AN6: 0 | AO6: 0 | AP6: 0 | AQ6: =AQ$16 * ( INDEX($AI6:$AP6,1,MATCH(AQ$3,$AI$5:$AP$5,0)) / INDEX($AI$16:$AP$16,1,MATCH(AQ$3,$AI$5:$AP$5,0)) ) -> 0 | AR6: 0 | AS6: 0 | AT6: 0 | AU6: 0 | AV6: 0 | AW6: 0 | AX6: 0 | AY6: 0 | AZ6: 0 | BA6: 0 | BB6: 0 | BC6: 0 | BD6: 0 | BE6: 0 | BF6: 0 | BG6: 0 | BH6: 0 | BI6: 0 | BJ6: 0 | BN6: CFL | BO6: FLUORESCENT
B7: 0.05 | C7: 1 | D7: =AI7/(24*365) -> 0.1240055936 | E7: =AK7/(24*365) -> 0.3524086758 | F7: =AL7/(24*365) -> 0.1921004566 | G7: =AM7/(24*365) -> 0 | H7: =AN7/(24*365) -> 0.1729680365 | I7: =AO7/(24*365) -> 1.133901474 | J7: =AP7/(24*365) -> 0 | K7: =AQ7/(24*365) -> 0 | L7: =AR7/(24*365) -> 0 | M7: =AS7/(24*365) -> 0 | N7: =AT7/(24*365) -> 0 | O7: =AU7/(24*365) -> 0 | P7: =AV7/(24*365) -> 0 | Q7: =AW7/(24*365) -> 0 | R7: =AX7/(24*365) -> 0 | S7: =AY7/(24*365) -> 0 | T7: =AZ7/(24*365) -> 0 | U7: =BA7/(24*365) -> 0 | V7: =BB7/(24*365) -> 0 | W7: =BC7/(24*365) -> 0 | X7: =BD7/(24*365) -> 0 | Y7: =BE7/(24*365) -> 0 | Z7: =BF7/(24*365) -> 0 | AA7: =BG7/(24*365) -> 0 | AB7: =BH7/(24*365) -> 0 | AC7: =BI7/(24*365) -> 0 | AD7: =BJ7/(24*365) -> 0 | AG7: 0.05 | AH7: 1 | AI7: =$AI$27*AH7^2+$AI$28*AH7+$AI$29 -> 1086.289 | AK7: =LN(AH7)*$AK$27+$AK$28 -> 3087.1 | AL7: =LN(AH7)*$AL$27+$AL$28 -> 1682.8 | AM7: =LN(AH7)*$AM$27+$AM$28 -> 0 | AN7: =LN(AH7)*$AN$27+$AN$28 -> 1515.2 | AO7: =AO$28*$AG7+AO$29 -> 9932.976913 | AP7: 0 | AQ7: 0 | AR7: 0 | AS7: 0 | AT7: 0 | AU7: 0 | AV7: 0 | AW7: 0 | AX7: 0 | AY7: 0 | AZ7: 0 | BA7: 0 | BB7: 0 | BC7: 0 | BD7: 0 | BE7: 0 | BF7: 0 | BG7: 0 | BH7: 0 | BI7: 0 | BJ7: 0 | BN7: CMH | BO7: MH
B8: 0.1 | C8: 2 | D8: 0.4085452055 | E8: 1.356601697 | F8: 0.7114939963 | G8: 3.299807862 | H8: 0.5471567371 | I8: 1.19433848 | J8: 5.451068143 | K8: 1.588166347 | L8: 1.588166347 | M8: 1.588166347 | N8: 1.588166347 | O8: 1.588166347 | P8: 1.588166347 | Q8: 1.588166347 | R8: 1.588166347 | S8: 1.588166347 | T8: 1.588166347 | U8: 1.588166347 | V8: 1.588166347 | W8: 1.588166347 | X8: 1.588166347 | Y8: 1.588166347 | Z8: 1.588166347 | AA8: 1.588166347 | AB8: 1.588166347 | AC8: 1.588166347 | AD8: 1.588166347 | AG8: 0.1 | AH8: 2 | AI8: 3578.856 | AK8: 11883.83087 | AL8: 6232.687408 | AM8: 28906.31687 | AN8: 4793.093017 | AO8: =AO$28*$AG8+AO$29 -> 10462.40508 | AP8: =$AP$27 * LN($AH8) + $AP$28 -> 47751.35694 | AQ8: 13912.3372 | AR8: 13912.3372 | AS8: 13912.3372 | AT8: 13912.3372 | AU8: 13912.3372 | AV8: 13912.3372 | AW8: 13912.3372 | AX8: 13912.3372 | AY8: 13912.3372 | AZ8: 13912.3372 | BA8: 13912.3372 | BB8: 13912.3372 | BC8: 13912.3372 | BD8: 13912.3372 | BE8: 13912.3372 | BF8: 13912.3372 | BG8: 13912.3372 | BH8: 13912.3372 | BI8: 13912.3372 | BJ8: 13912.3372 | BN8: FLUORESCENT | BO8: FLUORESCENT
B9: 0.15 | C9: 3 | D9: 0.6780823059 | E9: 1.944016958 | F9: 1.01531974 | G9: 5.230071721 | H9: 0.7660430951 | I9: 1.254775485 | J9: 10.0003774 | K9: 2.913605631 | L9: 2.913605631 | M9: 2.913605631 | N9: 2.913605631 | O9: 2.913605631 | P9: 2.913605631 | Q9: 2.913605631 | R9: 2.913605631 | S9: 2.913605631 | T9: 2.913605631 | U9: 2.913605631 | V9: 2.913605631 | W9: 2.913605631 | X9: 2.913605631 | Y9: 2.913605631 | Z9: 2.913605631 | AA9: 2.913605631 | AB9: 2.913605631 | AC9: 2.913605631 | AD9: 2.913605631 | AG9: 0.15 | AH9: 3 | AI9: 5940.001 | AK9: 17029.58856 | AL9: 8894.200924 | AM9: 45815.42827 | AN9: 6710.537513 | AO9: 10991.83325 | AP9: =$AP$27 * LN($AH9) + $AP$28 -> 87603.30602 | AQ9: 25523.18533 | AR9: 25523.18533 | AS9: 25523.18533 | AT9: 25523.18533 | AU9: 25523.18533 | AV9: 25523.18533 | AW9: 25523.18533 | AX9: 25523.18533 | AY9: 25523.18533 | AZ9: 25523.18533 | BA9: 25523.18533 | BB9: 25523.18533 | BC9: 25523.18533 | BD9: 25523.18533 | BE9: 25523.18533 | BF9: 25523.18533 | BG9: 25523.18533 | BH9: 25523.18533 | BI9: 25523.18533 | BJ9: 25523.18533 | BN9: HPS | BO9: HPS
B10: 0.2 | C10: 4 | D10: 0.932616895 | E10: 2.360794719 | F10: 1.230887536 | G10: 6.599615724 | H10: 0.9213454376 | I10: 1.315212491 | J10: 13.22816368 | K10: 3.85401977 | L10: 3.85401977 | M10: 3.85401977 | N10: 3.85401977 | O10: 3.85401977 | P10: 3.85401977 | Q10: 3.85401977 | R10: 3.85401977 | S10: 3.85401977 | T10: 3.85401977 | U10: 3.85401977 | V10: 3.85401977 | W10: 3.85401977 | X10: 3.85401977 | Y10: 3.85401977 | Z10: 3.85401977 | AA10: 3.85401977 | AB10: 3.85401977 | AC10: 3.85401977 | AD10: 3.85401977 | AG10: 0.2 | AH10: 4 | AI10: 8169.724 | AK10: 20680.56174 | AL10: 10782.57482 | AM10: 57812.63374 | AN10: 8070.986034 | AO10: 11521.26142 | AP10: 115878.7139 | AQ10: 33761.21318 | AR10: 33761.21318 | AS10: 33761.21318 | AT10: 33761.21318 | AU10: 33761.21318 | AV10: 33761.21318 | AW10: 33761.21318 | AX10: 33761.21318 | AY10: 33761.21318 | AZ10: 33761.21318 | BA10: 33761.21318 | BB10: 33761.21318 | BC10: 33761.21318 | BD10: 33761.21318 | BE10: 33761.21318 | BF10: 33761.21318 | BG10: 33761.21318 | BH10: 33761.21318 | BI10: 33761.21318 | BJ10: 33761.21318 | BN10: INDUCTION | BO10: INDUCTION
B11: 0.25 | C11: 5 | D11: 1.172148973 | E11: 2.684072665 | F11: 1.398094909 | G11: 7.661916582 | H11: 1.041807293 | I11: 1.375649496 | J11: 15.73182924 | K11: 4.583461645 | L11: 4.583461645 | M11: 4.583461645 | N11: 4.583461645 | O11: 4.583461645 | P11: 4.583461645 | Q11: 4.583461645 | R11: 4.583461645 | S11: 4.583461645 | T11: 4.583461645 | U11: 4.583461645 | V11: 4.583461645 | W11: 4.583461645 | X11: 4.583461645 | Y11: 4.583461645 | Z11: 4.583461645 | AA11: 4.583461645 | AB11: 4.583461645 | AC11: 4.583461645 | AD11: 4.583461645 | AG11: 0.25 | AH11: 5 | AI11: 10268.025 | AK11: 23512.47655 | AL11: 12247.3114 | AM11: 67118.38926 | AN11: 9126.231888 | AO11: 12050.68959 | AP11: 137810.8241 | AQ11: 40151.12401 | AR11: 40151.12401 | AS11: 40151.12401 | AT11: 40151.12401 | AU11: 40151.12401 | AV11: 40151.12401 | AW11: 40151.12401 | AX11: 40151.12401 | AY11: 40151.12401 | AZ11: 40151.12401 | BA11: 40151.12401 | BB11: 40151.12401 | BC11: 40151.12401 | BD11: 40151.12401 | BE11: 40151.12401 | BF11: 40151.12401 | BG11: 40151.12401 | BH11: 40151.12401 | BI11: 40151.12401 | BJ11: 40151.12401 | BN11: LED | BO11: LED
B12: 0.3 | C12: 6 | D12: 1.396678539 | E12: 2.94820998 | F12: 1.53471328 | G12: 8.529879583 | H12: 1.140231796 | I12: 1.436086502 | J12: 17.77747294 | K12: 5.179459054 | L12: 5.179459054 | M12: 5.179459054 | N12: 5.179459054 | O12: 5.179459054 | P12: 5.179459054 | Q12: 5.179459054 | R12: 5.179459054 | S12: 5.179459054 | T12: 5.179459054 | U12: 5.179459054 | V12: 5.179459054 | W12: 5.179459054 | X12: 5.179459054 | Y12: 5.179459054 | Z12: 5.179459054 | AA12: 5.179459054 | AB12: 5.179459054 | AC12: 5.179459054 | AD12: 5.179459054 | AG12: 0.3 | AH12: 6 | AI12: 12234.904 | AK12: 25826.31942 | AL12: 13444.08833 | AM12: 74721.74515 | AN12: 9988.43053 | AO12: 12580.11775 | AP12: 155730.663 | AQ12: 45372.06132 | AR12: 45372.06132 | AS12: 45372.06132 | AT12: 45372.06132 | AU12: 45372.06132 | AV12: 45372.06132 | AW12: 45372.06132 | AX12: 45372.06132 | AY12: 45372.06132 | AZ12: 45372.06132 | BA12: 45372.06132 | BB12: 45372.06132 | BC12: 45372.06132 | BD12: 45372.06132 | BE12: 45372.06132 | BF12: 45372.06132 | BG12: 45372.06132 | BH12: 45372.06132 | BI12: 45372.06132 | BJ12: 45372.06132 | BN12: MH | BO12: MH
B13: 0.35 | C13: 7 | D13: 1.606205594 | E13: 3.171534897 | F13: 1.650222467 | G13: 9.263731843 | H13: 1.223448527 | I13: 1.496523507 | J13: 19.50704005 | K13: 5.683367683 | L13: 5.683367683 | M13: 5.683367683 | N13: 5.683367683 | O13: 5.683367683 | P13: 5.683367683 | Q13: 5.683367683 | R13: 5.683367683 | S13: 5.683367683 | T13: 5.683367683 | U13: 5.683367683 | V13: 5.683367683 | W13: 5.683367683 | X13: 5.683367683 | Y13: 5.683367683 | Z13: 5.683367683 | AA13: 5.683367683 | AB13: 5.683367683 | AC13: 5.683367683 | AD13: 5.683367683 | AG13: 0.35 | AH13: 7 | AI13: 14070.361 | AK13: 27782.6457 | AL13: 14455.94881 | AM13: 81150.29095 | AN13: 10717.40909 | AO13: 13109.54592 | AP13: 170881.6708 | AQ13: 49786.30091 | AR13: 49786.30091 | AS13: 49786.30091 | AT13: 49786.30091 | AU13: 49786.30091 | AV13: 49786.30091 | AW13: 49786.30091 | AX13: 49786.30091 | AY13: 49786.30091 | AZ13: 49786.30091 | BA13: 49786.30091 | BB13: 49786.30091 | BC13: 49786.30091 | BD13: 49786.30091 | BE13: 49786.30091 | BF13: 49786.30091 | BG13: 49786.30091 | BH13: 49786.30091 | BI13: 49786.30091 | BJ13: 49786.30091 | BN13: MP | BO13: MH
B14: 0.4 | C14: 8 | D14: 1.800730137 | E14: 3.36498774 | F14: 1.750281076 | G14: 9.899423586 | H14: 1.295534138 | I14: 1.556960513 | J14: 21.00525922 | K14: 6.119873193 | L14: 6.119873193 | M14: 6.119873193 | N14: 6.119873193 | O14: 6.119873193 | P14: 6.119873193 | Q14: 6.119873193 | R14: 6.119873193 | S14: 6.119873193 | T14: 6.119873193 | U14: 6.119873193 | V14: 6.119873193 | W14: 6.119873193 | X14: 6.119873193 | Y14: 6.119873193 | Z14: 6.119873193 | AA14: 6.119873193 | AB14: 6.119873193 | AC14: 6.119873193 | AD14: 6.119873193 | AG14: 0.4 | AH14: 8 | AI14: 15774.396 | AK14: 29477.29261 | AL14: 15332.46222 | AM14: 86718.95061 | AN14: 11348.87905 | AO14: 13638.97409 | AP14: 184006.0708 | AQ14: 53610.08917 | AR14: 53610.08917 | AS14: 53610.08917 | AT14: 53610.08917 | AU14: 53610.08917 | AV14: 53610.08917 | AW14: 53610.08917 | AX14: 53610.08917 | AY14: 53610.08917 | AZ14: 53610.08917 | BA14: 53610.08917 | BB14: 53610.08917 | BC14: 53610.08917 | BD14: 53610.08917 | BE14: 53610.08917 | BF14: 53610.08917 | BG14: 53610.08917 | BH14: 53610.08917 | BI14: 53610.08917 | BJ14: 53610.08917 | BN14: T5 | BO14: FLUORESCENT
B15: 0.45 | C15: 9 | D15: 1.980252169 | E15: 3.535625241 | F15: 1.838539024 | G15: 10.46014344 | H15: 1.359118154 | I15: 1.617397518 | J15: 22.3267822 | K15: 6.504898339 | L15: 6.504898339 | M15: 6.504898339 | N15: 6.504898339 | O15: 6.504898339 | P15: 6.504898339 | Q15: 6.504898339 | R15: 6.504898339 | S15: 6.504898339 | T15: 6.504898339 | U15: 6.504898339 | V15: 6.504898339 | W15: 6.504898339 | X15: 6.504898339 | Y15: 6.504898339 | Z15: 6.504898339 | AA15: 6.504898339 | AB15: 6.504898339 | AC15: 6.504898339 | AD15: 6.504898339 | AG15: 0.45 | AH15: 9 | AI15: 17347.009 | AK15: 30972.07711 | AL15: 16105.60185 | AM15: 91630.85655 | AN15: 11905.87503 | AO15: 14168.40226 | AP15: 195582.612 | AQ15: =AQ$16 * ( INDEX($AI15:$AP15,1,MATCH(AQ$3,$AI$5:$AP$5,0)) / INDEX($AI$16:$AP$16,1,MATCH(AQ$3,$AI$5:$AP$5,0)) ) -> 56982.90945 | AR15: 56982.90945 | AS15: 56982.90945 | AT15: 56982.90945 | AU15: 56982.90945 | AV15: 56982.90945 | AW15: 56982.90945 | AX15: 56982.90945 | AY15: 56982.90945 | AZ15: 56982.90945 | BA15: 56982.90945 | BB15: 56982.90945 | BC15: 56982.90945 | BD15: 56982.90945 | BE15: 56982.90945 | BF15: 56982.90945 | BG15: 56982.90945 | BH15: 56982.90945 | BI15: 56982.90945 | BJ15: 56982.90945 | BN15: T5HO | BO15: FLUORESCENT
B16: 0.5 | C16: 10 | D16: 2.144771689 | E16: 3.688265687 | F16: 1.917488449 | G16: 10.96172444 | H16: 1.415995994 | I16: 1.677834524 | J16: 23.50892478 | K16: 6.849315068 | L16: 6.849315068 | M16: 6.849315068 | N16: 6.849315068 | O16: 6.849315068 | P16: 6.849315068 | Q16: 6.849315068 | R16: 6.849315068 | S16: 6.849315068 | T16: 6.849315068 | U16: 6.849315068 | V16: 6.849315068 | W16: 6.849315068 | X16: 6.849315068 | Y16: 6.849315068 | Z16: 6.849315068 | AA16: 6.849315068 | AB16: 6.849315068 | AC16: 6.849315068 | AD16: 6.849315068 | AG16: 0.5 | AH16: 10 | AI16: 18788.2 | AK16: 32309.20742 | AL16: 16797.19881 | AM16: 96024.70613 | AN16: 12404.1249 | AO16: 14697.83043 | AP16: 205938.181 | AQ16: =INDEX(lifeCustom,1,AQ5) -> 60000 | AR16: 60000 | AS16: 60000 | AT16: 60000 | AU16: 60000 | AV16: 60000 | AW16: 60000 | AX16: 60000 | AY16: 60000 | AZ16: 60000 | BA16: 60000 | BB16: 60000 | BC16: 60000 | BD16: 60000 | BE16: 60000 | BF16: 60000 | BG16: 60000 | BH16: 60000 | BI16: 60000 | BJ16: 60000 | BK16: <-- Inputted life of each comparison (hours) | BN16: T8 | BO16: FLUORESCENT
B17: 0.55 | C17: 11 | D17: 2.294288699 | E17: 3.826345766 | F17: 1.98890689 | G17: 11.41545965 | H17: 1.467448259 | I17: 1.738271529 | J17: 24.57830282 | K17: 7.160877898 | L17: 7.160877898 | M17: 7.160877898 | N17: 7.160877898 | O17: 7.160877898 | P17: 7.160877898 | Q17: 7.160877898 | R17: 7.160877898 | S17: 7.160877898 | T17: 7.160877898 | U17: 7.160877898 | V17: 7.160877898 | W17: 7.160877898 | X17: 7.160877898 | Y17: 7.160877898 | Z17: 7.160877898 | AA17: 7.160877898 | AB17: 7.160877898 | AC17: 7.160877898 | AD17: 7.160877898 | AG17: 0.55 | AH17: 11 | AI17: 20097.969 | AK17: 33518.78891 | AL17: 17422.82436 | AM17: 99999.42656 | AN17: 12854.84675 | AO17: 15227.25859 | AP17: 215305.9327 | AQ17: =AQ$16 * ( INDEX($AI17:$AP17,1,MATCH(AQ$3,$AI$5:$AP$5,0)) / INDEX($AI$16:$AP$16,1,MATCH(AQ$3,$AI$5:$AP$5,0)) ) -> 62729.29039 | AR17: 62729.29039 | AS17: 62729.29039 | AT17: 62729.29039 | AU17: 62729.29039 | AV17: 62729.29039 | AW17: 62729.29039 | AX17: 62729.29039 | AY17: 62729.29039 | AZ17: 62729.29039 | BA17: 62729.29039 | BB17: 62729.29039 | BC17: 62729.29039 | BD17: 62729.29039 | BE17: 62729.29039 | BF17: 62729.29039 | BG17: 62729.29039 | BH17: 62729.29039 | BI17: 62729.29039 | BJ17: 62729.29039
B18: 0.6 | C18: 12 | D18: 2.428803196 | E18: 3.952403001 | F18: 2.05410682 | G18: 11.82968744 | H18: 1.514420496 | I18: 1.798708535 | J18: 25.55456848 | K18: 7.445312477 | L18: 7.445312477 | M18: 7.445312477 | N18: 7.445312477 | O18: 7.445312477 | P18: 7.445312477 | Q18: 7.445312477 | R18: 7.445312477 | S18: 7.445312477 | T18: 7.445312477 | U18: 7.445312477 | V18: 7.445312477 | W18: 7.445312477 | X18: 7.445312477 | Y18: 7.445312477 | Z18: 7.445312477 | AA18: 7.445312477 | AB18: 7.445312477 | AC18: 7.445312477 | AD18: 7.445312477 | AG18: 0.6 | AH18: 12 | AI18: 21276.316 | AK18: 34623.05029 | AL18: 17993.97574 | AM18: 103628.062 | AN18: 13266.32355 | AO18: 15756.68676 | AP18: 223858.0199 | AQ18: 65220.9373 | AR18: 65220.9373 | AS18: 65220.9373 | AT18: 65220.9373 | AU18: 65220.9373 | AV18: 65220.9373 | AW18: 65220.9373 | AX18: 65220.9373 | AY18: 65220.9373 | AZ18: 65220.9373 | BA18: 65220.9373 | BB18: 65220.9373 | BC18: 65220.9373 | BD18: 65220.9373 | BE18: 65220.9373 | BF18: 65220.9373 | BG18: 65220.9373 | BH18: 65220.9373 | BI18: 65220.9373 | BJ18: 65220.9373
B19: 0.65 | C19: 13 | D19: 2.548315183 | E19: 4.068364417 | F19: 2.11408494 | G19: 12.21074007 | H19: 1.557630766 | I19: 1.85914554 | J19: 26.45264583 | K19: 7.706966926 | L19: 7.706966926 | M19: 7.706966926 | N19: 7.706966926 | O19: 7.706966926 | P19: 7.706966926 | Q19: 7.706966926 | R19: 7.706966926 | S19: 7.706966926 | T19: 7.706966926 | U19: 7.706966926 | V19: 7.706966926 | W19: 7.706966926 | X19: 7.706966926 | Y19: 7.706966926 | Z19: 7.706966926 | AA19: 7.706966926 | AB19: 7.706966926 | AC19: 7.706966926 | AD19: 7.706966926 | AG19: 0.65 | AH19: 13 | AI19: 22323.241 | AK19: 35638.8723 | AL19: 18519.38408 | AM19: 106966.0831 | AN19: 13644.84551 | AO19: 16286.11493 | AP19: 231725.1775 | AQ19: 67513.03027 | AR19: 67513.03027 | AS19: 67513.03027 | AT19: 67513.03027 | AU19: 67513.03027 | AV19: 67513.03027 | AW19: 67513.03027 | AX19: 67513.03027 | AY19: 67513.03027 | AZ19: 67513.03027 | BA19: 67513.03027 | BB19: 67513.03027 | BC19: 67513.03027 | BD19: 67513.03027 | BE19: 67513.03027 | BF19: 67513.03027 | BG19: 67513.03027 | BH19: 67513.03027 | BI19: 67513.03027 | BJ19: 67513.03027
B20: 0.7 | C20: 14 | D20: 2.652824658 | E20: 4.175727919 | F20: 2.169616007 | G20: 12.56353971 | H20: 1.597637227 | I20: 1.919582545 | J20: 27.28413559 | K20: 7.949221106 | L20: 7.949221106 | M20: 7.949221106 | N20: 7.949221106 | O20: 7.949221106 | P20: 7.949221106 | Q20: 7.949221106 | R20: 7.949221106 | S20: 7.949221106 | T20: 7.949221106 | U20: 7.949221106 | V20: 7.949221106 | W20: 7.949221106 | X20: 7.949221106 | Y20: 7.949221106 | Z20: 7.949221106 | AA20: 7.949221106 | AB20: 7.949221106 | AC20: 7.949221106 | AD20: 7.949221106 | AG20: 0.7 | AH20: 14 | AI20: 23238.744 | AK20: 36579.37657 | AL20: 19005.83622 | AM20: 110056.6078 | AN20: 13995.30211 | AO20: 16815.5431 | AP20: 239009.0278 | AQ20: 69635.17689 | AR20: 69635.17689 | AS20: 69635.17689 | AT20: 69635.17689 | AU20: 69635.17689 | AV20: 69635.17689 | AW20: 69635.17689 | AX20: 69635.17689 | AY20: 69635.17689 | AZ20: 69635.17689 | BA20: 69635.17689 | BB20: 69635.17689 | BC20: 69635.17689 | BD20: 69635.17689 | BE20: 69635.17689 | BF20: 69635.17689 | BG20: 69635.17689 | BH20: 69635.17689 | BI20: 69635.17689 | BJ20: 69635.17689
B21: 0.75 | C21: 15 | D21: 2.742331621 | E21: 4.275680948 | F21: 2.221314192 | G21: 12.8919883 | H21: 1.634882352 | I21: 1.980019551 | J21: 28.05823403 | K21: 8.174754353 | L21: 8.174754353 | M21: 8.174754353 | N21: 8.174754353 | O21: 8.174754353 | P21: 8.174754353 | Q21: 8.174754353 | R21: 8.174754353 | S21: 8.174754353 | T21: 8.174754353 | U21: 8.174754353 | V21: 8.174754353 | W21: 8.174754353 | X21: 8.174754353 | Y21: 8.174754353 | Z21: 8.174754353 | AA21: 8.174754353 | AB21: 8.174754353 | AC21: 8.174754353 | AD21: 8.174754353 | AG21: 0.75 | AH21: 15 | AI21: 24022.825 | AK21: 37454.9651 | AL21: 19458.71233 | AM21: 112933.8175 | AN21: 14321.5694 | AO21: 17344.97127 | AP21: 245790.1301 | AQ21: 71610.84813 | AR21: 71610.84813 | AS21: 71610.84813 | AT21: 71610.84813 | AU21: 71610.84813 | AV21: 71610.84813 | AW21: 71610.84813 | AX21: 71610.84813 | AY21: 71610.84813 | AZ21: 71610.84813 | BA21: 71610.84813 | BB21: 71610.84813 | BC21: 71610.84813 | BD21: 71610.84813 | BE21: 71610.84813 | BF21: 71610.84813 | BG21: 71610.84813 | BH21: 71610.84813 | BI21: 71610.84813 | BJ21: 71610.84813
B22: 0.8 | C22: 16 | D22: 2.816836073 | E22: 4.369180762 | F22: 2.269674615 | G22: 13.19923145 | H22: 1.669722839 | I22: 2.040456556 | J22: 28.78235477 | K22: 8.385726616 | L22: 8.385726616 | M22: 8.385726616 | N22: 8.385726616 | O22: 8.385726616 | P22: 8.385726616 | Q22: 8.385726616 | R22: 8.385726616 | S22: 8.385726616 | T22: 8.385726616 | U22: 8.385726616 | V22: 8.385726616 | W22: 8.385726616 | X22: 8.385726616 | Y22: 8.385726616 | Z22: 8.385726616 | AA22: 8.385726616 | AB22: 8.385726616 | AC22: 8.385726616 | AD22: 8.385726616 | AG22: 0.8 | AH22: 16 | AI22: 24675.484 | AK22: 38274.02347 | AL22: 19882.34963 | AM22: 115625.2675 | AN22: 14626.77207 | AO22: 17874.39943 | AP22: 252133.4277 | AQ22: 73458.96515 | AR22: 73458.96515 | AS22: 73458.96515 | AT22: 73458.96515 | AU22: 73458.96515 | AV22: 73458.96515 | AW22: 73458.96515 | AX22: 73458.96515 | AY22: 73458.96515 | AZ22: 73458.96515 | BA22: 73458.96515 | BB22: 73458.96515 | BC22: 73458.96515 | BD22: 73458.96515 | BE22: 73458.96515 | BF22: 73458.96515 | BG22: 73458.96515 | BH22: 73458.96515 | BI22: 73458.96515 | BJ22: 73458.96515
B23: 0.85 | C23: 17 | D23: 2.876338014 | E23: 4.457010337 | F23: 2.31510225 | G23: 13.48784202 | H23: 1.702450446 | I23: 2.100893562 | J23: 29.46256164 | K23: 8.583904594 | L23: 8.583904594 | M23: 8.583904594 | N23: 8.583904594 | O23: 8.583904594 | P23: 8.583904594 | Q23: 8.583904594 | R23: 8.583904594 | S23: 8.583904594 | T23: 8.583904594 | U23: 8.583904594 | V23: 8.583904594 | W23: 8.583904594 | X23: 8.583904594 | Y23: 8.583904594 | Z23: 8.583904594 | AA23: 8.583904594 | AB23: 8.583904594 | AC23: 8.583904594 | AD23: 8.583904594 | AG23: 0.85 | AH23: 17 | AI23: 25196.721 | AK23: 39043.41055 | AL23: 20280.29571 | AM23: 118153.4961 | AN23: 14913.4659 | AO23: 18403.8276 | AP23: 258092.0399 | AQ23: 75195.00424 | AR23: 75195.00424 | AS23: 75195.00424 | AT23: 75195.00424 | AU23: 75195.00424 | AV23: 75195.00424 | AW23: 75195.00424 | AX23: 75195.00424 | AY23: 75195.00424 | AZ23: 75195.00424 | BA23: 75195.00424 | BB23: 75195.00424 | BC23: 75195.00424 | BD23: 75195.00424 | BE23: 75195.00424 | BF23: 75195.00424 | BG23: 75195.00424 | BH23: 75195.00424 | BI23: 75195.00424 | BJ23: 75195.00424
B24: 0.9 | C24: 18 | D24: 2.920837443 | E24: 4.539818262 | F24: 2.357932563 | G24: 13.7599513 | H24: 1.733306854 | I24: 2.161330567 | J24: 30.10387774 | K24: 8.770751762 | L24: 8.770751762 | M24: 8.770751762 | N24: 8.770751762 | O24: 8.770751762 | P24: 8.770751762 | Q24: 8.770751762 | R24: 8.770751762 | S24: 8.770751762 | T24: 8.770751762 | U24: 8.770751762 | V24: 8.770751762 | W24: 8.770751762 | X24: 8.770751762 | Y24: 8.770751762 | Z24: 8.770751762 | AA24: 8.770751762 | AB24: 8.770751762 | AC24: 8.770751762 | AD24: 8.770751762 | AG24: 0.9 | AH24: 18 | AI24: 25586.536 | AK24: 39768.80798 | AL24: 20655.48926 | AM24: 120537.1734 | AN24: 15183.76804 | AO24: 18933.25577 | AP24: 263709.969 | AQ24: 76831.78543 | AR24: 76831.78543 | AS24: 76831.78543 | AT24: 76831.78543 | AU24: 76831.78543 | AV24: 76831.78543 | AW24: 76831.78543 | AX24: 76831.78543 | AY24: 76831.78543 | AZ24: 76831.78543 | BA24: 76831.78543 | BB24: 76831.78543 | BC24: 76831.78543 | BD24: 76831.78543 | BE24: 76831.78543 | BF24: 76831.78543 | BG24: 76831.78543 | BH24: 76831.78543 | BI24: 76831.78543 | BJ24: 76831.78543
B25: 0.95 | C25: 19 | D25: 2.950334361 | E25: 4.618147841 | F25: 2.398446564 | G25: 14.01734461 | H25: 1.762494513 | I25: 2.221767573 | J25: 30.71051072 | K25: 8.947494021 | L25: 8.947494021 | M25: 8.947494021 | N25: 8.947494021 | O25: 8.947494021 | P25: 8.947494021 | Q25: 8.947494021 | R25: 8.947494021 | S25: 8.947494021 | T25: 8.947494021 | U25: 8.947494021 | V25: 8.947494021 | W25: 8.947494021 | X25: 8.947494021 | Y25: 8.947494021 | Z25: 8.947494021 | AA25: 8.947494021 | AB25: 8.947494021 | AC25: 8.947494021 | AD25: 8.947494021 | AG25: 0.95 | AH25: 19 | AI25: 25844.929 | AK25: 40454.97508 | AL25: 21010.3919 | AM25: 122791.9387 | AN25: 15439.45193 | AO25: =AO$28*$AG25+AO$29 -> 19462.68394 | AP25: 269024.0739 | AQ25: 78380.04762 | AR25: 78380.04762 | AS25: 78380.04762 | AT25: 78380.04762 | AU25: 78380.04762 | AV25: 78380.04762 | AW25: 78380.04762 | AX25: 78380.04762 | AY25: 78380.04762 | AZ25: 78380.04762 | BA25: 78380.04762 | BB25: 78380.04762 | BC25: 78380.04762 | BD25: 78380.04762 | BE25: 78380.04762 | BF25: 78380.04762 | BG25: 78380.04762 | BH25: 78380.04762 | BI25: 78380.04762 | BJ25: 78380.04762
B26: 1 | C26: 20 | D26: 2.964828767 | E26: 4.692458708 | F26: 2.436881988 | G26: 14.26153231 | H26: 1.790184694 | I26: 2.282204578 | J26: 31.28602032 | K26: 9.115168492 | L26: 9.115168492 | M26: 9.115168492 | N26: 9.115168492 | O26: 9.115168492 | P26: 9.115168492 | Q26: 9.115168492 | R26: 9.115168492 | S26: 9.115168492 | T26: 9.115168492 | U26: 9.115168492 | V26: 9.115168492 | W26: 9.115168492 | X26: 9.115168492 | Y26: 9.115168492 | Z26: 9.115168492 | AA26: 9.115168492 | AB26: 9.115168492 | AC26: 9.115168492 | AD26: 9.115168492 | AG26: 1 | AH26: 20 | AI26: =$AI$27*AH26^2+$AI$28*AH26+$AI$29 -> 25971.9 | AK26: 41105.93828 | AL26: 21347.08622 | AM26: 124931.023 | AN26: 15682.01792 | AO26: 19992.11211 | AP26: 274065.538 | AQ26: 79848.87599 | AR26: 79848.87599 | AS26: 79848.87599 | AT26: 79848.87599 | AU26: 79848.87599 | AV26: 79848.87599 | AW26: 79848.87599 | AX26: 79848.87599 | AY26: 79848.87599 | AZ26: 79848.87599 | BA26: 79848.87599 | BB26: 79848.87599 | BC26: 79848.87599 | BD26: 79848.87599 | BE26: 79848.87599 | BF26: 79848.87599 | BG26: 79848.87599 | BH26: 79848.87599 | BI26: 79848.87599 | BJ26: 79848.87599
AH27: x^2 | AI27: -65.711 | AJ27: Ln(x)* | AK27: 12691 | AL27: 6564.1 | AM27: 41703 | AN27: 4729 | AP27: 98287
AH28: x | AI28: 2689.7 | AJ28: + | AK28: 3087.1 | AL28: 1682.8 | AM28: 0 | AN28: 1515.2 | AO28: 10588.56336 | AP28: -20376
AH29: + | AI29: -1537.7 | AO29: 9403.548745
A33: QUADRATIC CONSTANTS
D35: MH | E35: HPS | F35: CFL | G35: Induction | H35: CMH | I35: Fluorescent | J35: LED | K35: 1 | L35: 2 | M35: 3 | N35: 4 | O35: 5 | P35: 6 | Q35: 7 | R35: 8 | S35: 9 | T35: 10 | U35: 11 | V35: 12 | W35: 13 | X35: 14 | Y35: 15 | Z35: 16 | AA35: 17 | AB35: 18 | AC35: 19 | AD35: 20
C36: x^4 | D36: =INDEX((LINEST($B$6:$B$26,D$6:D$26^{1,2,3,4})),1) -> 0.0333342352 | E36: =INDEX((LINEST($B$6:$B$26,E$6:E$26^{1,2,3,4})),1) -> 0.0009096846612 | F36: =INDEX((LINEST($B$6:$B$26,F$6:F$26^{1,2,3,4})),1) -> 0.01304120556 | G36: =INDEX((LINEST($B$6:$B$26,G$6:G$26^{1,2,3,4})),1) -> 1.669249965e-05 | H36: =INDEX((LINEST($B$6:$B$26,H$6:H$26^{1,2,3,4})),1) -> 0.05540968632 | I36: =INDEX((LINEST($B$6:$B$26,I$6:I$26^{1,2,3,4})),1) -> 0.1127499304 | J36: =INDEX((LINEST($B$6:$B$26,J$6:J$26^{1,2,3,4})),1) -> 3.106121558e-07 | K36: =INDEX((LINEST($B$6:$B$26,K$6:K$26^{1,2,3,4})),1) -> 4.310830393e-05 | L36: =INDEX((LINEST($B$6:$B$26,L$6:L$26^{1,2,3,4})),1) -> 4.310830393e-05 | M36: =INDEX((LINEST($B$6:$B$26,M$6:M$26^{1,2,3,4})),1) -> 4.310830393e-05 | N36: =INDEX((LINEST($B$6:$B$26,N$6:N$26^{1,2,3,4})),1) -> 4.310830393e-05 | O36: =INDEX((LINEST($B$6:$B$26,O$6:O$26^{1,2,3,4})),1) -> 4.310830393e-05 | P36: =INDEX((LINEST($B$6:$B$26,P$6:P$26^{1,2,3,4})),1) -> 4.310830393e-05 | Q36: =INDEX((LINEST($B$6:$B$26,Q$6:Q$26^{1,2,3,4})),1) -> 4.310830393e-05 | R36: =INDEX((LINEST($B$6:$B$26,R$6:R$26^{1,2,3,4})),1) -> 4.310830393e-05 | S36: =INDEX((LINEST($B$6:$B$26,S$6:S$26^{1,2,3,4})),1) -> 4.310830393e-05 | T36: =INDEX((LINEST($B$6:$B$26,T$6:T$26^{1,2,3,4})),1) -> 4.310830393e-05 | U36: =INDEX((LINEST($B$6:$B$26,U$6:U$26^{1,2,3,4})),1) -> 4.310830393e-05 | V36: =INDEX((LINEST($B$6:$B$26,V$6:V$26^{1,2,3,4})),1) -> 4.310830393e-05 | W36: =INDEX((LINEST($B$6:$B$26,W$6:W$26^{1,2,3,4})),1) -> 4.310830393e-05 | X36: =INDEX((LINEST($B$6:$B$26,X$6:X$26^{1,2,3,4})),1) -> 4.310830393e-05 | Y36: =INDEX((LINEST($B$6:$B$26,Y$6:Y$26^{1,2,3,4})),1) -> 4.310830393e-05 | Z36: =INDEX((LINEST($B$6:$B$26,Z$6:Z$26^{1,2,3,4})),1) -> 4.310830393e-05 | AA36: =INDEX((LINEST($B$6:$B$26,AA$6:AA$26^{1,2,3,4})),1) -> 4.310830393e-05 | AB36: =INDEX((LINEST($B$6:$B$26,AB$6:AB$26^{1,2,3,4})),1) -> 4.310830393e-05 | AC36: =INDEX((LINEST($B$6:$B$26,AC$6:AC$26^{1,2,3,4})),1) -> 4.310830393e-05 | AD36: =INDEX((LINEST($B$6:$B$26,AD$6:AD$26^{1,2,3,4})),1) -> 4.310830393e-05
C37: x^3 | D37: =INDEX((LINEST($B$6:$B$26,D$6:D$26^{1,2,3,4})),1,2) -> -0.1489941013 | E37: =INDEX((LINEST($B$6:$B$26,E$6:E$26^{1,2,3,4})),1,2) -> 0.006474662859 | F37: =INDEX((LINEST($B$6:$B$26,F$6:F$26^{1,2,3,4})),1,2) -> 0.04421339439 | G37: =INDEX((LINEST($B$6:$B$26,G$6:G$26^{1,2,3,4})),1,2) -> -3.765658033e-05 | H37: =INDEX((LINEST($B$6:$B$26,H$6:H$26^{1,2,3,4})),1,2) -> 0.0798030364 | I37: =INDEX((LINEST($B$6:$B$26,I$6:I$26^{1,2,3,4})),1,2) -> -0.7764080675 | J37: =INDEX((LINEST($B$6:$B$26,J$6:J$26^{1,2,3,4})),1,2) -> 2.025465287e-05 | K37: =INDEX((LINEST($B$6:$B$26,K$6:K$26^{1,2,3,4})),1,2) -> 0.000818995793 | L37: =INDEX((LINEST($B$6:$B$26,L$6:L$26^{1,2,3,4})),1,2) -> 0.000818995793 | M37: =INDEX((LINEST($B$6:$B$26,M$6:M$26^{1,2,3,4})),1,2) -> 0.000818995793 | N37: =INDEX((LINEST($B$6:$B$26,N$6:N$26^{1,2,3,4})),1,2) -> 0.000818995793 | O37: =INDEX((LINEST($B$6:$B$26,O$6:O$26^{1,2,3,4})),1,2) -> 0.000818995793 | P37: =INDEX((LINEST($B$6:$B$26,P$6:P$26^{1,2,3,4})),1,2) -> 0.000818995793 | Q37: =INDEX((LINEST($B$6:$B$26,Q$6:Q$26^{1,2,3,4})),1,2) -> 0.000818995793 | R37: =INDEX((LINEST($B$6:$B$26,R$6:R$26^{1,2,3,4})),1,2) -> 0.000818995793 | S37: =INDEX((LINEST($B$6:$B$26,S$6:S$26^{1,2,3,4})),1,2) -> 0.000818995793 | T37: =INDEX((LINEST($B$6:$B$26,T$6:T$26^{1,2,3,4})),1,2) -> 0.000818995793 | U37: =INDEX((LINEST($B$6:$B$26,U$6:U$26^{1,2,3,4})),1,2) -> 0.000818995793 | V37: =INDEX((LINEST($B$6:$B$26,V$6:V$26^{1,2,3,4})),1,2) -> 0.000818995793 | W37: =INDEX((LINEST($B$6:$B$26,W$6:W$26^{1,2,3,4})),1,2) -> 0.000818995793 | X37: =INDEX((LINEST($B$6:$B$26,X$6:X$26^{1,2,3,4})),1,2) -> 0.000818995793 | Y37: =INDEX((LINEST($B$6:$B$26,Y$6:Y$26^{1,2,3,4})),1,2) -> 0.000818995793 | Z37: =INDEX((LINEST($B$6:$B$26,Z$6:Z$26^{1,2,3,4})),1,2) -> 0.000818995793 | AA37: =INDEX((LINEST($B$6:$B$26,AA$6:AA$26^{1,2,3,4})),1,2) -> 0.000818995793 | AB37: =INDEX((LINEST($B$6:$B$26,AB$6:AB$26^{1,2,3,4})),1,2) -> 0.000818995793 | AC37: =INDEX((LINEST($B$6:$B$26,AC$6:AC$26^{1,2,3,4})),1,2) -> 0.000818995793 | AD37: =INDEX((LINEST($B$6:$B$26,AD$6:AD$26^{1,2,3,4})),1,2) -> 0.000818995793
C38: x^2 | D38: =INDEX((LINEST($B$6:$B$26,D$6:D$26^{1,2,3,4})),1,3) -> 0.2214598066 | E38: =INDEX((LINEST($B$6:$B$26,E$6:E$26^{1,2,3,4})),1,3) -> -0.02551728137 | F38: =INDEX((LINEST($B$6:$B$26,F$6:F$26^{1,2,3,4})),1,3) -> -0.09214020529 | G38: =INDEX((LINEST($B$6:$B$26,G$6:G$26^{1,2,3,4})),1,3) -> 0.0005133832061 | H38: =INDEX((LINEST($B$6:$B$26,H$6:H$26^{1,2,3,4})),1,3) -> -0.138994036 | I38: =INDEX((LINEST($B$6:$B$26,I$6:I$26^{1,2,3,4})),1,3) -> 1.970208692 | J38: =INDEX((LINEST($B$6:$B$26,J$6:J$26^{1,2,3,4})),1,3) -> -0.0004076540526 | K38: =INDEX((LINEST($B$6:$B$26,K$6:K$26^{1,2,3,4})),1,3) -> -0.004802451729 | L38: =INDEX((LINEST($B$6:$B$26,L$6:L$26^{1,2,3,4})),1,3) -> -0.004802451729 | M38: =INDEX((LINEST($B$6:$B$26,M$6:M$26^{1,2,3,4})),1,3) -> -0.004802451729 | N38: =INDEX((LINEST($B$6:$B$26,N$6:N$26^{1,2,3,4})),1,3) -> -0.004802451729 | O38: =INDEX((LINEST($B$6:$B$26,O$6:O$26^{1,2,3,4})),1,3) -> -0.004802451729 | P38: =INDEX((LINEST($B$6:$B$26,P$6:P$26^{1,2,3,4})),1,3) -> -0.004802451729 | Q38: =INDEX((LINEST($B$6:$B$26,Q$6:Q$26^{1,2,3,4})),1,3) -> -0.004802451729 | R38: =INDEX((LINEST($B$6:$B$26,R$6:R$26^{1,2,3,4})),1,3) -> -0.004802451729 | S38: =INDEX((LINEST($B$6:$B$26,S$6:S$26^{1,2,3,4})),1,3) -> -0.004802451729 | T38: =INDEX((LINEST($B$6:$B$26,T$6:T$26^{1,2,3,4})),1,3) -> -0.004802451729 | U38: =INDEX((LINEST($B$6:$B$26,U$6:U$26^{1,2,3,4})),1,3) -> -0.004802451729 | V38: =INDEX((LINEST($B$6:$B$26,V$6:V$26^{1,2,3,4})),1,3) -> -0.004802451729 | W38: =INDEX((LINEST($B$6:$B$26,W$6:W$26^{1,2,3,4})),1,3) -> -0.004802451729 | X38: =INDEX((LINEST($B$6:$B$26,X$6:X$26^{1,2,3,4})),1,3) -> -0.004802451729 | Y38: =INDEX((LINEST($B$6:$B$26,Y$6:Y$26^{1,2,3,4})),1,3) -> -0.004802451729 | Z38: =INDEX((LINEST($B$6:$B$26,Z$6:Z$26^{1,2,3,4})),1,3) -> -0.004802451729 | AA38: =INDEX((LINEST($B$6:$B$26,AA$6:AA$26^{1,2,3,4})),1,3) -> -0.004802451729 | AB38: =INDEX((LINEST($B$6:$B$26,AB$6:AB$26^{1,2,3,4})),1,3) -> -0.004802451729 | AC38: =INDEX((LINEST($B$6:$B$26,AC$6:AC$26^{1,2,3,4})),1,3) -> -0.004802451729 | AD38: =INDEX((LINEST($B$6:$B$26,AD$6:AD$26^{1,2,3,4})),1,3) -> -0.004802451729
C39: x | D39: =INDEX((LINEST($B$6:$B$26,D$6:D$26^{1,2,3,4})),1,4) -> 0.0996195756 | E39: =INDEX((LINEST($B$6:$B$26,E$6:E$26^{1,2,3,4})),1,4) -> 0.09393124968 | F39: =INDEX((LINEST($B$6:$B$26,F$6:F$26^{1,2,3,4})),1,4) -> 0.1793086227 | G39: =INDEX((LINEST($B$6:$B$26,G$6:G$26^{1,2,3,4})),1,4) -> 0.02017019828 | H39: =INDEX((LINEST($B$6:$B$26,H$6:H$26^{1,2,3,4})),1,4) -> 0.2291548106 | I39: =INDEX((LINEST($B$6:$B$26,I$6:I$26^{1,2,3,4})),1,4) -> -1.353845975 | J39: =INDEX((LINEST($B$6:$B$26,J$6:J$26^{1,2,3,4})),1,4) -> 0.0145001415 | K39: =INDEX((LINEST($B$6:$B$26,K$6:K$26^{1,2,3,4})),1,4) -> 0.04976887944 | L39: =INDEX((LINEST($B$6:$B$26,L$6:L$26^{1,2,3,4})),1,4) -> 0.04976887944 | M39: =INDEX((LINEST($B$6:$B$26,M$6:M$26^{1,2,3,4})),1,4) -> 0.04976887944 | N39: =INDEX((LINEST($B$6:$B$26,N$6:N$26^{1,2,3,4})),1,4) -> 0.04976887944 | O39: =INDEX((LINEST($B$6:$B$26,O$6:O$26^{1,2,3,4})),1,4) -> 0.04976887944 | P39: =INDEX((LINEST($B$6:$B$26,P$6:P$26^{1,2,3,4})),1,4) -> 0.04976887944 | Q39: =INDEX((LINEST($B$6:$B$26,Q$6:Q$26^{1,2,3,4})),1,4) -> 0.04976887944 | R39: =INDEX((LINEST($B$6:$B$26,R$6:R$26^{1,2,3,4})),1,4) -> 0.04976887944 | S39: =INDEX((LINEST($B$6:$B$26,S$6:S$26^{1,2,3,4})),1,4) -> 0.04976887944 | T39: =INDEX((LINEST($B$6:$B$26,T$6:T$26^{1,2,3,4})),1,4) -> 0.04976887944 | U39: =INDEX((LINEST($B$6:$B$26,U$6:U$26^{1,2,3,4})),1,4) -> 0.04976887944 | V39: =INDEX((LINEST($B$6:$B$26,V$6:V$26^{1,2,3,4})),1,4) -> 0.04976887944 | W39: =INDEX((LINEST($B$6:$B$26,W$6:W$26^{1,2,3,4})),1,4) -> 0.04976887944 | X39: =INDEX((LINEST($B$6:$B$26,X$6:X$26^{1,2,3,4})),1,4) -> 0.04976887944 | Y39: =INDEX((LINEST($B$6:$B$26,Y$6:Y$26^{1,2,3,4})),1,4) -> 0.04976887944 | Z39: =INDEX((LINEST($B$6:$B$26,Z$6:Z$26^{1,2,3,4})),1,4) -> 0.04976887944 | AA39: =INDEX((LINEST($B$6:$B$26,AA$6:AA$26^{1,2,3,4})),1,4) -> 0.04976887944 | AB39: =INDEX((LINEST($B$6:$B$26,AB$6:AB$26^{1,2,3,4})),1,4) -> 0.04976887944 | AC39: =INDEX((LINEST($B$6:$B$26,AC$6:AC$26^{1,2,3,4})),1,4) -> 0.04976887944 | AD39: =INDEX((LINEST($B$6:$B$26,AD$6:AD$26^{1,2,3,4})),1,4) -> 0.04976887944
D40: =INDEX((LINEST($B$6:$B$26,D$6:D$26^{1,2,3,4})),1,5) -> 0.01805750924 | E40: =INDEX((LINEST($B$6:$B$26,E$6:E$26^{1,2,3,4})),1,5) -> 0.007172120971 | F40: =INDEX((LINEST($B$6:$B$26,F$6:F$26^{1,2,3,4})),1,5) -> 0.006636665408 | G40: =INDEX((LINEST($B$6:$B$26,G$6:G$26^{1,2,3,4})),1,5) -> 0.02516393995 | H40: =INDEX((LINEST($B$6:$B$26,H$6:H$26^{1,2,3,4})),1,5) -> 0.004591193058 | I40: =INDEX((LINEST($B$6:$B$26,I$6:I$26^{1,2,3,4})),1,5) -> -2.834013145e-05 | J40: =INDEX((LINEST($B$6:$B$26,J$6:J$26^{1,2,3,4})),1,5) -> 0.02549577276 | K40: =INDEX((LINEST($B$6:$B$26,K$6:K$26^{1,2,3,4})),1,5) -> 0.02549577276 | L40: =INDEX((LINEST($B$6:$B$26,L$6:L$26^{1,2,3,4})),1,5) -> 0.02549577276 | M40: =INDEX((LINEST($B$6:$B$26,M$6:M$26^{1,2,3,4})),1,5) -> 0.02549577276 | N40: =INDEX((LINEST($B$6:$B$26,N$6:N$26^{1,2,3,4})),1,5) -> 0.02549577276 | O40: =INDEX((LINEST($B$6:$B$26,O$6:O$26^{1,2,3,4})),1,5) -> 0.02549577276 | P40: =INDEX((LINEST($B$6:$B$26,P$6:P$26^{1,2,3,4})),1,5) -> 0.02549577276 | Q40: =INDEX((LINEST($B$6:$B$26,Q$6:Q$26^{1,2,3,4})),1,5) -> 0.02549577276 | R40: =INDEX((LINEST($B$6:$B$26,R$6:R$26^{1,2,3,4})),1,5) -> 0.02549577276 | S40: =INDEX((LINEST($B$6:$B$26,S$6:S$26^{1,2,3,4})),1,5) -> 0.02549577276 | T40: =INDEX((LINEST($B$6:$B$26,T$6:T$26^{1,2,3,4})),1,5) -> 0.02549577276 | U40: =INDEX((LINEST($B$6:$B$26,U$6:U$26^{1,2,3,4})),1,5) -> 0.02549577276 | V40: =INDEX((LINEST($B$6:$B$26,V$6:V$26^{1,2,3,4})),1,5) -> 0.02549577276 | W40: =INDEX((LINEST($B$6:$B$26,W$6:W$26^{1,2,3,4})),1,5) -> 0.02549577276 | X40: =INDEX((LINEST($B$6:$B$26,X$6:X$26^{1,2,3,4})),1,5) -> 0.02549577276 | Y40: =INDEX((LINEST($B$6:$B$26,Y$6:Y$26^{1,2,3,4})),1,5) -> 0.02549577276 | Z40: =INDEX((LINEST($B$6:$B$26,Z$6:Z$26^{1,2,3,4})),1,5) -> 0.02549577276 | AA40: =INDEX((LINEST($B$6:$B$26,AA$6:AA$26^{1,2,3,4})),1,5) -> 0.02549577276 | AB40: =INDEX((LINEST($B$6:$B$26,AB$6:AB$26^{1,2,3,4})),1,5) -> 0.02549577276 | AC40: =INDEX((LINEST($B$6:$B$26,AC$6:AC$26^{1,2,3,4})),1,5) -> 0.02549577276 | AD40: =INDEX((LINEST($B$6:$B$26,AD$6:AD$26^{1,2,3,4})),1,5) -> 0.02549577276
A42: 10 YEAR MORTALITY (years) | AG42: ACCOUNTING FOR BURN HOURS PER DAY
K43: 24 HOUR BURN | AG43: ='CALCULATOR INPUT SHEET'!Z28 -> 0 | AH43: ='CALCULATOR INPUT SHEET'!AA28 -> 0 | AI43: ='CALCULATOR INPUT SHEET'!AB28 -> 0 | AJ43: ='CALCULATOR INPUT SHEET'!AC28 -> 0 | AK43: ='CALCULATOR INPUT SHEET'!AD28 -> 0 | AL43: ='CALCULATOR INPUT SHEET'!AE28 -> 0 | AM43: ='CALCULATOR INPUT SHEET'!AF28 -> 0 | AN43: ='CALCULATOR INPUT SHEET'!AG28 -> 0 | AO43: ='CALCULATOR INPUT SHEET'!AH28 -> 0 | AP43: ='CALCULATOR INPUT SHEET'!AI28 -> 0 | AQ43: ='CALCULATOR INPUT SHEET'!AJ28 -> 0 | AR43: ='CALCULATOR INPUT SHEET'!AK28 -> 0 | AS43: ='CALCULATOR INPUT SHEET'!AL28 -> 0 | AT43: ='CALCULATOR INPUT SHEET'!AM28 -> 0 | AU43: ='CALCULATOR INPUT SHEET'!AN28 -> 0 | AV43: ='CALCULATOR INPUT SHEET'!AO28 -> 0 | AW43: ='CALCULATOR INPUT SHEET'!AP28 -> 0 | AX43: ='CALCULATOR INPUT SHEET'!AQ28 -> 0 | AY43: ='CALCULATOR INPUT SHEET'!AR28 -> 0 | AZ43: ='CALCULATOR INPUT SHEET'!AS28 -> 0
J44: =COUNTIF(J45:J1045,"<>") -> 1001 | K44: 1 | L44: 2 | M44: 3 | N44: 4 | O44: 5 | P44: 6 | Q44: 7 | R44: 8 | S44: 9 | T44: 10 | U44: 11 | V44: 12 | W44: 13 | X44: 14 | Y44: 15 | Z44: 16 | AA44: 17 | AB44: 18 | AC44: 19 | AD44: 20 | AG44: 1 | AH44: 2 | AI44: 3 | AJ44: 4 | AK44: 5 | AL44: 6 | AM44: 7 | AN44: 8 | AO44: 9 | AP44: 10 | AQ44: 11 | AR44: 12 | AS44: 13 | AT44: 14 | AU44: 15 | AV44: 16 | AW44: 17 | AX44: 18 | AY44: 19 | AZ44: 20
J45: 0 | K45: =IF(AQ$16=0,0,IF(K$36*$J45^4 + K$37*$J45^3 + K$38*$J45^2 + K$39*$J45 + K$40>1,1,K$36*$J45^4 + K$37*$J45^3 + K$38*$J45^2 + K$39*$J45 + K$40)) -> 0.02549577276 | L45: =IF(AR$16=0,0,IF(L$36*$J45^4 + L$37*$J45^3 + L$38*$J45^2 + L$39*$J45 + L$40>1,1,L$36*$J45^4 + L$37*$J45^3 + L$38*$J45^2 + L$39*$J45 + L$40)) -> 0.02549577276 | M45: =IF(AS$16=0,0,IF(M$36*$J45^4 + M$37*$J45^3 + M$38*$J45^2 + M$39*$J45 + M$40>1,1,M$36*$J45^4 + M$37*$J45^3 + M$38*$J45^2 + M$39*$J45 + M$40)) -> 0.02549577276 | N45: =IF(AT$16=0,0,IF(N$36*$J45^4 + N$37*$J45^3 + N$38*$J45^2 + N$39*$J45 + N$40>1,1,N$36*$J45^4 + N$37*$J45^3 + N$38*$J45^2 + N$39*$J45 + N$40)) -> 0.02549577276 | O45: =IF(AU$16=0,0,IF(O$36*$J45^4 + O$37*$J45^3 + O$38*$J45^2 + O$39*$J45 + O$40>1,1,O$36*$J45^4 + O$37*$J45^3 + O$38*$J45^2 + O$39*$J45 + O$40)) -> 0.02549577276 | P45: =IF(AV$16=0,0,IF(P$36*$J45^4 + P$37*$J45^3 + P$38*$J45^2 + P$39*$J45 + P$40>1,1,P$36*$J45^4 + P$37*$J45^3 + P$38*$J45^2 + P$39*$J45 + P$40)) -> 0.02549577276 | Q45: =IF(AW$16=0,0,IF(Q$36*$J45^4 + Q$37*$J45^3 + Q$38*$J45^2 + Q$39*$J45 + Q$40>1,1,Q$36*$J45^4 + Q$37*$J45^3 + Q$38*$J45^2 + Q$39*$J45 + Q$40)) -> 0.02549577276 | R45: =IF(AX$16=0,0,IF(R$36*$J45^4 + R$37*$J45^3 + R$38*$J45^2 + R$39*$J45 + R$40>1,1,R$36*$J45^4 + R$37*$J45^3 + R$38*$J45^2 + R$39*$J45 + R$40)) -> 0.02549577276 | S45: =IF(AY$16=0,0,IF(S$36*$J45^4 + S$37*$J45^3 + S$38*$J45^2 + S$39*$J45 + S$40>1,1,S$36*$J45^4 + S$37*$J45^3 + S$38*$J45^2 + S$39*$J45 + S$40)) -> 0.02549577276 | T45: =IF(AZ$16=0,0,IF(T$36*$J45^4 + T$37*$J45^3 + T$38*$J45^2 + T$39*$J45 + T$40>1,1,T$36*$J45^4 + T$37*$J45^3 + T$38*$J45^2 + T$39*$J45 + T$40)) -> 0.02549577276 | U45: =IF(BA$16=0,0,IF(U$36*$J45^4 + U$37*$J45^3 + U$38*$J45^2 + U$39*$J45 + U$40>1,1,U$36*$J45^4 + U$37*$J45^3 + U$38*$J45^2 + U$39*$J45 + U$40)) -> 0.02549577276 | V45: =IF(BB$16=0,0,IF(V$36*$J45^4 + V$37*$J45^3 + V$38*$J45^2 + V$39*$J45 + V$40>1,1,V$36*$J45^4 + V$37*$J45^3 + V$38*$J45^2 + V$39*$J45 + V$40)) -> 0.02549577276 | W45: =IF(BC$16=0,0,IF(W$36*$J45^4 + W$37*$J45^3 + W$38*$J45^2 + W$39*$J45 + W$40>1,1,W$36*$J45^4 + W$37*$J45^3 + W$38*$J45^2 + W$39*$J45 + W$40)) -> 0.02549577276 | X45: =IF(BD$16=0,0,IF(X$36*$J45^4 + X$37*$J45^3 + X$38*$J45^2 + X$39*$J45 + X$40>1,1,X$36*$J45^4 + X$37*$J45^3 + X$38*$J45^2 + X$39*$J45 + X$40)) -> 0.02549577276 | Y45: =IF(BE$16=0,0,IF(Y$36*$J45^4 + Y$37*$J45^3 + Y$38*$J45^2 + Y$39*$J45 + Y$40>1,1,Y$36*$J45^4 + Y$37*$J45^3 + Y$38*$J45^2 + Y$39*$J45 + Y$40)) -> 0.02549577276 | Z45: =IF(BF$16=0,0,IF(Z$36*$J45^4 + Z$37*$J45^3 + Z$38*$J45^2 + Z$39*$J45 + Z$40>1,1,Z$36*$J45^4 + Z$37*$J45^3 + Z$38*$J45^2 + Z$39*$J45 + Z$40)) -> 0.02549577276 | AA45: =IF(BG$16=0,0,IF(AA$36*$J45^4 + AA$37*$J45^3 + AA$38*$J45^2 + AA$39*$J45 + AA$40>1,1,AA$36*$J45^4 + AA$37*$J45^3 + AA$38*$J45^2 + AA$39*$J45 + AA$40)) -> 0.02549577276 | AB45: =IF(BH$16=0,0,IF(AB$36*$J45^4 + AB$37*$J45^3 + AB$38*$J45^2 + AB$39*$J45 + AB$40>1,1,AB$36*$J45^4 + AB$37*$J45^3 + AB$38*$J45^2 + AB$39*$J45 + AB$40)) -> 0.02549577276 | AC45: =IF(BI$16=0,0,IF(AC$36*$J45^4 + AC$37*$J45^3 + AC$38*$J45^2 + AC$39*$J45 + AC$40>1,1,AC$36*$J45^4 + AC$37*$J45^3 + AC$38*$J45^2 + AC$39*$J45 + AC$40)) -> 0.02549577276 | AD45: =IF(BJ$16=0,0,IF(AD$36*$J45^4 + AD$37*$J45^3 + AD$38*$J45^2 + AD$39*$J45 + AD$40>1,1,AD$36*$J45^4 + AD$37*$J45^3 + AD$38*$J45^2 + AD$39*$J45 + AD$40)) -> 0.02549577276 | AF45: 0 | AG45: =IF(AG$43<>0,INDEX(K$45:K$1045, MATCH($AF45*(AG$43/24), $J$45:$J$1045)), 0) -> 0 | AH45: =IF(AH$43<>0,INDEX(L$45:L$1045, MATCH($AF45*(AH$43/24), $J$45:$J$1045)), 0) -> 0 | AI45: =IF(AI$43<>0,INDEX(M$45:M$1045, MATCH($AF45*(AI$43/24), $J$45:$J$1045)), 0) -> 0 | AJ45: =IF(AJ$43<>0,INDEX(N$45:N$1045, MATCH($AF45*(AJ$43/24), $J$45:$J$1045)), 0) -> 0 | AK45: =IF(AK$43<>0,INDEX(O$45:O$1045, MATCH($AF45*(AK$43/24), $J$45:$J$1045)), 0) -> 0 | AL45: =IF(AL$43<>0,INDEX(P$45:P$1045, MATCH($AF45*(AL$43/24), $J$45:$J$1045)), 0) -> 0 | AM45: =IF(AM$43<>0,INDEX(Q$45:Q$1045, MATCH($AF45*(AM$43/24), $J$45:$J$1045)), 0) -> 0 | AN45: =IF(AN$43<>0,INDEX(R$45:R$1045, MATCH($AF45*(AN$43/24), $J$45:$J$1045)), 0) -> 0 | AO45: =IF(AO$43<>0,INDEX(S$45:S$1045, MATCH($AF45*(AO$43/24), $J$45:$J$1045)), 0) -> 0 | AP45: =IF(AP$43<>0,INDEX(T$45:T$1045, MATCH($AF45*(AP$43/24), $J$45:$J$1045)), 0) -> 0 | AQ45: =IF(AQ$43<>0,INDEX(U$45:U$1045, MATCH($AF45*(AQ$43/24), $J$45:$J$1045)), 0) -> 0 | AR45: =IF(AR$43<>0,INDEX(V$45:V$1045, MATCH($AF45*(AR$43/24), $J$45:$J$1045)), 0) -> 0 | AS45: =IF(AS$43<>0,INDEX(W$45:W$1045, MATCH($AF45*(AS$43/24), $J$45:$J$1045)), 0) -> 0 | AT45: =IF(AT$43<>0,INDEX(X$45:X$1045, MATCH($AF45*(AT$43/24), $J$45:$J$1045)), 0) -> 0 | AU45: =IF(AU$43<>0,INDEX(Y$45:Y$1045, MATCH($AF45*(AU$43/24), $J$45:$J$1045)), 0) -> 0 | AV45: =IF(AV$43<>0,INDEX(Z$45:Z$1045, MATCH($AF45*(AV$43/24), $J$45:$J$1045)), 0) -> 0 | AW45: =IF(AW$43<>0,INDEX(AA$45:AA$1045, MATCH($AF45*(AW$43/24), $J$45:$J$1045)), 0) -> 0 | AX45: =IF(AX$43<>0,INDEX(AB$45:AB$1045, MATCH($AF45*(AX$43/24), $J$45:$J$1045)), 0) -> 0 | AY45: =IF(AY$43<>0,INDEX(AC$45:AC$1045, MATCH($AF45*(AY$43/24), $J$45:$J$1045)), 0) -> 0 | AZ45: =IF(AZ$43<>0,INDEX(AD$45:AD$1045, MATCH($AF45*(AZ$43/24), $J$45:$J$1045)), 0) -> 0
J46: =J45+0.01 -> 0.01 | K46: 0.02599298213 | L46: 0.02599298213 | M46: 0.02599298213 | N46: 0.02599298213 | O46: 0.02599298213 | P46: 0.02599298213 | Q46: 0.02599298213 | R46: 0.02599298213 | S46: 0.02599298213 | T46: 0.02599298213 | U46: 0.02599298213 | V46: 0.02599298213 | W46: 0.02599298213 | X46: 0.02599298213 | Y46: 0.02599298213 | Z46: 0.02599298213 | AA46: 0.02599298213 | AB46: 0.02599298213 | AC46: 0.02599298213 | AD46: 0.02599298213 | AF46: =AF45+0.01 -> 0.01 | AG46: 0 | AH46: 0 | AI46: 0 | AJ46: 0 | AK46: 0 | AL46: 0 | AM46: 0 | AN46: 0 | AO46: 0 | AP46: 0 | AQ46: 0 | AR46: 0 | AS46: 0 | AT46: 0 | AU46: 0 | AV46: 0 | AW46: 0 | AX46: 0 | AY46: 0 | AZ46: 0
J47: 0.02 | K47: 0.02648923592 | L47: 0.02648923592 | M47: 0.02648923592 | N47: 0.02648923592 | O47: 0.02648923592 | P47: 0.02648923592 | Q47: 0.02648923592 | R47: 0.02648923592 | S47: 0.02648923592 | T47: 0.02648923592 | U47: 0.02648923592 | V47: 0.02648923592 | W47: 0.02648923592 | X47: 0.02648923592 | Y47: 0.02648923592 | Z47: 0.02648923592 | AA47: 0.02648923592 | AB47: 0.02648923592 | AC47: 0.02648923592 | AD47: 0.02648923592 | AF47: 0.02 | AG47: 0 | AH47: 0 | AI47: 0 | AJ47: 0 | AK47: 0 | AL47: 0 | AM47: 0 | AN47: 0 | AO47: 0 | AP47: 0 | AQ47: 0 | AR47: 0 | AS47: 0 | AT47: 0 | AU47: 0 | AV47: 0 | AW47: 0 | AX47: 0 | AY47: 0 | AZ47: 0
J48: 0.03 | K48: 0.02698453908 | L48: 0.02698453908 | M48: 0.02698453908 | N48: 0.02698453908 | O48: 0.02698453908 | P48: 0.02698453908 | Q48: 0.02698453908 | R48: 0.02698453908 | S48: 0.02698453908 | T48: 0.02698453908 | U48: 0.02698453908 | V48: 0.02698453908 | W48: 0.02698453908 | X48: 0.02698453908 | Y48: 0.02698453908 | Z48: 0.02698453908 | AA48: 0.02698453908 | AB48: 0.02698453908 | AC48: 0.02698453908 | AD48: 0.02698453908 | AF48: 0.03 | AG48: 0 | AH48: 0 | AI48: 0 | AJ48: 0 | AK48: 0 | AL48: 0 | AM48: 0 | AN48: 0 | AO48: 0 | AP48: 0 | AQ48: 0 | AR48: 0 | AS48: 0 | AT48: 0 | AU48: 0 | AV48: 0 | AW48: 0 | AX48: 0 | AY48: 0 | AZ48: 0
J49: 0.04 | K49: 0.02747889654 | L49: 0.02747889654 | M49: 0.02747889654 | N49: 0.02747889654 | O49: 0.02747889654 | P49: 0.02747889654 | Q49: 0.02747889654 | R49: 0.02747889654 | S49: 0.02747889654 | T49: 0.02747889654 | U49: 0.02747889654 | V49: 0.02747889654 | W49: 0.02747889654 | X49: 0.02747889654 | Y49: 0.02747889654 | Z49: 0.02747889654 | AA49: 0.02747889654 | AB49: 0.02747889654 | AC49: 0.02747889654 | AD49: 0.02747889654 | AF49: 0.04 | AG49: 0 | AH49: 0 | AI49: 0 | AJ49: 0 | AK49: 0 | AL49: 0 | AM49: 0 | AN49: 0 | AO49: 0 | AP49: 0 | AQ49: 0 | AR49: 0 | AS49: 0 | AT49: 0 | AU49: 0 | AV49: 0 | AW49: 0 | AX49: 0 | AY49: 0 | AZ49: 0
J50: 0.05 | K50: 0.02797231324 | L50: 0.02797231324 | M50: 0.02797231324 | N50: 0.02797231324 | O50: 0.02797231324 | P50: 0.02797231324 | Q50: 0.02797231324 | R50: 0.02797231324 | S50: 0.02797231324 | T50: 0.02797231324 | U50: 0.02797231324 | V50: 0.02797231324 | W50: 0.02797231324 | X50: 0.02797231324 | Y50: 0.02797231324 | Z50: 0.02797231324 | AA50: 0.02797231324 | AB50: 0.02797231324 | AC50: 0.02797231324 | AD50: 0.02797231324 | AF50: 0.05 | AG50: 0 | AH50: 0 | AI50: 0 | AJ50: 0 | AK50: 0 | AL50: 0 | AM50: 0 | AN50: 0 | AO50: 0 | AP50: 0 | AQ50: 0 | AR50: 0 | AS50: 0 | AT50: 0 | AU50: 0 | AV50: 0 | AW50: 0 | AX50: 0 | AY50: 0 | AZ50: 0
J51: 0.06 | K51: 0.02846479416 | L51: 0.02846479416 | M51: 0.02846479416 | N51: 0.02846479416 | O51: 0.02846479416 | P51: 0.02846479416 | Q51: 0.02846479416 | R51: 0.02846479416 | S51: 0.02846479416 | T51: 0.02846479416 | U51: 0.02846479416 | V51: 0.02846479416 | W51: 0.02846479416 | X51: 0.02846479416 | Y51: 0.02846479416 | Z51: 0.02846479416 | AA51: 0.02846479416 | AB51: 0.02846479416 | AC51: 0.02846479416 | AD51: 0.02846479416 | AF51: 0.06 | AG51: 0 | AH51: 0 | AI51: 0 | AJ51: 0 | AK51: 0 | AL51: 0 | AM51: 0 | AN51: 0 | AO51: 0 | AP51: 0 | AQ51: 0 | AR51: 0 | AS51: 0 | AT51: 0 | AU51: 0 | AV51: 0 | AW51: 0 | AX51: 0 | AY51: 0 | AZ51: 0
J52: 0.07 | K52: 0.02895634425 | L52: 0.02895634425 | M52: 0.02895634425 | N52: 0.02895634425 | O52: 0.02895634425 | P52: 0.02895634425 | Q52: 0.02895634425 | R52: 0.02895634425 | S52: 0.02895634425 | T52: 0.02895634425 | U52: 0.02895634425 | V52: 0.02895634425 | W52: 0.02895634425 | X52: 0.02895634425 | Y52: 0.02895634425 | Z52: 0.02895634425 | AA52: 0.02895634425 | AB52: 0.02895634425 | AC52: 0.02895634425 | AD52: 0.02895634425 | AF52: 0.07 | AG52: 0 | AH52: 0 | AI52: 0 | AJ52: 0 | AK52: 0 | AL52: 0 | AM52: 0 | AN52: 0 | AO52: 0 | AP52: 0 | AQ52: 0 | AR52: 0 | AS52: 0 | AT52: 0 | AU52: 0 | AV52: 0 | AW52: 0 | AX52: 0 | AY52: 0 | AZ52: 0
J53: 0.08 | K53: 0.02944696851 | L53: 0.02944696851 | M53: 0.02944696851 | N53: 0.02944696851 | O53: 0.02944696851 | P53: 0.02944696851 | Q53: 0.02944696851 | R53: 0.02944696851 | S53: 0.02944696851 | T53: 0.02944696851 | U53: 0.02944696851 | V53: 0.02944696851 | W53: 0.02944696851 | X53: 0.02944696851 | Y53: 0.02944696851 | Z53: 0.02944696851 | AA53: 0.02944696851 | AB53: 0.02944696851 | AC53: 0.02944696851 | AD53: 0.02944696851 | AF53: 0.08 | AG53: 0 | AH53: 0 | AI53: 0 | AJ53: 0 | AK53: 0 | AL53: 0 | AM53: 0 | AN53: 0 | AO53: 0 | AP53: 0 | AQ53: 0 | AR53: 0 | AS53: 0 | AT53: 0 | AU53: 0 | AV53: 0 | AW53: 0 | AX53: 0 | AY53: 0 | AZ53: 0
J54: 0.09 | K54: 0.02993667192 | L54: 0.02993667192 | M54: 0.02993667192 | N54: 0.02993667192 | O54: 0.02993667192 | P54: 0.02993667192 | Q54: 0.02993667192 | R54: 0.02993667192 | S54: 0.02993667192 | T54: 0.02993667192 | U54: 0.02993667192 | V54: 0.02993667192 | W54: 0.02993667192 | X54: 0.02993667192 | Y54: 0.02993667192 | Z54: 0.02993667192 | AA54: 0.02993667192 | AB54: 0.02993667192 | AC54: 0.02993667192 | AD54: 0.02993667192 | AF54: 0.09 | AG54: 0 | AH54: 0 | AI54: 0 | AJ54: 0 | AK54: 0 | AL54: 0 | AM54: 0 | AN54: 0 | AO54: 0 | AP54: 0 | AQ54: 0 | AR54: 0 | AS54: 0 | AT54: 0 | AU54: 0 | AV54: 0 | AW54: 0 | AX54: 0 | AY54: 0 | AZ54: 0
J55: 0.1 | K55: 0.03042545949 | L55: 0.03042545949 | M55: 0.03042545949 | N55: 0.03042545949 | O55: 0.03042545949 | P55: 0.03042545949 | Q55: 0.03042545949 | R55: 0.03042545949 | S55: 0.03042545949 | T55: 0.03042545949 | U55: 0.03042545949 | V55: 0.03042545949 | W55: 0.03042545949 | X55: 0.03042545949 | Y55: 0.03042545949 | Z55: 0.03042545949 | AA55: 0.03042545949 | AB55: 0.03042545949 | AC55: 0.03042545949 | AD55: 0.03042545949 | AF55: 0.1 | AG55: 0 | AH55: 0 | AI55: 0 | AJ55: 0 | AK55: 0 | AL55: 0 | AM55: 0 | AN55: 0 | AO55: 0 | AP55: 0 | AQ55: 0 | AR55: 0 | AS55: 0 | AT55: 0 | AU55: 0 | AV55: 0 | AW55: 0 | AX55: 0 | AY55: 0 | AZ55: 0
J56: 0.11 | K56: 0.03091333622 | L56: 0.03091333622 | M56: 0.03091333622 | N56: 0.03091333622 | O56: 0.03091333622 | P56: 0.03091333622 | Q56: 0.03091333622 | R56: 0.03091333622 | S56: 0.03091333622 | T56: 0.03091333622 | U56: 0.03091333622 | V56: 0.03091333622 | W56: 0.03091333622 | X56: 0.03091333622 | Y56: 0.03091333622 | Z56: 0.03091333622 | AA56: 0.03091333622 | AB56: 0.03091333622 | AC56: 0.03091333622 | AD56: 0.03091333622 | AF56: 0.11 | AG56: 0 | AH56: 0 | AI56: 0 | AJ56: 0 | AK56: 0 | AL56: 0 | AM56: 0 | AN56: 0 | AO56: 0 | AP56: 0 | AQ56: 0 | AR56: 0 | AS56: 0 | AT56: 0 | AU56: 0 | AV56: 0 | AW56: 0 | AX56: 0 | AY56: 0 | AZ56: 0
J57: 0.12 | K57: 0.03140030715 | L57: 0.03140030715 | M57: 0.03140030715 | N57: 0.03140030715 | O57: 0.03140030715 | P57: 0.03140030715 | Q57: 0.03140030715 | R57: 0.03140030715 | S57: 0.03140030715 | T57: 0.03140030715 | U57: 0.03140030715 | V57: 0.03140030715 | W57: 0.03140030715 | X57: 0.03140030715 | Y57: 0.03140030715 | Z57: 0.03140030715 | AA57: 0.03140030715 | AB57: 0.03140030715 | AC57: 0.03140030715 | AD57: 0.03140030715 | AF57: 0.12 | AG57: 0 | AH57: 0 | AI57: 0 | AJ57: 0 | AK57: 0 | AL57: 0 | AM57: 0 | AN57: 0 | AO57: 0 | AP57: 0 | AQ57: 0 | AR57: 0 | AS57: 0 | AT57: 0 | AU57: 0 | AV57: 0 | AW57: 0 | AX57: 0 | AY57: 0 | AZ57: 0
J58: 0.13 | K58: 0.0318863773 | L58: 0.0318863773 | M58: 0.0318863773 | N58: 0.0318863773 | O58: 0.0318863773 | P58: 0.0318863773 | Q58: 0.0318863773 | R58: 0.0318863773 | S58: 0.0318863773 | T58: 0.0318863773 | U58: 0.0318863773 | V58: 0.0318863773 | W58: 0.0318863773 | X58: 0.0318863773 | Y58: 0.0318863773 | Z58: 0.0318863773 | AA58: 0.0318863773 | AB58: 0.0318863773 | AC58: 0.0318863773 | AD58: 0.0318863773 | AF58: 0.13 | AG58: 0 | AH58: 0 | AI58: 0 | AJ58: 0 | AK58: 0 | AL58: 0 | AM58: 0 | AN58: 0 | AO58: 0 | AP58: 0 | AQ58: 0 | AR58: 0 | AS58: 0 | AT58: 0 | AU58: 0 | AV58: 0 | AW58: 0 | AX58: 0 | AY58: 0 | AZ58: 0
J59: 0.14 | K59: 0.03237155171 | L59: 0.03237155171 | M59: 0.03237155171 | N59: 0.03237155171 | O59: 0.03237155171 | P59: 0.03237155171 | Q59: 0.03237155171 | R59: 0.03237155171 | S59: 0.03237155171 | T59: 0.03237155171 | U59: 0.03237155171 | V59: 0.03237155171 | W59: 0.03237155171 | X59: 0.03237155171 | Y59: 0.03237155171 | Z59: 0.03237155171 | AA59: 0.03237155171 | AB59: 0.03237155171 | AC59: 0.03237155171 | AD59: 0.03237155171 | AF59: 0.14 | AG59: 0 | AH59: 0 | AI59: 0 | AJ59: 0 | AK59: 0 | AL59: 0 | AM59: 0 | AN59: 0 | AO59: 0 | AP59: 0 | AQ59: 0 | AR59: 0 | AS59: 0 | AT59: 0 | AU59: 0 | AV59: 0 | AW59: 0 | AX59: 0 | AY59: 0 | AZ59: 0
J60: 0.15 | K60: 0.03285583544 | L60: 0.03285583544 | M60: 0.03285583544 | N60: 0.03285583544 | O60: 0.03285583544 | P60: 0.03285583544 | Q60: 0.03285583544 | R60: 0.03285583544 | S60: 0.03285583544 | T60: 0.03285583544 | U60: 0.03285583544 | V60: 0.03285583544 | W60: 0.03285583544 | X60: 0.03285583544 | Y60: 0.03285583544 | Z60: 0.03285583544 | AA60: 0.03285583544 | AB60: 0.03285583544 | AC60: 0.03285583544 | AD60: 0.03285583544 | AF60: 0.15 | AG60: 0 | AH60: 0 | AI60: 0 | AJ60: 0 | AK60: 0 | AL60: 0 | AM60: 0 | AN60: 0 | AO60: 0 | AP60: 0 | AQ60: 0 | AR60: 0 | AS60: 0 | AT60: 0 | AU60: 0 | AV60: 0 | AW60: 0 | AX60: 0 | AY60: 0 | AZ60: 0
J61: 0.16 | K61: 0.03333923356 | L61: 0.03333923356 | M61: 0.03333923356 | N61: 0.03333923356 | O61: 0.03333923356 | P61: 0.03333923356 | Q61: 0.03333923356 | R61: 0.03333923356 | S61: 0.03333923356 | T61: 0.03333923356 | U61: 0.03333923356 | V61: 0.03333923356 | W61: 0.03333923356 | X61: 0.03333923356 | Y61: 0.03333923356 | Z61: 0.03333923356 | AA61: 0.03333923356 | AB61: 0.03333923356 | AC61: 0.03333923356 | AD61: 0.03333923356 | AF61: 0.16 | AG61: 0 | AH61: 0 | AI61: 0 | AJ61: 0 | AK61: 0 | AL61: 0 | AM61: 0 | AN61: 0 | AO61: 0 | AP61: 0 | AQ61: 0 | AR61: 0 | AS61: 0 | AT61: 0 | AU61: 0 | AV61: 0 | AW61: 0 | AX61: 0 | AY61: 0 | AZ61: 0
J62: 0.17 | K62: 0.03382175114 | L62: 0.03382175114 | M62: 0.03382175114 | N62: 0.03382175114 | O62: 0.03382175114 | P62: 0.03382175114 | Q62: 0.03382175114 | R62: 0.03382175114 | S62: 0.03382175114 | T62: 0.03382175114 | U62: 0.03382175114 | V62: 0.03382175114 | W62: 0.03382175114 | X62: 0.03382175114 | Y62: 0.03382175114 | Z62: 0.03382175114 | AA62: 0.03382175114 | AB62: 0.03382175114 | AC62: 0.03382175114 | AD62: 0.03382175114 | AF62: 0.17 | AG62: 0 | AH62: 0 | AI62: 0 | AJ62: 0 | AK62: 0 | AL62: 0 | AM62: 0 | AN62: 0 | AO62: 0 | AP62: 0 | AQ62: 0 | AR62: 0 | AS62: 0 | AT62: 0 | AU62: 0 | AV62: 0 | AW62: 0 | AX62: 0 | AY62: 0 | AZ62: 0
J63: 0.18 | K63: 0.03430339326 | L63: 0.03430339326 | M63: 0.03430339326 | N63: 0.03430339326 | O63: 0.03430339326 | P63: 0.03430339326 | Q63: 0.03430339326 | R63: 0.03430339326 | S63: 0.03430339326 | T63: 0.03430339326 | U63: 0.03430339326 | V63: 0.03430339326 | W63: 0.03430339326 | X63: 0.03430339326 | Y63: 0.03430339326 | Z63: 0.03430339326 | AA63: 0.03430339326 | AB63: 0.03430339326 | AC63: 0.03430339326 | AD63: 0.03430339326 | AF63: 0.18 | AG63: 0 | AH63: 0 | AI63: 0 | AJ63: 0 | AK63: 0 | AL63: 0 | AM63: 0 | AN63: 0 | AO63: 0 | AP63: 0 | AQ63: 0 | AR63: 0 | AS63: 0 | AT63: 0 | AU63: 0 | AV63: 0 | AW63: 0 | AX63: 0 | AY63: 0 | AZ63: 0
J64: 0.19 | K64: 0.03478416501 | L64: 0.03478416501 | M64: 0.03478416501 | N64: 0.03478416501 | O64: 0.03478416501 | P64: 0.03478416501 | Q64: 0.03478416501 | R64: 0.03478416501 | S64: 0.03478416501 | T64: 0.03478416501 | U64: 0.03478416501 | V64: 0.03478416501 | W64: 0.03478416501 | X64: 0.03478416501 | Y64: 0.03478416501 | Z64: 0.03478416501 | AA64: 0.03478416501 | AB64: 0.03478416501 | AC64: 0.03478416501 | AD64: 0.03478416501 | AF64: 0.19 | AG64: 0 | AH64: 0 | AI64: 0 | AJ64: 0 | AK64: 0 | AL64: 0 | AM64: 0 | AN64: 0 | AO64: 0 | AP64: 0 | AQ64: 0 | AR64: 0 | AS64: 0 | AT64: 0 | AU64: 0 | AV64: 0 | AW64: 0 | AX64: 0 | AY64: 0 | AZ64: 0
J65: 0.2 | K65: 0.03526407151 | L65: 0.03526407151 | M65: 0.03526407151 | N65: 0.03526407151 | O65: 0.03526407151 | P65: 0.03526407151 | Q65: 0.03526407151 | R65: 0.03526407151 | S65: 0.03526407151 | T65: 0.03526407151 | U65: 0.03526407151 | V65: 0.03526407151 | W65: 0.03526407151 | X65: 0.03526407151 | Y65: 0.03526407151 | Z65: 0.03526407151 | AA65: 0.03526407151 | AB65: 0.03526407151 | AC65: 0.03526407151 | AD65: 0.03526407151 | AF65: 0.2 | AG65: 0 | AH65: 0 | AI65: 0 | AJ65: 0 | AK65: 0 | AL65: 0 | AM65: 0 | AN65: 0 | AO65: 0 | AP65: 0 | AQ65: 0 | AR65: 0 | AS65: 0 | AT65: 0 | AU65: 0 | AV65: 0 | AW65: 0 | AX65: 0 | AY65: 0 | AZ65: 0
J66: 0.21 | K66: 0.03574311787 | L66: 0.03574311787 | M66: 0.03574311787 | N66: 0.03574311787 | O66: 0.03574311787 | P66: 0.03574311787 | Q66: 0.03574311787 | R66: 0.03574311787 | S66: 0.03574311787 | T66: 0.03574311787 | U66: 0.03574311787 | V66: 0.03574311787 | W66: 0.03574311787 | X66: 0.03574311787 | Y66: 0.03574311787 | Z66: 0.03574311787 | AA66: 0.03574311787 | AB66: 0.03574311787 | AC66: 0.03574311787 | AD66: 0.03574311787 | AF66: 0.21 | AG66: 0 | AH66: 0 | AI66: 0 | AJ66: 0 | AK66: 0 | AL66: 0 | AM66: 0 | AN66: 0 | AO66: 0 | AP66: 0 | AQ66: 0 | AR66: 0 | AS66: 0 | AT66: 0 | AU66: 0 | AV66: 0 | AW66: 0 | AX66: 0 | AY66: 0 | AZ66: 0
J67: 0.22 | K67: 0.03622130922 | L67: 0.03622130922 | M67: 0.03622130922 | N67: 0.03622130922 | O67: 0.03622130922 | P67: 0.03622130922 | Q67: 0.03622130922 | R67: 0.03622130922 | S67: 0.03622130922 | T67: 0.03622130922 | U67: 0.03622130922 | V67: 0.03622130922 | W67: 0.03622130922 | X67: 0.03622130922 | Y67: 0.03622130922 | Z67: 0.03622130922 | AA67: 0.03622130922 | AB67: 0.03622130922 | AC67: 0.03622130922 | AD67: 0.03622130922 | AF67: 0.22 | AG67: 0 | AH67: 0 | AI67: 0 | AJ67: 0 | AK67: 0 | AL67: 0 | AM67: 0 | AN67: 0 | AO67: 0 | AP67: 0 | AQ67: 0 | AR67: 0 | AS67: 0 | AT67: 0 | AU67: 0 | AV67: 0 | AW67: 0 | AX67: 0 | AY67: 0 | AZ67: 0
J68: 0.23 | K68: 0.03669865069 | L68: 0.03669865069 | M68: 0.03669865069 | N68: 0.03669865069 | O68: 0.03669865069 | P68: 0.03669865069 | Q68: 0.03669865069 | R68: 0.03669865069 | S68: 0.03669865069 | T68: 0.03669865069 | U68: 0.03669865069 | V68: 0.03669865069 | W68: 0.03669865069 | X68: 0.03669865069 | Y68: 0.03669865069 | Z68: 0.03669865069 | AA68: 0.03669865069 | AB68: 0.03669865069 | AC68: 0.03669865069 | AD68: 0.03669865069 | AF68: 0.23 | AG68: 0 | AH68: 0 | AI68: 0 | AJ68: 0 | AK68: 0 | AL68: 0 | AM68: 0 | AN68: 0 | AO68: 0 | AP68: 0 | AQ68: 0 | AR68: 0 | AS68: 0 | AT68: 0 | AU68: 0 | AV68: 0 | AW68: 0 | AX68: 0 | AY68: 0 | AZ68: 0
J69: 0.24 | K69: 0.03717514742 | L69: 0.03717514742 | M69: 0.03717514742 | N69: 0.03717514742 | O69: 0.03717514742 | P69: 0.03717514742 | Q69: 0.03717514742 | R69: 0.03717514742 | S69: 0.03717514742 | T69: 0.03717514742 | U69: 0.03717514742 | V69: 0.03717514742 | W69: 0.03717514742 | X69: 0.03717514742 | Y69: 0.03717514742 | Z69: 0.03717514742 | AA69: 0.03717514742 | AB69: 0.03717514742 | AC69: 0.03717514742 | AD69: 0.03717514742 | AF69: 0.24 | AG69: 0 | AH69: 0 | AI69: 0 | AJ69: 0 | AK69: 0 | AL69: 0 | AM69: 0 | AN69: 0 | AO69: 0 | AP69: 0 | AQ69: 0 | AR69: 0 | AS69: 0 | AT69: 0 | AU69: 0 | AV69: 0 | AW69: 0 | AX69: 0 | AY69: 0 | AZ69: 0
J70: 0.25 | K70: 0.03765080458 | L70: 0.03765080458 | M70: 0.03765080458 | N70: 0.03765080458 | O70: 0.03765080458 | P70: 0.03765080458 | Q70: 0.03765080458 | R70: 0.03765080458 | S70: 0.03765080458 | T70: 0.03765080458 | U70: 0.03765080458 | V70: 0.03765080458 | W70: 0.03765080458 | X70: 0.03765080458 | Y70: 0.03765080458 | Z70: 0.03765080458 | AA70: 0.03765080458 | AB70: 0.03765080458 | AC70: 0.03765080458 | AD70: 0.03765080458 | AF70: 0.25 | AG70: 0 | AH70: 0 | AI70: 0 | AJ70: 0 | AK70: 0 | AL70: 0 | AM70: 0 | AN70: 0 | AO70: 0 | AP70: 0 | AQ70: 0 | AR70: 0 | AS70: 0 | AT70: 0 | AU70: 0 | AV70: 0 | AW70: 0 | AX70: 0 | AY70: 0 | AZ70: 0
J71: 0.26 | K71: 0.03812562734 | L71: 0.03812562734 | M71: 0.03812562734 | N71: 0.03812562734 | O71: 0.03812562734 | P71: 0.03812562734 | Q71: 0.03812562734 | R71: 0.03812562734 | S71: 0.03812562734 | T71: 0.03812562734 | U71: 0.03812562734 | V71: 0.03812562734 | W71: 0.03812562734 | X71: 0.03812562734 | Y71: 0.03812562734 | Z71: 0.03812562734 | AA71: 0.03812562734 | AB71: 0.03812562734 | AC71: 0.03812562734 | AD71: 0.03812562734 | AF71: 0.26 | AG71: 0 | AH71: 0 | AI71: 0 | AJ71: 0 | AK71: 0 | AL71: 0 | AM71: 0 | AN71: 0 | AO71: 0 | AP71: 0 | AQ71: 0 | AR71: 0 | AS71: 0 | AT71: 0 | AU71: 0 | AV71: 0 | AW71: 0 | AX71: 0 | AY71: 0 | AZ71: 0
J72: 0.27 | K72: 0.03859962086 | L72: 0.03859962086 | M72: 0.03859962086 | N72: 0.03859962086 | O72: 0.03859962086 | P72: 0.03859962086 | Q72: 0.03859962086 | R72: 0.03859962086 | S72: 0.03859962086 | T72: 0.03859962086 | U72: 0.03859962086 | V72: 0.03859962086 | W72: 0.03859962086 | X72: 0.03859962086 | Y72: 0.03859962086 | Z72: 0.03859962086 | AA72: 0.03859962086 | AB72: 0.03859962086 | AC72: 0.03859962086 | AD72: 0.03859962086 | AF72: 0.27 | AG72: 0 | AH72: 0 | AI72: 0 | AJ72: 0 | AK72: 0 | AL72: 0 | AM72: 0 | AN72: 0 | AO72: 0 | AP72: 0 | AQ72: 0 | AR72: 0 | AS72: 0 | AT72: 0 | AU72: 0 | AV72: 0 | AW72: 0 | AX72: 0 | AY72: 0 | AZ72: 0
J73: 0.28 | K73: 0.03907279035 | L73: 0.03907279035 | M73: 0.03907279035 | N73: 0.03907279035 | O73: 0.03907279035 | P73: 0.03907279035 | Q73: 0.03907279035 | R73: 0.03907279035 | S73: 0.03907279035 | T73: 0.03907279035 | U73: 0.03907279035 | V73: 0.03907279035 | W73: 0.03907279035 | X73: 0.03907279035 | Y73: 0.03907279035 | Z73: 0.03907279035 | AA73: 0.03907279035 | AB73: 0.03907279035 | AC73: 0.03907279035 | AD73: 0.03907279035 | AF73: 0.28 | AG73: 0 | AH73: 0 | AI73: 0 | AJ73: 0 | AK73: 0 | AL73: 0 | AM73: 0 | AN73: 0 | AO73: 0 | AP73: 0 | AQ73: 0 | AR73: 0 | AS73: 0 | AT73: 0 | AU73: 0 | AV73: 0 | AW73: 0 | AX73: 0 | AY73: 0 | AZ73: 0
J74: 0.29 | K74: 0.03954514099 | L74: 0.03954514099 | M74: 0.03954514099 | N74: 0.03954514099 | O74: 0.03954514099 | P74: 0.03954514099 | Q74: 0.03954514099 | R74: 0.03954514099 | S74: 0.03954514099 | T74: 0.03954514099 | U74: 0.03954514099 | V74: 0.03954514099 | W74: 0.03954514099 | X74: 0.03954514099 | Y74: 0.03954514099 | Z74: 0.03954514099 | AA74: 0.03954514099 | AB74: 0.03954514099 | AC74: 0.03954514099 | AD74: 0.03954514099 | AF74: 0.29 | AG74: 0 | AH74: 0 | AI74: 0 | AJ74: 0 | AK74: 0 | AL74: 0 | AM74: 0 | AN74: 0 | AO74: 0 | AP74: 0 | AQ74: 0 | AR74: 0 | AS74: 0 | AT74: 0 | AU74: 0 | AV74: 0 | AW74: 0 | AX74: 0 | AY74: 0 | AZ74: 0
J75: 0.3 | K75: 0.040016678 | L75: 0.040016678 | M75: 0.040016678 | N75: 0.040016678 | O75: 0.040016678 | P75: 0.040016678 | Q75: 0.040016678 | R75: 0.040016678 | S75: 0.040016678 | T75: 0.040016678 | U75: 0.040016678 | V75: 0.040016678 | W75: 0.040016678 | X75: 0.040016678 | Y75: 0.040016678 | Z75: 0.040016678 | AA75: 0.040016678 | AB75: 0.040016678 | AC75: 0.040016678 | AD75: 0.040016678 | AF75: 0.3 | AG75: 0 | AH75: 0 | AI75: 0 | AJ75: 0 | AK75: 0 | AL75: 0 | AM75: 0 | AN75: 0 | AO75: 0 | AP75: 0 | AQ75: 0 | AR75: 0 | AS75: 0 | AT75: 0 | AU75: 0 | AV75: 0 | AW75: 0 | AX75: 0 | AY75: 0 | AZ75: 0
J76: 0.31 | K76: 0.04048740659 | L76: 0.04048740659 | M76: 0.04048740659 | N76: 0.04048740659 | O76: 0.04048740659 | P76: 0.04048740659 | Q76: 0.04048740659 | R76: 0.04048740659 | S76: 0.04048740659 | T76: 0.04048740659 | U76: 0.04048740659 | V76: 0.04048740659 | W76: 0.04048740659 | X76: 0.04048740659 | Y76: 0.04048740659 | Z76: 0.04048740659 | AA76: 0.04048740659 | AB76: 0.04048740659 | AC76: 0.04048740659 | AD76: 0.04048740659 | AF76: 0.31 | AG76: 0 | AH76: 0 | AI76: 0 | AJ76: 0 | AK76: 0 | AL76: 0 | AM76: 0 | AN76: 0 | AO76: 0 | AP76: 0 | AQ76: 0 | AR76: 0 | AS76: 0 | AT76: 0 | AU76: 0 | AV76: 0 | AW76: 0 | AX76: 0 | AY76: 0 | AZ76: 0
J77: 0.32 | K77: 0.040957332 | L77: 0.040957332 | M77: 0.040957332 | N77: 0.040957332 | O77: 0.040957332 | P77: 0.040957332 | Q77: 0.040957332 | R77: 0.040957332 | S77: 0.040957332 | T77: 0.040957332 | U77: 0.040957332 | V77: 0.040957332 | W77: 0.040957332 | X77: 0.040957332 | Y77: 0.040957332 | Z77: 0.040957332 | AA77: 0.040957332 | AB77: 0.040957332 | AC77: 0.040957332 | AD77: 0.040957332 | AF77: 0.32 | AG77: 0 | AH77: 0 | AI77: 0 | AJ77: 0 | AK77: 0 | AL77: 0 | AM77: 0 | AN77: 0 | AO77: 0 | AP77: 0 | AQ77: 0 | AR77: 0 | AS77: 0 | AT77: 0 | AU77: 0 | AV77: 0 | AW77: 0 | AX77: 0 | AY77: 0 | AZ77: 0
J78: 0.33 | K78: 0.04142645946 | L78: 0.04142645946 | M78: 0.04142645946 | N78: 0.04142645946 | O78: 0.04142645946 | P78: 0.04142645946 | Q78: 0.04142645946 | R78: 0.04142645946 | S78: 0.04142645946 | T78: 0.04142645946 | U78: 0.04142645946 | V78: 0.04142645946 | W78: 0.04142645946 | X78: 0.04142645946 | Y78: 0.04142645946 | Z78: 0.04142645946 | AA78: 0.04142645946 | AB78: 0.04142645946 | AC78: 0.04142645946 | AD78: 0.04142645946 | AF78: 0.33 | AG78: 0 | AH78: 0 | AI78: 0 | AJ78: 0 | AK78: 0 | AL78: 0 | AM78: 0 | AN78: 0 | AO78: 0 | AP78: 0 | AQ78: 0 | AR78: 0 | AS78: 0 | AT78: 0 | AU78: 0 | AV78: 0 | AW78: 0 | AX78: 0 | AY78: 0 | AZ78: 0
J79: 0.34 | K79: 0.04189479423 | L79: 0.04189479423 | M79: 0.04189479423 | N79: 0.04189479423 | O79: 0.04189479423 | P79: 0.04189479423 | Q79: 0.04189479423 | R79: 0.04189479423 | S79: 0.04189479423 | T79: 0.04189479423 | U79: 0.04189479423 | V79: 0.04189479423 | W79: 0.04189479423 | X79: 0.04189479423 | Y79: 0.04189479423 | Z79: 0.04189479423 | AA79: 0.04189479423 | AB79: 0.04189479423 | AC79: 0.04189479423 | AD79: 0.04189479423 | AF79: 0.34 | AG79: 0 | AH79: 0 | AI79: 0 | AJ79: 0 | AK79: 0 | AL79: 0 | AM79: 0 | AN79: 0 | AO79: 0 | AP79: 0 | AQ79: 0 | AR79: 0 | AS79: 0 | AT79: 0 | AU79: 0 | AV79: 0 | AW79: 0 | AX79: 0 | AY79: 0 | AZ79: 0
J80: 0.35 | K80: 0.04236234156 | L80: 0.04236234156 | M80: 0.04236234156 | N80: 0.04236234156 | O80: 0.04236234156 | P80: 0.04236234156 | Q80: 0.04236234156 | R80: 0.04236234156 | S80: 0.04236234156 | T80: 0.04236234156 | U80: 0.04236234156 | V80: 0.04236234156 | W80: 0.04236234156 | X80: 0.04236234156 | Y80: 0.04236234156 | Z80: 0.04236234156 | AA80: 0.04236234156 | AB80: 0.04236234156 | AC80: 0.04236234156 | AD80: 0.04236234156 | AF80: 0.35 | AG80: 0 | AH80: 0 | AI80: 0 | AJ80: 0 | AK80: 0 | AL80: 0 | AM80: 0 | AN80: 0 | AO80: 0 | AP80: 0 | AQ80: 0 | AR80: 0 | AS80: 0 | AT80: 0 | AU80: 0 | AV80: 0 | AW80: 0 | AX80: 0 | AY80: 0 | AZ80: 0
J81: 0.36 | K81: 0.04282910673 | L81: 0.04282910673 | M81: 0.04282910673 | N81: 0.04282910673 | O81: 0.04282910673 | P81: 0.04282910673 | Q81: 0.04282910673 | R81: 0.04282910673 | S81: 0.04282910673 | T81: 0.04282910673 | U81: 0.04282910673 | V81: 0.04282910673 | W81: 0.04282910673 | X81: 0.04282910673 | Y81: 0.04282910673 | Z81: 0.04282910673 | AA81: 0.04282910673 | AB81: 0.04282910673 | AC81: 0.04282910673 | AD81: 0.04282910673 | AF81: 0.36 | AG81: 0 | AH81: 0 | AI81: 0 | AJ81: 0 | AK81: 0 | AL81: 0 | AM81: 0 | AN81: 0 | AO81: 0 | AP81: 0 | AQ81: 0 | AR81: 0 | AS81: 0 | AT81: 0 | AU81: 0 | AV81: 0 | AW81: 0 | AX81: 0 | AY81: 0 | AZ81: 0
J82: 0.37 | K82: 0.04329509502 | L82: 0.04329509502 | M82: 0.04329509502 | N82: 0.04329509502 | O82: 0.04329509502 | P82: 0.04329509502 | Q82: 0.04329509502 | R82: 0.04329509502 | S82: 0.04329509502 | T82: 0.04329509502 | U82: 0.04329509502 | V82: 0.04329509502 | W82: 0.04329509502 | X82: 0.04329509502 | Y82: 0.04329509502 | Z82: 0.04329509502 | AA82: 0.04329509502 | AB82: 0.04329509502 | AC82: 0.04329509502 | AD82: 0.04329509502 | AF82: 0.37 | AG82: 0 | AH82: 0 | AI82: 0 | AJ82: 0 | AK82: 0 | AL82: 0 | AM82: 0 | AN82: 0 | AO82: 0 | AP82: 0 | AQ82: 0 | AR82: 0 | AS82: 0 | AT82: 0 | AU82: 0 | AV82: 0 | AW82: 0 | AX82: 0 | AY82: 0 | AZ82: 0
J83: 0.38 | K83: 0.04376031172 | L83: 0.04376031172 | M83: 0.04376031172 | N83: 0.04376031172 | O83: 0.04376031172 | P83: 0.04376031172 | Q83: 0.04376031172 | R83: 0.04376031172 | S83: 0.04376031172 | T83: 0.04376031172 | U83: 0.04376031172 | V83: 0.04376031172 | W83: 0.04376031172 | X83: 0.04376031172 | Y83: 0.04376031172 | Z83: 0.04376031172 | AA83: 0.04376031172 | AB83: 0.04376031172 | AC83: 0.04376031172 | AD83: 0.04376031172 | AF83: 0.38 | AG83: 0 | AH83: 0 | AI83: 0 | AJ83: 0 | AK83: 0 | AL83: 0 | AM83: 0 | AN83: 0 | AO83: 0 | AP83: 0 | AQ83: 0 | AR83: 0 | AS83: 0 | AT83: 0 | AU83: 0 | AV83: 0 | AW83: 0 | AX83: 0 | AY83: 0 | AZ83: 0
J84: 0.39 | K84: 0.04422476213 | L84: 0.04422476213 | M84: 0.04422476213 | N84: 0.04422476213 | O84: 0.04422476213 | P84: 0.04422476213 | Q84: 0.04422476213 | R84: 0.04422476213 | S84: 0.04422476213 | T84: 0.04422476213 | U84: 0.04422476213 | V84: 0.04422476213 | W84: 0.04422476213 | X84: 0.04422476213 | Y84: 0.04422476213 | Z84: 0.04422476213 | AA84: 0.04422476213 | AB84: 0.04422476213 | AC84: 0.04422476213 | AD84: 0.04422476213 | AF84: 0.39 | AG84: 0 | AH84: 0 | AI84: 0 | AJ84: 0 | AK84: 0 | AL84: 0 | AM84: 0 | AN84: 0 | AO84: 0 | AP84: 0 | AQ84: 0 | AR84: 0 | AS84: 0 | AT84: 0 | AU84: 0 | AV84: 0 | AW84: 0 | AX84: 0 | AY84: 0 | AZ84: 0
J85: 0.4 | K85: 0.04468845156 | L85: 0.04468845156 | M85: 0.04468845156 | N85: 0.04468845156 | O85: 0.04468845156 | P85: 0.04468845156 | Q85: 0.04468845156 | R85: 0.04468845156 | S85: 0.04468845156 | T85: 0.04468845156 | U85: 0.04468845156 | V85: 0.04468845156 | W85: 0.04468845156 | X85: 0.04468845156 | Y85: 0.04468845156 | Z85: 0.04468845156 | AA85: 0.04468845156 | AB85: 0.04468845156 | AC85: 0.04468845156 | AD85: 0.04468845156 | AF85: 0.4 | AG85: 0 | AH85: 0 | AI85: 0 | AJ85: 0 | AK85: 0 | AL85: 0 | AM85: 0 | AN85: 0 | AO85: 0 | AP85: 0 | AQ85: 0 | AR85: 0 | AS85: 0 | AT85: 0 | AU85: 0 | AV85: 0 | AW85: 0 | AX85: 0 | AY85: 0 | AZ85: 0
J86: 0.41 | K86: 0.04515138534 | L86: 0.04515138534 | M86: 0.04515138534 | N86: 0.04515138534 | O86: 0.04515138534 | P86: 0.04515138534 | Q86: 0.04515138534 | R86: 0.04515138534 | S86: 0.04515138534 | T86: 0.04515138534 | U86: 0.04515138534 | V86: 0.04515138534 | W86: 0.04515138534 | X86: 0.04515138534 | Y86: 0.04515138534 | Z86: 0.04515138534 | AA86: 0.04515138534 | AB86: 0.04515138534 | AC86: 0.04515138534 | AD86: 0.04515138534 | AF86: 0.41 | AG86: 0 | AH86: 0 | AI86: 0 | AJ86: 0 | AK86: 0 | AL86: 0 | AM86: 0 | AN86: 0 | AO86: 0 | AP86: 0 | AQ86: 0 | AR86: 0 | AS86: 0 | AT86: 0 | AU86: 0 | AV86: 0 | AW86: 0 | AX86: 0 | AY86: 0 | AZ86: 0
J87: 0.42 | K87: 0.04561356879 | L87: 0.04561356879 | M87: 0.04561356879 | N87: 0.04561356879 | O87: 0.04561356879 | P87: 0.04561356879 | Q87: 0.04561356879 | R87: 0.04561356879 | S87: 0.04561356879 | T87: 0.04561356879 | U87: 0.04561356879 | V87: 0.04561356879 | W87: 0.04561356879 | X87: 0.04561356879 | Y87: 0.04561356879 | Z87: 0.04561356879 | AA87: 0.04561356879 | AB87: 0.04561356879 | AC87: 0.04561356879 | AD87: 0.04561356879 | AF87: 0.42 | AG87: 0 | AH87: 0 | AI87: 0 | AJ87: 0 | AK87: 0 | AL87: 0 | AM87: 0 | AN87: 0 | AO87: 0 | AP87: 0 | AQ87: 0 | AR87: 0 | AS87: 0 | AT87: 0 | AU87: 0 | AV87: 0 | AW87: 0 | AX87: 0 | AY87: 0 | AZ87: 0
J88: 0.43 | K88: 0.04607500728 | L88: 0.04607500728 | M88: 0.04607500728 | N88: 0.04607500728 | O88: 0.04607500728 | P88: 0.04607500728 | Q88: 0.04607500728 | R88: 0.04607500728 | S88: 0.04607500728 | T88: 0.04607500728 | U88: 0.04607500728 | V88: 0.04607500728 | W88: 0.04607500728 | X88: 0.04607500728 | Y88: 0.04607500728 | Z88: 0.04607500728 | AA88: 0.04607500728 | AB88: 0.04607500728 | AC88: 0.04607500728 | AD88: 0.04607500728 | AF88: 0.43 | AG88: 0 | AH88: 0 | AI88: 0 | AJ88: 0 | AK88: 0 | AL88: 0 | AM88: 0 | AN88: 0 | AO88: 0 | AP88: 0 | AQ88: 0 | AR88: 0 | AS88: 0 | AT88: 0 | AU88: 0 | AV88: 0 | AW88: 0 | AX88: 0 | AY88: 0 | AZ88: 0
J89: 0.44 | K89: 0.04653570613 | L89: 0.04653570613 | M89: 0.04653570613 | N89: 0.04653570613 | O89: 0.04653570613 | P89: 0.04653570613 | Q89: 0.04653570613 | R89: 0.04653570613 | S89: 0.04653570613 | T89: 0.04653570613 | U89: 0.04653570613 | V89: 0.04653570613 | W89: 0.04653570613 | X89: 0.04653570613 | Y89: 0.04653570613 | Z89: 0.04653570613 | AA89: 0.04653570613 | AB89: 0.04653570613 | AC89: 0.04653570613 | AD89: 0.04653570613 | AF89: 0.44 | AG89: 0 | AH89: 0 | AI89: 0 | AJ89: 0 | AK89: 0 | AL89: 0 | AM89: 0 | AN89: 0 | AO89: 0 | AP89: 0 | AQ89: 0 | AR89: 0 | AS89: 0 | AT89: 0 | AU89: 0 | AV89: 0 | AW89: 0 | AX89: 0 | AY89: 0 | AZ89: 0
J90: 0.45 | K90: 0.04699567073 | L90: 0.04699567073 | M90: 0.04699567073 | N90: 0.04699567073 | O90: 0.04699567073 | P90: 0.04699567073 | Q90: 0.04699567073 | R90: 0.04699567073 | S90: 0.04699567073 | T90: 0.04699567073 | U90: 0.04699567073 | V90: 0.04699567073 | W90: 0.04699567073 | X90: 0.04699567073 | Y90: 0.04699567073 | Z90: 0.04699567073 | AA90: 0.04699567073 | AB90: 0.04699567073 | AC90: 0.04699567073 | AD90: 0.04699567073 | AF90: 0.45 | AG90: 0 | AH90: 0 | AI90: 0 | AJ90: 0 | AK90: 0 | AL90: 0 | AM90: 0 | AN90: 0 | AO90: 0 | AP90: 0 | AQ90: 0 | AR90: 0 | AS90: 0 | AT90: 0 | AU90: 0 | AV90: 0 | AW90: 0 | AX90: 0 | AY90: 0 | AZ90: 0
J91: 0.46 | K91: 0.04745490644 | L91: 0.04745490644 | M91: 0.04745490644 | N91: 0.04745490644 | O91: 0.04745490644 | P91: 0.04745490644 | Q91: 0.04745490644 | R91: 0.04745490644 | S91: 0.04745490644 | T91: 0.04745490644 | U91: 0.04745490644 | V91: 0.04745490644 | W91: 0.04745490644 | X91: 0.04745490644 | Y91: 0.04745490644 | Z91: 0.04745490644 | AA91: 0.04745490644 | AB91: 0.04745490644 | AC91: 0.04745490644 | AD91: 0.04745490644 | AF91: 0.46 | AG91: 0 | AH91: 0 | AI91: 0 | AJ91: 0 | AK91: 0 | AL91: 0 | AM91: 0 | AN91: 0 | AO91: 0 | AP91: 0 | AQ91: 0 | AR91: 0 | AS91: 0 | AT91: 0 | AU91: 0 | AV91: 0 | AW91: 0 | AX91: 0 | AY91: 0 | AZ91: 0
J92: 0.47 | K92: 0.04791341865 | L92: 0.04791341865 | M92: 0.04791341865 | N92: 0.04791341865 | O92: 0.04791341865 | P92: 0.04791341865 | Q92: 0.04791341865 | R92: 0.04791341865 | S92: 0.04791341865 | T92: 0.04791341865 | U92: 0.04791341865 | V92: 0.04791341865 | W92: 0.04791341865 | X92: 0.04791341865 | Y92: 0.04791341865 | Z92: 0.04791341865 | AA92: 0.04791341865 | AB92: 0.04791341865 | AC92: 0.04791341865 | AD92: 0.04791341865 | AF92: 0.47 | AG92: 0 | AH92: 0 | AI92: 0 | AJ92: 0 | AK92: 0 | AL92: 0 | AM92: 0 | AN92: 0 | AO92: 0 | AP92: 0 | AQ92: 0 | AR92: 0 | AS92: 0 | AT92: 0 | AU92: 0 | AV92: 0 | AW92: 0 | AX92: 0 | AY92: 0 | AZ92: 0
J93: 0.48 | K93: 0.04837121276 | L93: 0.04837121276 | M93: 0.04837121276 | N93: 0.04837121276 | O93: 0.04837121276 | P93: 0.04837121276 | Q93: 0.04837121276 | R93: 0.04837121276 | S93: 0.04837121276 | T93: 0.04837121276 | U93: 0.04837121276 | V93: 0.04837121276 | W93: 0.04837121276 | X93: 0.04837121276 | Y93: 0.04837121276 | Z93: 0.04837121276 | AA93: 0.04837121276 | AB93: 0.04837121276 | AC93: 0.04837121276 | AD93: 0.04837121276 | AF93: 0.48 | AG93: 0 | AH93: 0 | AI93: 0 | AJ93: 0 | AK93: 0 | AL93: 0 | AM93: 0 | AN93: 0 | AO93: 0 | AP93: 0 | AQ93: 0 | AR93: 0 | AS93: 0 | AT93: 0 | AU93: 0 | AV93: 0 | AW93: 0 | AX93: 0 | AY93: 0 | AZ93: 0
J94: 0.49 | K94: 0.04882829416 | L94: 0.04882829416 | M94: 0.04882829416 | N94: 0.04882829416 | O94: 0.04882829416 | P94: 0.04882829416 | Q94: 0.04882829416 | R94: 0.04882829416 | S94: 0.04882829416 | T94: 0.04882829416 | U94: 0.04882829416 | V94: 0.04882829416 | W94: 0.04882829416 | X94: 0.04882829416 | Y94: 0.04882829416 | Z94: 0.04882829416 | AA94: 0.04882829416 | AB94: 0.04882829416 | AC94: 0.04882829416 | AD94: 0.04882829416 | AF94: 0.49 | AG94: 0 | AH94: 0 | AI94: 0 | AJ94: 0 | AK94: 0 | AL94: 0 | AM94: 0 | AN94: 0 | AO94: 0 | AP94: 0 | AQ94: 0 | AR94: 0 | AS94: 0 | AT94: 0 | AU94: 0 | AV94: 0 | AW94: 0 | AX94: 0 | AY94: 0 | AZ94: 0
J95: 0.5 | K95: 0.04928466829 | L95: 0.04928466829 | M95: 0.04928466829 | N95: 0.04928466829 | O95: 0.04928466829 | P95: 0.04928466829 | Q95: 0.04928466829 | R95: 0.04928466829 | S95: 0.04928466829 | T95: 0.04928466829 | U95: 0.04928466829 | V95: 0.04928466829 | W95: 0.04928466829 | X95: 0.04928466829 | Y95: 0.04928466829 | Z95: 0.04928466829 | AA95: 0.04928466829 | AB95: 0.04928466829 | AC95: 0.04928466829 | AD95: 0.04928466829 | AF95: 0.5 | AG95: 0 | AH95: 0 | AI95: 0 | AJ95: 0 | AK95: 0 | AL95: 0 | AM95: 0 | AN95: 0 | AO95: 0 | AP95: 0 | AQ95: 0 | AR95: 0 | AS95: 0 | AT95: 0 | AU95: 0 | AV95: 0 | AW95: 0 | AX95: 0 | AY95: 0 | AZ95: 0
J96: 0.51 | K96: 0.04974034055 | L96: 0.04974034055 | M96: 0.04974034055 | N96: 0.04974034055 | O96: 0.04974034055 | P96: 0.04974034055 | Q96: 0.04974034055 | R96: 0.04974034055 | S96: 0.04974034055 | T96: 0.04974034055 | U96: 0.04974034055 | V96: 0.04974034055 | W96: 0.04974034055 | X96: 0.04974034055 | Y96: 0.04974034055 | Z96: 0.04974034055 | AA96: 0.04974034055 | AB96: 0.04974034055 | AC96: 0.04974034055 | AD96: 0.04974034055 | AF96: 0.51 | AG96: 0 | AH96: 0 | AI96: 0 | AJ96: 0 | AK96: 0 | AL96: 0 | AM96: 0 | AN96: 0 | AO96: 0 | AP96: 0 | AQ96: 0 | AR96: 0 | AS96: 0 | AT96: 0 | AU96: 0 | AV96: 0 | AW96: 0 | AX96: 0 | AY96: 0 | AZ96: 0
J97: 0.52 | K97: 0.05019531639 | L97: 0.05019531639 | M97: 0.05019531639 | N97: 0.05019531639 | O97: 0.05019531639 | P97: 0.05019531639 | Q97: 0.05019531639 | R97: 0.05019531639 | S97: 0.05019531639 | T97: 0.05019531639 | U97: 0.05019531639 | V97: 0.05019531639 | W97: 0.05019531639 | X97: 0.05019531639 | Y97: 0.05019531639 | Z97: 0.05019531639 | AA97: 0.05019531639 | AB97: 0.05019531639 | AC97: 0.05019531639 | AD97: 0.05019531639 | AF97: 0.52 | AG97: 0 | AH97: 0 | AI97: 0 | AJ97: 0 | AK97: 0 | AL97: 0 | AM97: 0 | AN97: 0 | AO97: 0 | AP97: 0 | AQ97: 0 | AR97: 0 | AS97: 0 | AT97: 0 | AU97: 0 | AV97: 0 | AW97: 0 | AX97: 0 | AY97: 0 | AZ97: 0
J98: 0.53 | K98: 0.05064960126 | L98: 0.05064960126 | M98: 0.05064960126 | N98: 0.05064960126 | O98: 0.05064960126 | P98: 0.05064960126 | Q98: 0.05064960126 | R98: 0.05064960126 | S98: 0.05064960126 | T98: 0.05064960126 | U98: 0.05064960126 | V98: 0.05064960126 | W98: 0.05064960126 | X98: 0.05064960126 | Y98: 0.05064960126 | Z98: 0.05064960126 | AA98: 0.05064960126 | AB98: 0.05064960126 | AC98: 0.05064960126 | AD98: 0.05064960126 | AF98: 0.53 | AG98: 0 | AH98: 0 | AI98: 0 | AJ98: 0 | AK98: 0 | AL98: 0 | AM98: 0 | AN98: 0 | AO98: 0 | AP98: 0 | AQ98: 0 | AR98: 0 | AS98: 0 | AT98: 0 | AU98: 0 | AV98: 0 | AW98: 0 | AX98: 0 | AY98: 0 | AZ98: 0
J99: 0.54 | K99: 0.0511032006 | L99: 0.0511032006 | M99: 0.0511032006 | N99: 0.0511032006 | O99: 0.0511032006 | P99: 0.0511032006 | Q99: 0.0511032006 | R99: 0.0511032006 | S99: 0.0511032006 | T99: 0.0511032006 | U99: 0.0511032006 | V99: 0.0511032006 | W99: 0.0511032006 | X99: 0.0511032006 | Y99: 0.0511032006 | Z99: 0.0511032006 | AA99: 0.0511032006 | AB99: 0.0511032006 | AC99: 0.0511032006 | AD99: 0.0511032006 | AF99: 0.54 | AG99: 0 | AH99: 0 | AI99: 0 | AJ99: 0 | AK99: 0 | AL99: 0 | AM99: 0 | AN99: 0 | AO99: 0 | AP99: 0 | AQ99: 0 | AR99: 0 | AS99: 0 | AT99: 0 | AU99: 0 | AV99: 0 | AW99: 0 | AX99: 0 | AY99: 0 | AZ99: 0
J100: 0.55 | K100: 0.0515561199 | L100: 0.0515561199 | M100: 0.0515561199 | N100: 0.0515561199 | O100: 0.0515561199 | P100: 0.0515561199 | Q100: 0.0515561199 | R100: 0.0515561199 | S100: 0.0515561199 | T100: 0.0515561199 | U100: 0.0515561199 | V100: 0.0515561199 | W100: 0.0515561199 | X100: 0.0515561199 | Y100: 0.0515561199 | Z100: 0.0515561199 | AA100: 0.0515561199 | AB100: 0.0515561199 | AC100: 0.0515561199 | AD100: 0.0515561199 | AF100: 0.55 | AG100: 0 | AH100: 0 | AI100: 0 | AJ100: 0 | AK100: 0 | AL100: 0 | AM100: 0 | AN100: 0 | AO100: 0 | AP100: 0 | AQ100: 0 | AR100: 0 | AS100: 0 | AT100: 0 | AU100: 0 | AV100: 0 | AW100: 0 | AX100: 0 | AY100: 0 | AZ100: 0
J101: 0.56 | K101: 0.05200836463 | L101: 0.05200836463 | M101: 0.05200836463 | N101: 0.05200836463 | O101: 0.05200836463 | P101: 0.05200836463 | Q101: 0.05200836463 | R101: 0.05200836463 | S101: 0.05200836463 | T101: 0.05200836463 | U101: 0.05200836463 | V101: 0.05200836463 | W101: 0.05200836463 | X101: 0.05200836463 | Y101: 0.05200836463 | Z101: 0.05200836463 | AA101: 0.05200836463 | AB101: 0.05200836463 | AC101: 0.05200836463 | AD101: 0.05200836463 | AF101: 0.56 | AG101: 0 | AH101: 0 | AI101: 0 | AJ101: 0 | AK101: 0 | AL101: 0 | AM101: 0 | AN101: 0 | AO101: 0 | AP101: 0 | AQ101: 0 | AR101: 0 | AS101: 0 | AT101: 0 | AU101: 0 | AV101: 0 | AW101: 0 | AX101: 0 | AY101: 0 | AZ101: 0
J102: 0.57 | K102: 0.05245994027 | L102: 0.05245994027 | M102: 0.05245994027 | N102: 0.05245994027 | O102: 0.05245994027 | P102: 0.05245994027 | Q102: 0.05245994027 | R102: 0.05245994027 | S102: 0.05245994027 | T102: 0.05245994027 | U102: 0.05245994027 | V102: 0.05245994027 | W102: 0.05245994027 | X102: 0.05245994027 | Y102: 0.05245994027 | Z102: 0.05245994027 | AA102: 0.05245994027 | AB102: 0.05245994027 | AC102: 0.05245994027 | AD102: 0.05245994027 | AF102: 0.57 | AG102: 0 | AH102: 0 | AI102: 0 | AJ102: 0 | AK102: 0 | AL102: 0 | AM102: 0 | AN102: 0 | AO102: 0 | AP102: 0 | AQ102: 0 | AR102: 0 | AS102: 0 | AT102: 0 | AU102: 0 | AV102: 0 | AW102: 0 | AX102: 0 | AY102: 0 | AZ102: 0
J103: 0.58 | K103: 0.05291085232 | L103: 0.05291085232 | M103: 0.05291085232 | N103: 0.05291085232 | O103: 0.05291085232 | P103: 0.05291085232 | Q103: 0.05291085232 | R103: 0.05291085232 | S103: 0.05291085232 | T103: 0.05291085232 | U103: 0.05291085232 | V103: 0.05291085232 | W103: 0.05291085232 | X103: 0.05291085232 | Y103: 0.05291085232 | Z103: 0.05291085232 | AA103: 0.05291085232 | AB103: 0.05291085232 | AC103: 0.05291085232 | AD103: 0.05291085232 | AF103: 0.58 | AG103: 0 | AH103: 0 | AI103: 0 | AJ103: 0 | AK103: 0 | AL103: 0 | AM103: 0 | AN103: 0 | AO103: 0 | AP103: 0 | AQ103: 0 | AR103: 0 | AS103: 0 | AT103: 0 | AU103: 0 | AV103: 0 | AW103: 0 | AX103: 0 | AY103: 0 | AZ103: 0
J104: 0.59 | K104: 0.0533611063 | L104: 0.0533611063 | M104: 0.0533611063 | N104: 0.0533611063 | O104: 0.0533611063 | P104: 0.0533611063 | Q104: 0.0533611063 | R104: 0.0533611063 | S104: 0.0533611063 | T104: 0.0533611063 | U104: 0.0533611063 | V104: 0.0533611063 | W104: 0.0533611063 | X104: 0.0533611063 | Y104: 0.0533611063 | Z104: 0.0533611063 | AA104: 0.0533611063 | AB104: 0.0533611063 | AC104: 0.0533611063 | AD104: 0.0533611063 | AF104: 0.59 | AG104: 0 | AH104: 0 | AI104: 0 | AJ104: 0 | AK104: 0 | AL104: 0 | AM104: 0 | AN104: 0 | AO104: 0 | AP104: 0 | AQ104: 0 | AR104: 0 | AS104: 0 | AT104: 0 | AU104: 0 | AV104: 0 | AW104: 0 | AX104: 0 | AY104: 0 | AZ104: 0
J105: 0.6 | K105: 0.05381070772 | L105: 0.05381070772 | M105: 0.05381070772 | N105: 0.05381070772 | O105: 0.05381070772 | P105: 0.05381070772 | Q105: 0.05381070772 | R105: 0.05381070772 | S105: 0.05381070772 | T105: 0.05381070772 | U105: 0.05381070772 | V105: 0.05381070772 | W105: 0.05381070772 | X105: 0.05381070772 | Y105: 0.05381070772 | Z105: 0.05381070772 | AA105: 0.05381070772 | AB105: 0.05381070772 | AC105: 0.05381070772 | AD105: 0.05381070772 | AF105: 0.6 | AG105: 0 | AH105: 0 | AI105: 0 | AJ105: 0 | AK105: 0 | AL105: 0 | AM105: 0 | AN105: 0 | AO105: 0 | AP105: 0 | AQ105: 0 | AR105: 0 | AS105: 0 | AT105: 0 | AU105: 0 | AV105: 0 | AW105: 0 | AX105: 0 | AY105: 0 | AZ105: 0
J106: 0.61 | K106: 0.05425966212 | L106: 0.05425966212 | M106: 0.05425966212 | N106: 0.05425966212 | O106: 0.05425966212 | P106: 0.05425966212 | Q106: 0.05425966212 | R106: 0.05425966212 | S106: 0.05425966212 | T106: 0.05425966212 | U106: 0.05425966212 | V106: 0.05425966212 | W106: 0.05425966212 | X106: 0.05425966212 | Y106: 0.05425966212 | Z106: 0.05425966212 | AA106: 0.05425966212 | AB106: 0.05425966212 | AC106: 0.05425966212 | AD106: 0.05425966212 | AF106: 0.61 | AG106: 0 | AH106: 0 | AI106: 0 | AJ106: 0 | AK106: 0 | AL106: 0 | AM106: 0 | AN106: 0 | AO106: 0 | AP106: 0 | AQ106: 0 | AR106: 0 | AS106: 0 | AT106: 0 | AU106: 0 | AV106: 0 | AW106: 0 | AX106: 0 | AY106: 0 | AZ106: 0
J107: 0.62 | K107: 0.05470797502 | L107: 0.05470797502 | M107: 0.05470797502 | N107: 0.05470797502 | O107: 0.05470797502 | P107: 0.05470797502 | Q107: 0.05470797502 | R107: 0.05470797502 | S107: 0.05470797502 | T107: 0.05470797502 | U107: 0.05470797502 | V107: 0.05470797502 | W107: 0.05470797502 | X107: 0.05470797502 | Y107: 0.05470797502 | Z107: 0.05470797502 | AA107: 0.05470797502 | AB107: 0.05470797502 | AC107: 0.05470797502 | AD107: 0.05470797502 | AF107: 0.62 | AG107: 0 | AH107: 0 | AI107: 0 | AJ107: 0 | AK107: 0 | AL107: 0 | AM107: 0 | AN107: 0 | AO107: 0 | AP107: 0 | AQ107: 0 | AR107: 0 | AS107: 0 | AT107: 0 | AU107: 0 | AV107: 0 | AW107: 0 | AX107: 0 | AY107: 0 | AZ107: 0
J108: 0.63 | K108: 0.05515565199 | L108: 0.05515565199 | M108: 0.05515565199 | N108: 0.05515565199 | O108: 0.05515565199 | P108: 0.05515565199 | Q108: 0.05515565199 | R108: 0.05515565199 | S108: 0.05515565199 | T108: 0.05515565199 | U108: 0.05515565199 | V108: 0.05515565199 | W108: 0.05515565199 | X108: 0.05515565199 | Y108: 0.05515565199 | Z108: 0.05515565199 | AA108: 0.05515565199 | AB108: 0.05515565199 | AC108: 0.05515565199 | AD108: 0.05515565199 | AF108: 0.63 | AG108: 0 | AH108: 0 | AI108: 0 | AJ108: 0 | AK108: 0 | AL108: 0 | AM108: 0 | AN108: 0 | AO108: 0 | AP108: 0 | AQ108: 0 | AR108: 0 | AS108: 0 | AT108: 0 | AU108: 0 | AV108: 0 | AW108: 0 | AX108: 0 | AY108: 0 | AZ108: 0
J109: 0.64 | K109: =IF(AQ$16=0,0,IF(K$36*$J109^4 + K$37*$J109^3 + K$38*$J109^2 + K$39*$J109 + K$40>1,1,K$36*$J109^4 + K$37*$J109^3 + K$38*$J109^2 + K$39*$J109 + K$40)) -> 0.05560269857 | L109: =IF(AR$16=0,0,IF(L$36*$J109^4 + L$37*$J109^3 + L$38*$J109^2 + L$39*$J109 + L$40>1,1,L$36*$J109^4 + L$37*$J109^3 + L$38*$J109^2 + L$39*$J109 + L$40)) -> 0.05560269857 | M109: =IF(AS$16=0,0,IF(M$36*$J109^4 + M$37*$J109^3 + M$38*$J109^2 + M$39*$J109 + M$40>1,1,M$36*$J109^4 + M$37*$J109^3 + M$38*$J109^2 + M$39*$J109 + M$40)) -> 0.05560269857 | N109: =IF(AT$16=0,0,IF(N$36*$J109^4 + N$37*$J109^3 + N$38*$J109^2 + N$39*$J109 + N$40>1,1,N$36*$J109^4 + N$37*$J109^3 + N$38*$J109^2 + N$39*$J109 + N$40)) -> 0.05560269857 | O109: =IF(AU$16=0,0,IF(O$36*$J109^4 + O$37*$J109^3 + O$38*$J109^2 + O$39*$J109 + O$40>1,1,O$36*$J109^4 + O$37*$J109^3 + O$38*$J109^2 + O$39*$J109 + O$40)) -> 0.05560269857 | P109: =IF(AV$16=0,0,IF(P$36*$J109^4 + P$37*$J109^3 + P$38*$J109^2 + P$39*$J109 + P$40>1,1,P$36*$J109^4 + P$37*$J109^3 + P$38*$J109^2 + P$39*$J109 + P$40)) -> 0.05560269857 | Q109: =IF(AW$16=0,0,IF(Q$36*$J109^4 + Q$37*$J109^3 + Q$38*$J109^2 + Q$39*$J109 + Q$40>1,1,Q$36*$J109^4 + Q$37*$J109^3 + Q$38*$J109^2 + Q$39*$J109 + Q$40)) -> 0.05560269857 | R109: =IF(AX$16=0,0,IF(R$36*$J109^4 + R$37*$J109^3 + R$38*$J109^2 + R$39*$J109 + R$40>1,1,R$36*$J109^4 + R$37*$J109^3 + R$38*$J109^2 + R$39*$J109 + R$40)) -> 0.05560269857 | S109: =IF(AY$16=0,0,IF(S$36*$J109^4 + S$37*$J109^3 + S$38*$J109^2 + S$39*$J109 + S$40>1,1,S$36*$J109^4 + S$37*$J109^3 + S$38*$J109^2 + S$39*$J109 + S$40)) -> 0.05560269857 | T109: =IF(AZ$16=0,0,IF(T$36*$J109^4 + T$37*$J109^3 + T$38*$J109^2 + T$39*$J109 + T$40>1,1,T$36*$J109^4 + T$37*$J109^3 + T$38*$J109^2 + T$39*$J109 + T$40)) -> 0.05560269857 | U109: =IF(BA$16=0,0,IF(U$36*$J109^4 + U$37*$J109^3 + U$38*$J109^2 + U$39*$J109 + U$40>1,1,U$36*$J109^4 + U$37*$J109^3 + U$38*$J109^2 + U$39*$J109 + U$40)) -> 0.05560269857 | V109: =IF(BB$16=0,0,IF(V$36*$J109^4 + V$37*$J109^3 + V$38*$J109^2 + V$39*$J109 + V$40>1,1,V$36*$J109^4 + V$37*$J109^3 + V$38*$J109^2 + V$39*$J109 + V$40)) -> 0.05560269857 | W109: =IF(BC$16=0,0,IF(W$36*$J109^4 + W$37*$J109^3 + W$38*$J109^2 + W$39*$J109 + W$40>1,1,W$36*$J109^4 + W$37*$J109^3 + W$38*$J109^2 + W$39*$J109 + W$40)) -> 0.05560269857 | X109: =IF(BD$16=0,0,IF(X$36*$J109^4 + X$37*$J109^3 + X$38*$J109^2 + X$39*$J109 + X$40>1,1,X$36*$J109^4 + X$37*$J109^3 + X$38*$J109^2 + X$39*$J109 + X$40)) -> 0.05560269857 | Y109: =IF(BE$16=0,0,IF(Y$36*$J109^4 + Y$37*$J109^3 + Y$38*$J109^2 + Y$39*$J109 + Y$40>1,1,Y$36*$J109^4 + Y$37*$J109^3 + Y$38*$J109^2 + Y$39*$J109 + Y$40)) -> 0.05560269857 | Z109: =IF(BF$16=0,0,IF(Z$36*$J109^4 + Z$37*$J109^3 + Z$38*$J109^2 + Z$39*$J109 + Z$40>1,1,Z$36*$J109^4 + Z$37*$J109^3 + Z$38*$J109^2 + Z$39*$J109 + Z$40)) -> 0.05560269857 | AA109: =IF(BG$16=0,0,IF(AA$36*$J109^4 + AA$37*$J109^3 + AA$38*$J109^2 + AA$39*$J109 + AA$40>1,1,AA$36*$J109^4 + AA$37*$J109^3 + AA$38*$J109^2 + AA$39*$J109 + AA$40)) -> 0.05560269857 | AB109: =IF(BH$16=0,0,IF(AB$36*$J109^4 + AB$37*$J109^3 + AB$38*$J109^2 + AB$39*$J109 + AB$40>1,1,AB$36*$J109^4 + AB$37*$J109^3 + AB$38*$J109^2 + AB$39*$J109 + AB$40)) -> 0.05560269857 | AC109: =IF(BI$16=0,0,IF(AC$36*$J109^4 + AC$37*$J109^3 + AC$38*$J109^2 + AC$39*$J109 + AC$40>1,1,AC$36*$J109^4 + AC$37*$J109^3 + AC$38*$J109^2 + AC$39*$J109 + AC$40)) -> 0.05560269857 | AD109: =IF(BJ$16=0,0,IF(AD$36*$J109^4 + AD$37*$J109^3 + AD$38*$J109^2 + AD$39*$J109 + AD$40>1,1,AD$36*$J109^4 + AD$37*$J109^3 + AD$38*$J109^2 + AD$39*$J109 + AD$40)) -> 0.05560269857 | AF109: 0.64 | AG109: =IF(AG$43<>0,INDEX(K$45:K$1045, MATCH($AF109*(AG$43/24), $J$45:$J$1045)), 0) -> 0 | AH109: =IF(AH$43<>0,INDEX(L$45:L$1045, MATCH($AF109*(AH$43/24), $J$45:$J$1045)), 0) -> 0 | AI109: =IF(AI$43<>0,INDEX(M$45:M$1045, MATCH($AF109*(AI$43/24), $J$45:$J$1045)), 0) -> 0 | AJ109: =IF(AJ$43<>0,INDEX(N$45:N$1045, MATCH($AF109*(AJ$43/24), $J$45:$J$1045)), 0) -> 0 | AK109: =IF(AK$43<>0,INDEX(O$45:O$1045, MATCH($AF109*(AK$43/24), $J$45:$J$1045)), 0) -> 0 | AL109: =IF(AL$43<>0,INDEX(P$45:P$1045, MATCH($AF109*(AL$43/24), $J$45:$J$1045)), 0) -> 0 | AM109: =IF(AM$43<>0,INDEX(Q$45:Q$1045, MATCH($AF109*(AM$43/24), $J$45:$J$1045)), 0) -> 0 | AN109: =IF(AN$43<>0,INDEX(R$45:R$1045, MATCH($AF109*(AN$43/24), $J$45:$J$1045)), 0) -> 0 | AO109: =IF(AO$43<>0,INDEX(S$45:S$1045, MATCH($AF109*(AO$43/24), $J$45:$J$1045)), 0) -> 0 | AP109: =IF(AP$43<>0,INDEX(T$45:T$1045, MATCH($AF109*(AP$43/24), $J$45:$J$1045)), 0) -> 0 | AQ109: =IF(AQ$43<>0,INDEX(U$45:U$1045, MATCH($AF109*(AQ$43/24), $J$45:$J$1045)), 0) -> 0 | AR109: =IF(AR$43<>0,INDEX(V$45:V$1045, MATCH($AF109*(AR$43/24), $J$45:$J$1045)), 0) -> 0 | AS109: =IF(AS$43<>0,INDEX(W$45:W$1045, MATCH($AF109*(AS$43/24), $J$45:$J$1045)), 0) -> 0 | AT109: =IF(AT$43<>0,INDEX(X$45:X$1045, MATCH($AF109*(AT$43/24), $J$45:$J$1045)), 0) -> 0 | AU109: =IF(AU$43<>0,INDEX(Y$45:Y$1045, MATCH($AF109*(AU$43/24), $J$45:$J$1045)), 0) -> 0 | AV109: =IF(AV$43<>0,INDEX(Z$45:Z$1045, MATCH($AF109*(AV$43/24), $J$45:$J$1045)), 0) -> 0 | AW109: =IF(AW$43<>0,INDEX(AA$45:AA$1045, MATCH($AF109*(AW$43/24), $J$45:$J$1045)), 0) -> 0 | AX109: =IF(AX$43<>0,INDEX(AB$45:AB$1045, MATCH($AF109*(AX$43/24), $J$45:$J$1045)), 0) -> 0 | AY109: =IF(AY$43<>0,INDEX(AC$45:AC$1045, MATCH($AF109*(AY$43/24), $J$45:$J$1045)), 0) -> 0 | AZ109: =IF(AZ$43<>0,INDEX(AD$45:AD$1045, MATCH($AF109*(AZ$43/24), $J$45:$J$1045)), 0) -> 0
J110: =J109+0.01 -> 0.65 | K110: 0.05604912036 | L110: 0.05604912036 | M110: 0.05604912036 | N110: 0.05604912036 | O110: 0.05604912036 | P110: 0.05604912036 | Q110: 0.05604912036 | R110: 0.05604912036 | S110: 0.05604912036 | T110: 0.05604912036 | U110: 0.05604912036 | V110: 0.05604912036 | W110: 0.05604912036 | X110: 0.05604912036 | Y110: 0.05604912036 | Z110: 0.05604912036 | AA110: 0.05604912036 | AB110: 0.05604912036 | AC110: 0.05604912036 | AD110: 0.05604912036 | AF110: =AF109+0.01 -> 0.65 | AG110: 0 | AH110: 0 | AI110: 0 | AJ110: 0 | AK110: 0 | AL110: 0 | AM110: 0 | AN110: 0 | AO110: 0 | AP110: 0 | AQ110: 0 | AR110: 0 | AS110: 0 | AT110: 0 | AU110: 0 | AV110: 0 | AW110: 0 | AX110: 0 | AY110: 0 | AZ110: 0
J111: 0.66 | K111: 0.05649492291 | L111: 0.05649492291 | M111: 0.05649492291 | N111: 0.05649492291 | O111: 0.05649492291 | P111: 0.05649492291 | Q111: 0.05649492291 | R111: 0.05649492291 | S111: 0.05649492291 | T111: 0.05649492291 | U111: 0.05649492291 | V111: 0.05649492291 | W111: 0.05649492291 | X111: 0.05649492291 | Y111: 0.05649492291 | Z111: 0.05649492291 | AA111: 0.05649492291 | AB111: 0.05649492291 | AC111: 0.05649492291 | AD111: 0.05649492291 | AF111: 0.66 | AG111: 0 | AH111: 0 | AI111: 0 | AJ111: 0 | AK111: 0 | AL111: 0 | AM111: 0 | AN111: 0 | AO111: 0 | AP111: 0 | AQ111: 0 | AR111: 0 | AS111: 0 | AT111: 0 | AU111: 0 | AV111: 0 | AW111: 0 | AX111: 0 | AY111: 0 | AZ111: 0
J112: 0.67 | K112: 0.05694011184 | L112: 0.05694011184 | M112: 0.05694011184 | N112: 0.05694011184 | O112: 0.05694011184 | P112: 0.05694011184 | Q112: 0.05694011184 | R112: 0.05694011184 | S112: 0.05694011184 | T112: 0.05694011184 | U112: 0.05694011184 | V112: 0.05694011184 | W112: 0.05694011184 | X112: 0.05694011184 | Y112: 0.05694011184 | Z112: 0.05694011184 | AA112: 0.05694011184 | AB112: 0.05694011184 | AC112: 0.05694011184 | AD112: 0.05694011184 | AF112: 0.67 | AG112: 0 | AH112: 0 | AI112: 0 | AJ112: 0 | AK112: 0 | AL112: 0 | AM112: 0 | AN112: 0 | AO112: 0 | AP112: 0 | AQ112: 0 | AR112: 0 | AS112: 0 | AT112: 0 | AU112: 0 | AV112: 0 | AW112: 0 | AX112: 0 | AY112: 0 | AZ112: 0
J113: 0.68 | K113: 0.05738469273 | L113: 0.05738469273 | M113: 0.05738469273 | N113: 0.05738469273 | O113: 0.05738469273 | P113: 0.05738469273 | Q113: 0.05738469273 | R113: 0.05738469273 | S113: 0.05738469273 | T113: 0.05738469273 | U113: 0.05738469273 | V113: 0.05738469273 | W113: 0.05738469273 | X113: 0.05738469273 | Y113: 0.05738469273 | Z113: 0.05738469273 | AA113: 0.05738469273 | AB113: 0.05738469273 | AC113: 0.05738469273 | AD113: 0.05738469273 | AF113: 0.68 | AG113: 0 | AH113: 0 | AI113: 0 | AJ113: 0 | AK113: 0 | AL113: 0 | AM113: 0 | AN113: 0 | AO113: 0 | AP113: 0 | AQ113: 0 | AR113: 0 | AS113: 0 | AT113: 0 | AU113: 0 | AV113: 0 | AW113: 0 | AX113: 0 | AY113: 0 | AZ113: 0
J114: 0.69 | K114: 0.0578286712 | L114: 0.0578286712 | M114: 0.0578286712 | N114: 0.0578286712 | O114: 0.0578286712 | P114: 0.0578286712 | Q114: 0.0578286712 | R114: 0.0578286712 | S114: 0.0578286712 | T114: 0.0578286712 | U114: 0.0578286712 | V114: 0.0578286712 | W114: 0.0578286712 | X114: 0.0578286712 | Y114: 0.0578286712 | Z114: 0.0578286712 | AA114: 0.0578286712 | AB114: 0.0578286712 | AC114: 0.0578286712 | AD114: 0.0578286712 | AF114: 0.69 | AG114: 0 | AH114: 0 | AI114: 0 | AJ114: 0 | AK114: 0 | AL114: 0 | AM114: 0 | AN114: 0 | AO114: 0 | AP114: 0 | AQ114: 0 | AR114: 0 | AS114: 0 | AT114: 0 | AU114: 0 | AV114: 0 | AW114: 0 | AX114: 0 | AY114: 0 | AZ114: 0
J115: 0.7 | K115: 0.05827205288 | L115: 0.05827205288 | M115: 0.05827205288 | N115: 0.05827205288 | O115: 0.05827205288 | P115: 0.05827205288 | Q115: 0.05827205288 | R115: 0.05827205288 | S115: 0.05827205288 | T115: 0.05827205288 | U115: 0.05827205288 | V115: 0.05827205288 | W115: 0.05827205288 | X115: 0.05827205288 | Y115: 0.05827205288 | Z115: 0.05827205288 | AA115: 0.05827205288 | AB115: 0.05827205288 | AC115: 0.05827205288 | AD115: 0.05827205288 | AF115: 0.7 | AG115: 0 | AH115: 0 | AI115: 0 | AJ115: 0 | AK115: 0 | AL115: 0 | AM115: 0 | AN115: 0 | AO115: 0 | AP115: 0 | AQ115: 0 | AR115: 0 | AS115: 0 | AT115: 0 | AU115: 0 | AV115: 0 | AW115: 0 | AX115: 0 | AY115: 0 | AZ115: 0
J116: 0.71 | K116: 0.05871484339 | L116: 0.05871484339 | M116: 0.05871484339 | N116: 0.05871484339 | O116: 0.05871484339 | P116: 0.05871484339 | Q116: 0.05871484339 | R116: 0.05871484339 | S116: 0.05871484339 | T116: 0.05871484339 | U116: 0.05871484339 | V116: 0.05871484339 | W116: 0.05871484339 | X116: 0.05871484339 | Y116: 0.05871484339 | Z116: 0.05871484339 | AA116: 0.05871484339 | AB116: 0.05871484339 | AC116: 0.05871484339 | AD116: 0.05871484339 | AF116: 0.71 | AG116: 0 | AH116: 0 | AI116: 0 | AJ116: 0 | AK116: 0 | AL116: 0 | AM116: 0 | AN116: 0 | AO116: 0 | AP116: 0 | AQ116: 0 | AR116: 0 | AS116: 0 | AT116: 0 | AU116: 0 | AV116: 0 | AW116: 0 | AX116: 0 | AY116: 0 | AZ116: 0
J117: 0.72 | K117: 0.05915704838 | L117: 0.05915704838 | M117: 0.05915704838 | N117: 0.05915704838 | O117: 0.05915704838 | P117: 0.05915704838 | Q117: 0.05915704838 | R117: 0.05915704838 | S117: 0.05915704838 | T117: 0.05915704838 | U117: 0.05915704838 | V117: 0.05915704838 | W117: 0.05915704838 | X117: 0.05915704838 | Y117: 0.05915704838 | Z117: 0.05915704838 | AA117: 0.05915704838 | AB117: 0.05915704838 | AC117: 0.05915704838 | AD117: 0.05915704838 | AF117: 0.72 | AG117: 0 | AH117: 0 | AI117: 0 | AJ117: 0 | AK117: 0 | AL117: 0 | AM117: 0 | AN117: 0 | AO117: 0 | AP117: 0 | AQ117: 0 | AR117: 0 | AS117: 0 | AT117: 0 | AU117: 0 | AV117: 0 | AW117: 0 | AX117: 0 | AY117: 0 | AZ117: 0
J118: 0.73 | K118: 0.05959867351 | L118: 0.05959867351 | M118: 0.05959867351 | N118: 0.05959867351 | O118: 0.05959867351 | P118: 0.05959867351 | Q118: 0.05959867351 | R118: 0.05959867351 | S118: 0.05959867351 | T118: 0.05959867351 | U118: 0.05959867351 | V118: 0.05959867351 | W118: 0.05959867351 | X118: 0.05959867351 | Y118: 0.05959867351 | Z118: 0.05959867351 | AA118: 0.05959867351 | AB118: 0.05959867351 | AC118: 0.05959867351 | AD118: 0.05959867351 | AF118: 0.73 | AG118: 0 | AH118: 0 | AI118: 0 | AJ118: 0 | AK118: 0 | AL118: 0 | AM118: 0 | AN118: 0 | AO118: 0 | AP118: 0 | AQ118: 0 | AR118: 0 | AS118: 0 | AT118: 0 | AU118: 0 | AV118: 0 | AW118: 0 | AX118: 0 | AY118: 0 | AZ118: 0
J119: 0.74 | K119: 0.06003972443 | L119: 0.06003972443 | M119: 0.06003972443 | N119: 0.06003972443 | O119: 0.06003972443 | P119: 0.06003972443 | Q119: 0.06003972443 | R119: 0.06003972443 | S119: 0.06003972443 | T119: 0.06003972443 | U119: 0.06003972443 | V119: 0.06003972443 | W119: 0.06003972443 | X119: 0.06003972443 | Y119: 0.06003972443 | Z119: 0.06003972443 | AA119: 0.06003972443 | AB119: 0.06003972443 | AC119: 0.06003972443 | AD119: 0.06003972443 | AF119: 0.74 | AG119: 0 | AH119: 0 | AI119: 0 | AJ119: 0 | AK119: 0 | AL119: 0 | AM119: 0 | AN119: 0 | AO119: 0 | AP119: 0 | AQ119: 0 | AR119: 0 | AS119: 0 | AT119: 0 | AU119: 0 | AV119: 0 | AW119: 0 | AX119: 0 | AY119: 0 | AZ119: 0
J120: 0.75 | K120: 0.06048020682 | L120: 0.06048020682 | M120: 0.06048020682 | N120: 0.06048020682 | O120: 0.06048020682 | P120: 0.06048020682 | Q120: 0.06048020682 | R120: 0.06048020682 | S120: 0.06048020682 | T120: 0.06048020682 | U120: 0.06048020682 | V120: 0.06048020682 | W120: 0.06048020682 | X120: 0.06048020682 | Y120: 0.06048020682 | Z120: 0.06048020682 | AA120: 0.06048020682 | AB120: 0.06048020682 | AC120: 0.06048020682 | AD120: 0.06048020682 | AF120: 0.75 | AG120: 0 | AH120: 0 | AI120: 0 | AJ120: 0 | AK120: 0 | AL120: 0 | AM120: 0 | AN120: 0 | AO120: 0 | AP120: 0 | AQ120: 0 | AR120: 0 | AS120: 0 | AT120: 0 | AU120: 0 | AV120: 0 | AW120: 0 | AX120: 0 | AY120: 0 | AZ120: 0
J121: 0.76 | K121: 0.06092012637 | L121: 0.06092012637 | M121: 0.06092012637 | N121: 0.06092012637 | O121: 0.06092012637 | P121: 0.06092012637 | Q121: 0.06092012637 | R121: 0.06092012637 | S121: 0.06092012637 | T121: 0.06092012637 | U121: 0.06092012637 | V121: 0.06092012637 | W121: 0.06092012637 | X121: 0.06092012637 | Y121: 0.06092012637 | Z121: 0.06092012637 | AA121: 0.06092012637 | AB121: 0.06092012637 | AC121: 0.06092012637 | AD121: 0.06092012637 | AF121: 0.76 | AG121: 0 | AH121: 0 | AI121: 0 | AJ121: 0 | AK121: 0 | AL121: 0 | AM121: 0 | AN121: 0 | AO121: 0 | AP121: 0 | AQ121: 0 | AR121: 0 | AS121: 0 | AT121: 0 | AU121: 0 | AV121: 0 | AW121: 0 | AX121: 0 | AY121: 0 | AZ121: 0
J122: 0.77 | K122: 0.06135948878 | L122: 0.06135948878 | M122: 0.06135948878 | N122: 0.06135948878 | O122: 0.06135948878 | P122: 0.06135948878 | Q122: 0.06135948878 | R122: 0.06135948878 | S122: 0.06135948878 | T122: 0.06135948878 | U122: 0.06135948878 | V122: 0.06135948878 | W122: 0.06135948878 | X122: 0.06135948878 | Y122: 0.06135948878 | Z122: 0.06135948878 | AA122: 0.06135948878 | AB122: 0.06135948878 | AC122: 0.06135948878 | AD122: 0.06135948878 | AF122: 0.77 | AG122: 0 | AH122: 0 | AI122: 0 | AJ122: 0 | AK122: 0 | AL122: 0 | AM122: 0 | AN122: 0 | AO122: 0 | AP122: 0 | AQ122: 0 | AR122: 0 | AS122: 0 | AT122: 0 | AU122: 0 | AV122: 0 | AW122: 0 | AX122: 0 | AY122: 0 | AZ122: 0
J123: 0.78 | K123: 0.06179829974 | L123: 0.06179829974 | M123: 0.06179829974 | N123: 0.06179829974 | O123: 0.06179829974 | P123: 0.06179829974 | Q123: 0.06179829974 | R123: 0.06179829974 | S123: 0.06179829974 | T123: 0.06179829974 | U123: 0.06179829974 | V123: 0.06179829974 | W123: 0.06179829974 | X123: 0.06179829974 | Y123: 0.06179829974 | Z123: 0.06179829974 | AA123: 0.06179829974 | AB123: 0.06179829974 | AC123: 0.06179829974 | AD123: 0.06179829974 | AF123: 0.78 | AG123: 0 | AH123: 0 | AI123: 0 | AJ123: 0 | AK123: 0 | AL123: 0 | AM123: 0 | AN123: 0 | AO123: 0 | AP123: 0 | AQ123: 0 | AR123: 0 | AS123: 0 | AT123: 0 | AU123: 0 | AV123: 0 | AW123: 0 | AX123: 0 | AY123: 0 | AZ123: 0
J124: 0.79 | K124: 0.06223656497 | L124: 0.06223656497 | M124: 0.06223656497 | N124: 0.06223656497 | O124: 0.06223656497 | P124: 0.06223656497 | Q124: 0.06223656497 | R124: 0.06223656497 | S124: 0.06223656497 | T124: 0.06223656497 | U124: 0.06223656497 | V124: 0.06223656497 | W124: 0.06223656497 | X124: 0.06223656497 | Y124: 0.06223656497 | Z124: 0.06223656497 | AA124: 0.06223656497 | AB124: 0.06223656497 | AC124: 0.06223656497 | AD124: 0.06223656497 | AF124: 0.79 | AG124: 0 | AH124: 0 | AI124: 0 | AJ124: 0 | AK124: 0 | AL124: 0 | AM124: 0 | AN124: 0 | AO124: 0 | AP124: 0 | AQ124: 0 | AR124: 0 | AS124: 0 | AT124: 0 | AU124: 0 | AV124: 0 | AW124: 0 | AX124: 0 | AY124: 0 | AZ124: 0
J125: 0.8 | K125: 0.06267429021 | L125: 0.06267429021 | M125: 0.06267429021 | N125: 0.06267429021 | O125: 0.06267429021 | P125: 0.06267429021 | Q125: 0.06267429021 | R125: 0.06267429021 | S125: 0.06267429021 | T125: 0.06267429021 | U125: 0.06267429021 | V125: 0.06267429021 | W125: 0.06267429021 | X125: 0.06267429021 | Y125: 0.06267429021 | Z125: 0.06267429021 | AA125: 0.06267429021 | AB125: 0.06267429021 | AC125: 0.06267429021 | AD125: 0.06267429021 | AF125: 0.8 | AG125: 0 | AH125: 0 | AI125: 0 | AJ125: 0 | AK125: 0 | AL125: 0 | AM125: 0 | AN125: 0 | AO125: 0 | AP125: 0 | AQ125: 0 | AR125: 0 | AS125: 0 | AT125: 0 | AU125: 0 | AV125: 0 | AW125: 0 | AX125: 0 | AY125: 0 | AZ125: 0
J126: 0.81 | K126: 0.06311148118 | L126: 0.06311148118 | M126: 0.06311148118 | N126: 0.06311148118 | O126: 0.06311148118 | P126: 0.06311148118 | Q126: 0.06311148118 | R126: 0.06311148118 | S126: 0.06311148118 | T126: 0.06311148118 | U126: 0.06311148118 | V126: 0.06311148118 | W126: 0.06311148118 | X126: 0.06311148118 | Y126: 0.06311148118 | Z126: 0.06311148118 | AA126: 0.06311148118 | AB126: 0.06311148118 | AC126: 0.06311148118 | AD126: 0.06311148118 | AF126: 0.81 | AG126: 0 | AH126: 0 | AI126: 0 | AJ126: 0 | AK126: 0 | AL126: 0 | AM126: 0 | AN126: 0 | AO126: 0 | AP126: 0 | AQ126: 0 | AR126: 0 | AS126: 0 | AT126: 0 | AU126: 0 | AV126: 0 | AW126: 0 | AX126: 0 | AY126: 0 | AZ126: 0
J127: 0.82 | K127: 0.06354814363 | L127: 0.06354814363 | M127: 0.06354814363 | N127: 0.06354814363 | O127: 0.06354814363 | P127: 0.06354814363 | Q127: 0.06354814363 | R127: 0.06354814363 | S127: 0.06354814363 | T127: 0.06354814363 | U127: 0.06354814363 | V127: 0.06354814363 | W127: 0.06354814363 | X127: 0.06354814363 | Y127: 0.06354814363 | Z127: 0.06354814363 | AA127: 0.06354814363 | AB127: 0.06354814363 | AC127: 0.06354814363 | AD127: 0.06354814363 | AF127: 0.82 | AG127: 0 | AH127: 0 | AI127: 0 | AJ127: 0 | AK127: 0 | AL127: 0 | AM127: 0 | AN127: 0 | AO127: 0 | AP127: 0 | AQ127: 0 | AR127: 0 | AS127: 0 | AT127: 0 | AU127: 0 | AV127: 0 | AW127: 0 | AX127: 0 | AY127: 0 | AZ127: 0
J128: 0.83 | K128: 0.06398428332 | L128: 0.06398428332 | M128: 0.06398428332 | N128: 0.06398428332 | O128: 0.06398428332 | P128: 0.06398428332 | Q128: 0.06398428332 | R128: 0.06398428332 | S128: 0.06398428332 | T128: 0.06398428332 | U128: 0.06398428332 | V128: 0.06398428332 | W128: 0.06398428332 | X128: 0.06398428332 | Y128: 0.06398428332 | Z128: 0.06398428332 | AA128: 0.06398428332 | AB128: 0.06398428332 | AC128: 0.06398428332 | AD128: 0.06398428332 | AF128: 0.83 | AG128: 0 | AH128: 0 | AI128: 0 | AJ128: 0 | AK128: 0 | AL128: 0 | AM128: 0 | AN128: 0 | AO128: 0 | AP128: 0 | AQ128: 0 | AR128: 0 | AS128: 0 | AT128: 0 | AU128: 0 | AV128: 0 | AW128: 0 | AX128: 0 | AY128: 0 | AZ128: 0
J129: 0.84 | K129: 0.06441990602 | L129: 0.06441990602 | M129: 0.06441990602 | N129: 0.06441990602 | O129: 0.06441990602 | P129: 0.06441990602 | Q129: 0.06441990602 | R129: 0.06441990602 | S129: 0.06441990602 | T129: 0.06441990602 | U129: 0.06441990602 | V129: 0.06441990602 | W129: 0.06441990602 | X129: 0.06441990602 | Y129: 0.06441990602 | Z129: 0.06441990602 | AA129: 0.06441990602 | AB129: 0.06441990602 | AC129: 0.06441990602 | AD129: 0.06441990602 | AF129: 0.84 | AG129: 0 | AH129: 0 | AI129: 0 | AJ129: 0 | AK129: 0 | AL129: 0 | AM129: 0 | AN129: 0 | AO129: 0 | AP129: 0 | AQ129: 0 | AR129: 0 | AS129: 0 | AT129: 0 | AU129: 0 | AV129: 0 | AW129: 0 | AX129: 0 | AY129: 0 | AZ129: 0
J130: 0.85 | K130: 0.0648550175 | L130: 0.0648550175 | M130: 0.0648550175 | N130: 0.0648550175 | O130: 0.0648550175 | P130: 0.0648550175 | Q130: 0.0648550175 | R130: 0.0648550175 | S130: 0.0648550175 | T130: 0.0648550175 | U130: 0.0648550175 | V130: 0.0648550175 | W130: 0.0648550175 | X130: 0.0648550175 | Y130: 0.0648550175 | Z130: 0.0648550175 | AA130: 0.0648550175 | AB130: 0.0648550175 | AC130: 0.0648550175 | AD130: 0.0648550175 | AF130: 0.85 | AG130: 0 | AH130: 0 | AI130: 0 | AJ130: 0 | AK130: 0 | AL130: 0 | AM130: 0 | AN130: 0 | AO130: 0 | AP130: 0 | AQ130: 0 | AR130: 0 | AS130: 0 | AT130: 0 | AU130: 0 | AV130: 0 | AW130: 0 | AX130: 0 | AY130: 0 | AZ130: 0
J131: 0.86 | K131: 0.06528962356 | L131: 0.06528962356 | M131: 0.06528962356 | N131: 0.06528962356 | O131: 0.06528962356 | P131: 0.06528962356 | Q131: 0.06528962356 | R131: 0.06528962356 | S131: 0.06528962356 | T131: 0.06528962356 | U131: 0.06528962356 | V131: 0.06528962356 | W131: 0.06528962356 | X131: 0.06528962356 | Y131: 0.06528962356 | Z131: 0.06528962356 | AA131: 0.06528962356 | AB131: 0.06528962356 | AC131: 0.06528962356 | AD131: 0.06528962356 | AF131: 0.86 | AG131: 0 | AH131: 0 | AI131: 0 | AJ131: 0 | AK131: 0 | AL131: 0 | AM131: 0 | AN131: 0 | AO131: 0 | AP131: 0 | AQ131: 0 | AR131: 0 | AS131: 0 | AT131: 0 | AU131: 0 | AV131: 0 | AW131: 0 | AX131: 0 | AY131: 0 | AZ131: 0
J132: 0.87 | K132: 0.06572372998 | L132: 0.06572372998 | M132: 0.06572372998 | N132: 0.06572372998 | O132: 0.06572372998 | P132: 0.06572372998 | Q132: 0.06572372998 | R132: 0.06572372998 | S132: 0.06572372998 | T132: 0.06572372998 | U132: 0.06572372998 | V132: 0.06572372998 | W132: 0.06572372998 | X132: 0.06572372998 | Y132: 0.06572372998 | Z132: 0.06572372998 | AA132: 0.06572372998 | AB132: 0.06572372998 | AC132: 0.06572372998 | AD132: 0.06572372998 | AF132: 0.87 | AG132: 0 | AH132: 0 | AI132: 0 | AJ132: 0 | AK132: 0 | AL132: 0 | AM132: 0 | AN132: 0 | AO132: 0 | AP132: 0 | AQ132: 0 | AR132: 0 | AS132: 0 | AT132: 0 | AU132: 0 | AV132: 0 | AW132: 0 | AX132: 0 | AY132: 0 | AZ132: 0
J133: 0.88 | K133: 0.06615734259 | L133: 0.06615734259 | M133: 0.06615734259 | N133: 0.06615734259 | O133: 0.06615734259 | P133: 0.06615734259 | Q133: 0.06615734259 | R133: 0.06615734259 | S133: 0.06615734259 | T133: 0.06615734259 | U133: 0.06615734259 | V133: 0.06615734259 | W133: 0.06615734259 | X133: 0.06615734259 | Y133: 0.06615734259 | Z133: 0.06615734259 | AA133: 0.06615734259 | AB133: 0.06615734259 | AC133: 0.06615734259 | AD133: 0.06615734259 | AF133: 0.88 | AG133: 0 | AH133: 0 | AI133: 0 | AJ133: 0 | AK133: 0 | AL133: 0 | AM133: 0 | AN133: 0 | AO133: 0 | AP133: 0 | AQ133: 0 | AR133: 0 | AS133: 0 | AT133: 0 | AU133: 0 | AV133: 0 | AW133: 0 | AX133: 0 | AY133: 0 | AZ133: 0
J134: 0.89 | K134: 0.0665904672 | L134: 0.0665904672 | M134: 0.0665904672 | N134: 0.0665904672 | O134: 0.0665904672 | P134: 0.0665904672 | Q134: 0.0665904672 | R134: 0.0665904672 | S134: 0.0665904672 | T134: 0.0665904672 | U134: 0.0665904672 | V134: 0.0665904672 | W134: 0.0665904672 | X134: 0.0665904672 | Y134: 0.0665904672 | Z134: 0.0665904672 | AA134: 0.0665904672 | AB134: 0.0665904672 | AC134: 0.0665904672 | AD134: 0.0665904672 | AF134: 0.89 | AG134: 0 | AH134: 0 | AI134: 0 | AJ134: 0 | AK134: 0 | AL134: 0 | AM134: 0 | AN134: 0 | AO134: 0 | AP134: 0 | AQ134: 0 | AR134: 0 | AS134: 0 | AT134: 0 | AU134: 0 | AV134: 0 | AW134: 0 | AX134: 0 | AY134: 0 | AZ134: 0
J135: 0.9 | K135: 0.06702310964 | L135: 0.06702310964 | M135: 0.06702310964 | N135: 0.06702310964 | O135: 0.06702310964 | P135: 0.06702310964 | Q135: 0.06702310964 | R135: 0.06702310964 | S135: 0.06702310964 | T135: 0.06702310964 | U135: 0.06702310964 | V135: 0.06702310964 | W135: 0.06702310964 | X135: 0.06702310964 | Y135: 0.06702310964 | Z135: 0.06702310964 | AA135: 0.06702310964 | AB135: 0.06702310964 | AC135: 0.06702310964 | AD135: 0.06702310964 | AF135: 0.9 | AG135: 0 | AH135: 0 | AI135: 0 | AJ135: 0 | AK135: 0 | AL135: 0 | AM135: 0 | AN135: 0 | AO135: 0 | AP135: 0 | AQ135: 0 | AR135: 0 | AS135: 0 | AT135: 0 | AU135: 0 | AV135: 0 | AW135: 0 | AX135: 0 | AY135: 0 | AZ135: 0
J136: 0.91 | K136: 0.06745527575 | L136: 0.06745527575 | M136: 0.06745527575 | N136: 0.06745527575 | O136: 0.06745527575 | P136: 0.06745527575 | Q136: 0.06745527575 | R136: 0.06745527575 | S136: 0.06745527575 | T136: 0.06745527575 | U136: 0.06745527575 | V136: 0.06745527575 | W136: 0.06745527575 | X136: 0.06745527575 | Y136: 0.06745527575 | Z136: 0.06745527575 | AA136: 0.06745527575 | AB136: 0.06745527575 | AC136: 0.06745527575 | AD136: 0.06745527575 | AF136: 0.91 | AG136: 0 | AH136: 0 | AI136: 0 | AJ136: 0 | AK136: 0 | AL136: 0 | AM136: 0 | AN136: 0 | AO136: 0 | AP136: 0 | AQ136: 0 | AR136: 0 | AS136: 0 | AT136: 0 | AU136: 0 | AV136: 0 | AW136: 0 | AX136: 0 | AY136: 0 | AZ136: 0
J137: 0.92 | K137: 0.06788697138 | L137: 0.06788697138 | M137: 0.06788697138 | N137: 0.06788697138 | O137: 0.06788697138 | P137: 0.06788697138 | Q137: 0.06788697138 | R137: 0.06788697138 | S137: 0.06788697138 | T137: 0.06788697138 | U137: 0.06788697138 | V137: 0.06788697138 | W137: 0.06788697138 | X137: 0.06788697138 | Y137: 0.06788697138 | Z137: 0.06788697138 | AA137: 0.06788697138 | AB137: 0.06788697138 | AC137: 0.06788697138 | AD137: 0.06788697138 | AF137: 0.92 | AG137: 0 | AH137: 0 | AI137: 0 | AJ137: 0 | AK137: 0 | AL137: 0 | AM137: 0 | AN137: 0 | AO137: 0 | AP137: 0 | AQ137: 0 | AR137: 0 | AS137: 0 | AT137: 0 | AU137: 0 | AV137: 0 | AW137: 0 | AX137: 0 | AY137: 0 | AZ137: 0
J138: 0.93 | K138: 0.06831820238 | L138: 0.06831820238 | M138: 0.06831820238 | N138: 0.06831820238 | O138: 0.06831820238 | P138: 0.06831820238 | Q138: 0.06831820238 | R138: 0.06831820238 | S138: 0.06831820238 | T138: 0.06831820238 | U138: 0.06831820238 | V138: 0.06831820238 | W138: 0.06831820238 | X138: 0.06831820238 | Y138: 0.06831820238 | Z138: 0.06831820238 | AA138: 0.06831820238 | AB138: 0.06831820238 | AC138: 0.06831820238 | AD138: 0.06831820238 | AF138: 0.93 | AG138: 0 | AH138: 0 | AI138: 0 | AJ138: 0 | AK138: 0 | AL138: 0 | AM138: 0 | AN138: 0 | AO138: 0 | AP138: 0 | AQ138: 0 | AR138: 0 | AS138: 0 | AT138: 0 | AU138: 0 | AV138: 0 | AW138: 0 | AX138: 0 | AY138: 0 | AZ138: 0
J139: 0.94 | K139: 0.06874897464 | L139: 0.06874897464 | M139: 0.06874897464 | N139: 0.06874897464 | O139: 0.06874897464 | P139: 0.06874897464 | Q139: 0.06874897464 | R139: 0.06874897464 | S139: 0.06874897464 | T139: 0.06874897464 | U139: 0.06874897464 | V139: 0.06874897464 | W139: 0.06874897464 | X139: 0.06874897464 | Y139: 0.06874897464 | Z139: 0.06874897464 | AA139: 0.06874897464 | AB139: 0.06874897464 | AC139: 0.06874897464 | AD139: 0.06874897464 | AF139: 0.94 | AG139: 0 | AH139: 0 | AI139: 0 | AJ139: 0 | AK139: 0 | AL139: 0 | AM139: 0 | AN139: 0 | AO139: 0 | AP139: 0 | AQ139: 0 | AR139: 0 | AS139: 0 | AT139: 0 | AU139: 0 | AV139: 0 | AW139: 0 | AX139: 0 | AY139: 0 | AZ139: 0
J140: 0.95 | K140: 0.06917929404 | L140: 0.06917929404 | M140: 0.06917929404 | N140: 0.06917929404 | O140: 0.06917929404 | P140: 0.06917929404 | Q140: 0.06917929404 | R140: 0.06917929404 | S140: 0.06917929404 | T140: 0.06917929404 | U140: 0.06917929404 | V140: 0.06917929404 | W140: 0.06917929404 | X140: 0.06917929404 | Y140: 0.06917929404 | Z140: 0.06917929404 | AA140: 0.06917929404 | AB140: 0.06917929404 | AC140: 0.06917929404 | AD140: 0.06917929404 | AF140: 0.95 | AG140: 0 | AH140: 0 | AI140: 0 | AJ140: 0 | AK140: 0 | AL140: 0 | AM140: 0 | AN140: 0 | AO140: 0 | AP140: 0 | AQ140: 0 | AR140: 0 | AS140: 0 | AT140: 0 | AU140: 0 | AV140: 0 | AW140: 0 | AX140: 0 | AY140: 0 | AZ140: 0
J141: 0.96 | K141: 0.06960916645 | L141: 0.06960916645 | M141: 0.06960916645 | N141: 0.06960916645 | O141: 0.06960916645 | P141: 0.06960916645 | Q141: 0.06960916645 | R141: 0.06960916645 | S141: 0.06960916645 | T141: 0.06960916645 | U141: 0.06960916645 | V141: 0.06960916645 | W141: 0.06960916645 | X141: 0.06960916645 | Y141: 0.06960916645 | Z141: 0.06960916645 | AA141: 0.06960916645 | AB141: 0.06960916645 | AC141: 0.06960916645 | AD141: 0.06960916645 | AF141: 0.96 | AG141: 0 | AH141: 0 | AI141: 0 | AJ141: 0 | AK141: 0 | AL141: 0 | AM141: 0 | AN141: 0 | AO141: 0 | AP141: 0 | AQ141: 0 | AR141: 0 | AS141: 0 | AT141: 0 | AU141: 0 | AV141: 0 | AW141: 0 | AX141: 0 | AY141: 0 | AZ141: 0
J142: 0.97 | K142: 0.0700385978 | L142: 0.0700385978 | M142: 0.0700385978 | N142: 0.0700385978 | O142: 0.0700385978 | P142: 0.0700385978 | Q142: 0.0700385978 | R142: 0.0700385978 | S142: 0.0700385978 | T142: 0.0700385978 | U142: 0.0700385978 | V142: 0.0700385978 | W142: 0.0700385978 | X142: 0.0700385978 | Y142: 0.0700385978 | Z142: 0.0700385978 | AA142: 0.0700385978 | AB142: 0.0700385978 | AC142: 0.0700385978 | AD142: 0.0700385978 | AF142: 0.97 | AG142: 0 | AH142: 0 | AI142: 0 | AJ142: 0 | AK142: 0 | AL142: 0 | AM142: 0 | AN142: 0 | AO142: 0 | AP142: 0 | AQ142: 0 | AR142: 0 | AS142: 0 | AT142: 0 | AU142: 0 | AV142: 0 | AW142: 0 | AX142: 0 | AY142: 0 | AZ142: 0
J143: 0.98 | K143: 0.07046759398 | L143: 0.07046759398 | M143: 0.07046759398 | N143: 0.07046759398 | O143: 0.07046759398 | P143: 0.07046759398 | Q143: 0.07046759398 | R143: 0.07046759398 | S143: 0.07046759398 | T143: 0.07046759398 | U143: 0.07046759398 | V143: 0.07046759398 | W143: 0.07046759398 | X143: 0.07046759398 | Y143: 0.07046759398 | Z143: 0.07046759398 | AA143: 0.07046759398 | AB143: 0.07046759398 | AC143: 0.07046759398 | AD143: 0.07046759398 | AF143: 0.98 | AG143: 0 | AH143: 0 | AI143: 0 | AJ143: 0 | AK143: 0 | AL143: 0 | AM143: 0 | AN143: 0 | AO143: 0 | AP143: 0 | AQ143: 0 | AR143: 0 | AS143: 0 | AT143: 0 | AU143: 0 | AV143: 0 | AW143: 0 | AX143: 0 | AY143: 0 | AZ143: 0
J144: 0.99 | K144: 0.07089616092 | L144: 0.07089616092 | M144: 0.07089616092 | N144: 0.07089616092 | O144: 0.07089616092 | P144: 0.07089616092 | Q144: 0.07089616092 | R144: 0.07089616092 | S144: 0.07089616092 | T144: 0.07089616092 | U144: 0.07089616092 | V144: 0.07089616092 | W144: 0.07089616092 | X144: 0.07089616092 | Y144: 0.07089616092 | Z144: 0.07089616092 | AA144: 0.07089616092 | AB144: 0.07089616092 | AC144: 0.07089616092 | AD144: 0.07089616092 | AF144: 0.99 | AG144: 0 | AH144: 0 | AI144: 0 | AJ144: 0 | AK144: 0 | AL144: 0 | AM144: 0 | AN144: 0 | AO144: 0 | AP144: 0 | AQ144: 0 | AR144: 0 | AS144: 0 | AT144: 0 | AU144: 0 | AV144: 0 | AW144: 0 | AX144: 0 | AY144: 0 | AZ144: 0
J145: 1 | K145: 0.07132430456 | L145: 0.07132430456 | M145: 0.07132430456 | N145: 0.07132430456 | O145: 0.07132430456 | P145: 0.07132430456 | Q145: 0.07132430456 | R145: 0.07132430456 | S145: 0.07132430456 | T145: 0.07132430456 | U145: 0.07132430456 | V145: 0.07132430456 | W145: 0.07132430456 | X145: 0.07132430456 | Y145: 0.07132430456 | Z145: 0.07132430456 | AA145: 0.07132430456 | AB145: 0.07132430456 | AC145: 0.07132430456 | AD145: 0.07132430456 | AF145: 1 | AG145: 0 | AH145: 0 | AI145: 0 | AJ145: 0 | AK145: 0 | AL145: 0 | AM145: 0 | AN145: 0 | AO145: 0 | AP145: 0 | AQ145: 0 | AR145: 0 | AS145: 0 | AT145: 0 | AU145: 0 | AV145: 0 | AW145: 0 | AX145: 0 | AY145: 0 | AZ145: 0
J146: 1.01 | K146: 0.07175203084 | L146: 0.07175203084 | M146: 0.07175203084 | N146: 0.07175203084 | O146: 0.07175203084 | P146: 0.07175203084 | Q146: 0.07175203084 | R146: 0.07175203084 | S146: 0.07175203084 | T146: 0.07175203084 | U146: 0.07175203084 | V146: 0.07175203084 | W146: 0.07175203084 | X146: 0.07175203084 | Y146: 0.07175203084 | Z146: 0.07175203084 | AA146: 0.07175203084 | AB146: 0.07175203084 | AC146: 0.07175203084 | AD146: 0.07175203084 | AF146: 1.01 | AG146: 0 | AH146: 0 | AI146: 0 | AJ146: 0 | AK146: 0 | AL146: 0 | AM146: 0 | AN146: 0 | AO146: 0 | AP146: 0 | AQ146: 0 | AR146: 0 | AS146: 0 | AT146: 0 | AU146: 0 | AV146: 0 | AW146: 0 | AX146: 0 | AY146: 0 | AZ146: 0
J147: 1.02 | K147: 0.0721793457 | L147: 0.0721793457 | M147: 0.0721793457 | N147: 0.0721793457 | O147: 0.0721793457 | P147: 0.0721793457 | Q147: 0.0721793457 | R147: 0.0721793457 | S147: 0.0721793457 | T147: 0.0721793457 | U147: 0.0721793457 | V147: 0.0721793457 | W147: 0.0721793457 | X147: 0.0721793457 | Y147: 0.0721793457 | Z147: 0.0721793457 | AA147: 0.0721793457 | AB147: 0.0721793457 | AC147: 0.0721793457 | AD147: 0.0721793457 | AF147: 1.02 | AG147: 0 | AH147: 0 | AI147: 0 | AJ147: 0 | AK147: 0 | AL147: 0 | AM147: 0 | AN147: 0 | AO147: 0 | AP147: 0 | AQ147: 0 | AR147: 0 | AS147: 0 | AT147: 0 | AU147: 0 | AV147: 0 | AW147: 0 | AX147: 0 | AY147: 0 | AZ147: 0
J148: 1.03 | K148: 0.07260625513 | L148: 0.07260625513 | M148: 0.07260625513 | N148: 0.07260625513 | O148: 0.07260625513 | P148: 0.07260625513 | Q148: 0.07260625513 | R148: 0.07260625513 | S148: 0.07260625513 | T148: 0.07260625513 | U148: 0.07260625513 | V148: 0.07260625513 | W148: 0.07260625513 | X148: 0.07260625513 | Y148: 0.07260625513 | Z148: 0.07260625513 | AA148: 0.07260625513 | AB148: 0.07260625513 | AC148: 0.07260625513 | AD148: 0.07260625513 | AF148: 1.03 | AG148: 0 | AH148: 0 | AI148: 0 | AJ148: 0 | AK148: 0 | AL148: 0 | AM148: 0 | AN148: 0 | AO148: 0 | AP148: 0 | AQ148: 0 | AR148: 0 | AS148: 0 | AT148: 0 | AU148: 0 | AV148: 0 | AW148: 0 | AX148: 0 | AY148: 0 | AZ148: 0
J149: 1.04 | K149: 0.07303276508 | L149: 0.07303276508 | M149: 0.07303276508 | N149: 0.07303276508 | O149: 0.07303276508 | P149: 0.07303276508 | Q149: 0.07303276508 | R149: 0.07303276508 | S149: 0.07303276508 | T149: 0.07303276508 | U149: 0.07303276508 | V149: 0.07303276508 | W149: 0.07303276508 | X149: 0.07303276508 | Y149: 0.07303276508 | Z149: 0.07303276508 | AA149: 0.07303276508 | AB149: 0.07303276508 | AC149: 0.07303276508 | AD149: 0.07303276508 | AF149: 1.04 | AG149: 0 | AH149: 0 | AI149: 0 | AJ149: 0 | AK149: 0 | AL149: 0 | AM149: 0 | AN149: 0 | AO149: 0 | AP149: 0 | AQ149: 0 | AR149: 0 | AS149: 0 | AT149: 0 | AU149: 0 | AV149: 0 | AW149: 0 | AX149: 0 | AY149: 0 | AZ149: 0
J150: 1.05 | K150: 0.07345888155 | L150: 0.07345888155 | M150: 0.07345888155 | N150: 0.07345888155 | O150: 0.07345888155 | P150: 0.07345888155 | Q150: 0.07345888155 | R150: 0.07345888155 | S150: 0.07345888155 | T150: 0.07345888155 | U150: 0.07345888155 | V150: 0.07345888155 | W150: 0.07345888155 | X150: 0.07345888155 | Y150: 0.07345888155 | Z150: 0.07345888155 | AA150: 0.07345888155 | AB150: 0.07345888155 | AC150: 0.07345888155 | AD150: 0.07345888155 | AF150: 1.05 | AG150: 0 | AH150: 0 | AI150: 0 | AJ150: 0 | AK150: 0 | AL150: 0 | AM150: 0 | AN150: 0 | AO150: 0 | AP150: 0 | AQ150: 0 | AR150: 0 | AS150: 0 | AT150: 0 | AU150: 0 | AV150: 0 | AW150: 0 | AX150: 0 | AY150: 0 | AZ150: 0
J151: 1.06 | K151: 0.07388461053 | L151: 0.07388461053 | M151: 0.07388461053 | N151: 0.07388461053 | O151: 0.07388461053 | P151: 0.07388461053 | Q151: 0.07388461053 | R151: 0.07388461053 | S151: 0.07388461053 | T151: 0.07388461053 | U151: 0.07388461053 | V151: 0.07388461053 | W151: 0.07388461053 | X151: 0.07388461053 | Y151: 0.07388461053 | Z151: 0.07388461053 | AA151: 0.07388461053 | AB151: 0.07388461053 | AC151: 0.07388461053 | AD151: 0.07388461053 | AF151: 1.06 | AG151: 0 | AH151: 0 | AI151: 0 | AJ151: 0 | AK151: 0 | AL151: 0 | AM151: 0 | AN151: 0 | AO151: 0 | AP151: 0 | AQ151: 0 | AR151: 0 | AS151: 0 | AT151: 0 | AU151: 0 | AV151: 0 | AW151: 0 | AX151: 0 | AY151: 0 | AZ151: 0
J152: 1.07 | K152: 0.07430995802 | L152: 0.07430995802 | M152: 0.07430995802 | N152: 0.07430995802 | O152: 0.07430995802 | P152: 0.07430995802 | Q152: 0.07430995802 | R152: 0.07430995802 | S152: 0.07430995802 | T152: 0.07430995802 | U152: 0.07430995802 | V152: 0.07430995802 | W152: 0.07430995802 | X152: 0.07430995802 | Y152: 0.07430995802 | Z152: 0.07430995802 | AA152: 0.07430995802 | AB152: 0.07430995802 | AC152: 0.07430995802 | AD152: 0.07430995802 | AF152: 1.07 | AG152: 0 | AH152: 0 | AI152: 0 | AJ152: 0 | AK152: 0 | AL152: 0 | AM152: 0 | AN152: 0 | AO152: 0 | AP152: 0 | AQ152: 0 | AR152: 0 | AS152: 0 | AT152: 0 | AU152: 0 | AV152: 0 | AW152: 0 | AX152: 0 | AY152: 0 | AZ152: 0
J153: 1.08 | K153: 0.07473493005 | L153: 0.07473493005 | M153: 0.07473493005 | N153: 0.07473493005 | O153: 0.07473493005 | P153: 0.07473493005 | Q153: 0.07473493005 | R153: 0.07473493005 | S153: 0.07473493005 | T153: 0.07473493005 | U153: 0.07473493005 | V153: 0.07473493005 | W153: 0.07473493005 | X153: 0.07473493005 | Y153: 0.07473493005 | Z153: 0.07473493005 | AA153: 0.07473493005 | AB153: 0.07473493005 | AC153: 0.07473493005 | AD153: 0.07473493005 | AF153: 1.08 | AG153: 0 | AH153: 0 | AI153: 0 | AJ153: 0 | AK153: 0 | AL153: 0 | AM153: 0 | AN153: 0 | AO153: 0 | AP153: 0 | AQ153: 0 | AR153: 0 | AS153: 0 | AT153: 0 | AU153: 0 | AV153: 0 | AW153: 0 | AX153: 0 | AY153: 0 | AZ153: 0
J154: 1.09 | K154: 0.07515953263 | L154: 0.07515953263 | M154: 0.07515953263 | N154: 0.07515953263 | O154: 0.07515953263 | P154: 0.07515953263 | Q154: 0.07515953263 | R154: 0.07515953263 | S154: 0.07515953263 | T154: 0.07515953263 | U154: 0.07515953263 | V154: 0.07515953263 | W154: 0.07515953263 | X154: 0.07515953263 | Y154: 0.07515953263 | Z154: 0.07515953263 | AA154: 0.07515953263 | AB154: 0.07515953263 | AC154: 0.07515953263 | AD154: 0.07515953263 | AF154: 1.09 | AG154: 0 | AH154: 0 | AI154: 0 | AJ154: 0 | AK154: 0 | AL154: 0 | AM154: 0 | AN154: 0 | AO154: 0 | AP154: 0 | AQ154: 0 | AR154: 0 | AS154: 0 | AT154: 0 | AU154: 0 | AV154: 0 | AW154: 0 | AX154: 0 | AY154: 0 | AZ154: 0
J155: 1.1 | K155: 0.07558377181 | L155: 0.07558377181 | M155: 0.07558377181 | N155: 0.07558377181 | O155: 0.07558377181 | P155: 0.07558377181 | Q155: 0.07558377181 | R155: 0.07558377181 | S155: 0.07558377181 | T155: 0.07558377181 | U155: 0.07558377181 | V155: 0.07558377181 | W155: 0.07558377181 | X155: 0.07558377181 | Y155: 0.07558377181 | Z155: 0.07558377181 | AA155: 0.07558377181 | AB155: 0.07558377181 | AC155: 0.07558377181 | AD155: 0.07558377181 | AF155: 1.1 | AG155: 0 | AH155: 0 | AI155: 0 | AJ155: 0 | AK155: 0 | AL155: 0 | AM155: 0 | AN155: 0 | AO155: 0 | AP155: 0 | AQ155: 0 | AR155: 0 | AS155: 0 | AT155: 0 | AU155: 0 | AV155: 0 | AW155: 0 | AX155: 0 | AY155: 0 | AZ155: 0
J156: 1.11 | K156: 0.07600765363 | L156: 0.07600765363 | M156: 0.07600765363 | N156: 0.07600765363 | O156: 0.07600765363 | P156: 0.07600765363 | Q156: 0.07600765363 | R156: 0.07600765363 | S156: 0.07600765363 | T156: 0.07600765363 | U156: 0.07600765363 | V156: 0.07600765363 | W156: 0.07600765363 | X156: 0.07600765363 | Y156: 0.07600765363 | Z156: 0.07600765363 | AA156: 0.07600765363 | AB156: 0.07600765363 | AC156: 0.07600765363 | AD156: 0.07600765363 | AF156: 1.11 | AG156: 0 | AH156: 0 | AI156: 0 | AJ156: 0 | AK156: 0 | AL156: 0 | AM156: 0 | AN156: 0 | AO156: 0 | AP156: 0 | AQ156: 0 | AR156: 0 | AS156: 0 | AT156: 0 | AU156: 0 | AV156: 0 | AW156: 0 | AX156: 0 | AY156: 0 | AZ156: 0
J157: 1.12 | K157: 0.07643118415 | L157: 0.07643118415 | M157: 0.07643118415 | N157: 0.07643118415 | O157: 0.07643118415 | P157: 0.07643118415 | Q157: 0.07643118415 | R157: 0.07643118415 | S157: 0.07643118415 | T157: 0.07643118415 | U157: 0.07643118415 | V157: 0.07643118415 | W157: 0.07643118415 | X157: 0.07643118415 | Y157: 0.07643118415 | Z157: 0.07643118415 | AA157: 0.07643118415 | AB157: 0.07643118415 | AC157: 0.07643118415 | AD157: 0.07643118415 | AF157: 1.12 | AG157: 0 | AH157: 0 | AI157: 0 | AJ157: 0 | AK157: 0 | AL157: 0 | AM157: 0 | AN157: 0 | AO157: 0 | AP157: 0 | AQ157: 0 | AR157: 0 | AS157: 0 | AT157: 0 | AU157: 0 | AV157: 0 | AW157: 0 | AX157: 0 | AY157: 0 | AZ157: 0
J158: 1.13 | K158: 0.07685436943 | L158: 0.07685436943 | M158: 0.07685436943 | N158: 0.07685436943 | O158: 0.07685436943 | P158: 0.07685436943 | Q158: 0.07685436943 | R158: 0.07685436943 | S158: 0.07685436943 | T158: 0.07685436943 | U158: 0.07685436943 | V158: 0.07685436943 | W158: 0.07685436943 | X158: 0.07685436943 | Y158: 0.07685436943 | Z158: 0.07685436943 | AA158: 0.07685436943 | AB158: 0.07685436943 | AC158: 0.07685436943 | AD158: 0.07685436943 | AF158: 1.13 | AG158: 0 | AH158: 0 | AI158: 0 | AJ158: 0 | AK158: 0 | AL158: 0 | AM158: 0 | AN158: 0 | AO158: 0 | AP158: 0 | AQ158: 0 | AR158: 0 | AS158: 0 | AT158: 0 | AU158: 0 | AV158: 0 | AW158: 0 | AX158: 0 | AY158: 0 | AZ158: 0
J159: 1.14 | K159: 0.07727721556 | L159: 0.07727721556 | M159: 0.07727721556 | N159: 0.07727721556 | O159: 0.07727721556 | P159: 0.07727721556 | Q159: 0.07727721556 | R159: 0.07727721556 | S159: 0.07727721556 | T159: 0.07727721556 | U159: 0.07727721556 | V159: 0.07727721556 | W159: 0.07727721556 | X159: 0.07727721556 | Y159: 0.07727721556 | Z159: 0.07727721556 | AA159: 0.07727721556 | AB159: 0.07727721556 | AC159: 0.07727721556 | AD159: 0.07727721556 | AF159: 1.14 | AG159: 0 | AH159: 0 | AI159: 0 | AJ159: 0 | AK159: 0 | AL159: 0 | AM159: 0 | AN159: 0 | AO159: 0 | AP159: 0 | AQ159: 0 | AR159: 0 | AS159: 0 | AT159: 0 | AU159: 0 | AV159: 0 | AW159: 0 | AX159: 0 | AY159: 0 | AZ159: 0
J160: 1.15 | K160: 0.07769972862 | L160: 0.07769972862 | M160: 0.07769972862 | N160: 0.07769972862 | O160: 0.07769972862 | P160: 0.07769972862 | Q160: 0.07769972862 | R160: 0.07769972862 | S160: 0.07769972862 | T160: 0.07769972862 | U160: 0.07769972862 | V160: 0.07769972862 | W160: 0.07769972862 | X160: 0.07769972862 | Y160: 0.07769972862 | Z160: 0.07769972862 | AA160: 0.07769972862 | AB160: 0.07769972862 | AC160: 0.07769972862 | AD160: 0.07769972862 | AF160: 1.15 | AG160: 0 | AH160: 0 | AI160: 0 | AJ160: 0 | AK160: 0 | AL160: 0 | AM160: 0 | AN160: 0 | AO160: 0 | AP160: 0 | AQ160: 0 | AR160: 0 | AS160: 0 | AT160: 0 | AU160: 0 | AV160: 0 | AW160: 0 | AX160: 0 | AY160: 0 | AZ160: 0
J161: 1.16 | K161: 0.0781219147 | L161: 0.0781219147 | M161: 0.0781219147 | N161: 0.0781219147 | O161: 0.0781219147 | P161: 0.0781219147 | Q161: 0.0781219147 | R161: 0.0781219147 | S161: 0.0781219147 | T161: 0.0781219147 | U161: 0.0781219147 | V161: 0.0781219147 | W161: 0.0781219147 | X161: 0.0781219147 | Y161: 0.0781219147 | Z161: 0.0781219147 | AA161: 0.0781219147 | AB161: 0.0781219147 | AC161: 0.0781219147 | AD161: 0.0781219147 | AF161: 1.16 | AG161: 0 | AH161: 0 | AI161: 0 | AJ161: 0 | AK161: 0 | AL161: 0 | AM161: 0 | AN161: 0 | AO161: 0 | AP161: 0 | AQ161: 0 | AR161: 0 | AS161: 0 | AT161: 0 | AU161: 0 | AV161: 0 | AW161: 0 | AX161: 0 | AY161: 0 | AZ161: 0
J162: 1.17 | K162: 0.07854377993 | L162: 0.07854377993 | M162: 0.07854377993 | N162: 0.07854377993 | O162: 0.07854377993 | P162: 0.07854377993 | Q162: 0.07854377993 | R162: 0.07854377993 | S162: 0.07854377993 | T162: 0.07854377993 | U162: 0.07854377993 | V162: 0.07854377993 | W162: 0.07854377993 | X162: 0.07854377993 | Y162: 0.07854377993 | Z162: 0.07854377993 | AA162: 0.07854377993 | AB162: 0.07854377993 | AC162: 0.07854377993 | AD162: 0.07854377993 | AF162: 1.17 | AG162: 0 | AH162: 0 | AI162: 0 | AJ162: 0 | AK162: 0 | AL162: 0 | AM162: 0 | AN162: 0 | AO162: 0 | AP162: 0 | AQ162: 0 | AR162: 0 | AS162: 0 | AT162: 0 | AU162: 0 | AV162: 0 | AW162: 0 | AX162: 0 | AY162: 0 | AZ162: 0
J163: 1.18 | K163: 0.07896533042 | L163: 0.07896533042 | M163: 0.07896533042 | N163: 0.07896533042 | O163: 0.07896533042 | P163: 0.07896533042 | Q163: 0.07896533042 | R163: 0.07896533042 | S163: 0.07896533042 | T163: 0.07896533042 | U163: 0.07896533042 | V163: 0.07896533042 | W163: 0.07896533042 | X163: 0.07896533042 | Y163: 0.07896533042 | Z163: 0.07896533042 | AA163: 0.07896533042 | AB163: 0.07896533042 | AC163: 0.07896533042 | AD163: 0.07896533042 | AF163: 1.18 | AG163: 0 | AH163: 0 | AI163: 0 | AJ163: 0 | AK163: 0 | AL163: 0 | AM163: 0 | AN163: 0 | AO163: 0 | AP163: 0 | AQ163: 0 | AR163: 0 | AS163: 0 | AT163: 0 | AU163: 0 | AV163: 0 | AW163: 0 | AX163: 0 | AY163: 0 | AZ163: 0
J164: 1.19 | K164: 0.0793865723 | L164: 0.0793865723 | M164: 0.0793865723 | N164: 0.0793865723 | O164: 0.0793865723 | P164: 0.0793865723 | Q164: 0.0793865723 | R164: 0.0793865723 | S164: 0.0793865723 | T164: 0.0793865723 | U164: 0.0793865723 | V164: 0.0793865723 | W164: 0.0793865723 | X164: 0.0793865723 | Y164: 0.0793865723 | Z164: 0.0793865723 | AA164: 0.0793865723 | AB164: 0.0793865723 | AC164: 0.0793865723 | AD164: 0.0793865723 | AF164: 1.19 | AG164: 0 | AH164: 0 | AI164: 0 | AJ164: 0 | AK164: 0 | AL164: 0 | AM164: 0 | AN164: 0 | AO164: 0 | AP164: 0 | AQ164: 0 | AR164: 0 | AS164: 0 | AT164: 0 | AU164: 0 | AV164: 0 | AW164: 0 | AX164: 0 | AY164: 0 | AZ164: 0
J165: 1.2 | K165: 0.0798075117 | L165: 0.0798075117 | M165: 0.0798075117 | N165: 0.0798075117 | O165: 0.0798075117 | P165: 0.0798075117 | Q165: 0.0798075117 | R165: 0.0798075117 | S165: 0.0798075117 | T165: 0.0798075117 | U165: 0.0798075117 | V165: 0.0798075117 | W165: 0.0798075117 | X165: 0.0798075117 | Y165: 0.0798075117 | Z165: 0.0798075117 | AA165: 0.0798075117 | AB165: 0.0798075117 | AC165: 0.0798075117 | AD165: 0.0798075117 | AF165: 1.2 | AG165: 0 | AH165: 0 | AI165: 0 | AJ165: 0 | AK165: 0 | AL165: 0 | AM165: 0 | AN165: 0 | AO165: 0 | AP165: 0 | AQ165: 0 | AR165: 0 | AS165: 0 | AT165: 0 | AU165: 0 | AV165: 0 | AW165: 0 | AX165: 0 | AY165: 0 | AZ165: 0
J166: 1.21 | K166: 0.08022815478 | L166: 0.08022815478 | M166: 0.08022815478 | N166: 0.08022815478 | O166: 0.08022815478 | P166: 0.08022815478 | Q166: 0.08022815478 | R166: 0.08022815478 | S166: 0.08022815478 | T166: 0.08022815478 | U166: 0.08022815478 | V166: 0.08022815478 | W166: 0.08022815478 | X166: 0.08022815478 | Y166: 0.08022815478 | Z166: 0.08022815478 | AA166: 0.08022815478 | AB166: 0.08022815478 | AC166: 0.08022815478 | AD166: 0.08022815478 | AF166: 1.21 | AG166: 0 | AH166: 0 | AI166: 0 | AJ166: 0 | AK166: 0 | AL166: 0 | AM166: 0 | AN166: 0 | AO166: 0 | AP166: 0 | AQ166: 0 | AR166: 0 | AS166: 0 | AT166: 0 | AU166: 0 | AV166: 0 | AW166: 0 | AX166: 0 | AY166: 0 | AZ166: 0
J167: 1.22 | K167: 0.0806485077 | L167: 0.0806485077 | M167: 0.0806485077 | N167: 0.0806485077 | O167: 0.0806485077 | P167: 0.0806485077 | Q167: 0.0806485077 | R167: 0.0806485077 | S167: 0.0806485077 | T167: 0.0806485077 | U167: 0.0806485077 | V167: 0.0806485077 | W167: 0.0806485077 | X167: 0.0806485077 | Y167: 0.0806485077 | Z167: 0.0806485077 | AA167: 0.0806485077 | AB167: 0.0806485077 | AC167: 0.0806485077 | AD167: 0.0806485077 | AF167: 1.22 | AG167: 0 | AH167: 0 | AI167: 0 | AJ167: 0 | AK167: 0 | AL167: 0 | AM167: 0 | AN167: 0 | AO167: 0 | AP167: 0 | AQ167: 0 | AR167: 0 | AS167: 0 | AT167: 0 | AU167: 0 | AV167: 0 | AW167: 0 | AX167: 0 | AY167: 0 | AZ167: 0
J168: 1.23 | K168: 0.08106857664 | L168: 0.08106857664 | M168: 0.08106857664 | N168: 0.08106857664 | O168: 0.08106857664 | P168: 0.08106857664 | Q168: 0.08106857664 | R168: 0.08106857664 | S168: 0.08106857664 | T168: 0.08106857664 | U168: 0.08106857664 | V168: 0.08106857664 | W168: 0.08106857664 | X168: 0.08106857664 | Y168: 0.08106857664 | Z168: 0.08106857664 | AA168: 0.08106857664 | AB168: 0.08106857664 | AC168: 0.08106857664 | AD168: 0.08106857664 | AF168: 1.23 | AG168: 0 | AH168: 0 | AI168: 0 | AJ168: 0 | AK168: 0 | AL168: 0 | AM168: 0 | AN168: 0 | AO168: 0 | AP168: 0 | AQ168: 0 | AR168: 0 | AS168: 0 | AT168: 0 | AU168: 0 | AV168: 0 | AW168: 0 | AX168: 0 | AY168: 0 | AZ168: 0
J169: 1.24 | K169: 0.08148836776 | L169: 0.08148836776 | M169: 0.08148836776 | N169: 0.08148836776 | O169: 0.08148836776 | P169: 0.08148836776 | Q169: 0.08148836776 | R169: 0.08148836776 | S169: 0.08148836776 | T169: 0.08148836776 | U169: 0.08148836776 | V169: 0.08148836776 | W169: 0.08148836776 | X169: 0.08148836776 | Y169: 0.08148836776 | Z169: 0.08148836776 | AA169: 0.08148836776 | AB169: 0.08148836776 | AC169: 0.08148836776 | AD169: 0.08148836776 | AF169: 1.24 | AG169: 0 | AH169: 0 | AI169: 0 | AJ169: 0 | AK169: 0 | AL169: 0 | AM169: 0 | AN169: 0 | AO169: 0 | AP169: 0 | AQ169: 0 | AR169: 0 | AS169: 0 | AT169: 0 | AU169: 0 | AV169: 0 | AW169: 0 | AX169: 0 | AY169: 0 | AZ169: 0
J170: 1.25 | K170: 0.08190788727 | L170: 0.08190788727 | M170: 0.08190788727 | N170: 0.08190788727 | O170: 0.08190788727 | P170: 0.08190788727 | Q170: 0.08190788727 | R170: 0.08190788727 | S170: 0.08190788727 | T170: 0.08190788727 | U170: 0.08190788727 | V170: 0.08190788727 | W170: 0.08190788727 | X170: 0.08190788727 | Y170: 0.08190788727 | Z170: 0.08190788727 | AA170: 0.08190788727 | AB170: 0.08190788727 | AC170: 0.08190788727 | AD170: 0.08190788727 | AF170: 1.25 | AG170: 0 | AH170: 0 | AI170: 0 | AJ170: 0 | AK170: 0 | AL170: 0 | AM170: 0 | AN170: 0 | AO170: 0 | AP170: 0 | AQ170: 0 | AR170: 0 | AS170: 0 | AT170: 0 | AU170: 0 | AV170: 0 | AW170: 0 | AX170: 0 | AY170: 0 | AZ170: 0
J171: 1.26 | K171: 0.08232714136 | L171: 0.08232714136 | M171: 0.08232714136 | N171: 0.08232714136 | O171: 0.08232714136 | P171: 0.08232714136 | Q171: 0.08232714136 | R171: 0.08232714136 | S171: 0.08232714136 | T171: 0.08232714136 | U171: 0.08232714136 | V171: 0.08232714136 | W171: 0.08232714136 | X171: 0.08232714136 | Y171: 0.08232714136 | Z171: 0.08232714136 | AA171: 0.08232714136 | AB171: 0.08232714136 | AC171: 0.08232714136 | AD171: 0.08232714136 | AF171: 1.26 | AG171: 0 | AH171: 0 | AI171: 0 | AJ171: 0 | AK171: 0 | AL171: 0 | AM171: 0 | AN171: 0 | AO171: 0 | AP171: 0 | AQ171: 0 | AR171: 0 | AS171: 0 | AT171: 0 | AU171: 0 | AV171: 0 | AW171: 0 | AX171: 0 | AY171: 0 | AZ171: 0
J172: 1.27 | K172: 0.08274613625 | L172: 0.08274613625 | M172: 0.08274613625 | N172: 0.08274613625 | O172: 0.08274613625 | P172: 0.08274613625 | Q172: 0.08274613625 | R172: 0.08274613625 | S172: 0.08274613625 | T172: 0.08274613625 | U172: 0.08274613625 | V172: 0.08274613625 | W172: 0.08274613625 | X172: 0.08274613625 | Y172: 0.08274613625 | Z172: 0.08274613625 | AA172: 0.08274613625 | AB172: 0.08274613625 | AC172: 0.08274613625 | AD172: 0.08274613625 | AF172: 1.27 | AG172: 0 | AH172: 0 | AI172: 0 | AJ172: 0 | AK172: 0 | AL172: 0 | AM172: 0 | AN172: 0 | AO172: 0 | AP172: 0 | AQ172: 0 | AR172: 0 | AS172: 0 | AT172: 0 | AU172: 0 | AV172: 0 | AW172: 0 | AX172: 0 | AY172: 0 | AZ172: 0
